Workbook

Sheet DADOS
A1: =OFFSET(A1,-1,0)+1 ->  | J1: =CONCATENATE(A1,"-",B1) -> 
A2: 27477 | B2: PLE - Planilha de Levantamento de Eventos
A3: v006
A6: Nº OPERAÇÃO | B6: Nº SICONV | C6: GIGOV | D6: GESTOR | E6: PROGRAMA | F6: AÇÃO / MODALIDADE | H6: DATA ASSINATURA
A7: 1069.924-72/2019 | B7: 897435/2019 | D7: MDR (antigo Mcidades) | E7: Planejamento Urbano | F7: Apoio a Política Nacional de Desenvolvimento Urbano
A9: PROPONENTE / TOMADOR | D9: MUNICÍPIO / UF | E9: LOCALIDADE / ENDEREÇO | F9: OBJETO
A10: Município de Veríssimo | D10: Veríssimo/MG | E10: Diversas trechos de ruas | F10: Pavimentação asfáltica em Vias Públicas
A12: Nº CTEF | B12: EMPRESA EXECUTORA | D12: CNPJ | E12: OBJETO DO CTEF | H12: INÍCIO DA OBRA
D13: 5881155 | H13: 2020-08-01
A18: RESPONSÁVEIS TÉCNICOS:
A19: Elaboração do documento | C19: CREA/CAU
A20: Luiz Carlos Furtado de Almeida | C20: MG 28.492/D
A22: Fiscalização | C22: CREA/CAU | D22: ART/RRT
A23: Luiz Carlos Furtado de Almeida | C23: MG 28.492/D | D23: 5881155
A25: Execução | C25: CREA/CAU | D25: ART/RRT
A28: REPRESENTANTE TOMADOR / AG. PROMOTOR / TOMADOR
A29: Nome | C29: Cargo
A32: EVENTOS
A33: Núm do Evento | B33: Título do Evento
A34: 1 | B34: Administração Local | J34: =CONCATENATE(A34,"-",B34) -> 1-Administração Local
A35: =OFFSET(A35,-1,0)+1 -> 2 | B35: Serviços Preliminares | J35: =CONCATENATE(A35,"-",B35) -> 2-Serviços Preliminares
A36: =OFFSET(A36,-1,0)+1 -> 3 | B36: Mobilização | J36: =CONCATENATE(A36,"-",B36) -> 3-Mobilização
A37: =OFFSET(A37,-1,0)+1 -> 4 | B37: Desmobilização | J37: =CONCATENATE(A37,"-",B37) -> 4-Desmobilização
A38: 5 | B38: Subleito/Base/Imprimação | J38: 5-Subleito/Base/Imprimação
A39: 6 | B39: Revestimento Asfáltico | J39: 6-Revestimento Asfáltico
A40: =OFFSET(A40,-1,0)+1 -> 7 | B40: Meio-fio/Sarjetas | J40: =CONCATENATE(A40,"-",B40) -> 7-Meio-fio/Sarjetas
A41: =OFFSET(A41,-1,0)+1 -> 8 | B41: Passeios/Rebaixamentos | J41: =CONCATENATE(A41,"-",B41) -> 8-Passeios/Rebaixamentos
A42: =OFFSET(A42,-1,0)+1 -> 9 | B42: Sinalização Viária | J42: =CONCATENATE(A42,"-",B42) -> 9-Sinalização Viária
A45: INSTRUÇÕES DE USO E PREENCHIMENTO
A47: Informações gerais:
A49: 1. Este documento somente pode ser utilizado nas versões do Excel 2003 ou superior. Não devem ser utilizadas versões do BROffice.
A51: 2. Para funcionamento pleno desse arquivo, a Segurança de Macros do Excel deve ser habilitada.
A53: a. Na Versão Excel 2003, selecione na Faixa de Opções: Ferramentas --> Macro --> Segurança --> Na aba Nível de Segurança selecione a Opção "Baixo" --> Clique em OK --> Feche e abra o Excel novamente para utilizar a Planilha.
A54: b. Na Versão Excel 2007 ou superior, selecione na Faixa de Opções: Arquivo --> Opções --> Central de Confiabilidade --> Configurações da Central de Confiabilidade --> Configurações de Macro --> Habilitar todas as Macros --> Clique em OK --> Feche e abra o excel novamente para utilizar a Planilha.
A56: 3. O Preenchimento deve ser feito somente nas células em amarelo. As demais células são de preenchimento Automático e estão bloqueadas para edição.
A58: Instruções de preenchimento:
A60: Aba DADOS
A62: 1º passo: Na aba Dados, preencher os dados do contrato e identificação dos responsáveis;
A64: 2º passo: Incluir e nomear os eventos (pode ser alterado posteriormente também);
A66: Aba EVENTOGRAMA E QUANTITATIVOS
A68: 3º passo: Na aba Eventograma e Quantitativos, preencher os campos item, descrição e unidade a partir da planilha orçamentária da empresa vencedora da licitação;
A70: 4º passo: Em seguida, preencher as células da coluna Preço Total habilitadas na cor amarela somente para os itens de serviço;
A72: Obs.1: A planilha considera como itens de serviço aqueles que possuem os campos unidade e preço total preenchidos. Caso esses campos não sejam preenchidos, a planilha considera o item como um totalizador, preenchendo-o de cinza.
A74: 5º passo: Preencher as frentes de obra;
A76: 6º passo: Agrupar os eventos a partir do preenchimento de números inteiros sequenciais para cada serviço na coluna Núm. Evento;
A78: Obs.1: Serviços com mesmo número pertencerão ao mesmo agrupador de eventos.
A79: Obs.2: Deve ser atribuído um número de evento para todos os serviços da planilha orçamentária.
A80: Obs.3: Não deve ser preenchido número de evento para metas e níveis.
A81: Obs.4: Todos os serviços do orçamento precisam estar com Evento definido para acessar as abas Detalhamento, Cronograma, PLE e Resumo de Acompanhamento.
A83: 7º passo: Informar as quantidades de cada serviço por frente de obra;
A85: 8º passo: Verificar se os preços totais dos serviços e o valor total do orçamento estão iguais aos da planilha orçamentária proposta pela empresa vencedora da licitação.
A87: Aba DETALHAMENTO DE EVENTOS
A89: Planilha gerada de forma automática a partir dos dados informados na aba Eventograma e Quantitativos e tem por objetivo discriminar:
A90: · os serviços que compõem cada evento;
A91: · os quantitativos de cada serviço por frente de obra e por evento;
A92: · o valor total de cada evento;
A93: · o valor total de cada agrupador;
A94: · o valor total de cada frente de obra.
A96: É possível visualizar os valores/quantidades no modo Eventos ou modo Orçamento, e visualizar os valores/quantidades em sua Totalidade, ou somente os Executados, ou somente os A Executar.
A98: Aba CRONOGRAMA
A100: 9º passo: Informar nos campos em amarelo o número do período em que o evento será concluído. Se necessário, poderão ser usados os botões "Adicionar Ano" e "Excluir Ano" pra compatibilizar o cronograma mostrado abaixo com a necessidade do empreendimento.
A102: Aba PLE
A104: 10º passo: Selecionar o número da medição a ser feita.
A106: 11º passo: Digitar a data da medição no quadro abaixo.
A108: 12º passo: Preencher os campos em amarelo com o um número inteiro referente à medição em questão (período em que os eventos foram executados).
A110: Obs.1: Apenas preencher os eventos concluídos em sua totalidade. Não são considerados para fins de desembolso eventos parcialmente concluídos.
A111: Obs.2: Não devem ser alterados os eventos já preenchidos em medições anteriores.
A113: Aba RESUMO DE ACOMPANHAMENTO
A115: Planilha gerada automaticamente com o resumo do acompanhamento, inclusive o total por meta (para preenchimento do RRE) e comparação do cronograma previsto com o cronograma realizado.
A120: Orientações ao Tomador/Construtora:
A123: 1. Os formulários Eventograma e Quantitativos, Detalhamento de Eventos e Cronograma devem ser encaminhados para verificação e aceite pela CAIXA, na fase de análise de engenharia
A124: e posteriormente na verificação do processo licitatório atualizada com os preços da proposta vencedora da licitação.
A126: 2. Os dados preenchidos na aba Eventograma e Quantitativos não devem ser alterados ao longo do acompanhamento da obra, apenas no caso de reprogramação, quando deverá ser submetido a reanálise e aceite pela CAIXA.
A128: 3. A cada solicitação de recursos, a Planilha de Levantamento de Eventos (PLE) deverá ser preenchida pelo Tomador e encaminhada à CAIXA em conjunto com a planilha Resumo de Acompanhamento.
A129: VR - VOLTA REDONDA
A130: VT - VITORIA

Sheet Eventograma_e_Quantitativos
B1: =ROW(Nível)-ROW(LIorçamento)+1 -> -16 | C1: =IF(D1="","",IF(ISNUMBER(VALUE(D1)),"Meta",IF(AND(F1<>"",I1<>""),"Serviço","Nível"))) ->  | G1: =IF(Nível="Serviço",SUMIF($N$15:$BK$15,"<>"&"",N1:BK1),"") ->  | H1: =IF(AND(ISNUMBER(G1),G1<>0),I1/G1,IF(G1=0,0,"")) ->  | K1: =IF(L1="","",VALUE(LEFT(L1,(FIND("-",L1,1))-1))) ->  | BM1: =IF(N$15="",0,IF(ISNUMBER(PreçoUnit),PreçoUnit*INDEX(Import.PLQ,$B1,BM$16),0)) -> 0 | BN1: 0 | BO1: 0 | BP1: 0 | BQ1: 0 | BR1: 0 | BS1: 0 | BT1: 0 | BU1: 0 | BV1: 0 | BW1: 0 | BX1: 0 | BY1: 0 | BZ1: 0 | CA1: 0 | CB1: 0 | CC1: 0 | CD1: 0 | CE1: 0 | CF1: 0 | CG1: 0 | CH1: 0 | CI1: 0 | CJ1: 0 | CK1: 0 | CL1: 0 | CM1: 0 | CN1: 0 | CO1: 0 | CP1: 0 | CQ1: 0 | CR1: 0 | CS1: =IF(AT$15="",0,IF(ISNUMBER(PreçoUnit),PreçoUnit*INDEX(Import.PLQ,$B1,CS$16),0)) -> 0 | CT1: 0 | CU1: 0 | CV1: 0 | CW1: 0 | CX1: 0 | CY1: 0 | CZ1: 0 | DA1: 0 | DB1: 0 | DC1: 0 | DD1: 0 | DE1: 0 | DF1: 0 | DG1: 0 | DH1: 0 | DI1: 0 | DJ1: 0 | DK1: =IF(D1="",0,IF(ISNUMBER(VALUE(D1)),VALUE(D1),LEFT(D1,FIND(".",D1)-1))) -> 0 | DL1: =SUM(DM1:FJ1) -> 0 | DM1: =IF($K1<>1,IF(ISNUMBER(INDEX(Import.PLE,$K1,DM$16)),IF(INDEX(Import.PLE,$K1,DM$16)<=mediçao,BM1,0),0),PLE!$AA$28*BM1) -> 0 | DN1: =IF($K1<>1,IF(ISNUMBER(INDEX(Import.PLE,$K1,DN$16)),IF(INDEX(Import.PLE,$K1,DN$16)<=mediçao,BN1,0),0),PLE!$AA$28*BN1) -> 0 | DO1: =IF($K1<>1,IF(ISNUMBER(INDEX(Import.PLE,$K1,DO$16)),IF(INDEX(Import.PLE,$K1,DO$16)<=mediçao,BO1,0),0),PLE!$AA$28*BO1) -> 0 | DP1: =IF($K1<>1,IF(ISNUMBER(INDEX(Import.PLE,$K1,DP$16)),IF(INDEX(Import.PLE,$K1,DP$16)<=mediçao,BP1,0),0),PLE!$AA$28*BP1) -> 0 | DQ1: =IF($K1<>1,IF(ISNUMBER(INDEX(Import.PLE,$K1,DQ$16)),IF(INDEX(Import.PLE,$K1,DQ$16)<=mediçao,BQ1,0),0),PLE!$AA$28*BQ1) -> 0 | DR1: =IF($K1<>1,IF(ISNUMBER(INDEX(Import.PLE,$K1,DR$16)),IF(INDEX(Import.PLE,$K1,DR$16)<=mediçao,BR1,0),0),PLE!$AA$28*BR1) -> 0 | DS1: =IF($K1<>1,IF(ISNUMBER(INDEX(Import.PLE,$K1,DS$16)),IF(INDEX(Import.PLE,$K1,DS$16)<=mediçao,BS1,0),0),PLE!$AA$28*BS1) -> 0 | DT1: =IF($K1<>1,IF(ISNUMBER(INDEX(Import.PLE,$K1,DT$16)),IF(INDEX(Import.PLE,$K1,DT$16)<=mediçao,BT1,0),0),PLE!$AA$28*BT1) -> 0 | DU1: =IF($K1<>1,IF(ISNUMBER(INDEX(Import.PLE,$K1,DU$16)),IF(INDEX(Import.PLE,$K1,DU$16)<=mediçao,BU1,0),0),PLE!$AA$28*BU1) -> 0 | DV1: =IF($K1<>1,IF(ISNUMBER(INDEX(Import.PLE,$K1,DV$16)),IF(INDEX(Import.PLE,$K1,DV$16)<=mediçao,BV1,0),0),PLE!$AA$28*BV1) -> 0 | DW1: =IF($K1<>1,IF(ISNUMBER(INDEX(Import.PLE,$K1,DW$16)),IF(INDEX(Import.PLE,$K1,DW$16)<=mediçao,BW1,0),0),PLE!$AA$28*BW1) -> 0 | DX1: =IF($K1<>1,IF(ISNUMBER(INDEX(Import.PLE,$K1,DX$16)),IF(INDEX(Import.PLE,$K1,DX$16)<=mediçao,BX1,0),0),PLE!$AA$28*BX1) -> 0 | DY1: =IF($K1<>1,IF(ISNUMBER(INDEX(Import.PLE,$K1,DY$16)),IF(INDEX(Import.PLE,$K1,DY$16)<=mediçao,BY1,0),0),PLE!$AA$28*BY1) -> 0 | DZ1: =IF($K1<>1,IF(ISNUMBER(INDEX(Import.PLE,$K1,DZ$16)),IF(INDEX(Import.PLE,$K1,DZ$16)<=mediçao,BZ1,0),0),PLE!$AA$28*BZ1) -> 0 | EA1: =IF($K1<>1,IF(ISNUMBER(INDEX(Import.PLE,$K1,EA$16)),IF(INDEX(Import.PLE,$K1,EA$16)<=mediçao,CA1,0),0),PLE!$AA$28*CA1) -> 0 | EB1: =IF($K1<>1,IF(ISNUMBER(INDEX(Import.PLE,$K1,EB$16)),IF(INDEX(Import.PLE,$K1,EB$16)<=mediçao,CB1,0),0),PLE!$AA$28*CB1) -> 0 | EC1: =IF($K1<>1,IF(ISNUMBER(INDEX(Import.PLE,$K1,EC$16)),IF(INDEX(Import.PLE,$K1,EC$16)<=mediçao,CC1,0),0),PLE!$AA$28*CC1) -> 0 | ED1: =IF($K1<>1,IF(ISNUMBER(INDEX(Import.PLE,$K1,ED$16)),IF(INDEX(Import.PLE,$K1,ED$16)<=mediçao,CD1,0),0),PLE!$AA$28*CD1) -> 0 | EE1: =IF($K1<>1,IF(ISNUMBER(INDEX(Import.PLE,$K1,EE$16)),IF(INDEX(Import.PLE,$K1,EE$16)<=mediçao,CE1,0),0),PLE!$AA$28*CE1) -> 0 | EF1: =IF($K1<>1,IF(ISNUMBER(INDEX(Import.PLE,$K1,EF$16)),IF(INDEX(Import.PLE,$K1,EF$16)<=mediçao,CF1,0),0),PLE!$AA$28*CF1) -> 0 | EG1: =IF($K1<>1,IF(ISNUMBER(INDEX(Import.PLE,$K1,EG$16)),IF(INDEX(Import.PLE,$K1,EG$16)<=mediçao,CG1,0),0),PLE!$AA$28*CG1) -> 0 | EH1: =IF($K1<>1,IF(ISNUMBER(INDEX(Import.PLE,$K1,EH$16)),IF(INDEX(Import.PLE,$K1,EH$16)<=mediçao,CH1,0),0),PLE!$AA$28*CH1) -> 0 | EI1: =IF($K1<>1,IF(ISNUMBER(INDEX(Import.PLE,$K1,EI$16)),IF(INDEX(Import.PLE,$K1,EI$16)<=mediçao,CI1,0),0),PLE!$AA$28*CI1) -> 0 | EJ1: =IF($K1<>1,IF(ISNUMBER(INDEX(Import.PLE,$K1,EJ$16)),IF(INDEX(Import.PLE,$K1,EJ$16)<=mediçao,CJ1,0),0),PLE!$AA$28*CJ1) -> 0 | EK1: =IF($K1<>1,IF(ISNUMBER(INDEX(Import.PLE,$K1,EK$16)),IF(INDEX(Import.PLE,$K1,EK$16)<=mediçao,CK1,0),0),PLE!$AA$28*CK1) -> 0 | EL1: =IF($K1<>1,IF(ISNUMBER(INDEX(Import.PLE,$K1,EL$16)),IF(INDEX(Import.PLE,$K1,EL$16)<=mediçao,CL1,0),0),PLE!$AA$28*CL1) -> 0 | EM1: =IF($K1<>1,IF(ISNUMBER(INDEX(Import.PLE,$K1,EM$16)),IF(INDEX(Import.PLE,$K1,EM$16)<=mediçao,CM1,0),0),PLE!$AA$28*CM1) -> 0 | EN1: =IF($K1<>1,IF(ISNUMBER(INDEX(Import.PLE,$K1,EN$16)),IF(INDEX(Import.PLE,$K1,EN$16)<=mediçao,CN1,0),0),PLE!$AA$28*CN1) -> 0 | EO1: =IF($K1<>1,IF(ISNUMBER(INDEX(Import.PLE,$K1,EO$16)),IF(INDEX(Import.PLE,$K1,EO$16)<=mediçao,CO1,0),0),PLE!$AA$28*CO1) -> 0 | EP1: =IF($K1<>1,IF(ISNUMBER(INDEX(Import.PLE,$K1,EP$16)),IF(INDEX(Import.PLE,$K1,EP$16)<=mediçao,CP1,0),0),PLE!$AA$28*CP1) -> 0 | EQ1: =IF($K1<>1,IF(ISNUMBER(INDEX(Import.PLE,$K1,EQ$16)),IF(INDEX(Import.PLE,$K1,EQ$16)<=mediçao,CQ1,0),0),PLE!$AA$28*CQ1) -> 0 | ER1: =IF($K1<>1,IF(ISNUMBER(INDEX(Import.PLE,$K1,ER$16)),IF(INDEX(Import.PLE,$K1,ER$16)<=mediçao,CR1,0),0),PLE!$AA$28*CR1) -> 0 | ES1: =IF($K1<>1,IF(ISNUMBER(INDEX(Import.PLE,$K1,ES$16)),IF(INDEX(Import.PLE,$K1,ES$16)<=mediçao,CS1,0),0),PLE!$AA$28*CS1) -> 0 | ET1: =IF($K1<>1,IF(ISNUMBER(INDEX(Import.PLE,$K1,ET$16)),IF(INDEX(Import.PLE,$K1,ET$16)<=mediçao,CT1,0),0),PLE!$AA$28*CT1) -> 0 | EU1: =IF($K1<>1,IF(ISNUMBER(INDEX(Import.PLE,$K1,EU$16)),IF(INDEX(Import.PLE,$K1,EU$16)<=mediçao,CU1,0),0),PLE!$AA$28*CU1) -> 0 | EV1: =IF($K1<>1,IF(ISNUMBER(INDEX(Import.PLE,$K1,EV$16)),IF(INDEX(Import.PLE,$K1,EV$16)<=mediçao,CV1,0),0),PLE!$AA$28*CV1) -> 0 | EW1: =IF($K1<>1,IF(ISNUMBER(INDEX(Import.PLE,$K1,EW$16)),IF(INDEX(Import.PLE,$K1,EW$16)<=mediçao,CW1,0),0),PLE!$AA$28*CW1) -> 0 | EX1: =IF($K1<>1,IF(ISNUMBER(INDEX(Import.PLE,$K1,EX$16)),IF(INDEX(Import.PLE,$K1,EX$16)<=mediçao,CX1,0),0),PLE!$AA$28*CX1) -> 0 | EY1: =IF($K1<>1,IF(ISNUMBER(INDEX(Import.PLE,$K1,EY$16)),IF(INDEX(Import.PLE,$K1,EY$16)<=mediçao,CY1,0),0),PLE!$AA$28*CY1) -> 0 | EZ1: =IF($K1<>1,IF(ISNUMBER(INDEX(Import.PLE,$K1,EZ$16)),IF(INDEX(Import.PLE,$K1,EZ$16)<=mediçao,CZ1,0),0),PLE!$AA$28*CZ1) -> 0 | FA1: =IF($K1<>1,IF(ISNUMBER(INDEX(Import.PLE,$K1,FA$16)),IF(INDEX(Import.PLE,$K1,FA$16)<=mediçao,DA1,0),0),PLE!$AA$28*DA1) -> 0 | FB1: =IF($K1<>1,IF(ISNUMBER(INDEX(Import.PLE,$K1,FB$16)),IF(INDEX(Import.PLE,$K1,FB$16)<=mediçao,DB1,0),0),PLE!$AA$28*DB1) -> 0 | FC1: =IF($K1<>1,IF(ISNUMBER(INDEX(Import.PLE,$K1,FC$16)),IF(INDEX(Import.PLE,$K1,FC$16)<=mediçao,DC1,0),0),PLE!$AA$28*DC1) -> 0 | FD1: =IF($K1<>1,IF(ISNUMBER(INDEX(Import.PLE,$K1,FD$16)),IF(INDEX(Import.PLE,$K1,FD$16)<=mediçao,DD1,0),0),PLE!$AA$28*DD1) -> 0 | FE1: =IF($K1<>1,IF(ISNUMBER(INDEX(Import.PLE,$K1,FE$16)),IF(INDEX(Import.PLE,$K1,FE$16)<=mediçao,DE1,0),0),PLE!$AA$28*DE1) -> 0 | FF1: =IF($K1<>1,IF(ISNUMBER(INDEX(Import.PLE,$K1,FF$16)),IF(INDEX(Import.PLE,$K1,FF$16)<=mediçao,DF1,0),0),PLE!$AA$28*DF1) -> 0 | FG1: =IF($K1<>1,IF(ISNUMBER(INDEX(Import.PLE,$K1,FG$16)),IF(INDEX(Import.PLE,$K1,FG$16)<=mediçao,DG1,0),0),PLE!$AA$28*DG1) -> 0 | FH1: =IF($K1<>1,IF(ISNUMBER(INDEX(Import.PLE,$K1,FH$16)),IF(INDEX(Import.PLE,$K1,FH$16)<=mediçao,DH1,0),0),PLE!$AA$28*DH1) -> 0 | FI1: =IF($K1<>1,IF(ISNUMBER(INDEX(Import.PLE,$K1,FI$16)),IF(INDEX(Import.PLE,$K1,FI$16)<=mediçao,DI1,0),0),PLE!$AA$28*DI1) -> 0 | FJ1: =IF($K1<>1,IF(ISNUMBER(INDEX(Import.PLE,$K1,FJ$16)),IF(INDEX(Import.PLE,$K1,FJ$16)<=mediçao,DJ1,0),0),PLE!$AA$28*DJ1) -> 0
B3: =ROW(Nível)-ROW(LIorçamento)+1 -> -14 | C3: Evento | D3: Evento | E3: =INDEX(Eventos,K3,2) ->  | F3: R$ | G3: =IF(Nível="Serviço",SUMIF($N$15:$BK$15,"<>"&"",N3:BK3),"") ->  | H3: =IF(AND(ISNUMBER(G3),G3<>0),I3/G3,IF(G3=0,0,"")) ->  | I3: =SUM(N3:BK3) -> 0 | K3: =INDEX(Eventos,ROW(Nível)-ROW(LForçamento),1) ->  | L3: =IF(AND(NumEvento<>"",Nível="Serviço"),INDEX(Eventos,NumEvento,2),"") ->  | N3: =IF(N$15="",0,SUMIF(Import.numEventos,$K3,OFFSET(PreçoServiçoPorFrente,0,N$16-1,,1))) -> 0 | O3: 0 | P3: 0 | Q3: 0 | R3: 0 | S3: 0 | T3: 0 | U3: 0 | V3: 0 | W3: 0 | X3: 0 | Y3: 0 | Z3: 0 | AA3: 0 | AB3: 0 | AC3: 0 | AD3: 0 | AE3: 0 | AF3: 0 | AG3: 0 | AH3: 0 | AI3: 0 | AJ3: 0 | AK3: 0 | AL3: 0 | AM3: 0 | AN3: 0 | AO3: 0 | AP3: 0 | AQ3: 0 | AR3: 0 | AS3: 0 | AT3: 0 | AU3: 0 | AV3: 0 | AW3: 0 | AX3: 0 | AY3: 0 | AZ3: 0 | BA3: 0 | BB3: 0 | BC3: 0 | BD3: 0 | BE3: 0 | BF3: 0 | BG3: 0 | BH3: 0 | BI3: 0 | BJ3: 0 | BK3: 0
E4: PLE - Planilha de Levantamento de Eventos Eventograma e Quantitativos | R4: Grau de Sigilo #PUBLICO | X4: Grau de Sigilo #PUBLICO | AD4: Grau de Sigilo #PUBLICO | AJ4: Grau de Sigilo #PUBLICO | AP4: Grau de Sigilo #PUBLICO | AV4: Grau de Sigilo #PUBLICO | BB4: Grau de Sigilo #PUBLICO | BH4: Grau de Sigilo #PUBLICO
BM14: Preço do Serviço por frente | DM14: Preço dos Serviços executados
C15: ="Valor Total do Orçamento: R$ "&TEXT(SUMIF(C18:C54,"Serviço",I18:I54),"#.#0,00") -> Valor Total do Orçamento: R$ 263.000,00 | L15: Frentes de Obra: | N15: Única | O15: R. Alírio Adail França | P15: R. 13 de Maio | Q15: R. Melo Franco | R15: R. Pe. Davi | S15: R. 15 de Novembro
B16: =COUNTA(OFFSET(Eventograma_e_Quantitativos!$K$17,1,0):OFFSET(Eventograma_e_Quantitativos!$K$46,-1,0))-COUNTBLANK(OFFSET(Eventograma_e_Quantitativos!$L$17,1,0):OFFSET(Eventograma_e_Quantitativos!$L$46,-1,0))<COUNTIF(OFFSET(Eventograma_e_Quantitativos!$C$17,1,0):OFFSET(Eventograma_e_Quantitativos!$C$46,-1,0),"Serviço") -> FALSE | C16: Nível | D16: Item | E16: Descrição | F16: Unid. | G16: Qtde. | H16: Preço Unit. (R$) | I16: Preço Total (R$) | K16: Núm. Evento | L16: Agrupador de Eventos | N16: 1 | O16: 2 | P16: 3 | Q16: 4 | R16: 5 | S16: 6 | T16: 7 | U16: 8 | V16: 9 | W16: 10 | X16: 11 | Y16: 12 | Z16: 13 | AA16: 14 | AB16: 15 | AC16: 16 | AD16: 17 | AE16: 18 | AF16: 19 | AG16: 20 | AH16: 21 | AI16: 22 | AJ16: 23 | AK16: 24 | AL16: 25 | AM16: 26 | AN16: 27 | AO16: 28 | AP16: 29 | AQ16: 30 | AR16: 31 | AS16: 32 | AT16: 33 | AU16: 34 | AV16: 35 | AW16: 36 | AX16: 37 | AY16: 38 | AZ16: 39 | BA16: 40 | BB16: 41 | BC16: 42 | BD16: 43 | BE16: 44 | BF16: 45 | BG16: 46 | BH16: 47 | BI16: 48 | BJ16: 49 | BK16: 50 | BM16: 1 | BN16: 2 | BO16: 3 | BP16: 4 | BQ16: 5 | BR16: 6 | BS16: 7 | BT16: 8 | BU16: 9 | BV16: 10 | BW16: 11 | BX16: 12 | BY16: 13 | BZ16: 14 | CA16: 15 | CB16: 16 | CC16: 17 | CD16: 18 | CE16: 19 | CF16: 20 | CG16: 21 | CH16: 22 | CI16: 23 | CJ16: 24 | CK16: 25 | CL16: 26 | CM16: 27 | CN16: 28 | CO16: 29 | CP16: 30 | CQ16: 31 | CR16: 32 | CS16: 33 | CT16: 34 | CU16: 35 | CV16: 36 | CW16: 37 | CX16: 38 | CY16: 39 | CZ16: 40 | DA16: 41 | DB16: 42 | DC16: 43 | DD16: 44 | DE16: 45 | DF16: 46 | DG16: 47 | DH16: 48 | DI16: 49 | DJ16: 50 | DK16: meta | DM16: 1 | DN16: 2 | DO16: 3 | DP16: 4 | DQ16: 5 | DR16: 6 | DS16: 7 | DT16: 8 | DU16: 9 | DV16: 10 | DW16: 11 | DX16: 12 | DY16: 13 | DZ16: 14 | EA16: 15 | EB16: 16 | EC16: 17 | ED16: 18 | EE16: 19 | EF16: 20 | EG16: 21 | EH16: 22 | EI16: 23 | EJ16: 24 | EK16: 25 | EL16: 26 | EM16: 27 | EN16: 28 | EO16: 29 | EP16: 30 | EQ16: 31 | ER16: 32 | ES16: 33 | ET16: 34 | EU16: 35 | EV16: 36 | EW16: 37 | EX16: 38 | EY16: 39 | EZ16: 40 | FA16: 41 | FB16: 42 | FC16: 43 | FD16: 44 | FE16: 45 | FF16: 46 | FG16: 47 | FH16: 48 | FI16: 49 | FJ16: 50
B18: =ROW(Nível)-ROW(LIorçamento)+1 -> 1 | C18: =IF(D18="","",IF(ISNUMBER(VALUE(D18)),"Meta",IF(AND(F18<>"",I18<>""),"Serviço","Nível"))) -> Nível | D18: 1. | E18: Pavimentação de Vias Públicas | G18: =IF(Nível="Serviço",SUMIF($N$15:$BK$15,"<>"&"",N18:BK18),"") ->  | H18: =IF(AND(ISNUMBER(G18),G18<>0),I18/G18,IF(G18=0,0,"")) ->  | I18: 263000 | K18: =deactivatedados.form1 ->  | BM18: =IF(N$15="",0,IF(ISNUMBER(PreçoUnit),PreçoUnit*INDEX(Import.PLQ,$B18,BM$16),0)) -> 0 | BN18: =IF(O$15="",0,IF(ISNUMBER(PreçoUnit),PreçoUnit*INDEX(Import.PLQ,$B18,BN$16),0)) -> 0 | BO18: =IF(P$15="",0,IF(ISNUMBER(PreçoUnit),PreçoUnit*INDEX(Import.PLQ,$B18,BO$16),0)) -> 0 | BP18: =IF(Q$15="",0,IF(ISNUMBER(PreçoUnit),PreçoUnit*INDEX(Import.PLQ,$B18,BP$16),0)) -> 0 | BQ18: =IF(R$15="",0,IF(ISNUMBER(PreçoUnit),PreçoUnit*INDEX(Import.PLQ,$B18,BQ$16),0)) -> 0 | BR18: =IF(S$15="",0,IF(ISNUMBER(PreçoUnit),PreçoUnit*INDEX(Import.PLQ,$B18,BR$16),0)) -> 0 | BS18: =IF(T$15="",0,IF(ISNUMBER(PreçoUnit),PreçoUnit*INDEX(Import.PLQ,$B18,BS$16),0)) -> 0 | BT18: =IF(U$15="",0,IF(ISNUMBER(PreçoUnit),PreçoUnit*INDEX(Import.PLQ,$B18,BT$16),0)) -> 0 | BU18: =IF(V$15="",0,IF(ISNUMBER(PreçoUnit),PreçoUnit*INDEX(Import.PLQ,$B18,BU$16),0)) -> 0 | BV18: =IF(W$15="",0,IF(ISNUMBER(PreçoUnit),PreçoUnit*INDEX(Import.PLQ,$B18,BV$16),0)) -> 0 | BW18: =IF(X$15="",0,IF(ISNUMBER(PreçoUnit),PreçoUnit*INDEX(Import.PLQ,$B18,BW$16),0)) -> 0 | BX18: =IF(Y$15="",0,IF(ISNUMBER(PreçoUnit),PreçoUnit*INDEX(Import.PLQ,$B18,BX$16),0)) -> 0 | BY18: =IF(Z$15="",0,IF(ISNUMBER(PreçoUnit),PreçoUnit*INDEX(Import.PLQ,$B18,BY$16),0)) -> 0 | BZ18: =IF(AA$15="",0,IF(ISNUMBER(PreçoUnit),PreçoUnit*INDEX(Import.PLQ,$B18,BZ$16),0)) -> 0 | CA18: =IF(AB$15="",0,IF(ISNUMBER(PreçoUnit),PreçoUnit*INDEX(Import.PLQ,$B18,CA$16),0)) -> 0 | CB18: =IF(AC$15="",0,IF(ISNUMBER(PreçoUnit),PreçoUnit*INDEX(Import.PLQ,$B18,CB$16),0)) -> 0 | CC18: =IF(AD$15="",0,IF(ISNUMBER(PreçoUnit),PreçoUnit*INDEX(Import.PLQ,$B18,CC$16),0)) -> 0 | CD18: =IF(AE$15="",0,IF(ISNUMBER(PreçoUnit),PreçoUnit*INDEX(Import.PLQ,$B18,CD$16),0)) -> 0 | CE18: =IF(AF$15="",0,IF(ISNUMBER(PreçoUnit),PreçoUnit*INDEX(Import.PLQ,$B18,CE$16),0)) -> 0 | CF18: =IF(AG$15="",0,IF(ISNUMBER(PreçoUnit),PreçoUnit*INDEX(Import.PLQ,$B18,CF$16),0)) -> 0 | CG18: =IF(AH$15="",0,IF(ISNUMBER(PreçoUnit),PreçoUnit*INDEX(Import.PLQ,$B18,CG$16),0)) -> 0 | CH18: =IF(AI$15="",0,IF(ISNUMBER(PreçoUnit),PreçoUnit*INDEX(Import.PLQ,$B18,CH$16),0)) -> 0 | CI18: =IF(AJ$15="",0,IF(ISNUMBER(PreçoUnit),PreçoUnit*INDEX(Import.PLQ,$B18,CI$16),0)) -> 0 | CJ18: =IF(AK$15="",0,IF(ISNUMBER(PreçoUnit),PreçoUnit*INDEX(Import.PLQ,$B18,CJ$16),0)) -> 0 | CK18: =IF(AL$15="",0,IF(ISNUMBER(PreçoUnit),PreçoUnit*INDEX(Import.PLQ,$B18,CK$16),0)) -> 0 | CL18: =IF(AM$15="",0,IF(ISNUMBER(PreçoUnit),PreçoUnit*INDEX(Import.PLQ,$B18,CL$16),0)) -> 0 | CM18: =IF(AN$15="",0,IF(ISNUMBER(PreçoUnit),PreçoUnit*INDEX(Import.PLQ,$B18,CM$16),0)) -> 0 | CN18: =IF(AO$15="",0,IF(ISNUMBER(PreçoUnit),PreçoUnit*INDEX(Import.PLQ,$B18,CN$16),0)) -> 0 | CO18: =IF(AP$15="",0,IF(ISNUMBER(PreçoUnit),PreçoUnit*INDEX(Import.PLQ,$B18,CO$16),0)) -> 0 | CP18: =IF(AQ$15="",0,IF(ISNUMBER(PreçoUnit),PreçoUnit*INDEX(Import.PLQ,$B18,CP$16),0)) -> 0 | CQ18: =IF(AR$15="",0,IF(ISNUMBER(PreçoUnit),PreçoUnit*INDEX(Import.PLQ,$B18,CQ$16),0)) -> 0 | CR18: =IF(AS$15="",0,IF(ISNUMBER(PreçoUnit),PreçoUnit*INDEX(Import.PLQ,$B18,CR$16),0)) -> 0 | CS18: =IF(AT$15="",0,IF(ISNUMBER(PreçoUnit),PreçoUnit*INDEX(Import.PLQ,$B18,CS$16),0)) -> 0 | CT18: =IF(AU$15="",0,IF(ISNUMBER(PreçoUnit),PreçoUnit*INDEX(Import.PLQ,$B18,CT$16),0)) -> 0 | CU18: =IF(AV$15="",0,IF(ISNUMBER(PreçoUnit),PreçoUnit*INDEX(Import.PLQ,$B18,CU$16),0)) -> 0 | CV18: =IF(AW$15="",0,IF(ISNUMBER(PreçoUnit),PreçoUnit*INDEX(Import.PLQ,$B18,CV$16),0)) -> 0 | CW18: =IF(AX$15="",0,IF(ISNUMBER(PreçoUnit),PreçoUnit*INDEX(Import.PLQ,$B18,CW$16),0)) -> 0 | CX18: =IF(AY$15="",0,IF(ISNUMBER(PreçoUnit),PreçoUnit*INDEX(Import.PLQ,$B18,CX$16),0)) -> 0 | CY18: =IF(AZ$15="",0,IF(ISNUMBER(PreçoUnit),PreçoUnit*INDEX(Import.PLQ,$B18,CY$16),0)) -> 0 | CZ18: =IF(BA$15="",0,IF(ISNUMBER(PreçoUnit),PreçoUnit*INDEX(Import.PLQ,$B18,CZ$16),0)) -> 0 | DA18: =IF(BB$15="",0,IF(ISNUMBER(PreçoUnit),PreçoUnit*INDEX(Import.PLQ,$B18,DA$16),0)) -> 0 | DB18: =IF(BC$15="",0,IF(ISNUMBER(PreçoUnit),PreçoUnit*INDEX(Import.PLQ,$B18,DB$16),0)) -> 0 | DC18: =IF(BD$15="",0,IF(ISNUMBER(PreçoUnit),PreçoUnit*INDEX(Import.PLQ,$B18,DC$16),0)) -> 0 | DD18: =IF(BE$15="",0,IF(ISNUMBER(PreçoUnit),PreçoUnit*INDEX(Import.PLQ,$B18,DD$16),0)) -> 0 | DE18: =IF(BF$15="",0,IF(ISNUMBER(PreçoUnit),PreçoUnit*INDEX(Import.PLQ,$B18,DE$16),0)) -> 0 | DF18: =IF(BG$15="",0,IF(ISNUMBER(PreçoUnit),PreçoUnit*INDEX(Import.PLQ,$B18,DF$16),0)) -> 0 | DG18: =IF(BH$15="",0,IF(ISNUMBER(PreçoUnit),PreçoUnit*INDEX(Import.PLQ,$B18,DG$16),0)) -> 0 | DH18: =IF(BI$15="",0,IF(ISNUMBER(PreçoUnit),PreçoUnit*INDEX(Import.PLQ,$B18,DH$16),0)) -> 0 | DI18: =IF(BJ$15="",0,IF(ISNUMBER(PreçoUnit),PreçoUnit*INDEX(Import.PLQ,$B18,DI$16),0)) -> 0 | DJ18: =IF(BK$15="",0,IF(ISNUMBER(PreçoUnit),PreçoUnit*INDEX(Import.PLQ,$B18,DJ$16),0)) -> 0 | DK18: =IF(D18="",0,IF(ISNUMBER(VALUE(D18)),VALUE(D18),LEFT(D18,FIND(".",D18)-1))) -> 1 | DL18: =SUM(DM18:FJ18) -> 0 | DM18: =IF($K18<>1,IF(ISNUMBER(INDEX(Import.PLE,$K18,DM$16)),IF(INDEX(Import.PLE,$K18,DM$16)<=mediçao,BM18,0),0),PLE!$AA$28*BM18) -> 0 | DN18: =IF($K18<>1,IF(ISNUMBER(INDEX(Import.PLE,$K18,DN$16)),IF(INDEX(Import.PLE,$K18,DN$16)<=mediçao,BN18,0),0),PLE!$AA$28*BN18) -> 0 | DO18: =IF($K18<>1,IF(ISNUMBER(INDEX(Import.PLE,$K18,DO$16)),IF(INDEX(Import.PLE,$K18,DO$16)<=mediçao,BO18,0),0),PLE!$AA$28*BO18) -> 0 | DP18: =IF($K18<>1,IF(ISNUMBER(INDEX(Import.PLE,$K18,DP$16)),IF(INDEX(Import.PLE,$K18,DP$16)<=mediçao,BP18,0),0),PLE!$AA$28*BP18) -> 0 | DQ18: =IF($K18<>1,IF(ISNUMBER(INDEX(Import.PLE,$K18,DQ$16)),IF(INDEX(Import.PLE,$K18,DQ$16)<=mediçao,BQ18,0),0),PLE!$AA$28*BQ18) -> 0 | DR18: =IF($K18<>1,IF(ISNUMBER(INDEX(Import.PLE,$K18,DR$16)),IF(INDEX(Import.PLE,$K18,DR$16)<=mediçao,BR18,0),0),PLE!$AA$28*BR18) -> 0 | DS18: =IF($K18<>1,IF(ISNUMBER(INDEX(Import.PLE,$K18,DS$16)),IF(INDEX(Import.PLE,$K18,DS$16)<=mediçao,BS18,0),0),PLE!$AA$28*BS18) -> 0 | DT18: =IF($K18<>1,IF(ISNUMBER(INDEX(Import.PLE,$K18,DT$16)),IF(INDEX(Import.PLE,$K18,DT$16)<=mediçao,BT18,0),0),PLE!$AA$28*BT18) -> 0 | DU18: =IF($K18<>1,IF(ISNUMBER(INDEX(Import.PLE,$K18,DU$16)),IF(INDEX(Import.PLE,$K18,DU$16)<=mediçao,BU18,0),0),PLE!$AA$28*BU18) -> 0 | DV18: =IF($K18<>1,IF(ISNUMBER(INDEX(Import.PLE,$K18,DV$16)),IF(INDEX(Import.PLE,$K18,DV$16)<=mediçao,BV18,0),0),PLE!$AA$28*BV18) -> 0 | DW18: =IF($K18<>1,IF(ISNUMBER(INDEX(Import.PLE,$K18,DW$16)),IF(INDEX(Import.PLE,$K18,DW$16)<=mediçao,BW18,0),0),PLE!$AA$28*BW18) -> 0 | DX18: =IF($K18<>1,IF(ISNUMBER(INDEX(Import.PLE,$K18,DX$16)),IF(INDEX(Import.PLE,$K18,DX$16)<=mediçao,BX18,0),0),PLE!$AA$28*BX18) -> 0 | DY18: =IF($K18<>1,IF(ISNUMBER(INDEX(Import.PLE,$K18,DY$16)),IF(INDEX(Import.PLE,$K18,DY$16)<=mediçao,BY18,0),0),PLE!$AA$28*BY18) -> 0 | DZ18: =IF($K18<>1,IF(ISNUMBER(INDEX(Import.PLE,$K18,DZ$16)),IF(INDEX(Import.PLE,$K18,DZ$16)<=mediçao,BZ18,0),0),PLE!$AA$28*BZ18) -> 0 | EA18: =IF($K18<>1,IF(ISNUMBER(INDEX(Import.PLE,$K18,EA$16)),IF(INDEX(Import.PLE,$K18,EA$16)<=mediçao,CA18,0),0),PLE!$AA$28*CA18) -> 0 | EB18: =IF($K18<>1,IF(ISNUMBER(INDEX(Import.PLE,$K18,EB$16)),IF(INDEX(Import.PLE,$K18,EB$16)<=mediçao,CB18,0),0),PLE!$AA$28*CB18) -> 0 | EC18: =IF($K18<>1,IF(ISNUMBER(INDEX(Import.PLE,$K18,EC$16)),IF(INDEX(Import.PLE,$K18,EC$16)<=mediçao,CC18,0),0),PLE!$AA$28*CC18) -> 0 | ED18: =IF($K18<>1,IF(ISNUMBER(INDEX(Import.PLE,$K18,ED$16)),IF(INDEX(Import.PLE,$K18,ED$16)<=mediçao,CD18,0),0),PLE!$AA$28*CD18) -> 0 | EE18: =IF($K18<>1,IF(ISNUMBER(INDEX(Import.PLE,$K18,EE$16)),IF(INDEX(Import.PLE,$K18,EE$16)<=mediçao,CE18,0),0),PLE!$AA$28*CE18) -> 0 | EF18: =IF($K18<>1,IF(ISNUMBER(INDEX(Import.PLE,$K18,EF$16)),IF(INDEX(Import.PLE,$K18,EF$16)<=mediçao,CF18,0),0),PLE!$AA$28*CF18) -> 0 | EG18: =IF($K18<>1,IF(ISNUMBER(INDEX(Import.PLE,$K18,EG$16)),IF(INDEX(Import.PLE,$K18,EG$16)<=mediçao,CG18,0),0),PLE!$AA$28*CG18) -> 0 | EH18: =IF($K18<>1,IF(ISNUMBER(INDEX(Import.PLE,$K18,EH$16)),IF(INDEX(Import.PLE,$K18,EH$16)<=mediçao,CH18,0),0),PLE!$AA$28*CH18) -> 0 | EI18: =IF($K18<>1,IF(ISNUMBER(INDEX(Import.PLE,$K18,EI$16)),IF(INDEX(Import.PLE,$K18,EI$16)<=mediçao,CI18,0),0),PLE!$AA$28*CI18) -> 0 | EJ18: =IF($K18<>1,IF(ISNUMBER(INDEX(Import.PLE,$K18,EJ$16)),IF(INDEX(Import.PLE,$K18,EJ$16)<=mediçao,CJ18,0),0),PLE!$AA$28*CJ18) -> 0 | EK18: =IF($K18<>1,IF(ISNUMBER(INDEX(Import.PLE,$K18,EK$16)),IF(INDEX(Import.PLE,$K18,EK$16)<=mediçao,CK18,0),0),PLE!$AA$28*CK18) -> 0 | EL18: =IF($K18<>1,IF(ISNUMBER(INDEX(Import.PLE,$K18,EL$16)),IF(INDEX(Import.PLE,$K18,EL$16)<=mediçao,CL18,0),0),PLE!$AA$28*CL18) -> 0 | EM18: =IF($K18<>1,IF(ISNUMBER(INDEX(Import.PLE,$K18,EM$16)),IF(INDEX(Import.PLE,$K18,EM$16)<=mediçao,CM18,0),0),PLE!$AA$28*CM18) -> 0 | EN18: =IF($K18<>1,IF(ISNUMBER(INDEX(Import.PLE,$K18,EN$16)),IF(INDEX(Import.PLE,$K18,EN$16)<=mediçao,CN18,0),0),PLE!$AA$28*CN18) -> 0 | EO18: =IF($K18<>1,IF(ISNUMBER(INDEX(Import.PLE,$K18,EO$16)),IF(INDEX(Import.PLE,$K18,EO$16)<=mediçao,CO18,0),0),PLE!$AA$28*CO18) -> 0 | EP18: =IF($K18<>1,IF(ISNUMBER(INDEX(Import.PLE,$K18,EP$16)),IF(INDEX(Import.PLE,$K18,EP$16)<=mediçao,CP18,0),0),PLE!$AA$28*CP18) -> 0 | EQ18: =IF($K18<>1,IF(ISNUMBER(INDEX(Import.PLE,$K18,EQ$16)),IF(INDEX(Import.PLE,$K18,EQ$16)<=mediçao,CQ18,0),0),PLE!$AA$28*CQ18) -> 0 | ER18: =IF($K18<>1,IF(ISNUMBER(INDEX(Import.PLE,$K18,ER$16)),IF(INDEX(Import.PLE,$K18,ER$16)<=mediçao,CR18,0),0),PLE!$AA$28*CR18) -> 0 | ES18: =IF($K18<>1,IF(ISNUMBER(INDEX(Import.PLE,$K18,ES$16)),IF(INDEX(Import.PLE,$K18,ES$16)<=mediçao,CS18,0),0),PLE!$AA$28*CS18) -> 0 | ET18: =IF($K18<>1,IF(ISNUMBER(INDEX(Import.PLE,$K18,ET$16)),IF(INDEX(Import.PLE,$K18,ET$16)<=mediçao,CT18,0),0),PLE!$AA$28*CT18) -> 0 | EU18: =IF($K18<>1,IF(ISNUMBER(INDEX(Import.PLE,$K18,EU$16)),IF(INDEX(Import.PLE,$K18,EU$16)<=mediçao,CU18,0),0),PLE!$AA$28*CU18) -> 0 | EV18: =IF($K18<>1,IF(ISNUMBER(INDEX(Import.PLE,$K18,EV$16)),IF(INDEX(Import.PLE,$K18,EV$16)<=mediçao,CV18,0),0),PLE!$AA$28*CV18) -> 0 | EW18: =IF($K18<>1,IF(ISNUMBER(INDEX(Import.PLE,$K18,EW$16)),IF(INDEX(Import.PLE,$K18,EW$16)<=mediçao,CW18,0),0),PLE!$AA$28*CW18) -> 0 | EX18: =IF($K18<>1,IF(ISNUMBER(INDEX(Import.PLE,$K18,EX$16)),IF(INDEX(Import.PLE,$K18,EX$16)<=mediçao,CX18,0),0),PLE!$AA$28*CX18) -> 0 | EY18: =IF($K18<>1,IF(ISNUMBER(INDEX(Import.PLE,$K18,EY$16)),IF(INDEX(Import.PLE,$K18,EY$16)<=mediçao,CY18,0),0),PLE!$AA$28*CY18) -> 0 | EZ18: =IF($K18<>1,IF(ISNUMBER(INDEX(Import.PLE,$K18,EZ$16)),IF(INDEX(Import.PLE,$K18,EZ$16)<=mediçao,CZ18,0),0),PLE!$AA$28*CZ18) -> 0 | FA18: =IF($K18<>1,IF(ISNUMBER(INDEX(Import.PLE,$K18,FA$16)),IF(INDEX(Import.PLE,$K18,FA$16)<=mediçao,DA18,0),0),PLE!$AA$28*DA18) -> 0 | FB18: =IF($K18<>1,IF(ISNUMBER(INDEX(Import.PLE,$K18,FB$16)),IF(INDEX(Import.PLE,$K18,FB$16)<=mediçao,DB18,0),0),PLE!$AA$28*DB18) -> 0 | FC18: =IF($K18<>1,IF(ISNUMBER(INDEX(Import.PLE,$K18,FC$16)),IF(INDEX(Import.PLE,$K18,FC$16)<=mediçao,DC18,0),0),PLE!$AA$28*DC18) -> 0 | FD18: =IF($K18<>1,IF(ISNUMBER(INDEX(Import.PLE,$K18,FD$16)),IF(INDEX(Import.PLE,$K18,FD$16)<=mediçao,DD18,0),0),PLE!$AA$28*DD18) -> 0 | FE18: =IF($K18<>1,IF(ISNUMBER(INDEX(Import.PLE,$K18,FE$16)),IF(INDEX(Import.PLE,$K18,FE$16)<=mediçao,DE18,0),0),PLE!$AA$28*DE18) -> 0 | FF18: =IF($K18<>1,IF(ISNUMBER(INDEX(Import.PLE,$K18,FF$16)),IF(INDEX(Import.PLE,$K18,FF$16)<=mediçao,DF18,0),0),PLE!$AA$28*DF18) -> 0 | FG18: =IF($K18<>1,IF(ISNUMBER(INDEX(Import.PLE,$K18,FG$16)),IF(INDEX(Import.PLE,$K18,FG$16)<=mediçao,DG18,0),0),PLE!$AA$28*DG18) -> 0 | FH18: =IF($K18<>1,IF(ISNUMBER(INDEX(Import.PLE,$K18,FH$16)),IF(INDEX(Import.PLE,$K18,FH$16)<=mediçao,DH18,0),0),PLE!$AA$28*DH18) -> 0 | FI18: =IF($K18<>1,IF(ISNUMBER(INDEX(Import.PLE,$K18,FI$16)),IF(INDEX(Import.PLE,$K18,FI$16)<=mediçao,DI18,0),0),PLE!$AA$28*DI18) -> 0 | FJ18: =IF($K18<>1,IF(ISNUMBER(INDEX(Import.PLE,$K18,FJ$16)),IF(INDEX(Import.PLE,$K18,FJ$16)<=mediçao,DJ18,0),0),PLE!$AA$28*DJ18) -> 0
B19: 2 | C19: Nível | D19: 1.1. | E19: SERVIÇOS PRELIMINARES | I19: 1629.18 | K19: =deactivatedados.form1 ->  | BM19: 0 | BN19: 0 | BO19: 0 | BP19: 0 | BQ19: 0 | BR19: 0 | BS19: 0 | BT19: 0 | BU19: 0 | BV19: 0 | BW19: 0 | BX19: 0 | BY19: 0 | BZ19: 0 | CA19: 0 | CB19: 0 | CC19: 0 | CD19: 0 | CE19: 0 | CF19: 0 | CG19: 0 | CH19: 0 | CI19: 0 | CJ19: 0 | CK19: 0 | CL19: 0 | CM19: 0 | CN19: 0 | CO19: 0 | CP19: 0 | CQ19: 0 | CR19: 0 | CS19: 0 | CT19: 0 | CU19: 0 | CV19: 0 | CW19: 0 | CX19: 0 | CY19: 0 | CZ19: 0 | DA19: 0 | DB19: 0 | DC19: 0 | DD19: 0 | DE19: 0 | DF19: 0 | DG19: 0 | DH19: 0 | DI19: 0 | DJ19: 0 | DK19: 1 | DL19: 0 | DM19: =IF($K19<>1,IF(ISNUMBER(INDEX(Import.PLE,$K19,DM$16)),IF(INDEX(Import.PLE,$K19,DM$16)<=mediçao,BM19,0),0),PLE!$AA$28*BM19) -> 0 | DN19: =IF($K19<>1,IF(ISNUMBER(INDEX(Import.PLE,$K19,DN$16)),IF(INDEX(Import.PLE,$K19,DN$16)<=mediçao,BN19,0),0),PLE!$AA$28*BN19) -> 0 | DO19: =IF($K19<>1,IF(ISNUMBER(INDEX(Import.PLE,$K19,DO$16)),IF(INDEX(Import.PLE,$K19,DO$16)<=mediçao,BO19,0),0),PLE!$AA$28*BO19) -> 0 | DP19: =IF($K19<>1,IF(ISNUMBER(INDEX(Import.PLE,$K19,DP$16)),IF(INDEX(Import.PLE,$K19,DP$16)<=mediçao,BP19,0),0),PLE!$AA$28*BP19) -> 0 | DQ19: =IF($K19<>1,IF(ISNUMBER(INDEX(Import.PLE,$K19,DQ$16)),IF(INDEX(Import.PLE,$K19,DQ$16)<=mediçao,BQ19,0),0),PLE!$AA$28*BQ19) -> 0 | DR19: =IF($K19<>1,IF(ISNUMBER(INDEX(Import.PLE,$K19,DR$16)),IF(INDEX(Import.PLE,$K19,DR$16)<=mediçao,BR19,0),0),PLE!$AA$28*BR19) -> 0 | DS19: =IF($K19<>1,IF(ISNUMBER(INDEX(Import.PLE,$K19,DS$16)),IF(INDEX(Import.PLE,$K19,DS$16)<=mediçao,BS19,0),0),PLE!$AA$28*BS19) -> 0 | DT19: =IF($K19<>1,IF(ISNUMBER(INDEX(Import.PLE,$K19,DT$16)),IF(INDEX(Import.PLE,$K19,DT$16)<=mediçao,BT19,0),0),PLE!$AA$28*BT19) -> 0 | DU19: =IF($K19<>1,IF(ISNUMBER(INDEX(Import.PLE,$K19,DU$16)),IF(INDEX(Import.PLE,$K19,DU$16)<=mediçao,BU19,0),0),PLE!$AA$28*BU19) -> 0 | DV19: =IF($K19<>1,IF(ISNUMBER(INDEX(Import.PLE,$K19,DV$16)),IF(INDEX(Import.PLE,$K19,DV$16)<=mediçao,BV19,0),0),PLE!$AA$28*BV19) -> 0 | DW19: =IF($K19<>1,IF(ISNUMBER(INDEX(Import.PLE,$K19,DW$16)),IF(INDEX(Import.PLE,$K19,DW$16)<=mediçao,BW19,0),0),PLE!$AA$28*BW19) -> 0 | DX19: =IF($K19<>1,IF(ISNUMBER(INDEX(Import.PLE,$K19,DX$16)),IF(INDEX(Import.PLE,$K19,DX$16)<=mediçao,BX19,0),0),PLE!$AA$28*BX19) -> 0 | DY19: =IF($K19<>1,IF(ISNUMBER(INDEX(Import.PLE,$K19,DY$16)),IF(INDEX(Import.PLE,$K19,DY$16)<=mediçao,BY19,0),0),PLE!$AA$28*BY19) -> 0 | DZ19: =IF($K19<>1,IF(ISNUMBER(INDEX(Import.PLE,$K19,DZ$16)),IF(INDEX(Import.PLE,$K19,DZ$16)<=mediçao,BZ19,0),0),PLE!$AA$28*BZ19) -> 0 | EA19: =IF($K19<>1,IF(ISNUMBER(INDEX(Import.PLE,$K19,EA$16)),IF(INDEX(Import.PLE,$K19,EA$16)<=mediçao,CA19,0),0),PLE!$AA$28*CA19) -> 0 | EB19: =IF($K19<>1,IF(ISNUMBER(INDEX(Import.PLE,$K19,EB$16)),IF(INDEX(Import.PLE,$K19,EB$16)<=mediçao,CB19,0),0),PLE!$AA$28*CB19) -> 0 | EC19: =IF($K19<>1,IF(ISNUMBER(INDEX(Import.PLE,$K19,EC$16)),IF(INDEX(Import.PLE,$K19,EC$16)<=mediçao,CC19,0),0),PLE!$AA$28*CC19) -> 0 | ED19: =IF($K19<>1,IF(ISNUMBER(INDEX(Import.PLE,$K19,ED$16)),IF(INDEX(Import.PLE,$K19,ED$16)<=mediçao,CD19,0),0),PLE!$AA$28*CD19) -> 0 | EE19: =IF($K19<>1,IF(ISNUMBER(INDEX(Import.PLE,$K19,EE$16)),IF(INDEX(Import.PLE,$K19,EE$16)<=mediçao,CE19,0),0),PLE!$AA$28*CE19) -> 0 | EF19: =IF($K19<>1,IF(ISNUMBER(INDEX(Import.PLE,$K19,EF$16)),IF(INDEX(Import.PLE,$K19,EF$16)<=mediçao,CF19,0),0),PLE!$AA$28*CF19) -> 0 | EG19: =IF($K19<>1,IF(ISNUMBER(INDEX(Import.PLE,$K19,EG$16)),IF(INDEX(Import.PLE,$K19,EG$16)<=mediçao,CG19,0),0),PLE!$AA$28*CG19) -> 0 | EH19: =IF($K19<>1,IF(ISNUMBER(INDEX(Import.PLE,$K19,EH$16)),IF(INDEX(Import.PLE,$K19,EH$16)<=mediçao,CH19,0),0),PLE!$AA$28*CH19) -> 0 | EI19: =IF($K19<>1,IF(ISNUMBER(INDEX(Import.PLE,$K19,EI$16)),IF(INDEX(Import.PLE,$K19,EI$16)<=mediçao,CI19,0),0),PLE!$AA$28*CI19) -> 0 | EJ19: =IF($K19<>1,IF(ISNUMBER(INDEX(Import.PLE,$K19,EJ$16)),IF(INDEX(Import.PLE,$K19,EJ$16)<=mediçao,CJ19,0),0),PLE!$AA$28*CJ19) -> 0 | EK19: =IF($K19<>1,IF(ISNUMBER(INDEX(Import.PLE,$K19,EK$16)),IF(INDEX(Import.PLE,$K19,EK$16)<=mediçao,CK19,0),0),PLE!$AA$28*CK19) -> 0 | EL19: =IF($K19<>1,IF(ISNUMBER(INDEX(Import.PLE,$K19,EL$16)),IF(INDEX(Import.PLE,$K19,EL$16)<=mediçao,CL19,0),0),PLE!$AA$28*CL19) -> 0 | EM19: =IF($K19<>1,IF(ISNUMBER(INDEX(Import.PLE,$K19,EM$16)),IF(INDEX(Import.PLE,$K19,EM$16)<=mediçao,CM19,0),0),PLE!$AA$28*CM19) -> 0 | EN19: =IF($K19<>1,IF(ISNUMBER(INDEX(Import.PLE,$K19,EN$16)),IF(INDEX(Import.PLE,$K19,EN$16)<=mediçao,CN19,0),0),PLE!$AA$28*CN19) -> 0 | EO19: =IF($K19<>1,IF(ISNUMBER(INDEX(Import.PLE,$K19,EO$16)),IF(INDEX(Import.PLE,$K19,EO$16)<=mediçao,CO19,0),0),PLE!$AA$28*CO19) -> 0 | EP19: =IF($K19<>1,IF(ISNUMBER(INDEX(Import.PLE,$K19,EP$16)),IF(INDEX(Import.PLE,$K19,EP$16)<=mediçao,CP19,0),0),PLE!$AA$28*CP19) -> 0 | EQ19: =IF($K19<>1,IF(ISNUMBER(INDEX(Import.PLE,$K19,EQ$16)),IF(INDEX(Import.PLE,$K19,EQ$16)<=mediçao,CQ19,0),0),PLE!$AA$28*CQ19) -> 0 | ER19: =IF($K19<>1,IF(ISNUMBER(INDEX(Import.PLE,$K19,ER$16)),IF(INDEX(Import.PLE,$K19,ER$16)<=mediçao,CR19,0),0),PLE!$AA$28*CR19) -> 0 | ES19: =IF($K19<>1,IF(ISNUMBER(INDEX(Import.PLE,$K19,ES$16)),IF(INDEX(Import.PLE,$K19,ES$16)<=mediçao,CS19,0),0),PLE!$AA$28*CS19) -> 0 | ET19: =IF($K19<>1,IF(ISNUMBER(INDEX(Import.PLE,$K19,ET$16)),IF(INDEX(Import.PLE,$K19,ET$16)<=mediçao,CT19,0),0),PLE!$AA$28*CT19) -> 0 | EU19: =IF($K19<>1,IF(ISNUMBER(INDEX(Import.PLE,$K19,EU$16)),IF(INDEX(Import.PLE,$K19,EU$16)<=mediçao,CU19,0),0),PLE!$AA$28*CU19) -> 0 | EV19: =IF($K19<>1,IF(ISNUMBER(INDEX(Import.PLE,$K19,EV$16)),IF(INDEX(Import.PLE,$K19,EV$16)<=mediçao,CV19,0),0),PLE!$AA$28*CV19) -> 0 | EW19: =IF($K19<>1,IF(ISNUMBER(INDEX(Import.PLE,$K19,EW$16)),IF(INDEX(Import.PLE,$K19,EW$16)<=mediçao,CW19,0),0),PLE!$AA$28*CW19) -> 0 | EX19: =IF($K19<>1,IF(ISNUMBER(INDEX(Import.PLE,$K19,EX$16)),IF(INDEX(Import.PLE,$K19,EX$16)<=mediçao,CX19,0),0),PLE!$AA$28*CX19) -> 0 | EY19: =IF($K19<>1,IF(ISNUMBER(INDEX(Import.PLE,$K19,EY$16)),IF(INDEX(Import.PLE,$K19,EY$16)<=mediçao,CY19,0),0),PLE!$AA$28*CY19) -> 0 | EZ19: =IF($K19<>1,IF(ISNUMBER(INDEX(Import.PLE,$K19,EZ$16)),IF(INDEX(Import.PLE,$K19,EZ$16)<=mediçao,CZ19,0),0),PLE!$AA$28*CZ19) -> 0 | FA19: =IF($K19<>1,IF(ISNUMBER(INDEX(Import.PLE,$K19,FA$16)),IF(INDEX(Import.PLE,$K19,FA$16)<=mediçao,DA19,0),0),PLE!$AA$28*DA19) -> 0 | FB19: =IF($K19<>1,IF(ISNUMBER(INDEX(Import.PLE,$K19,FB$16)),IF(INDEX(Import.PLE,$K19,FB$16)<=mediçao,DB19,0),0),PLE!$AA$28*DB19) -> 0 | FC19: =IF($K19<>1,IF(ISNUMBER(INDEX(Import.PLE,$K19,FC$16)),IF(INDEX(Import.PLE,$K19,FC$16)<=mediçao,DC19,0),0),PLE!$AA$28*DC19) -> 0 | FD19: =IF($K19<>1,IF(ISNUMBER(INDEX(Import.PLE,$K19,FD$16)),IF(INDEX(Import.PLE,$K19,FD$16)<=mediçao,DD19,0),0),PLE!$AA$28*DD19) -> 0 | FE19: =IF($K19<>1,IF(ISNUMBER(INDEX(Import.PLE,$K19,FE$16)),IF(INDEX(Import.PLE,$K19,FE$16)<=mediçao,DE19,0),0),PLE!$AA$28*DE19) -> 0 | FF19: =IF($K19<>1,IF(ISNUMBER(INDEX(Import.PLE,$K19,FF$16)),IF(INDEX(Import.PLE,$K19,FF$16)<=mediçao,DF19,0),0),PLE!$AA$28*DF19) -> 0 | FG19: =IF($K19<>1,IF(ISNUMBER(INDEX(Import.PLE,$K19,FG$16)),IF(INDEX(Import.PLE,$K19,FG$16)<=mediçao,DG19,0),0),PLE!$AA$28*DG19) -> 0 | FH19: =IF($K19<>1,IF(ISNUMBER(INDEX(Import.PLE,$K19,FH$16)),IF(INDEX(Import.PLE,$K19,FH$16)<=mediçao,DH19,0),0),PLE!$AA$28*DH19) -> 0 | FI19: =IF($K19<>1,IF(ISNUMBER(INDEX(Import.PLE,$K19,FI$16)),IF(INDEX(Import.PLE,$K19,FI$16)<=mediçao,DI19,0),0),PLE!$AA$28*DI19) -> 0 | FJ19: =IF($K19<>1,IF(ISNUMBER(INDEX(Import.PLE,$K19,FJ$16)),IF(INDEX(Import.PLE,$K19,FJ$16)<=mediçao,DJ19,0),0),PLE!$AA$28*DJ19) -> 0
B20: 3 | C20: Serviço | D20: 1.1.1. | E20: PLACA DA OBRA - MODELO GOVERNO FEDERAL | F20: M2 | G20: 4.5 | H20: 362.04 | I20: 1629.18 | K20: =deactivatedados.form1 -> 2 | L20: 2-Serviços Preliminares | N20: 4.5 | BM20: 1629.18 | BN20: 0 | BO20: 0 | BP20: 0 | BQ20: 0 | BR20: 0 | BS20: 0 | BT20: 0 | BU20: 0 | BV20: 0 | BW20: 0 | BX20: 0 | BY20: 0 | BZ20: 0 | CA20: 0 | CB20: 0 | CC20: 0 | CD20: 0 | CE20: 0 | CF20: 0 | CG20: 0 | CH20: 0 | CI20: 0 | CJ20: 0 | CK20: 0 | CL20: 0 | CM20: 0 | CN20: 0 | CO20: 0 | CP20: 0 | CQ20: 0 | CR20: 0 | CS20: 0 | CT20: 0 | CU20: 0 | CV20: 0 | CW20: 0 | CX20: 0 | CY20: 0 | CZ20: 0 | DA20: 0 | DB20: 0 | DC20: 0 | DD20: 0 | DE20: 0 | DF20: 0 | DG20: 0 | DH20: 0 | DI20: 0 | DJ20: 0 | DK20: 1 | DL20: 0 | DM20: =IF($K20<>1,IF(ISNUMBER(INDEX(Import.PLE,$K20,DM$16)),IF(INDEX(Import.PLE,$K20,DM$16)<=mediçao,BM20,0),0),PLE!$AA$28*BM20) -> 0 | DN20: =IF($K20<>1,IF(ISNUMBER(INDEX(Import.PLE,$K20,DN$16)),IF(INDEX(Import.PLE,$K20,DN$16)<=mediçao,BN20,0),0),PLE!$AA$28*BN20) -> 0 | DO20: =IF($K20<>1,IF(ISNUMBER(INDEX(Import.PLE,$K20,DO$16)),IF(INDEX(Import.PLE,$K20,DO$16)<=mediçao,BO20,0),0),PLE!$AA$28*BO20) -> 0 | DP20: =IF($K20<>1,IF(ISNUMBER(INDEX(Import.PLE,$K20,DP$16)),IF(INDEX(Import.PLE,$K20,DP$16)<=mediçao,BP20,0),0),PLE!$AA$28*BP20) -> 0 | DQ20: =IF($K20<>1,IF(ISNUMBER(INDEX(Import.PLE,$K20,DQ$16)),IF(INDEX(Import.PLE,$K20,DQ$16)<=mediçao,BQ20,0),0),PLE!$AA$28*BQ20) -> 0 | DR20: =IF($K20<>1,IF(ISNUMBER(INDEX(Import.PLE,$K20,DR$16)),IF(INDEX(Import.PLE,$K20,DR$16)<=mediçao,BR20,0),0),PLE!$AA$28*BR20) -> 0 | DS20: =IF($K20<>1,IF(ISNUMBER(INDEX(Import.PLE,$K20,DS$16)),IF(INDEX(Import.PLE,$K20,DS$16)<=mediçao,BS20,0),0),PLE!$AA$28*BS20) -> 0 | DT20: =IF($K20<>1,IF(ISNUMBER(INDEX(Import.PLE,$K20,DT$16)),IF(INDEX(Import.PLE,$K20,DT$16)<=mediçao,BT20,0),0),PLE!$AA$28*BT20) -> 0 | DU20: =IF($K20<>1,IF(ISNUMBER(INDEX(Import.PLE,$K20,DU$16)),IF(INDEX(Import.PLE,$K20,DU$16)<=mediçao,BU20,0),0),PLE!$AA$28*BU20) -> 0 | DV20: =IF($K20<>1,IF(ISNUMBER(INDEX(Import.PLE,$K20,DV$16)),IF(INDEX(Import.PLE,$K20,DV$16)<=mediçao,BV20,0),0),PLE!$AA$28*BV20) -> 0 | DW20: =IF($K20<>1,IF(ISNUMBER(INDEX(Import.PLE,$K20,DW$16)),IF(INDEX(Import.PLE,$K20,DW$16)<=mediçao,BW20,0),0),PLE!$AA$28*BW20) -> 0 | DX20: =IF($K20<>1,IF(ISNUMBER(INDEX(Import.PLE,$K20,DX$16)),IF(INDEX(Import.PLE,$K20,DX$16)<=mediçao,BX20,0),0),PLE!$AA$28*BX20) -> 0 | DY20: =IF($K20<>1,IF(ISNUMBER(INDEX(Import.PLE,$K20,DY$16)),IF(INDEX(Import.PLE,$K20,DY$16)<=mediçao,BY20,0),0),PLE!$AA$28*BY20) -> 0 | DZ20: =IF($K20<>1,IF(ISNUMBER(INDEX(Import.PLE,$K20,DZ$16)),IF(INDEX(Import.PLE,$K20,DZ$16)<=mediçao,BZ20,0),0),PLE!$AA$28*BZ20) -> 0 | EA20: =IF($K20<>1,IF(ISNUMBER(INDEX(Import.PLE,$K20,EA$16)),IF(INDEX(Import.PLE,$K20,EA$16)<=mediçao,CA20,0),0),PLE!$AA$28*CA20) -> 0 | EB20: =IF($K20<>1,IF(ISNUMBER(INDEX(Import.PLE,$K20,EB$16)),IF(INDEX(Import.PLE,$K20,EB$16)<=mediçao,CB20,0),0),PLE!$AA$28*CB20) -> 0 | EC20: =IF($K20<>1,IF(ISNUMBER(INDEX(Import.PLE,$K20,EC$16)),IF(INDEX(Import.PLE,$K20,EC$16)<=mediçao,CC20,0),0),PLE!$AA$28*CC20) -> 0 | ED20: =IF($K20<>1,IF(ISNUMBER(INDEX(Import.PLE,$K20,ED$16)),IF(INDEX(Import.PLE,$K20,ED$16)<=mediçao,CD20,0),0),PLE!$AA$28*CD20) -> 0 | EE20: =IF($K20<>1,IF(ISNUMBER(INDEX(Import.PLE,$K20,EE$16)),IF(INDEX(Import.PLE,$K20,EE$16)<=mediçao,CE20,0),0),PLE!$AA$28*CE20) -> 0 | EF20: =IF($K20<>1,IF(ISNUMBER(INDEX(Import.PLE,$K20,EF$16)),IF(INDEX(Import.PLE,$K20,EF$16)<=mediçao,CF20,0),0),PLE!$AA$28*CF20) -> 0 | EG20: =IF($K20<>1,IF(ISNUMBER(INDEX(Import.PLE,$K20,EG$16)),IF(INDEX(Import.PLE,$K20,EG$16)<=mediçao,CG20,0),0),PLE!$AA$28*CG20) -> 0 | EH20: =IF($K20<>1,IF(ISNUMBER(INDEX(Import.PLE,$K20,EH$16)),IF(INDEX(Import.PLE,$K20,EH$16)<=mediçao,CH20,0),0),PLE!$AA$28*CH20) -> 0 | EI20: =IF($K20<>1,IF(ISNUMBER(INDEX(Import.PLE,$K20,EI$16)),IF(INDEX(Import.PLE,$K20,EI$16)<=mediçao,CI20,0),0),PLE!$AA$28*CI20) -> 0 | EJ20: =IF($K20<>1,IF(ISNUMBER(INDEX(Import.PLE,$K20,EJ$16)),IF(INDEX(Import.PLE,$K20,EJ$16)<=mediçao,CJ20,0),0),PLE!$AA$28*CJ20) -> 0 | EK20: =IF($K20<>1,IF(ISNUMBER(INDEX(Import.PLE,$K20,EK$16)),IF(INDEX(Import.PLE,$K20,EK$16)<=mediçao,CK20,0),0),PLE!$AA$28*CK20) -> 0 | EL20: =IF($K20<>1,IF(ISNUMBER(INDEX(Import.PLE,$K20,EL$16)),IF(INDEX(Import.PLE,$K20,EL$16)<=mediçao,CL20,0),0),PLE!$AA$28*CL20) -> 0 | EM20: =IF($K20<>1,IF(ISNUMBER(INDEX(Import.PLE,$K20,EM$16)),IF(INDEX(Import.PLE,$K20,EM$16)<=mediçao,CM20,0),0),PLE!$AA$28*CM20) -> 0 | EN20: =IF($K20<>1,IF(ISNUMBER(INDEX(Import.PLE,$K20,EN$16)),IF(INDEX(Import.PLE,$K20,EN$16)<=mediçao,CN20,0),0),PLE!$AA$28*CN20) -> 0 | EO20: =IF($K20<>1,IF(ISNUMBER(INDEX(Import.PLE,$K20,EO$16)),IF(INDEX(Import.PLE,$K20,EO$16)<=mediçao,CO20,0),0),PLE!$AA$28*CO20) -> 0 | EP20: =IF($K20<>1,IF(ISNUMBER(INDEX(Import.PLE,$K20,EP$16)),IF(INDEX(Import.PLE,$K20,EP$16)<=mediçao,CP20,0),0),PLE!$AA$28*CP20) -> 0 | EQ20: =IF($K20<>1,IF(ISNUMBER(INDEX(Import.PLE,$K20,EQ$16)),IF(INDEX(Import.PLE,$K20,EQ$16)<=mediçao,CQ20,0),0),PLE!$AA$28*CQ20) -> 0 | ER20: =IF($K20<>1,IF(ISNUMBER(INDEX(Import.PLE,$K20,ER$16)),IF(INDEX(Import.PLE,$K20,ER$16)<=mediçao,CR20,0),0),PLE!$AA$28*CR20) -> 0 | ES20: =IF($K20<>1,IF(ISNUMBER(INDEX(Import.PLE,$K20,ES$16)),IF(INDEX(Import.PLE,$K20,ES$16)<=mediçao,CS20,0),0),PLE!$AA$28*CS20) -> 0 | ET20: =IF($K20<>1,IF(ISNUMBER(INDEX(Import.PLE,$K20,ET$16)),IF(INDEX(Import.PLE,$K20,ET$16)<=mediçao,CT20,0),0),PLE!$AA$28*CT20) -> 0 | EU20: =IF($K20<>1,IF(ISNUMBER(INDEX(Import.PLE,$K20,EU$16)),IF(INDEX(Import.PLE,$K20,EU$16)<=mediçao,CU20,0),0),PLE!$AA$28*CU20) -> 0 | EV20: =IF($K20<>1,IF(ISNUMBER(INDEX(Import.PLE,$K20,EV$16)),IF(INDEX(Import.PLE,$K20,EV$16)<=mediçao,CV20,0),0),PLE!$AA$28*CV20) -> 0 | EW20: =IF($K20<>1,IF(ISNUMBER(INDEX(Import.PLE,$K20,EW$16)),IF(INDEX(Import.PLE,$K20,EW$16)<=mediçao,CW20,0),0),PLE!$AA$28*CW20) -> 0 | EX20: =IF($K20<>1,IF(ISNUMBER(INDEX(Import.PLE,$K20,EX$16)),IF(INDEX(Import.PLE,$K20,EX$16)<=mediçao,CX20,0),0),PLE!$AA$28*CX20) -> 0 | EY20: =IF($K20<>1,IF(ISNUMBER(INDEX(Import.PLE,$K20,EY$16)),IF(INDEX(Import.PLE,$K20,EY$16)<=mediçao,CY20,0),0),PLE!$AA$28*CY20) -> 0 | EZ20: =IF($K20<>1,IF(ISNUMBER(INDEX(Import.PLE,$K20,EZ$16)),IF(INDEX(Import.PLE,$K20,EZ$16)<=mediçao,CZ20,0),0),PLE!$AA$28*CZ20) -> 0 | FA20: =IF($K20<>1,IF(ISNUMBER(INDEX(Import.PLE,$K20,FA$16)),IF(INDEX(Import.PLE,$K20,FA$16)<=mediçao,DA20,0),0),PLE!$AA$28*DA20) -> 0 | FB20: =IF($K20<>1,IF(ISNUMBER(INDEX(Import.PLE,$K20,FB$16)),IF(INDEX(Import.PLE,$K20,FB$16)<=mediçao,DB20,0),0),PLE!$AA$28*DB20) -> 0 | FC20: =IF($K20<>1,IF(ISNUMBER(INDEX(Import.PLE,$K20,FC$16)),IF(INDEX(Import.PLE,$K20,FC$16)<=mediçao,DC20,0),0),PLE!$AA$28*DC20) -> 0 | FD20: =IF($K20<>1,IF(ISNUMBER(INDEX(Import.PLE,$K20,FD$16)),IF(INDEX(Import.PLE,$K20,FD$16)<=mediçao,DD20,0),0),PLE!$AA$28*DD20) -> 0 | FE20: =IF($K20<>1,IF(ISNUMBER(INDEX(Import.PLE,$K20,FE$16)),IF(INDEX(Import.PLE,$K20,FE$16)<=mediçao,DE20,0),0),PLE!$AA$28*DE20) -> 0 | FF20: =IF($K20<>1,IF(ISNUMBER(INDEX(Import.PLE,$K20,FF$16)),IF(INDEX(Import.PLE,$K20,FF$16)<=mediçao,DF20,0),0),PLE!$AA$28*DF20) -> 0 | FG20: =IF($K20<>1,IF(ISNUMBER(INDEX(Import.PLE,$K20,FG$16)),IF(INDEX(Import.PLE,$K20,FG$16)<=mediçao,DG20,0),0),PLE!$AA$28*DG20) -> 0 | FH20: =IF($K20<>1,IF(ISNUMBER(INDEX(Import.PLE,$K20,FH$16)),IF(INDEX(Import.PLE,$K20,FH$16)<=mediçao,DH20,0),0),PLE!$AA$28*DH20) -> 0 | FI20: =IF($K20<>1,IF(ISNUMBER(INDEX(Import.PLE,$K20,FI$16)),IF(INDEX(Import.PLE,$K20,FI$16)<=mediçao,DI20,0),0),PLE!$AA$28*DI20) -> 0 | FJ20: =IF($K20<>1,IF(ISNUMBER(INDEX(Import.PLE,$K20,FJ$16)),IF(INDEX(Import.PLE,$K20,FJ$16)<=mediçao,DJ20,0),0),PLE!$AA$28*DJ20) -> 0
B21: 4 | C21: Nível | D21: 1.2. | E21: ADMINISTRAÇÃO LOCAL DA OBRA | I21: 5713.18 | K21: =deactivatedados.form1 ->  | BM21: 0 | BN21: 0 | BO21: 0 | BP21: 0 | BQ21: 0 | BR21: 0 | BS21: 0 | BT21: 0 | BU21: 0 | BV21: 0 | BW21: 0 | BX21: 0 | BY21: 0 | BZ21: 0 | CA21: 0 | CB21: 0 | CC21: 0 | CD21: 0 | CE21: 0 | CF21: 0 | CG21: 0 | CH21: 0 | CI21: 0 | CJ21: 0 | CK21: 0 | CL21: 0 | CM21: 0 | CN21: 0 | CO21: 0 | CP21: 0 | CQ21: 0 | CR21: 0 | CS21: 0 | CT21: 0 | CU21: 0 | CV21: 0 | CW21: 0 | CX21: 0 | CY21: 0 | CZ21: 0 | DA21: 0 | DB21: 0 | DC21: 0 | DD21: 0 | DE21: 0 | DF21: 0 | DG21: 0 | DH21: 0 | DI21: 0 | DJ21: 0 | DK21: 1 | DL21: 0 | DM21: =IF($K21<>1,IF(ISNUMBER(INDEX(Import.PLE,$K21,DM$16)),IF(INDEX(Import.PLE,$K21,DM$16)<=mediçao,BM21,0),0),PLE!$AA$28*BM21) -> 0 | DN21: =IF($K21<>1,IF(ISNUMBER(INDEX(Import.PLE,$K21,DN$16)),IF(INDEX(Import.PLE,$K21,DN$16)<=mediçao,BN21,0),0),PLE!$AA$28*BN21) -> 0 | DO21: =IF($K21<>1,IF(ISNUMBER(INDEX(Import.PLE,$K21,DO$16)),IF(INDEX(Import.PLE,$K21,DO$16)<=mediçao,BO21,0),0),PLE!$AA$28*BO21) -> 0 | DP21: =IF($K21<>1,IF(ISNUMBER(INDEX(Import.PLE,$K21,DP$16)),IF(INDEX(Import.PLE,$K21,DP$16)<=mediçao,BP21,0),0),PLE!$AA$28*BP21) -> 0 | DQ21: =IF($K21<>1,IF(ISNUMBER(INDEX(Import.PLE,$K21,DQ$16)),IF(INDEX(Import.PLE,$K21,DQ$16)<=mediçao,BQ21,0),0),PLE!$AA$28*BQ21) -> 0 | DR21: =IF($K21<>1,IF(ISNUMBER(INDEX(Import.PLE,$K21,DR$16)),IF(INDEX(Import.PLE,$K21,DR$16)<=mediçao,BR21,0),0),PLE!$AA$28*BR21) -> 0 | DS21: =IF($K21<>1,IF(ISNUMBER(INDEX(Import.PLE,$K21,DS$16)),IF(INDEX(Import.PLE,$K21,DS$16)<=mediçao,BS21,0),0),PLE!$AA$28*BS21) -> 0 | DT21: =IF($K21<>1,IF(ISNUMBER(INDEX(Import.PLE,$K21,DT$16)),IF(INDEX(Import.PLE,$K21,DT$16)<=mediçao,BT21,0),0),PLE!$AA$28*BT21) -> 0 | DU21: =IF($K21<>1,IF(ISNUMBER(INDEX(Import.PLE,$K21,DU$16)),IF(INDEX(Import.PLE,$K21,DU$16)<=mediçao,BU21,0),0),PLE!$AA$28*BU21) -> 0 | DV21: =IF($K21<>1,IF(ISNUMBER(INDEX(Import.PLE,$K21,DV$16)),IF(INDEX(Import.PLE,$K21,DV$16)<=mediçao,BV21,0),0),PLE!$AA$28*BV21) -> 0 | DW21: =IF($K21<>1,IF(ISNUMBER(INDEX(Import.PLE,$K21,DW$16)),IF(INDEX(Import.PLE,$K21,DW$16)<=mediçao,BW21,0),0),PLE!$AA$28*BW21) -> 0 | DX21: =IF($K21<>1,IF(ISNUMBER(INDEX(Import.PLE,$K21,DX$16)),IF(INDEX(Import.PLE,$K21,DX$16)<=mediçao,BX21,0),0),PLE!$AA$28*BX21) -> 0 | DY21: =IF($K21<>1,IF(ISNUMBER(INDEX(Import.PLE,$K21,DY$16)),IF(INDEX(Import.PLE,$K21,DY$16)<=mediçao,BY21,0),0),PLE!$AA$28*BY21) -> 0 | DZ21: =IF($K21<>1,IF(ISNUMBER(INDEX(Import.PLE,$K21,DZ$16)),IF(INDEX(Import.PLE,$K21,DZ$16)<=mediçao,BZ21,0),0),PLE!$AA$28*BZ21) -> 0 | EA21: =IF($K21<>1,IF(ISNUMBER(INDEX(Import.PLE,$K21,EA$16)),IF(INDEX(Import.PLE,$K21,EA$16)<=mediçao,CA21,0),0),PLE!$AA$28*CA21) -> 0 | EB21: =IF($K21<>1,IF(ISNUMBER(INDEX(Import.PLE,$K21,EB$16)),IF(INDEX(Import.PLE,$K21,EB$16)<=mediçao,CB21,0),0),PLE!$AA$28*CB21) -> 0 | EC21: =IF($K21<>1,IF(ISNUMBER(INDEX(Import.PLE,$K21,EC$16)),IF(INDEX(Import.PLE,$K21,EC$16)<=mediçao,CC21,0),0),PLE!$AA$28*CC21) -> 0 | ED21: =IF($K21<>1,IF(ISNUMBER(INDEX(Import.PLE,$K21,ED$16)),IF(INDEX(Import.PLE,$K21,ED$16)<=mediçao,CD21,0),0),PLE!$AA$28*CD21) -> 0 | EE21: =IF($K21<>1,IF(ISNUMBER(INDEX(Import.PLE,$K21,EE$16)),IF(INDEX(Import.PLE,$K21,EE$16)<=mediçao,CE21,0),0),PLE!$AA$28*CE21) -> 0 | EF21: =IF($K21<>1,IF(ISNUMBER(INDEX(Import.PLE,$K21,EF$16)),IF(INDEX(Import.PLE,$K21,EF$16)<=mediçao,CF21,0),0),PLE!$AA$28*CF21) -> 0 | EG21: =IF($K21<>1,IF(ISNUMBER(INDEX(Import.PLE,$K21,EG$16)),IF(INDEX(Import.PLE,$K21,EG$16)<=mediçao,CG21,0),0),PLE!$AA$28*CG21) -> 0 | EH21: =IF($K21<>1,IF(ISNUMBER(INDEX(Import.PLE,$K21,EH$16)),IF(INDEX(Import.PLE,$K21,EH$16)<=mediçao,CH21,0),0),PLE!$AA$28*CH21) -> 0 | EI21: =IF($K21<>1,IF(ISNUMBER(INDEX(Import.PLE,$K21,EI$16)),IF(INDEX(Import.PLE,$K21,EI$16)<=mediçao,CI21,0),0),PLE!$AA$28*CI21) -> 0 | EJ21: =IF($K21<>1,IF(ISNUMBER(INDEX(Import.PLE,$K21,EJ$16)),IF(INDEX(Import.PLE,$K21,EJ$16)<=mediçao,CJ21,0),0),PLE!$AA$28*CJ21) -> 0 | EK21: =IF($K21<>1,IF(ISNUMBER(INDEX(Import.PLE,$K21,EK$16)),IF(INDEX(Import.PLE,$K21,EK$16)<=mediçao,CK21,0),0),PLE!$AA$28*CK21) -> 0 | EL21: =IF($K21<>1,IF(ISNUMBER(INDEX(Import.PLE,$K21,EL$16)),IF(INDEX(Import.PLE,$K21,EL$16)<=mediçao,CL21,0),0),PLE!$AA$28*CL21) -> 0 | EM21: =IF($K21<>1,IF(ISNUMBER(INDEX(Import.PLE,$K21,EM$16)),IF(INDEX(Import.PLE,$K21,EM$16)<=mediçao,CM21,0),0),PLE!$AA$28*CM21) -> 0 | EN21: =IF($K21<>1,IF(ISNUMBER(INDEX(Import.PLE,$K21,EN$16)),IF(INDEX(Import.PLE,$K21,EN$16)<=mediçao,CN21,0),0),PLE!$AA$28*CN21) -> 0 | EO21: =IF($K21<>1,IF(ISNUMBER(INDEX(Import.PLE,$K21,EO$16)),IF(INDEX(Import.PLE,$K21,EO$16)<=mediçao,CO21,0),0),PLE!$AA$28*CO21) -> 0 | EP21: =IF($K21<>1,IF(ISNUMBER(INDEX(Import.PLE,$K21,EP$16)),IF(INDEX(Import.PLE,$K21,EP$16)<=mediçao,CP21,0),0),PLE!$AA$28*CP21) -> 0 | EQ21: =IF($K21<>1,IF(ISNUMBER(INDEX(Import.PLE,$K21,EQ$16)),IF(INDEX(Import.PLE,$K21,EQ$16)<=mediçao,CQ21,0),0),PLE!$AA$28*CQ21) -> 0 | ER21: =IF($K21<>1,IF(ISNUMBER(INDEX(Import.PLE,$K21,ER$16)),IF(INDEX(Import.PLE,$K21,ER$16)<=mediçao,CR21,0),0),PLE!$AA$28*CR21) -> 0 | ES21: =IF($K21<>1,IF(ISNUMBER(INDEX(Import.PLE,$K21,ES$16)),IF(INDEX(Import.PLE,$K21,ES$16)<=mediçao,CS21,0),0),PLE!$AA$28*CS21) -> 0 | ET21: =IF($K21<>1,IF(ISNUMBER(INDEX(Import.PLE,$K21,ET$16)),IF(INDEX(Import.PLE,$K21,ET$16)<=mediçao,CT21,0),0),PLE!$AA$28*CT21) -> 0 | EU21: =IF($K21<>1,IF(ISNUMBER(INDEX(Import.PLE,$K21,EU$16)),IF(INDEX(Import.PLE,$K21,EU$16)<=mediçao,CU21,0),0),PLE!$AA$28*CU21) -> 0 | EV21: =IF($K21<>1,IF(ISNUMBER(INDEX(Import.PLE,$K21,EV$16)),IF(INDEX(Import.PLE,$K21,EV$16)<=mediçao,CV21,0),0),PLE!$AA$28*CV21) -> 0 | EW21: =IF($K21<>1,IF(ISNUMBER(INDEX(Import.PLE,$K21,EW$16)),IF(INDEX(Import.PLE,$K21,EW$16)<=mediçao,CW21,0),0),PLE!$AA$28*CW21) -> 0 | EX21: =IF($K21<>1,IF(ISNUMBER(INDEX(Import.PLE,$K21,EX$16)),IF(INDEX(Import.PLE,$K21,EX$16)<=mediçao,CX21,0),0),PLE!$AA$28*CX21) -> 0 | EY21: =IF($K21<>1,IF(ISNUMBER(INDEX(Import.PLE,$K21,EY$16)),IF(INDEX(Import.PLE,$K21,EY$16)<=mediçao,CY21,0),0),PLE!$AA$28*CY21) -> 0 | EZ21: =IF($K21<>1,IF(ISNUMBER(INDEX(Import.PLE,$K21,EZ$16)),IF(INDEX(Import.PLE,$K21,EZ$16)<=mediçao,CZ21,0),0),PLE!$AA$28*CZ21) -> 0 | FA21: =IF($K21<>1,IF(ISNUMBER(INDEX(Import.PLE,$K21,FA$16)),IF(INDEX(Import.PLE,$K21,FA$16)<=mediçao,DA21,0),0),PLE!$AA$28*DA21) -> 0 | FB21: =IF($K21<>1,IF(ISNUMBER(INDEX(Import.PLE,$K21,FB$16)),IF(INDEX(Import.PLE,$K21,FB$16)<=mediçao,DB21,0),0),PLE!$AA$28*DB21) -> 0 | FC21: =IF($K21<>1,IF(ISNUMBER(INDEX(Import.PLE,$K21,FC$16)),IF(INDEX(Import.PLE,$K21,FC$16)<=mediçao,DC21,0),0),PLE!$AA$28*DC21) -> 0 | FD21: =IF($K21<>1,IF(ISNUMBER(INDEX(Import.PLE,$K21,FD$16)),IF(INDEX(Import.PLE,$K21,FD$16)<=mediçao,DD21,0),0),PLE!$AA$28*DD21) -> 0 | FE21: =IF($K21<>1,IF(ISNUMBER(INDEX(Import.PLE,$K21,FE$16)),IF(INDEX(Import.PLE,$K21,FE$16)<=mediçao,DE21,0),0),PLE!$AA$28*DE21) -> 0 | FF21: =IF($K21<>1,IF(ISNUMBER(INDEX(Import.PLE,$K21,FF$16)),IF(INDEX(Import.PLE,$K21,FF$16)<=mediçao,DF21,0),0),PLE!$AA$28*DF21) -> 0 | FG21: =IF($K21<>1,IF(ISNUMBER(INDEX(Import.PLE,$K21,FG$16)),IF(INDEX(Import.PLE,$K21,FG$16)<=mediçao,DG21,0),0),PLE!$AA$28*DG21) -> 0 | FH21: =IF($K21<>1,IF(ISNUMBER(INDEX(Import.PLE,$K21,FH$16)),IF(INDEX(Import.PLE,$K21,FH$16)<=mediçao,DH21,0),0),PLE!$AA$28*DH21) -> 0 | FI21: =IF($K21<>1,IF(ISNUMBER(INDEX(Import.PLE,$K21,FI$16)),IF(INDEX(Import.PLE,$K21,FI$16)<=mediçao,DI21,0),0),PLE!$AA$28*DI21) -> 0 | FJ21: =IF($K21<>1,IF(ISNUMBER(INDEX(Import.PLE,$K21,FJ$16)),IF(INDEX(Import.PLE,$K21,FJ$16)<=mediçao,DJ21,0),0),PLE!$AA$28*DJ21) -> 0
B22: 5 | C22: Serviço | D22: 1.2.1. | E22: ADMINISTRAÇÃO LOCAL | F22: UND | G22: 1 | H22: 5713.18 | I22: 5713.18 | K22: =deactivatedados.form1 -> 1 | L22: 1-Administração Local | N22: 1 | BM22: 5713.18 | BN22: 0 | BO22: 0 | BP22: 0 | BQ22: 0 | BR22: 0 | BS22: 0 | BT22: 0 | BU22: 0 | BV22: 0 | BW22: 0 | BX22: 0 | BY22: 0 | BZ22: 0 | CA22: 0 | CB22: 0 | CC22: 0 | CD22: 0 | CE22: 0 | CF22: 0 | CG22: 0 | CH22: 0 | CI22: 0 | CJ22: 0 | CK22: 0 | CL22: 0 | CM22: 0 | CN22: 0 | CO22: 0 | CP22: 0 | CQ22: 0 | CR22: 0 | CS22: 0 | CT22: 0 | CU22: 0 | CV22: 0 | CW22: 0 | CX22: 0 | CY22: 0 | CZ22: 0 | DA22: 0 | DB22: 0 | DC22: 0 | DD22: 0 | DE22: 0 | DF22: 0 | DG22: 0 | DH22: 0 | DI22: 0 | DJ22: 0 | DK22: 1 | DL22: 0 | DM22: =IF($K22<>1,IF(ISNUMBER(INDEX(Import.PLE,$K22,DM$16)),IF(INDEX(Import.PLE,$K22,DM$16)<=mediçao,BM22,0),0),PLE!$AA$28*BM22) -> 0 | DN22: =IF($K22<>1,IF(ISNUMBER(INDEX(Import.PLE,$K22,DN$16)),IF(INDEX(Import.PLE,$K22,DN$16)<=mediçao,BN22,0),0),PLE!$AA$28*BN22) -> 0 | DO22: =IF($K22<>1,IF(ISNUMBER(INDEX(Import.PLE,$K22,DO$16)),IF(INDEX(Import.PLE,$K22,DO$16)<=mediçao,BO22,0),0),PLE!$AA$28*BO22) -> 0 | DP22: =IF($K22<>1,IF(ISNUMBER(INDEX(Import.PLE,$K22,DP$16)),IF(INDEX(Import.PLE,$K22,DP$16)<=mediçao,BP22,0),0),PLE!$AA$28*BP22) -> 0 | DQ22: =IF($K22<>1,IF(ISNUMBER(INDEX(Import.PLE,$K22,DQ$16)),IF(INDEX(Import.PLE,$K22,DQ$16)<=mediçao,BQ22,0),0),PLE!$AA$28*BQ22) -> 0 | DR22: =IF($K22<>1,IF(ISNUMBER(INDEX(Import.PLE,$K22,DR$16)),IF(INDEX(Import.PLE,$K22,DR$16)<=mediçao,BR22,0),0),PLE!$AA$28*BR22) -> 0 | DS22: =IF($K22<>1,IF(ISNUMBER(INDEX(Import.PLE,$K22,DS$16)),IF(INDEX(Import.PLE,$K22,DS$16)<=mediçao,BS22,0),0),PLE!$AA$28*BS22) -> 0 | DT22: =IF($K22<>1,IF(ISNUMBER(INDEX(Import.PLE,$K22,DT$16)),IF(INDEX(Import.PLE,$K22,DT$16)<=mediçao,BT22,0),0),PLE!$AA$28*BT22) -> 0 | DU22: =IF($K22<>1,IF(ISNUMBER(INDEX(Import.PLE,$K22,DU$16)),IF(INDEX(Import.PLE,$K22,DU$16)<=mediçao,BU22,0),0),PLE!$AA$28*BU22) -> 0 | DV22: =IF($K22<>1,IF(ISNUMBER(INDEX(Import.PLE,$K22,DV$16)),IF(INDEX(Import.PLE,$K22,DV$16)<=mediçao,BV22,0),0),PLE!$AA$28*BV22) -> 0 | DW22: =IF($K22<>1,IF(ISNUMBER(INDEX(Import.PLE,$K22,DW$16)),IF(INDEX(Import.PLE,$K22,DW$16)<=mediçao,BW22,0),0),PLE!$AA$28*BW22) -> 0 | DX22: =IF($K22<>1,IF(ISNUMBER(INDEX(Import.PLE,$K22,DX$16)),IF(INDEX(Import.PLE,$K22,DX$16)<=mediçao,BX22,0),0),PLE!$AA$28*BX22) -> 0 | DY22: =IF($K22<>1,IF(ISNUMBER(INDEX(Import.PLE,$K22,DY$16)),IF(INDEX(Import.PLE,$K22,DY$16)<=mediçao,BY22,0),0),PLE!$AA$28*BY22) -> 0 | DZ22: =IF($K22<>1,IF(ISNUMBER(INDEX(Import.PLE,$K22,DZ$16)),IF(INDEX(Import.PLE,$K22,DZ$16)<=mediçao,BZ22,0),0),PLE!$AA$28*BZ22) -> 0 | EA22: =IF($K22<>1,IF(ISNUMBER(INDEX(Import.PLE,$K22,EA$16)),IF(INDEX(Import.PLE,$K22,EA$16)<=mediçao,CA22,0),0),PLE!$AA$28*CA22) -> 0 | EB22: =IF($K22<>1,IF(ISNUMBER(INDEX(Import.PLE,$K22,EB$16)),IF(INDEX(Import.PLE,$K22,EB$16)<=mediçao,CB22,0),0),PLE!$AA$28*CB22) -> 0 | EC22: =IF($K22<>1,IF(ISNUMBER(INDEX(Import.PLE,$K22,EC$16)),IF(INDEX(Import.PLE,$K22,EC$16)<=mediçao,CC22,0),0),PLE!$AA$28*CC22) -> 0 | ED22: =IF($K22<>1,IF(ISNUMBER(INDEX(Import.PLE,$K22,ED$16)),IF(INDEX(Import.PLE,$K22,ED$16)<=mediçao,CD22,0),0),PLE!$AA$28*CD22) -> 0 | EE22: =IF($K22<>1,IF(ISNUMBER(INDEX(Import.PLE,$K22,EE$16)),IF(INDEX(Import.PLE,$K22,EE$16)<=mediçao,CE22,0),0),PLE!$AA$28*CE22) -> 0 | EF22: =IF($K22<>1,IF(ISNUMBER(INDEX(Import.PLE,$K22,EF$16)),IF(INDEX(Import.PLE,$K22,EF$16)<=mediçao,CF22,0),0),PLE!$AA$28*CF22) -> 0 | EG22: =IF($K22<>1,IF(ISNUMBER(INDEX(Import.PLE,$K22,EG$16)),IF(INDEX(Import.PLE,$K22,EG$16)<=mediçao,CG22,0),0),PLE!$AA$28*CG22) -> 0 | EH22: =IF($K22<>1,IF(ISNUMBER(INDEX(Import.PLE,$K22,EH$16)),IF(INDEX(Import.PLE,$K22,EH$16)<=mediçao,CH22,0),0),PLE!$AA$28*CH22) -> 0 | EI22: =IF($K22<>1,IF(ISNUMBER(INDEX(Import.PLE,$K22,EI$16)),IF(INDEX(Import.PLE,$K22,EI$16)<=mediçao,CI22,0),0),PLE!$AA$28*CI22) -> 0 | EJ22: =IF($K22<>1,IF(ISNUMBER(INDEX(Import.PLE,$K22,EJ$16)),IF(INDEX(Import.PLE,$K22,EJ$16)<=mediçao,CJ22,0),0),PLE!$AA$28*CJ22) -> 0 | EK22: =IF($K22<>1,IF(ISNUMBER(INDEX(Import.PLE,$K22,EK$16)),IF(INDEX(Import.PLE,$K22,EK$16)<=mediçao,CK22,0),0),PLE!$AA$28*CK22) -> 0 | EL22: =IF($K22<>1,IF(ISNUMBER(INDEX(Import.PLE,$K22,EL$16)),IF(INDEX(Import.PLE,$K22,EL$16)<=mediçao,CL22,0),0),PLE!$AA$28*CL22) -> 0 | EM22: =IF($K22<>1,IF(ISNUMBER(INDEX(Import.PLE,$K22,EM$16)),IF(INDEX(Import.PLE,$K22,EM$16)<=mediçao,CM22,0),0),PLE!$AA$28*CM22) -> 0 | EN22: =IF($K22<>1,IF(ISNUMBER(INDEX(Import.PLE,$K22,EN$16)),IF(INDEX(Import.PLE,$K22,EN$16)<=mediçao,CN22,0),0),PLE!$AA$28*CN22) -> 0 | EO22: =IF($K22<>1,IF(ISNUMBER(INDEX(Import.PLE,$K22,EO$16)),IF(INDEX(Import.PLE,$K22,EO$16)<=mediçao,CO22,0),0),PLE!$AA$28*CO22) -> 0 | EP22: =IF($K22<>1,IF(ISNUMBER(INDEX(Import.PLE,$K22,EP$16)),IF(INDEX(Import.PLE,$K22,EP$16)<=mediçao,CP22,0),0),PLE!$AA$28*CP22) -> 0 | EQ22: =IF($K22<>1,IF(ISNUMBER(INDEX(Import.PLE,$K22,EQ$16)),IF(INDEX(Import.PLE,$K22,EQ$16)<=mediçao,CQ22,0),0),PLE!$AA$28*CQ22) -> 0 | ER22: =IF($K22<>1,IF(ISNUMBER(INDEX(Import.PLE,$K22,ER$16)),IF(INDEX(Import.PLE,$K22,ER$16)<=mediçao,CR22,0),0),PLE!$AA$28*CR22) -> 0 | ES22: =IF($K22<>1,IF(ISNUMBER(INDEX(Import.PLE,$K22,ES$16)),IF(INDEX(Import.PLE,$K22,ES$16)<=mediçao,CS22,0),0),PLE!$AA$28*CS22) -> 0 | ET22: =IF($K22<>1,IF(ISNUMBER(INDEX(Import.PLE,$K22,ET$16)),IF(INDEX(Import.PLE,$K22,ET$16)<=mediçao,CT22,0),0),PLE!$AA$28*CT22) -> 0 | EU22: =IF($K22<>1,IF(ISNUMBER(INDEX(Import.PLE,$K22,EU$16)),IF(INDEX(Import.PLE,$K22,EU$16)<=mediçao,CU22,0),0),PLE!$AA$28*CU22) -> 0 | EV22: =IF($K22<>1,IF(ISNUMBER(INDEX(Import.PLE,$K22,EV$16)),IF(INDEX(Import.PLE,$K22,EV$16)<=mediçao,CV22,0),0),PLE!$AA$28*CV22) -> 0 | EW22: =IF($K22<>1,IF(ISNUMBER(INDEX(Import.PLE,$K22,EW$16)),IF(INDEX(Import.PLE,$K22,EW$16)<=mediçao,CW22,0),0),PLE!$AA$28*CW22) -> 0 | EX22: =IF($K22<>1,IF(ISNUMBER(INDEX(Import.PLE,$K22,EX$16)),IF(INDEX(Import.PLE,$K22,EX$16)<=mediçao,CX22,0),0),PLE!$AA$28*CX22) -> 0 | EY22: =IF($K22<>1,IF(ISNUMBER(INDEX(Import.PLE,$K22,EY$16)),IF(INDEX(Import.PLE,$K22,EY$16)<=mediçao,CY22,0),0),PLE!$AA$28*CY22) -> 0 | EZ22: =IF($K22<>1,IF(ISNUMBER(INDEX(Import.PLE,$K22,EZ$16)),IF(INDEX(Import.PLE,$K22,EZ$16)<=mediçao,CZ22,0),0),PLE!$AA$28*CZ22) -> 0 | FA22: =IF($K22<>1,IF(ISNUMBER(INDEX(Import.PLE,$K22,FA$16)),IF(INDEX(Import.PLE,$K22,FA$16)<=mediçao,DA22,0),0),PLE!$AA$28*DA22) -> 0 | FB22: =IF($K22<>1,IF(ISNUMBER(INDEX(Import.PLE,$K22,FB$16)),IF(INDEX(Import.PLE,$K22,FB$16)<=mediçao,DB22,0),0),PLE!$AA$28*DB22) -> 0 | FC22: =IF($K22<>1,IF(ISNUMBER(INDEX(Import.PLE,$K22,FC$16)),IF(INDEX(Import.PLE,$K22,FC$16)<=mediçao,DC22,0),0),PLE!$AA$28*DC22) -> 0 | FD22: =IF($K22<>1,IF(ISNUMBER(INDEX(Import.PLE,$K22,FD$16)),IF(INDEX(Import.PLE,$K22,FD$16)<=mediçao,DD22,0),0),PLE!$AA$28*DD22) -> 0 | FE22: =IF($K22<>1,IF(ISNUMBER(INDEX(Import.PLE,$K22,FE$16)),IF(INDEX(Import.PLE,$K22,FE$16)<=mediçao,DE22,0),0),PLE!$AA$28*DE22) -> 0 | FF22: =IF($K22<>1,IF(ISNUMBER(INDEX(Import.PLE,$K22,FF$16)),IF(INDEX(Import.PLE,$K22,FF$16)<=mediçao,DF22,0),0),PLE!$AA$28*DF22) -> 0 | FG22: =IF($K22<>1,IF(ISNUMBER(INDEX(Import.PLE,$K22,FG$16)),IF(INDEX(Import.PLE,$K22,FG$16)<=mediçao,DG22,0),0),PLE!$AA$28*DG22) -> 0 | FH22: =IF($K22<>1,IF(ISNUMBER(INDEX(Import.PLE,$K22,FH$16)),IF(INDEX(Import.PLE,$K22,FH$16)<=mediçao,DH22,0),0),PLE!$AA$28*DH22) -> 0 | FI22: =IF($K22<>1,IF(ISNUMBER(INDEX(Import.PLE,$K22,FI$16)),IF(INDEX(Import.PLE,$K22,FI$16)<=mediçao,DI22,0),0),PLE!$AA$28*DI22) -> 0 | FJ22: =IF($K22<>1,IF(ISNUMBER(INDEX(Import.PLE,$K22,FJ$16)),IF(INDEX(Import.PLE,$K22,FJ$16)<=mediçao,DJ22,0),0),PLE!$AA$28*DJ22) -> 0
B23: 6 | C23: Nível | D23: 1.3. | E23: TRANSPORTE DE MÁQUINAS E EQUIPAMENTOS | I23: 3119.24 | K23: =deactivatedados.form1 ->  | BM23: 0 | BN23: 0 | BO23: 0 | BP23: 0 | BQ23: 0 | BR23: 0 | BS23: 0 | BT23: 0 | BU23: 0 | BV23: 0 | BW23: 0 | BX23: 0 | BY23: 0 | BZ23: 0 | CA23: 0 | CB23: 0 | CC23: 0 | CD23: 0 | CE23: 0 | CF23: 0 | CG23: 0 | CH23: 0 | CI23: 0 | CJ23: 0 | CK23: 0 | CL23: 0 | CM23: 0 | CN23: 0 | CO23: 0 | CP23: 0 | CQ23: 0 | CR23: 0 | CS23: 0 | CT23: 0 | CU23: 0 | CV23: 0 | CW23: 0 | CX23: 0 | CY23: 0 | CZ23: 0 | DA23: 0 | DB23: 0 | DC23: 0 | DD23: 0 | DE23: 0 | DF23: 0 | DG23: 0 | DH23: 0 | DI23: 0 | DJ23: 0 | DK23: 1 | DL23: 0 | DM23: =IF($K23<>1,IF(ISNUMBER(INDEX(Import.PLE,$K23,DM$16)),IF(INDEX(Import.PLE,$K23,DM$16)<=mediçao,BM23,0),0),PLE!$AA$28*BM23) -> 0 | DN23: =IF($K23<>1,IF(ISNUMBER(INDEX(Import.PLE,$K23,DN$16)),IF(INDEX(Import.PLE,$K23,DN$16)<=mediçao,BN23,0),0),PLE!$AA$28*BN23) -> 0 | DO23: =IF($K23<>1,IF(ISNUMBER(INDEX(Import.PLE,$K23,DO$16)),IF(INDEX(Import.PLE,$K23,DO$16)<=mediçao,BO23,0),0),PLE!$AA$28*BO23) -> 0 | DP23: =IF($K23<>1,IF(ISNUMBER(INDEX(Import.PLE,$K23,DP$16)),IF(INDEX(Import.PLE,$K23,DP$16)<=mediçao,BP23,0),0),PLE!$AA$28*BP23) -> 0 | DQ23: =IF($K23<>1,IF(ISNUMBER(INDEX(Import.PLE,$K23,DQ$16)),IF(INDEX(Import.PLE,$K23,DQ$16)<=mediçao,BQ23,0),0),PLE!$AA$28*BQ23) -> 0 | DR23: =IF($K23<>1,IF(ISNUMBER(INDEX(Import.PLE,$K23,DR$16)),IF(INDEX(Import.PLE,$K23,DR$16)<=mediçao,BR23,0),0),PLE!$AA$28*BR23) -> 0 | DS23: =IF($K23<>1,IF(ISNUMBER(INDEX(Import.PLE,$K23,DS$16)),IF(INDEX(Import.PLE,$K23,DS$16)<=mediçao,BS23,0),0),PLE!$AA$28*BS23) -> 0 | DT23: =IF($K23<>1,IF(ISNUMBER(INDEX(Import.PLE,$K23,DT$16)),IF(INDEX(Import.PLE,$K23,DT$16)<=mediçao,BT23,0),0),PLE!$AA$28*BT23) -> 0 | DU23: =IF($K23<>1,IF(ISNUMBER(INDEX(Import.PLE,$K23,DU$16)),IF(INDEX(Import.PLE,$K23,DU$16)<=mediçao,BU23,0),0),PLE!$AA$28*BU23) -> 0 | DV23: =IF($K23<>1,IF(ISNUMBER(INDEX(Import.PLE,$K23,DV$16)),IF(INDEX(Import.PLE,$K23,DV$16)<=mediçao,BV23,0),0),PLE!$AA$28*BV23) -> 0 | DW23: =IF($K23<>1,IF(ISNUMBER(INDEX(Import.PLE,$K23,DW$16)),IF(INDEX(Import.PLE,$K23,DW$16)<=mediçao,BW23,0),0),PLE!$AA$28*BW23) -> 0 | DX23: =IF($K23<>1,IF(ISNUMBER(INDEX(Import.PLE,$K23,DX$16)),IF(INDEX(Import.PLE,$K23,DX$16)<=mediçao,BX23,0),0),PLE!$AA$28*BX23) -> 0 | DY23: =IF($K23<>1,IF(ISNUMBER(INDEX(Import.PLE,$K23,DY$16)),IF(INDEX(Import.PLE,$K23,DY$16)<=mediçao,BY23,0),0),PLE!$AA$28*BY23) -> 0 | DZ23: =IF($K23<>1,IF(ISNUMBER(INDEX(Import.PLE,$K23,DZ$16)),IF(INDEX(Import.PLE,$K23,DZ$16)<=mediçao,BZ23,0),0),PLE!$AA$28*BZ23) -> 0 | EA23: =IF($K23<>1,IF(ISNUMBER(INDEX(Import.PLE,$K23,EA$16)),IF(INDEX(Import.PLE,$K23,EA$16)<=mediçao,CA23,0),0),PLE!$AA$28*CA23) -> 0 | EB23: =IF($K23<>1,IF(ISNUMBER(INDEX(Import.PLE,$K23,EB$16)),IF(INDEX(Import.PLE,$K23,EB$16)<=mediçao,CB23,0),0),PLE!$AA$28*CB23) -> 0 | EC23: =IF($K23<>1,IF(ISNUMBER(INDEX(Import.PLE,$K23,EC$16)),IF(INDEX(Import.PLE,$K23,EC$16)<=mediçao,CC23,0),0),PLE!$AA$28*CC23) -> 0 | ED23: =IF($K23<>1,IF(ISNUMBER(INDEX(Import.PLE,$K23,ED$16)),IF(INDEX(Import.PLE,$K23,ED$16)<=mediçao,CD23,0),0),PLE!$AA$28*CD23) -> 0 | EE23: =IF($K23<>1,IF(ISNUMBER(INDEX(Import.PLE,$K23,EE$16)),IF(INDEX(Import.PLE,$K23,EE$16)<=mediçao,CE23,0),0),PLE!$AA$28*CE23) -> 0 | EF23: =IF($K23<>1,IF(ISNUMBER(INDEX(Import.PLE,$K23,EF$16)),IF(INDEX(Import.PLE,$K23,EF$16)<=mediçao,CF23,0),0),PLE!$AA$28*CF23) -> 0 | EG23: =IF($K23<>1,IF(ISNUMBER(INDEX(Import.PLE,$K23,EG$16)),IF(INDEX(Import.PLE,$K23,EG$16)<=mediçao,CG23,0),0),PLE!$AA$28*CG23) -> 0 | EH23: =IF($K23<>1,IF(ISNUMBER(INDEX(Import.PLE,$K23,EH$16)),IF(INDEX(Import.PLE,$K23,EH$16)<=mediçao,CH23,0),0),PLE!$AA$28*CH23) -> 0 | EI23: =IF($K23<>1,IF(ISNUMBER(INDEX(Import.PLE,$K23,EI$16)),IF(INDEX(Import.PLE,$K23,EI$16)<=mediçao,CI23,0),0),PLE!$AA$28*CI23) -> 0 | EJ23: =IF($K23<>1,IF(ISNUMBER(INDEX(Import.PLE,$K23,EJ$16)),IF(INDEX(Import.PLE,$K23,EJ$16)<=mediçao,CJ23,0),0),PLE!$AA$28*CJ23) -> 0 | EK23: =IF($K23<>1,IF(ISNUMBER(INDEX(Import.PLE,$K23,EK$16)),IF(INDEX(Import.PLE,$K23,EK$16)<=mediçao,CK23,0),0),PLE!$AA$28*CK23) -> 0 | EL23: =IF($K23<>1,IF(ISNUMBER(INDEX(Import.PLE,$K23,EL$16)),IF(INDEX(Import.PLE,$K23,EL$16)<=mediçao,CL23,0),0),PLE!$AA$28*CL23) -> 0 | EM23: =IF($K23<>1,IF(ISNUMBER(INDEX(Import.PLE,$K23,EM$16)),IF(INDEX(Import.PLE,$K23,EM$16)<=mediçao,CM23,0),0),PLE!$AA$28*CM23) -> 0 | EN23: =IF($K23<>1,IF(ISNUMBER(INDEX(Import.PLE,$K23,EN$16)),IF(INDEX(Import.PLE,$K23,EN$16)<=mediçao,CN23,0),0),PLE!$AA$28*CN23) -> 0 | EO23: =IF($K23<>1,IF(ISNUMBER(INDEX(Import.PLE,$K23,EO$16)),IF(INDEX(Import.PLE,$K23,EO$16)<=mediçao,CO23,0),0),PLE!$AA$28*CO23) -> 0 | EP23: =IF($K23<>1,IF(ISNUMBER(INDEX(Import.PLE,$K23,EP$16)),IF(INDEX(Import.PLE,$K23,EP$16)<=mediçao,CP23,0),0),PLE!$AA$28*CP23) -> 0 | EQ23: =IF($K23<>1,IF(ISNUMBER(INDEX(Import.PLE,$K23,EQ$16)),IF(INDEX(Import.PLE,$K23,EQ$16)<=mediçao,CQ23,0),0),PLE!$AA$28*CQ23) -> 0 | ER23: =IF($K23<>1,IF(ISNUMBER(INDEX(Import.PLE,$K23,ER$16)),IF(INDEX(Import.PLE,$K23,ER$16)<=mediçao,CR23,0),0),PLE!$AA$28*CR23) -> 0 | ES23: =IF($K23<>1,IF(ISNUMBER(INDEX(Import.PLE,$K23,ES$16)),IF(INDEX(Import.PLE,$K23,ES$16)<=mediçao,CS23,0),0),PLE!$AA$28*CS23) -> 0 | ET23: =IF($K23<>1,IF(ISNUMBER(INDEX(Import.PLE,$K23,ET$16)),IF(INDEX(Import.PLE,$K23,ET$16)<=mediçao,CT23,0),0),PLE!$AA$28*CT23) -> 0 | EU23: =IF($K23<>1,IF(ISNUMBER(INDEX(Import.PLE,$K23,EU$16)),IF(INDEX(Import.PLE,$K23,EU$16)<=mediçao,CU23,0),0),PLE!$AA$28*CU23) -> 0 | EV23: =IF($K23<>1,IF(ISNUMBER(INDEX(Import.PLE,$K23,EV$16)),IF(INDEX(Import.PLE,$K23,EV$16)<=mediçao,CV23,0),0),PLE!$AA$28*CV23) -> 0 | EW23: =IF($K23<>1,IF(ISNUMBER(INDEX(Import.PLE,$K23,EW$16)),IF(INDEX(Import.PLE,$K23,EW$16)<=mediçao,CW23,0),0),PLE!$AA$28*CW23) -> 0 | EX23: =IF($K23<>1,IF(ISNUMBER(INDEX(Import.PLE,$K23,EX$16)),IF(INDEX(Import.PLE,$K23,EX$16)<=mediçao,CX23,0),0),PLE!$AA$28*CX23) -> 0 | EY23: =IF($K23<>1,IF(ISNUMBER(INDEX(Import.PLE,$K23,EY$16)),IF(INDEX(Import.PLE,$K23,EY$16)<=mediçao,CY23,0),0),PLE!$AA$28*CY23) -> 0 | EZ23: =IF($K23<>1,IF(ISNUMBER(INDEX(Import.PLE,$K23,EZ$16)),IF(INDEX(Import.PLE,$K23,EZ$16)<=mediçao,CZ23,0),0),PLE!$AA$28*CZ23) -> 0 | FA23: =IF($K23<>1,IF(ISNUMBER(INDEX(Import.PLE,$K23,FA$16)),IF(INDEX(Import.PLE,$K23,FA$16)<=mediçao,DA23,0),0),PLE!$AA$28*DA23) -> 0 | FB23: =IF($K23<>1,IF(ISNUMBER(INDEX(Import.PLE,$K23,FB$16)),IF(INDEX(Import.PLE,$K23,FB$16)<=mediçao,DB23,0),0),PLE!$AA$28*DB23) -> 0 | FC23: =IF($K23<>1,IF(ISNUMBER(INDEX(Import.PLE,$K23,FC$16)),IF(INDEX(Import.PLE,$K23,FC$16)<=mediçao,DC23,0),0),PLE!$AA$28*DC23) -> 0 | FD23: =IF($K23<>1,IF(ISNUMBER(INDEX(Import.PLE,$K23,FD$16)),IF(INDEX(Import.PLE,$K23,FD$16)<=mediçao,DD23,0),0),PLE!$AA$28*DD23) -> 0 | FE23: =IF($K23<>1,IF(ISNUMBER(INDEX(Import.PLE,$K23,FE$16)),IF(INDEX(Import.PLE,$K23,FE$16)<=mediçao,DE23,0),0),PLE!$AA$28*DE23) -> 0 | FF23: =IF($K23<>1,IF(ISNUMBER(INDEX(Import.PLE,$K23,FF$16)),IF(INDEX(Import.PLE,$K23,FF$16)<=mediçao,DF23,0),0),PLE!$AA$28*DF23) -> 0 | FG23: =IF($K23<>1,IF(ISNUMBER(INDEX(Import.PLE,$K23,FG$16)),IF(INDEX(Import.PLE,$K23,FG$16)<=mediçao,DG23,0),0),PLE!$AA$28*DG23) -> 0 | FH23: =IF($K23<>1,IF(ISNUMBER(INDEX(Import.PLE,$K23,FH$16)),IF(INDEX(Import.PLE,$K23,FH$16)<=mediçao,DH23,0),0),PLE!$AA$28*DH23) -> 0 | FI23: =IF($K23<>1,IF(ISNUMBER(INDEX(Import.PLE,$K23,FI$16)),IF(INDEX(Import.PLE,$K23,FI$16)<=mediçao,DI23,0),0),PLE!$AA$28*DI23) -> 0 | FJ23: =IF($K23<>1,IF(ISNUMBER(INDEX(Import.PLE,$K23,FJ$16)),IF(INDEX(Import.PLE,$K23,FJ$16)<=mediçao,DJ23,0),0),PLE!$AA$28*DJ23) -> 0
B24: 7 | C24: Serviço | D24: 1.3.1. | E24: MOBILIZAÇÃO | F24: UND | G24: 1 | H24: 1559.62 | I24: 1559.62 | K24: =deactivatedados.form1 -> 3 | L24: 3-Mobilização | N24: 1 | BM24: 1559.62 | BN24: 0 | BO24: 0 | BP24: 0 | BQ24: 0 | BR24: 0 | BS24: 0 | BT24: 0 | BU24: 0 | BV24: 0 | BW24: 0 | BX24: 0 | BY24: 0 | BZ24: 0 | CA24: 0 | CB24: 0 | CC24: 0 | CD24: 0 | CE24: 0 | CF24: 0 | CG24: 0 | CH24: 0 | CI24: 0 | CJ24: 0 | CK24: 0 | CL24: 0 | CM24: 0 | CN24: 0 | CO24: 0 | CP24: 0 | CQ24: 0 | CR24: 0 | CS24: 0 | CT24: 0 | CU24: 0 | CV24: 0 | CW24: 0 | CX24: 0 | CY24: 0 | CZ24: 0 | DA24: 0 | DB24: 0 | DC24: 0 | DD24: 0 | DE24: 0 | DF24: 0 | DG24: 0 | DH24: 0 | DI24: 0 | DJ24: 0 | DK24: 1 | DL24: 0 | DM24: =IF($K24<>1,IF(ISNUMBER(INDEX(Import.PLE,$K24,DM$16)),IF(INDEX(Import.PLE,$K24,DM$16)<=mediçao,BM24,0),0),PLE!$AA$28*BM24) -> 0 | DN24: =IF($K24<>1,IF(ISNUMBER(INDEX(Import.PLE,$K24,DN$16)),IF(INDEX(Import.PLE,$K24,DN$16)<=mediçao,BN24,0),0),PLE!$AA$28*BN24) -> 0 | DO24: =IF($K24<>1,IF(ISNUMBER(INDEX(Import.PLE,$K24,DO$16)),IF(INDEX(Import.PLE,$K24,DO$16)<=mediçao,BO24,0),0),PLE!$AA$28*BO24) -> 0 | DP24: =IF($K24<>1,IF(ISNUMBER(INDEX(Import.PLE,$K24,DP$16)),IF(INDEX(Import.PLE,$K24,DP$16)<=mediçao,BP24,0),0),PLE!$AA$28*BP24) -> 0 | DQ24: =IF($K24<>1,IF(ISNUMBER(INDEX(Import.PLE,$K24,DQ$16)),IF(INDEX(Import.PLE,$K24,DQ$16)<=mediçao,BQ24,0),0),PLE!$AA$28*BQ24) -> 0 | DR24: =IF($K24<>1,IF(ISNUMBER(INDEX(Import.PLE,$K24,DR$16)),IF(INDEX(Import.PLE,$K24,DR$16)<=mediçao,BR24,0),0),PLE!$AA$28*BR24) -> 0 | DS24: =IF($K24<>1,IF(ISNUMBER(INDEX(Import.PLE,$K24,DS$16)),IF(INDEX(Import.PLE,$K24,DS$16)<=mediçao,BS24,0),0),PLE!$AA$28*BS24) -> 0 | DT24: =IF($K24<>1,IF(ISNUMBER(INDEX(Import.PLE,$K24,DT$16)),IF(INDEX(Import.PLE,$K24,DT$16)<=mediçao,BT24,0),0),PLE!$AA$28*BT24) -> 0 | DU24: =IF($K24<>1,IF(ISNUMBER(INDEX(Import.PLE,$K24,DU$16)),IF(INDEX(Import.PLE,$K24,DU$16)<=mediçao,BU24,0),0),PLE!$AA$28*BU24) -> 0 | DV24: =IF($K24<>1,IF(ISNUMBER(INDEX(Import.PLE,$K24,DV$16)),IF(INDEX(Import.PLE,$K24,DV$16)<=mediçao,BV24,0),0),PLE!$AA$28*BV24) -> 0 | DW24: =IF($K24<>1,IF(ISNUMBER(INDEX(Import.PLE,$K24,DW$16)),IF(INDEX(Import.PLE,$K24,DW$16)<=mediçao,BW24,0),0),PLE!$AA$28*BW24) -> 0 | DX24: =IF($K24<>1,IF(ISNUMBER(INDEX(Import.PLE,$K24,DX$16)),IF(INDEX(Import.PLE,$K24,DX$16)<=mediçao,BX24,0),0),PLE!$AA$28*BX24) -> 0 | DY24: =IF($K24<>1,IF(ISNUMBER(INDEX(Import.PLE,$K24,DY$16)),IF(INDEX(Import.PLE,$K24,DY$16)<=mediçao,BY24,0),0),PLE!$AA$28*BY24) -> 0 | DZ24: =IF($K24<>1,IF(ISNUMBER(INDEX(Import.PLE,$K24,DZ$16)),IF(INDEX(Import.PLE,$K24,DZ$16)<=mediçao,BZ24,0),0),PLE!$AA$28*BZ24) -> 0 | EA24: =IF($K24<>1,IF(ISNUMBER(INDEX(Import.PLE,$K24,EA$16)),IF(INDEX(Import.PLE,$K24,EA$16)<=mediçao,CA24,0),0),PLE!$AA$28*CA24) -> 0 | EB24: =IF($K24<>1,IF(ISNUMBER(INDEX(Import.PLE,$K24,EB$16)),IF(INDEX(Import.PLE,$K24,EB$16)<=mediçao,CB24,0),0),PLE!$AA$28*CB24) -> 0 | EC24: =IF($K24<>1,IF(ISNUMBER(INDEX(Import.PLE,$K24,EC$16)),IF(INDEX(Import.PLE,$K24,EC$16)<=mediçao,CC24,0),0),PLE!$AA$28*CC24) -> 0 | ED24: =IF($K24<>1,IF(ISNUMBER(INDEX(Import.PLE,$K24,ED$16)),IF(INDEX(Import.PLE,$K24,ED$16)<=mediçao,CD24,0),0),PLE!$AA$28*CD24) -> 0 | EE24: =IF($K24<>1,IF(ISNUMBER(INDEX(Import.PLE,$K24,EE$16)),IF(INDEX(Import.PLE,$K24,EE$16)<=mediçao,CE24,0),0),PLE!$AA$28*CE24) -> 0 | EF24: =IF($K24<>1,IF(ISNUMBER(INDEX(Import.PLE,$K24,EF$16)),IF(INDEX(Import.PLE,$K24,EF$16)<=mediçao,CF24,0),0),PLE!$AA$28*CF24) -> 0 | EG24: =IF($K24<>1,IF(ISNUMBER(INDEX(Import.PLE,$K24,EG$16)),IF(INDEX(Import.PLE,$K24,EG$16)<=mediçao,CG24,0),0),PLE!$AA$28*CG24) -> 0 | EH24: =IF($K24<>1,IF(ISNUMBER(INDEX(Import.PLE,$K24,EH$16)),IF(INDEX(Import.PLE,$K24,EH$16)<=mediçao,CH24,0),0),PLE!$AA$28*CH24) -> 0 | EI24: =IF($K24<>1,IF(ISNUMBER(INDEX(Import.PLE,$K24,EI$16)),IF(INDEX(Import.PLE,$K24,EI$16)<=mediçao,CI24,0),0),PLE!$AA$28*CI24) -> 0 | EJ24: =IF($K24<>1,IF(ISNUMBER(INDEX(Import.PLE,$K24,EJ$16)),IF(INDEX(Import.PLE,$K24,EJ$16)<=mediçao,CJ24,0),0),PLE!$AA$28*CJ24) -> 0 | EK24: =IF($K24<>1,IF(ISNUMBER(INDEX(Import.PLE,$K24,EK$16)),IF(INDEX(Import.PLE,$K24,EK$16)<=mediçao,CK24,0),0),PLE!$AA$28*CK24) -> 0 | EL24: =IF($K24<>1,IF(ISNUMBER(INDEX(Import.PLE,$K24,EL$16)),IF(INDEX(Import.PLE,$K24,EL$16)<=mediçao,CL24,0),0),PLE!$AA$28*CL24) -> 0 | EM24: =IF($K24<>1,IF(ISNUMBER(INDEX(Import.PLE,$K24,EM$16)),IF(INDEX(Import.PLE,$K24,EM$16)<=mediçao,CM24,0),0),PLE!$AA$28*CM24) -> 0 | EN24: =IF($K24<>1,IF(ISNUMBER(INDEX(Import.PLE,$K24,EN$16)),IF(INDEX(Import.PLE,$K24,EN$16)<=mediçao,CN24,0),0),PLE!$AA$28*CN24) -> 0 | EO24: =IF($K24<>1,IF(ISNUMBER(INDEX(Import.PLE,$K24,EO$16)),IF(INDEX(Import.PLE,$K24,EO$16)<=mediçao,CO24,0),0),PLE!$AA$28*CO24) -> 0 | EP24: =IF($K24<>1,IF(ISNUMBER(INDEX(Import.PLE,$K24,EP$16)),IF(INDEX(Import.PLE,$K24,EP$16)<=mediçao,CP24,0),0),PLE!$AA$28*CP24) -> 0 | EQ24: =IF($K24<>1,IF(ISNUMBER(INDEX(Import.PLE,$K24,EQ$16)),IF(INDEX(Import.PLE,$K24,EQ$16)<=mediçao,CQ24,0),0),PLE!$AA$28*CQ24) -> 0 | ER24: =IF($K24<>1,IF(ISNUMBER(INDEX(Import.PLE,$K24,ER$16)),IF(INDEX(Import.PLE,$K24,ER$16)<=mediçao,CR24,0),0),PLE!$AA$28*CR24) -> 0 | ES24: =IF($K24<>1,IF(ISNUMBER(INDEX(Import.PLE,$K24,ES$16)),IF(INDEX(Import.PLE,$K24,ES$16)<=mediçao,CS24,0),0),PLE!$AA$28*CS24) -> 0 | ET24: =IF($K24<>1,IF(ISNUMBER(INDEX(Import.PLE,$K24,ET$16)),IF(INDEX(Import.PLE,$K24,ET$16)<=mediçao,CT24,0),0),PLE!$AA$28*CT24) -> 0 | EU24: =IF($K24<>1,IF(ISNUMBER(INDEX(Import.PLE,$K24,EU$16)),IF(INDEX(Import.PLE,$K24,EU$16)<=mediçao,CU24,0),0),PLE!$AA$28*CU24) -> 0 | EV24: =IF($K24<>1,IF(ISNUMBER(INDEX(Import.PLE,$K24,EV$16)),IF(INDEX(Import.PLE,$K24,EV$16)<=mediçao,CV24,0),0),PLE!$AA$28*CV24) -> 0 | EW24: =IF($K24<>1,IF(ISNUMBER(INDEX(Import.PLE,$K24,EW$16)),IF(INDEX(Import.PLE,$K24,EW$16)<=mediçao,CW24,0),0),PLE!$AA$28*CW24) -> 0 | EX24: =IF($K24<>1,IF(ISNUMBER(INDEX(Import.PLE,$K24,EX$16)),IF(INDEX(Import.PLE,$K24,EX$16)<=mediçao,CX24,0),0),PLE!$AA$28*CX24) -> 0 | EY24: =IF($K24<>1,IF(ISNUMBER(INDEX(Import.PLE,$K24,EY$16)),IF(INDEX(Import.PLE,$K24,EY$16)<=mediçao,CY24,0),0),PLE!$AA$28*CY24) -> 0 | EZ24: =IF($K24<>1,IF(ISNUMBER(INDEX(Import.PLE,$K24,EZ$16)),IF(INDEX(Import.PLE,$K24,EZ$16)<=mediçao,CZ24,0),0),PLE!$AA$28*CZ24) -> 0 | FA24: =IF($K24<>1,IF(ISNUMBER(INDEX(Import.PLE,$K24,FA$16)),IF(INDEX(Import.PLE,$K24,FA$16)<=mediçao,DA24,0),0),PLE!$AA$28*DA24) -> 0 | FB24: =IF($K24<>1,IF(ISNUMBER(INDEX(Import.PLE,$K24,FB$16)),IF(INDEX(Import.PLE,$K24,FB$16)<=mediçao,DB24,0),0),PLE!$AA$28*DB24) -> 0 | FC24: =IF($K24<>1,IF(ISNUMBER(INDEX(Import.PLE,$K24,FC$16)),IF(INDEX(Import.PLE,$K24,FC$16)<=mediçao,DC24,0),0),PLE!$AA$28*DC24) -> 0 | FD24: =IF($K24<>1,IF(ISNUMBER(INDEX(Import.PLE,$K24,FD$16)),IF(INDEX(Import.PLE,$K24,FD$16)<=mediçao,DD24,0),0),PLE!$AA$28*DD24) -> 0 | FE24: =IF($K24<>1,IF(ISNUMBER(INDEX(Import.PLE,$K24,FE$16)),IF(INDEX(Import.PLE,$K24,FE$16)<=mediçao,DE24,0),0),PLE!$AA$28*DE24) -> 0 | FF24: =IF($K24<>1,IF(ISNUMBER(INDEX(Import.PLE,$K24,FF$16)),IF(INDEX(Import.PLE,$K24,FF$16)<=mediçao,DF24,0),0),PLE!$AA$28*DF24) -> 0 | FG24: =IF($K24<>1,IF(ISNUMBER(INDEX(Import.PLE,$K24,FG$16)),IF(INDEX(Import.PLE,$K24,FG$16)<=mediçao,DG24,0),0),PLE!$AA$28*DG24) -> 0 | FH24: =IF($K24<>1,IF(ISNUMBER(INDEX(Import.PLE,$K24,FH$16)),IF(INDEX(Import.PLE,$K24,FH$16)<=mediçao,DH24,0),0),PLE!$AA$28*DH24) -> 0 | FI24: =IF($K24<>1,IF(ISNUMBER(INDEX(Import.PLE,$K24,FI$16)),IF(INDEX(Import.PLE,$K24,FI$16)<=mediçao,DI24,0),0),PLE!$AA$28*DI24) -> 0 | FJ24: =IF($K24<>1,IF(ISNUMBER(INDEX(Import.PLE,$K24,FJ$16)),IF(INDEX(Import.PLE,$K24,FJ$16)<=mediçao,DJ24,0),0),PLE!$AA$28*DJ24) -> 0
B25: 8 | C25: Serviço | D25: 1.3.2. | E25: DESMOBILIZAÇÃO | F25: UND | G25: 1 | H25: 1559.62 | I25: 1559.62 | K25: =deactivatedados.form1 -> 4 | L25: 4-Desmobilização | N25: 1 | BM25: 1559.62 | BN25: 0 | BO25: 0 | BP25: 0 | BQ25: 0 | BR25: 0 | BS25: 0 | BT25: 0 | BU25: 0 | BV25: 0 | BW25: 0 | BX25: 0 | BY25: 0 | BZ25: 0 | CA25: 0 | CB25: 0 | CC25: 0 | CD25: 0 | CE25: 0 | CF25: 0 | CG25: 0 | CH25: 0 | CI25: 0 | CJ25: 0 | CK25: 0 | CL25: 0 | CM25: 0 | CN25: 0 | CO25: 0 | CP25: 0 | CQ25: 0 | CR25: 0 | CS25: 0 | CT25: 0 | CU25: 0 | CV25: 0 | CW25: 0 | CX25: 0 | CY25: 0 | CZ25: 0 | DA25: 0 | DB25: 0 | DC25: 0 | DD25: 0 | DE25: 0 | DF25: 0 | DG25: 0 | DH25: 0 | DI25: 0 | DJ25: 0 | DK25: 1 | DL25: 0 | DM25: =IF($K25<>1,IF(ISNUMBER(INDEX(Import.PLE,$K25,DM$16)),IF(INDEX(Import.PLE,$K25,DM$16)<=mediçao,BM25,0),0),PLE!$AA$28*BM25) -> 0 | DN25: =IF($K25<>1,IF(ISNUMBER(INDEX(Import.PLE,$K25,DN$16)),IF(INDEX(Import.PLE,$K25,DN$16)<=mediçao,BN25,0),0),PLE!$AA$28*BN25) -> 0 | DO25: =IF($K25<>1,IF(ISNUMBER(INDEX(Import.PLE,$K25,DO$16)),IF(INDEX(Import.PLE,$K25,DO$16)<=mediçao,BO25,0),0),PLE!$AA$28*BO25) -> 0 | DP25: =IF($K25<>1,IF(ISNUMBER(INDEX(Import.PLE,$K25,DP$16)),IF(INDEX(Import.PLE,$K25,DP$16)<=mediçao,BP25,0),0),PLE!$AA$28*BP25) -> 0 | DQ25: =IF($K25<>1,IF(ISNUMBER(INDEX(Import.PLE,$K25,DQ$16)),IF(INDEX(Import.PLE,$K25,DQ$16)<=mediçao,BQ25,0),0),PLE!$AA$28*BQ25) -> 0 | DR25: =IF($K25<>1,IF(ISNUMBER(INDEX(Import.PLE,$K25,DR$16)),IF(INDEX(Import.PLE,$K25,DR$16)<=mediçao,BR25,0),0),PLE!$AA$28*BR25) -> 0 | DS25: =IF($K25<>1,IF(ISNUMBER(INDEX(Import.PLE,$K25,DS$16)),IF(INDEX(Import.PLE,$K25,DS$16)<=mediçao,BS25,0),0),PLE!$AA$28*BS25) -> 0 | DT25: =IF($K25<>1,IF(ISNUMBER(INDEX(Import.PLE,$K25,DT$16)),IF(INDEX(Import.PLE,$K25,DT$16)<=mediçao,BT25,0),0),PLE!$AA$28*BT25) -> 0 | DU25: =IF($K25<>1,IF(ISNUMBER(INDEX(Import.PLE,$K25,DU$16)),IF(INDEX(Import.PLE,$K25,DU$16)<=mediçao,BU25,0),0),PLE!$AA$28*BU25) -> 0 | DV25: =IF($K25<>1,IF(ISNUMBER(INDEX(Import.PLE,$K25,DV$16)),IF(INDEX(Import.PLE,$K25,DV$16)<=mediçao,BV25,0),0),PLE!$AA$28*BV25) -> 0 | DW25: =IF($K25<>1,IF(ISNUMBER(INDEX(Import.PLE,$K25,DW$16)),IF(INDEX(Import.PLE,$K25,DW$16)<=mediçao,BW25,0),0),PLE!$AA$28*BW25) -> 0 | DX25: =IF($K25<>1,IF(ISNUMBER(INDEX(Import.PLE,$K25,DX$16)),IF(INDEX(Import.PLE,$K25,DX$16)<=mediçao,BX25,0),0),PLE!$AA$28*BX25) -> 0 | DY25: =IF($K25<>1,IF(ISNUMBER(INDEX(Import.PLE,$K25,DY$16)),IF(INDEX(Import.PLE,$K25,DY$16)<=mediçao,BY25,0),0),PLE!$AA$28*BY25) -> 0 | DZ25: =IF($K25<>1,IF(ISNUMBER(INDEX(Import.PLE,$K25,DZ$16)),IF(INDEX(Import.PLE,$K25,DZ$16)<=mediçao,BZ25,0),0),PLE!$AA$28*BZ25) -> 0 | EA25: =IF($K25<>1,IF(ISNUMBER(INDEX(Import.PLE,$K25,EA$16)),IF(INDEX(Import.PLE,$K25,EA$16)<=mediçao,CA25,0),0),PLE!$AA$28*CA25) -> 0 | EB25: =IF($K25<>1,IF(ISNUMBER(INDEX(Import.PLE,$K25,EB$16)),IF(INDEX(Import.PLE,$K25,EB$16)<=mediçao,CB25,0),0),PLE!$AA$28*CB25) -> 0 | EC25: =IF($K25<>1,IF(ISNUMBER(INDEX(Import.PLE,$K25,EC$16)),IF(INDEX(Import.PLE,$K25,EC$16)<=mediçao,CC25,0),0),PLE!$AA$28*CC25) -> 0 | ED25: =IF($K25<>1,IF(ISNUMBER(INDEX(Import.PLE,$K25,ED$16)),IF(INDEX(Import.PLE,$K25,ED$16)<=mediçao,CD25,0),0),PLE!$AA$28*CD25) -> 0 | EE25: =IF($K25<>1,IF(ISNUMBER(INDEX(Import.PLE,$K25,EE$16)),IF(INDEX(Import.PLE,$K25,EE$16)<=mediçao,CE25,0),0),PLE!$AA$28*CE25) -> 0 | EF25: =IF($K25<>1,IF(ISNUMBER(INDEX(Import.PLE,$K25,EF$16)),IF(INDEX(Import.PLE,$K25,EF$16)<=mediçao,CF25,0),0),PLE!$AA$28*CF25) -> 0 | EG25: =IF($K25<>1,IF(ISNUMBER(INDEX(Import.PLE,$K25,EG$16)),IF(INDEX(Import.PLE,$K25,EG$16)<=mediçao,CG25,0),0),PLE!$AA$28*CG25) -> 0 | EH25: =IF($K25<>1,IF(ISNUMBER(INDEX(Import.PLE,$K25,EH$16)),IF(INDEX(Import.PLE,$K25,EH$16)<=mediçao,CH25,0),0),PLE!$AA$28*CH25) -> 0 | EI25: =IF($K25<>1,IF(ISNUMBER(INDEX(Import.PLE,$K25,EI$16)),IF(INDEX(Import.PLE,$K25,EI$16)<=mediçao,CI25,0),0),PLE!$AA$28*CI25) -> 0 | EJ25: =IF($K25<>1,IF(ISNUMBER(INDEX(Import.PLE,$K25,EJ$16)),IF(INDEX(Import.PLE,$K25,EJ$16)<=mediçao,CJ25,0),0),PLE!$AA$28*CJ25) -> 0 | EK25: =IF($K25<>1,IF(ISNUMBER(INDEX(Import.PLE,$K25,EK$16)),IF(INDEX(Import.PLE,$K25,EK$16)<=mediçao,CK25,0),0),PLE!$AA$28*CK25) -> 0 | EL25: =IF($K25<>1,IF(ISNUMBER(INDEX(Import.PLE,$K25,EL$16)),IF(INDEX(Import.PLE,$K25,EL$16)<=mediçao,CL25,0),0),PLE!$AA$28*CL25) -> 0 | EM25: =IF($K25<>1,IF(ISNUMBER(INDEX(Import.PLE,$K25,EM$16)),IF(INDEX(Import.PLE,$K25,EM$16)<=mediçao,CM25,0),0),PLE!$AA$28*CM25) -> 0 | EN25: =IF($K25<>1,IF(ISNUMBER(INDEX(Import.PLE,$K25,EN$16)),IF(INDEX(Import.PLE,$K25,EN$16)<=mediçao,CN25,0),0),PLE!$AA$28*CN25) -> 0 | EO25: =IF($K25<>1,IF(ISNUMBER(INDEX(Import.PLE,$K25,EO$16)),IF(INDEX(Import.PLE,$K25,EO$16)<=mediçao,CO25,0),0),PLE!$AA$28*CO25) -> 0 | EP25: =IF($K25<>1,IF(ISNUMBER(INDEX(Import.PLE,$K25,EP$16)),IF(INDEX(Import.PLE,$K25,EP$16)<=mediçao,CP25,0),0),PLE!$AA$28*CP25) -> 0 | EQ25: =IF($K25<>1,IF(ISNUMBER(INDEX(Import.PLE,$K25,EQ$16)),IF(INDEX(Import.PLE,$K25,EQ$16)<=mediçao,CQ25,0),0),PLE!$AA$28*CQ25) -> 0 | ER25: =IF($K25<>1,IF(ISNUMBER(INDEX(Import.PLE,$K25,ER$16)),IF(INDEX(Import.PLE,$K25,ER$16)<=mediçao,CR25,0),0),PLE!$AA$28*CR25) -> 0 | ES25: =IF($K25<>1,IF(ISNUMBER(INDEX(Import.PLE,$K25,ES$16)),IF(INDEX(Import.PLE,$K25,ES$16)<=mediçao,CS25,0),0),PLE!$AA$28*CS25) -> 0 | ET25: =IF($K25<>1,IF(ISNUMBER(INDEX(Import.PLE,$K25,ET$16)),IF(INDEX(Import.PLE,$K25,ET$16)<=mediçao,CT25,0),0),PLE!$AA$28*CT25) -> 0 | EU25: =IF($K25<>1,IF(ISNUMBER(INDEX(Import.PLE,$K25,EU$16)),IF(INDEX(Import.PLE,$K25,EU$16)<=mediçao,CU25,0),0),PLE!$AA$28*CU25) -> 0 | EV25: =IF($K25<>1,IF(ISNUMBER(INDEX(Import.PLE,$K25,EV$16)),IF(INDEX(Import.PLE,$K25,EV$16)<=mediçao,CV25,0),0),PLE!$AA$28*CV25) -> 0 | EW25: =IF($K25<>1,IF(ISNUMBER(INDEX(Import.PLE,$K25,EW$16)),IF(INDEX(Import.PLE,$K25,EW$16)<=mediçao,CW25,0),0),PLE!$AA$28*CW25) -> 0 | EX25: =IF($K25<>1,IF(ISNUMBER(INDEX(Import.PLE,$K25,EX$16)),IF(INDEX(Import.PLE,$K25,EX$16)<=mediçao,CX25,0),0),PLE!$AA$28*CX25) -> 0 | EY25: =IF($K25<>1,IF(ISNUMBER(INDEX(Import.PLE,$K25,EY$16)),IF(INDEX(Import.PLE,$K25,EY$16)<=mediçao,CY25,0),0),PLE!$AA$28*CY25) -> 0 | EZ25: =IF($K25<>1,IF(ISNUMBER(INDEX(Import.PLE,$K25,EZ$16)),IF(INDEX(Import.PLE,$K25,EZ$16)<=mediçao,CZ25,0),0),PLE!$AA$28*CZ25) -> 0 | FA25: =IF($K25<>1,IF(ISNUMBER(INDEX(Import.PLE,$K25,FA$16)),IF(INDEX(Import.PLE,$K25,FA$16)<=mediçao,DA25,0),0),PLE!$AA$28*DA25) -> 0 | FB25: =IF($K25<>1,IF(ISNUMBER(INDEX(Import.PLE,$K25,FB$16)),IF(INDEX(Import.PLE,$K25,FB$16)<=mediçao,DB25,0),0),PLE!$AA$28*DB25) -> 0 | FC25: =IF($K25<>1,IF(ISNUMBER(INDEX(Import.PLE,$K25,FC$16)),IF(INDEX(Import.PLE,$K25,FC$16)<=mediçao,DC25,0),0),PLE!$AA$28*DC25) -> 0 | FD25: =IF($K25<>1,IF(ISNUMBER(INDEX(Import.PLE,$K25,FD$16)),IF(INDEX(Import.PLE,$K25,FD$16)<=mediçao,DD25,0),0),PLE!$AA$28*DD25) -> 0 | FE25: =IF($K25<>1,IF(ISNUMBER(INDEX(Import.PLE,$K25,FE$16)),IF(INDEX(Import.PLE,$K25,FE$16)<=mediçao,DE25,0),0),PLE!$AA$28*DE25) -> 0 | FF25: =IF($K25<>1,IF(ISNUMBER(INDEX(Import.PLE,$K25,FF$16)),IF(INDEX(Import.PLE,$K25,FF$16)<=mediçao,DF25,0),0),PLE!$AA$28*DF25) -> 0 | FG25: =IF($K25<>1,IF(ISNUMBER(INDEX(Import.PLE,$K25,FG$16)),IF(INDEX(Import.PLE,$K25,FG$16)<=mediçao,DG25,0),0),PLE!$AA$28*DG25) -> 0 | FH25: =IF($K25<>1,IF(ISNUMBER(INDEX(Import.PLE,$K25,FH$16)),IF(INDEX(Import.PLE,$K25,FH$16)<=mediçao,DH25,0),0),PLE!$AA$28*DH25) -> 0 | FI25: =IF($K25<>1,IF(ISNUMBER(INDEX(Import.PLE,$K25,FI$16)),IF(INDEX(Import.PLE,$K25,FI$16)<=mediçao,DI25,0),0),PLE!$AA$28*DI25) -> 0 | FJ25: =IF($K25<>1,IF(ISNUMBER(INDEX(Import.PLE,$K25,FJ$16)),IF(INDEX(Import.PLE,$K25,FJ$16)<=mediçao,DJ25,0),0),PLE!$AA$28*DJ25) -> 0
B26: 9 | C26: Nível | D26: 1.4. | E26: SUBLEITO E BASE | I26: 27418.54 | K26: =deactivatedados.form1 ->  | BM26: 0 | BN26: 0 | BO26: 0 | BP26: 0 | BQ26: 0 | BR26: 0 | BS26: 0 | BT26: 0 | BU26: 0 | BV26: 0 | BW26: 0 | BX26: 0 | BY26: 0 | BZ26: 0 | CA26: 0 | CB26: 0 | CC26: 0 | CD26: 0 | CE26: 0 | CF26: 0 | CG26: 0 | CH26: 0 | CI26: 0 | CJ26: 0 | CK26: 0 | CL26: 0 | CM26: 0 | CN26: 0 | CO26: 0 | CP26: 0 | CQ26: 0 | CR26: 0 | CS26: 0 | CT26: 0 | CU26: 0 | CV26: 0 | CW26: 0 | CX26: 0 | CY26: 0 | CZ26: 0 | DA26: 0 | DB26: 0 | DC26: 0 | DD26: 0 | DE26: 0 | DF26: 0 | DG26: 0 | DH26: 0 | DI26: 0 | DJ26: 0 | DK26: 1 | DL26: 0 | DM26: =IF($K26<>1,IF(ISNUMBER(INDEX(Import.PLE,$K26,DM$16)),IF(INDEX(Import.PLE,$K26,DM$16)<=mediçao,BM26,0),0),PLE!$AA$28*BM26) -> 0 | DN26: =IF($K26<>1,IF(ISNUMBER(INDEX(Import.PLE,$K26,DN$16)),IF(INDEX(Import.PLE,$K26,DN$16)<=mediçao,BN26,0),0),PLE!$AA$28*BN26) -> 0 | DO26: =IF($K26<>1,IF(ISNUMBER(INDEX(Import.PLE,$K26,DO$16)),IF(INDEX(Import.PLE,$K26,DO$16)<=mediçao,BO26,0),0),PLE!$AA$28*BO26) -> 0 | DP26: =IF($K26<>1,IF(ISNUMBER(INDEX(Import.PLE,$K26,DP$16)),IF(INDEX(Import.PLE,$K26,DP$16)<=mediçao,BP26,0),0),PLE!$AA$28*BP26) -> 0 | DQ26: =IF($K26<>1,IF(ISNUMBER(INDEX(Import.PLE,$K26,DQ$16)),IF(INDEX(Import.PLE,$K26,DQ$16)<=mediçao,BQ26,0),0),PLE!$AA$28*BQ26) -> 0 | DR26: =IF($K26<>1,IF(ISNUMBER(INDEX(Import.PLE,$K26,DR$16)),IF(INDEX(Import.PLE,$K26,DR$16)<=mediçao,BR26,0),0),PLE!$AA$28*BR26) -> 0 | DS26: =IF($K26<>1,IF(ISNUMBER(INDEX(Import.PLE,$K26,DS$16)),IF(INDEX(Import.PLE,$K26,DS$16)<=mediçao,BS26,0),0),PLE!$AA$28*BS26) -> 0 | DT26: =IF($K26<>1,IF(ISNUMBER(INDEX(Import.PLE,$K26,DT$16)),IF(INDEX(Import.PLE,$K26,DT$16)<=mediçao,BT26,0),0),PLE!$AA$28*BT26) -> 0 | DU26: =IF($K26<>1,IF(ISNUMBER(INDEX(Import.PLE,$K26,DU$16)),IF(INDEX(Import.PLE,$K26,DU$16)<=mediçao,BU26,0),0),PLE!$AA$28*BU26) -> 0 | DV26: =IF($K26<>1,IF(ISNUMBER(INDEX(Import.PLE,$K26,DV$16)),IF(INDEX(Import.PLE,$K26,DV$16)<=mediçao,BV26,0),0),PLE!$AA$28*BV26) -> 0 | DW26: =IF($K26<>1,IF(ISNUMBER(INDEX(Import.PLE,$K26,DW$16)),IF(INDEX(Import.PLE,$K26,DW$16)<=mediçao,BW26,0),0),PLE!$AA$28*BW26) -> 0 | DX26: =IF($K26<>1,IF(ISNUMBER(INDEX(Import.PLE,$K26,DX$16)),IF(INDEX(Import.PLE,$K26,DX$16)<=mediçao,BX26,0),0),PLE!$AA$28*BX26) -> 0 | DY26: =IF($K26<>1,IF(ISNUMBER(INDEX(Import.PLE,$K26,DY$16)),IF(INDEX(Import.PLE,$K26,DY$16)<=mediçao,BY26,0),0),PLE!$AA$28*BY26) -> 0 | DZ26: =IF($K26<>1,IF(ISNUMBER(INDEX(Import.PLE,$K26,DZ$16)),IF(INDEX(Import.PLE,$K26,DZ$16)<=mediçao,BZ26,0),0),PLE!$AA$28*BZ26) -> 0 | EA26: =IF($K26<>1,IF(ISNUMBER(INDEX(Import.PLE,$K26,EA$16)),IF(INDEX(Import.PLE,$K26,EA$16)<=mediçao,CA26,0),0),PLE!$AA$28*CA26) -> 0 | EB26: =IF($K26<>1,IF(ISNUMBER(INDEX(Import.PLE,$K26,EB$16)),IF(INDEX(Import.PLE,$K26,EB$16)<=mediçao,CB26,0),0),PLE!$AA$28*CB26) -> 0 | EC26: =IF($K26<>1,IF(ISNUMBER(INDEX(Import.PLE,$K26,EC$16)),IF(INDEX(Import.PLE,$K26,EC$16)<=mediçao,CC26,0),0),PLE!$AA$28*CC26) -> 0 | ED26: =IF($K26<>1,IF(ISNUMBER(INDEX(Import.PLE,$K26,ED$16)),IF(INDEX(Import.PLE,$K26,ED$16)<=mediçao,CD26,0),0),PLE!$AA$28*CD26) -> 0 | EE26: =IF($K26<>1,IF(ISNUMBER(INDEX(Import.PLE,$K26,EE$16)),IF(INDEX(Import.PLE,$K26,EE$16)<=mediçao,CE26,0),0),PLE!$AA$28*CE26) -> 0 | EF26: =IF($K26<>1,IF(ISNUMBER(INDEX(Import.PLE,$K26,EF$16)),IF(INDEX(Import.PLE,$K26,EF$16)<=mediçao,CF26,0),0),PLE!$AA$28*CF26) -> 0 | EG26: =IF($K26<>1,IF(ISNUMBER(INDEX(Import.PLE,$K26,EG$16)),IF(INDEX(Import.PLE,$K26,EG$16)<=mediçao,CG26,0),0),PLE!$AA$28*CG26) -> 0 | EH26: =IF($K26<>1,IF(ISNUMBER(INDEX(Import.PLE,$K26,EH$16)),IF(INDEX(Import.PLE,$K26,EH$16)<=mediçao,CH26,0),0),PLE!$AA$28*CH26) -> 0 | EI26: =IF($K26<>1,IF(ISNUMBER(INDEX(Import.PLE,$K26,EI$16)),IF(INDEX(Import.PLE,$K26,EI$16)<=mediçao,CI26,0),0),PLE!$AA$28*CI26) -> 0 | EJ26: =IF($K26<>1,IF(ISNUMBER(INDEX(Import.PLE,$K26,EJ$16)),IF(INDEX(Import.PLE,$K26,EJ$16)<=mediçao,CJ26,0),0),PLE!$AA$28*CJ26) -> 0 | EK26: =IF($K26<>1,IF(ISNUMBER(INDEX(Import.PLE,$K26,EK$16)),IF(INDEX(Import.PLE,$K26,EK$16)<=mediçao,CK26,0),0),PLE!$AA$28*CK26) -> 0 | EL26: =IF($K26<>1,IF(ISNUMBER(INDEX(Import.PLE,$K26,EL$16)),IF(INDEX(Import.PLE,$K26,EL$16)<=mediçao,CL26,0),0),PLE!$AA$28*CL26) -> 0 | EM26: =IF($K26<>1,IF(ISNUMBER(INDEX(Import.PLE,$K26,EM$16)),IF(INDEX(Import.PLE,$K26,EM$16)<=mediçao,CM26,0),0),PLE!$AA$28*CM26) -> 0 | EN26: =IF($K26<>1,IF(ISNUMBER(INDEX(Import.PLE,$K26,EN$16)),IF(INDEX(Import.PLE,$K26,EN$16)<=mediçao,CN26,0),0),PLE!$AA$28*CN26) -> 0 | EO26: =IF($K26<>1,IF(ISNUMBER(INDEX(Import.PLE,$K26,EO$16)),IF(INDEX(Import.PLE,$K26,EO$16)<=mediçao,CO26,0),0),PLE!$AA$28*CO26) -> 0 | EP26: =IF($K26<>1,IF(ISNUMBER(INDEX(Import.PLE,$K26,EP$16)),IF(INDEX(Import.PLE,$K26,EP$16)<=mediçao,CP26,0),0),PLE!$AA$28*CP26) -> 0 | EQ26: =IF($K26<>1,IF(ISNUMBER(INDEX(Import.PLE,$K26,EQ$16)),IF(INDEX(Import.PLE,$K26,EQ$16)<=mediçao,CQ26,0),0),PLE!$AA$28*CQ26) -> 0 | ER26: =IF($K26<>1,IF(ISNUMBER(INDEX(Import.PLE,$K26,ER$16)),IF(INDEX(Import.PLE,$K26,ER$16)<=mediçao,CR26,0),0),PLE!$AA$28*CR26) -> 0 | ES26: =IF($K26<>1,IF(ISNUMBER(INDEX(Import.PLE,$K26,ES$16)),IF(INDEX(Import.PLE,$K26,ES$16)<=mediçao,CS26,0),0),PLE!$AA$28*CS26) -> 0 | ET26: =IF($K26<>1,IF(ISNUMBER(INDEX(Import.PLE,$K26,ET$16)),IF(INDEX(Import.PLE,$K26,ET$16)<=mediçao,CT26,0),0),PLE!$AA$28*CT26) -> 0 | EU26: =IF($K26<>1,IF(ISNUMBER(INDEX(Import.PLE,$K26,EU$16)),IF(INDEX(Import.PLE,$K26,EU$16)<=mediçao,CU26,0),0),PLE!$AA$28*CU26) -> 0 | EV26: =IF($K26<>1,IF(ISNUMBER(INDEX(Import.PLE,$K26,EV$16)),IF(INDEX(Import.PLE,$K26,EV$16)<=mediçao,CV26,0),0),PLE!$AA$28*CV26) -> 0 | EW26: =IF($K26<>1,IF(ISNUMBER(INDEX(Import.PLE,$K26,EW$16)),IF(INDEX(Import.PLE,$K26,EW$16)<=mediçao,CW26,0),0),PLE!$AA$28*CW26) -> 0 | EX26: =IF($K26<>1,IF(ISNUMBER(INDEX(Import.PLE,$K26,EX$16)),IF(INDEX(Import.PLE,$K26,EX$16)<=mediçao,CX26,0),0),PLE!$AA$28*CX26) -> 0 | EY26: =IF($K26<>1,IF(ISNUMBER(INDEX(Import.PLE,$K26,EY$16)),IF(INDEX(Import.PLE,$K26,EY$16)<=mediçao,CY26,0),0),PLE!$AA$28*CY26) -> 0 | EZ26: =IF($K26<>1,IF(ISNUMBER(INDEX(Import.PLE,$K26,EZ$16)),IF(INDEX(Import.PLE,$K26,EZ$16)<=mediçao,CZ26,0),0),PLE!$AA$28*CZ26) -> 0 | FA26: =IF($K26<>1,IF(ISNUMBER(INDEX(Import.PLE,$K26,FA$16)),IF(INDEX(Import.PLE,$K26,FA$16)<=mediçao,DA26,0),0),PLE!$AA$28*DA26) -> 0 | FB26: =IF($K26<>1,IF(ISNUMBER(INDEX(Import.PLE,$K26,FB$16)),IF(INDEX(Import.PLE,$K26,FB$16)<=mediçao,DB26,0),0),PLE!$AA$28*DB26) -> 0 | FC26: =IF($K26<>1,IF(ISNUMBER(INDEX(Import.PLE,$K26,FC$16)),IF(INDEX(Import.PLE,$K26,FC$16)<=mediçao,DC26,0),0),PLE!$AA$28*DC26) -> 0 | FD26: =IF($K26<>1,IF(ISNUMBER(INDEX(Import.PLE,$K26,FD$16)),IF(INDEX(Import.PLE,$K26,FD$16)<=mediçao,DD26,0),0),PLE!$AA$28*DD26) -> 0 | FE26: =IF($K26<>1,IF(ISNUMBER(INDEX(Import.PLE,$K26,FE$16)),IF(INDEX(Import.PLE,$K26,FE$16)<=mediçao,DE26,0),0),PLE!$AA$28*DE26) -> 0 | FF26: =IF($K26<>1,IF(ISNUMBER(INDEX(Import.PLE,$K26,FF$16)),IF(INDEX(Import.PLE,$K26,FF$16)<=mediçao,DF26,0),0),PLE!$AA$28*DF26) -> 0 | FG26: =IF($K26<>1,IF(ISNUMBER(INDEX(Import.PLE,$K26,FG$16)),IF(INDEX(Import.PLE,$K26,FG$16)<=mediçao,DG26,0),0),PLE!$AA$28*DG26) -> 0 | FH26: =IF($K26<>1,IF(ISNUMBER(INDEX(Import.PLE,$K26,FH$16)),IF(INDEX(Import.PLE,$K26,FH$16)<=mediçao,DH26,0),0),PLE!$AA$28*DH26) -> 0 | FI26: =IF($K26<>1,IF(ISNUMBER(INDEX(Import.PLE,$K26,FI$16)),IF(INDEX(Import.PLE,$K26,FI$16)<=mediçao,DI26,0),0),PLE!$AA$28*DI26) -> 0 | FJ26: =IF($K26<>1,IF(ISNUMBER(INDEX(Import.PLE,$K26,FJ$16)),IF(INDEX(Import.PLE,$K26,FJ$16)<=mediçao,DJ26,0),0),PLE!$AA$28*DJ26) -> 0
B27: 10 | C27: Serviço | D27: 1.4.1. | E27: SERVICOS TOPOGRAFICOS PARA PAVIMENTACAO, INCLUSIVE NOTA DE SERVICOS, ACOMPANHAMENTO E GREIDE | F27: M2 | G27: 4044.7 | H27: 0.4500012362 | I27: 1820.12 | K27: =deactivatedados.form1 -> 5 | L27: 5-Subleito/Base/Imprimação | O27: 378.3 | P27: 873.6 | Q27: 967.2 | R27: 998.4 | S27: 827.2 | BM27: 0 | BN27: 170.2354676 | BO27: 393.1210799 | BP27: 435.2411956 | BQ27: 449.2812342 | BR27: 372.2410226 | BS27: 0 | BT27: 0 | BU27: 0 | BV27: 0 | BW27: 0 | BX27: 0 | BY27: 0 | BZ27: 0 | CA27: 0 | CB27: 0 | CC27: 0 | CD27: 0 | CE27: 0 | CF27: 0 | CG27: 0 | CH27: 0 | CI27: 0 | CJ27: 0 | CK27: 0 | CL27: 0 | CM27: 0 | CN27: 0 | CO27: 0 | CP27: 0 | CQ27: 0 | CR27: 0 | CS27: 0 | CT27: 0 | CU27: 0 | CV27: 0 | CW27: 0 | CX27: 0 | CY27: 0 | CZ27: 0 | DA27: 0 | DB27: 0 | DC27: 0 | DD27: 0 | DE27: 0 | DF27: 0 | DG27: 0 | DH27: 0 | DI27: 0 | DJ27: 0 | DK27: 1 | DL27: 0 | DM27: =IF($K27<>1,IF(ISNUMBER(INDEX(Import.PLE,$K27,DM$16)),IF(INDEX(Import.PLE,$K27,DM$16)<=mediçao,BM27,0),0),PLE!$AA$28*BM27) -> 0 | DN27: =IF($K27<>1,IF(ISNUMBER(INDEX(Import.PLE,$K27,DN$16)),IF(INDEX(Import.PLE,$K27,DN$16)<=mediçao,BN27,0),0),PLE!$AA$28*BN27) -> 0 | DO27: =IF($K27<>1,IF(ISNUMBER(INDEX(Import.PLE,$K27,DO$16)),IF(INDEX(Import.PLE,$K27,DO$16)<=mediçao,BO27,0),0),PLE!$AA$28*BO27) -> 0 | DP27: =IF($K27<>1,IF(ISNUMBER(INDEX(Import.PLE,$K27,DP$16)),IF(INDEX(Import.PLE,$K27,DP$16)<=mediçao,BP27,0),0),PLE!$AA$28*BP27) -> 0 | DQ27: =IF($K27<>1,IF(ISNUMBER(INDEX(Import.PLE,$K27,DQ$16)),IF(INDEX(Import.PLE,$K27,DQ$16)<=mediçao,BQ27,0),0),PLE!$AA$28*BQ27) -> 0 | DR27: =IF($K27<>1,IF(ISNUMBER(INDEX(Import.PLE,$K27,DR$16)),IF(INDEX(Import.PLE,$K27,DR$16)<=mediçao,BR27,0),0),PLE!$AA$28*BR27) -> 0 | DS27: =IF($K27<>1,IF(ISNUMBER(INDEX(Import.PLE,$K27,DS$16)),IF(INDEX(Import.PLE,$K27,DS$16)<=mediçao,BS27,0),0),PLE!$AA$28*BS27) -> 0 | DT27: =IF($K27<>1,IF(ISNUMBER(INDEX(Import.PLE,$K27,DT$16)),IF(INDEX(Import.PLE,$K27,DT$16)<=mediçao,BT27,0),0),PLE!$AA$28*BT27) -> 0 | DU27: =IF($K27<>1,IF(ISNUMBER(INDEX(Import.PLE,$K27,DU$16)),IF(INDEX(Import.PLE,$K27,DU$16)<=mediçao,BU27,0),0),PLE!$AA$28*BU27) -> 0 | DV27: =IF($K27<>1,IF(ISNUMBER(INDEX(Import.PLE,$K27,DV$16)),IF(INDEX(Import.PLE,$K27,DV$16)<=mediçao,BV27,0),0),PLE!$AA$28*BV27) -> 0 | DW27: =IF($K27<>1,IF(ISNUMBER(INDEX(Import.PLE,$K27,DW$16)),IF(INDEX(Import.PLE,$K27,DW$16)<=mediçao,BW27,0),0),PLE!$AA$28*BW27) -> 0 | DX27: =IF($K27<>1,IF(ISNUMBER(INDEX(Import.PLE,$K27,DX$16)),IF(INDEX(Import.PLE,$K27,DX$16)<=mediçao,BX27,0),0),PLE!$AA$28*BX27) -> 0 | DY27: =IF($K27<>1,IF(ISNUMBER(INDEX(Import.PLE,$K27,DY$16)),IF(INDEX(Import.PLE,$K27,DY$16)<=mediçao,BY27,0),0),PLE!$AA$28*BY27) -> 0 | DZ27: =IF($K27<>1,IF(ISNUMBER(INDEX(Import.PLE,$K27,DZ$16)),IF(INDEX(Import.PLE,$K27,DZ$16)<=mediçao,BZ27,0),0),PLE!$AA$28*BZ27) -> 0 | EA27: =IF($K27<>1,IF(ISNUMBER(INDEX(Import.PLE,$K27,EA$16)),IF(INDEX(Import.PLE,$K27,EA$16)<=mediçao,CA27,0),0),PLE!$AA$28*CA27) -> 0 | EB27: =IF($K27<>1,IF(ISNUMBER(INDEX(Import.PLE,$K27,EB$16)),IF(INDEX(Import.PLE,$K27,EB$16)<=mediçao,CB27,0),0),PLE!$AA$28*CB27) -> 0 | EC27: =IF($K27<>1,IF(ISNUMBER(INDEX(Import.PLE,$K27,EC$16)),IF(INDEX(Import.PLE,$K27,EC$16)<=mediçao,CC27,0),0),PLE!$AA$28*CC27) -> 0 | ED27: =IF($K27<>1,IF(ISNUMBER(INDEX(Import.PLE,$K27,ED$16)),IF(INDEX(Import.PLE,$K27,ED$16)<=mediçao,CD27,0),0),PLE!$AA$28*CD27) -> 0 | EE27: =IF($K27<>1,IF(ISNUMBER(INDEX(Import.PLE,$K27,EE$16)),IF(INDEX(Import.PLE,$K27,EE$16)<=mediçao,CE27,0),0),PLE!$AA$28*CE27) -> 0 | EF27: =IF($K27<>1,IF(ISNUMBER(INDEX(Import.PLE,$K27,EF$16)),IF(INDEX(Import.PLE,$K27,EF$16)<=mediçao,CF27,0),0),PLE!$AA$28*CF27) -> 0 | EG27: =IF($K27<>1,IF(ISNUMBER(INDEX(Import.PLE,$K27,EG$16)),IF(INDEX(Import.PLE,$K27,EG$16)<=mediçao,CG27,0),0),PLE!$AA$28*CG27) -> 0 | EH27: =IF($K27<>1,IF(ISNUMBER(INDEX(Import.PLE,$K27,EH$16)),IF(INDEX(Import.PLE,$K27,EH$16)<=mediçao,CH27,0),0),PLE!$AA$28*CH27) -> 0 | EI27: =IF($K27<>1,IF(ISNUMBER(INDEX(Import.PLE,$K27,EI$16)),IF(INDEX(Import.PLE,$K27,EI$16)<=mediçao,CI27,0),0),PLE!$AA$28*CI27) -> 0 | EJ27: =IF($K27<>1,IF(ISNUMBER(INDEX(Import.PLE,$K27,EJ$16)),IF(INDEX(Import.PLE,$K27,EJ$16)<=mediçao,CJ27,0),0),PLE!$AA$28*CJ27) -> 0 | EK27: =IF($K27<>1,IF(ISNUMBER(INDEX(Import.PLE,$K27,EK$16)),IF(INDEX(Import.PLE,$K27,EK$16)<=mediçao,CK27,0),0),PLE!$AA$28*CK27) -> 0 | EL27: =IF($K27<>1,IF(ISNUMBER(INDEX(Import.PLE,$K27,EL$16)),IF(INDEX(Import.PLE,$K27,EL$16)<=mediçao,CL27,0),0),PLE!$AA$28*CL27) -> 0 | EM27: =IF($K27<>1,IF(ISNUMBER(INDEX(Import.PLE,$K27,EM$16)),IF(INDEX(Import.PLE,$K27,EM$16)<=mediçao,CM27,0),0),PLE!$AA$28*CM27) -> 0 | EN27: =IF($K27<>1,IF(ISNUMBER(INDEX(Import.PLE,$K27,EN$16)),IF(INDEX(Import.PLE,$K27,EN$16)<=mediçao,CN27,0),0),PLE!$AA$28*CN27) -> 0 | EO27: =IF($K27<>1,IF(ISNUMBER(INDEX(Import.PLE,$K27,EO$16)),IF(INDEX(Import.PLE,$K27,EO$16)<=mediçao,CO27,0),0),PLE!$AA$28*CO27) -> 0 | EP27: =IF($K27<>1,IF(ISNUMBER(INDEX(Import.PLE,$K27,EP$16)),IF(INDEX(Import.PLE,$K27,EP$16)<=mediçao,CP27,0),0),PLE!$AA$28*CP27) -> 0 | EQ27: =IF($K27<>1,IF(ISNUMBER(INDEX(Import.PLE,$K27,EQ$16)),IF(INDEX(Import.PLE,$K27,EQ$16)<=mediçao,CQ27,0),0),PLE!$AA$28*CQ27) -> 0 | ER27: =IF($K27<>1,IF(ISNUMBER(INDEX(Import.PLE,$K27,ER$16)),IF(INDEX(Import.PLE,$K27,ER$16)<=mediçao,CR27,0),0),PLE!$AA$28*CR27) -> 0 | ES27: =IF($K27<>1,IF(ISNUMBER(INDEX(Import.PLE,$K27,ES$16)),IF(INDEX(Import.PLE,$K27,ES$16)<=mediçao,CS27,0),0),PLE!$AA$28*CS27) -> 0 | ET27: =IF($K27<>1,IF(ISNUMBER(INDEX(Import.PLE,$K27,ET$16)),IF(INDEX(Import.PLE,$K27,ET$16)<=mediçao,CT27,0),0),PLE!$AA$28*CT27) -> 0 | EU27: =IF($K27<>1,IF(ISNUMBER(INDEX(Import.PLE,$K27,EU$16)),IF(INDEX(Import.PLE,$K27,EU$16)<=mediçao,CU27,0),0),PLE!$AA$28*CU27) -> 0 | EV27: =IF($K27<>1,IF(ISNUMBER(INDEX(Import.PLE,$K27,EV$16)),IF(INDEX(Import.PLE,$K27,EV$16)<=mediçao,CV27,0),0),PLE!$AA$28*CV27) -> 0 | EW27: =IF($K27<>1,IF(ISNUMBER(INDEX(Import.PLE,$K27,EW$16)),IF(INDEX(Import.PLE,$K27,EW$16)<=mediçao,CW27,0),0),PLE!$AA$28*CW27) -> 0 | EX27: =IF($K27<>1,IF(ISNUMBER(INDEX(Import.PLE,$K27,EX$16)),IF(INDEX(Import.PLE,$K27,EX$16)<=mediçao,CX27,0),0),PLE!$AA$28*CX27) -> 0 | EY27: =IF($K27<>1,IF(ISNUMBER(INDEX(Import.PLE,$K27,EY$16)),IF(INDEX(Import.PLE,$K27,EY$16)<=mediçao,CY27,0),0),PLE!$AA$28*CY27) -> 0 | EZ27: =IF($K27<>1,IF(ISNUMBER(INDEX(Import.PLE,$K27,EZ$16)),IF(INDEX(Import.PLE,$K27,EZ$16)<=mediçao,CZ27,0),0),PLE!$AA$28*CZ27) -> 0 | FA27: =IF($K27<>1,IF(ISNUMBER(INDEX(Import.PLE,$K27,FA$16)),IF(INDEX(Import.PLE,$K27,FA$16)<=mediçao,DA27,0),0),PLE!$AA$28*DA27) -> 0 | FB27: =IF($K27<>1,IF(ISNUMBER(INDEX(Import.PLE,$K27,FB$16)),IF(INDEX(Import.PLE,$K27,FB$16)<=mediçao,DB27,0),0),PLE!$AA$28*DB27) -> 0 | FC27: =IF($K27<>1,IF(ISNUMBER(INDEX(Import.PLE,$K27,FC$16)),IF(INDEX(Import.PLE,$K27,FC$16)<=mediçao,DC27,0),0),PLE!$AA$28*DC27) -> 0 | FD27: =IF($K27<>1,IF(ISNUMBER(INDEX(Import.PLE,$K27,FD$16)),IF(INDEX(Import.PLE,$K27,FD$16)<=mediçao,DD27,0),0),PLE!$AA$28*DD27) -> 0 | FE27: =IF($K27<>1,IF(ISNUMBER(INDEX(Import.PLE,$K27,FE$16)),IF(INDEX(Import.PLE,$K27,FE$16)<=mediçao,DE27,0),0),PLE!$AA$28*DE27) -> 0 | FF27: =IF($K27<>1,IF(ISNUMBER(INDEX(Import.PLE,$K27,FF$16)),IF(INDEX(Import.PLE,$K27,FF$16)<=mediçao,DF27,0),0),PLE!$AA$28*DF27) -> 0 | FG27: =IF($K27<>1,IF(ISNUMBER(INDEX(Import.PLE,$K27,FG$16)),IF(INDEX(Import.PLE,$K27,FG$16)<=mediçao,DG27,0),0),PLE!$AA$28*DG27) -> 0 | FH27: =IF($K27<>1,IF(ISNUMBER(INDEX(Import.PLE,$K27,FH$16)),IF(INDEX(Import.PLE,$K27,FH$16)<=mediçao,DH27,0),0),PLE!$AA$28*DH27) -> 0 | FI27: =IF($K27<>1,IF(ISNUMBER(INDEX(Import.PLE,$K27,FI$16)),IF(INDEX(Import.PLE,$K27,FI$16)<=mediçao,DI27,0),0),PLE!$AA$28*DI27) -> 0 | FJ27: =IF($K27<>1,IF(ISNUMBER(INDEX(Import.PLE,$K27,FJ$16)),IF(INDEX(Import.PLE,$K27,FJ$16)<=mediçao,DJ27,0),0),PLE!$AA$28*DJ27) -> 0
B28: 11 | C28: Serviço | D28: 1.4.2. | E28: REGULARIZAÇÃO E COMPACTAÇÃO DE SUBLEITO DE SOLO PREDOMINANTEMENTE ARGILOSO. AF_11/2019 | F28: M2 | G28: 4044.7 | H28: 1.8 | I28: 7280.46 | K28: =deactivatedados.form1 -> 5 | L28: 5-Subleito/Base/Imprimação | O28: 378.3 | P28: 873.6 | Q28: 967.2 | R28: 998.4 | S28: 827.2 | BM28: 0 | BN28: 680.94 | BO28: 1572.48 | BP28: 1740.96 | BQ28: 1797.12 | BR28: 1488.96 | BS28: 0 | BT28: 0 | BU28: 0 | BV28: 0 | BW28: 0 | BX28: 0 | BY28: 0 | BZ28: 0 | CA28: 0 | CB28: 0 | CC28: 0 | CD28: 0 | CE28: 0 | CF28: 0 | CG28: 0 | CH28: 0 | CI28: 0 | CJ28: 0 | CK28: 0 | CL28: 0 | CM28: 0 | CN28: 0 | CO28: 0 | CP28: 0 | CQ28: 0 | CR28: 0 | CS28: 0 | CT28: 0 | CU28: 0 | CV28: 0 | CW28: 0 | CX28: 0 | CY28: 0 | CZ28: 0 | DA28: 0 | DB28: 0 | DC28: 0 | DD28: 0 | DE28: 0 | DF28: 0 | DG28: 0 | DH28: 0 | DI28: 0 | DJ28: 0 | DK28: 1 | DL28: 0 | DM28: =IF($K28<>1,IF(ISNUMBER(INDEX(Import.PLE,$K28,DM$16)),IF(INDEX(Import.PLE,$K28,DM$16)<=mediçao,BM28,0),0),PLE!$AA$28*BM28) -> 0 | DN28: =IF($K28<>1,IF(ISNUMBER(INDEX(Import.PLE,$K28,DN$16)),IF(INDEX(Import.PLE,$K28,DN$16)<=mediçao,BN28,0),0),PLE!$AA$28*BN28) -> 0 | DO28: =IF($K28<>1,IF(ISNUMBER(INDEX(Import.PLE,$K28,DO$16)),IF(INDEX(Import.PLE,$K28,DO$16)<=mediçao,BO28,0),0),PLE!$AA$28*BO28) -> 0 | DP28: =IF($K28<>1,IF(ISNUMBER(INDEX(Import.PLE,$K28,DP$16)),IF(INDEX(Import.PLE,$K28,DP$16)<=mediçao,BP28,0),0),PLE!$AA$28*BP28) -> 0 | DQ28: =IF($K28<>1,IF(ISNUMBER(INDEX(Import.PLE,$K28,DQ$16)),IF(INDEX(Import.PLE,$K28,DQ$16)<=mediçao,BQ28,0),0),PLE!$AA$28*BQ28) -> 0 | DR28: =IF($K28<>1,IF(ISNUMBER(INDEX(Import.PLE,$K28,DR$16)),IF(INDEX(Import.PLE,$K28,DR$16)<=mediçao,BR28,0),0),PLE!$AA$28*BR28) -> 0 | DS28: =IF($K28<>1,IF(ISNUMBER(INDEX(Import.PLE,$K28,DS$16)),IF(INDEX(Import.PLE,$K28,DS$16)<=mediçao,BS28,0),0),PLE!$AA$28*BS28) -> 0 | DT28: =IF($K28<>1,IF(ISNUMBER(INDEX(Import.PLE,$K28,DT$16)),IF(INDEX(Import.PLE,$K28,DT$16)<=mediçao,BT28,0),0),PLE!$AA$28*BT28) -> 0 | DU28: =IF($K28<>1,IF(ISNUMBER(INDEX(Import.PLE,$K28,DU$16)),IF(INDEX(Import.PLE,$K28,DU$16)<=mediçao,BU28,0),0),PLE!$AA$28*BU28) -> 0 | DV28: =IF($K28<>1,IF(ISNUMBER(INDEX(Import.PLE,$K28,DV$16)),IF(INDEX(Import.PLE,$K28,DV$16)<=mediçao,BV28,0),0),PLE!$AA$28*BV28) -> 0 | DW28: =IF($K28<>1,IF(ISNUMBER(INDEX(Import.PLE,$K28,DW$16)),IF(INDEX(Import.PLE,$K28,DW$16)<=mediçao,BW28,0),0),PLE!$AA$28*BW28) -> 0 | DX28: =IF($K28<>1,IF(ISNUMBER(INDEX(Import.PLE,$K28,DX$16)),IF(INDEX(Import.PLE,$K28,DX$16)<=mediçao,BX28,0),0),PLE!$AA$28*BX28) -> 0 | DY28: =IF($K28<>1,IF(ISNUMBER(INDEX(Import.PLE,$K28,DY$16)),IF(INDEX(Import.PLE,$K28,DY$16)<=mediçao,BY28,0),0),PLE!$AA$28*BY28) -> 0 | DZ28: =IF($K28<>1,IF(ISNUMBER(INDEX(Import.PLE,$K28,DZ$16)),IF(INDEX(Import.PLE,$K28,DZ$16)<=mediçao,BZ28,0),0),PLE!$AA$28*BZ28) -> 0 | EA28: =IF($K28<>1,IF(ISNUMBER(INDEX(Import.PLE,$K28,EA$16)),IF(INDEX(Import.PLE,$K28,EA$16)<=mediçao,CA28,0),0),PLE!$AA$28*CA28) -> 0 | EB28: =IF($K28<>1,IF(ISNUMBER(INDEX(Import.PLE,$K28,EB$16)),IF(INDEX(Import.PLE,$K28,EB$16)<=mediçao,CB28,0),0),PLE!$AA$28*CB28) -> 0 | EC28: =IF($K28<>1,IF(ISNUMBER(INDEX(Import.PLE,$K28,EC$16)),IF(INDEX(Import.PLE,$K28,EC$16)<=mediçao,CC28,0),0),PLE!$AA$28*CC28) -> 0 | ED28: =IF($K28<>1,IF(ISNUMBER(INDEX(Import.PLE,$K28,ED$16)),IF(INDEX(Import.PLE,$K28,ED$16)<=mediçao,CD28,0),0),PLE!$AA$28*CD28) -> 0 | EE28: =IF($K28<>1,IF(ISNUMBER(INDEX(Import.PLE,$K28,EE$16)),IF(INDEX(Import.PLE,$K28,EE$16)<=mediçao,CE28,0),0),PLE!$AA$28*CE28) -> 0 | EF28: =IF($K28<>1,IF(ISNUMBER(INDEX(Import.PLE,$K28,EF$16)),IF(INDEX(Import.PLE,$K28,EF$16)<=mediçao,CF28,0),0),PLE!$AA$28*CF28) -> 0 | EG28: =IF($K28<>1,IF(ISNUMBER(INDEX(Import.PLE,$K28,EG$16)),IF(INDEX(Import.PLE,$K28,EG$16)<=mediçao,CG28,0),0),PLE!$AA$28*CG28) -> 0 | EH28: =IF($K28<>1,IF(ISNUMBER(INDEX(Import.PLE,$K28,EH$16)),IF(INDEX(Import.PLE,$K28,EH$16)<=mediçao,CH28,0),0),PLE!$AA$28*CH28) -> 0 | EI28: =IF($K28<>1,IF(ISNUMBER(INDEX(Import.PLE,$K28,EI$16)),IF(INDEX(Import.PLE,$K28,EI$16)<=mediçao,CI28,0),0),PLE!$AA$28*CI28) -> 0 | EJ28: =IF($K28<>1,IF(ISNUMBER(INDEX(Import.PLE,$K28,EJ$16)),IF(INDEX(Import.PLE,$K28,EJ$16)<=mediçao,CJ28,0),0),PLE!$AA$28*CJ28) -> 0 | EK28: =IF($K28<>1,IF(ISNUMBER(INDEX(Import.PLE,$K28,EK$16)),IF(INDEX(Import.PLE,$K28,EK$16)<=mediçao,CK28,0),0),PLE!$AA$28*CK28) -> 0 | EL28: =IF($K28<>1,IF(ISNUMBER(INDEX(Import.PLE,$K28,EL$16)),IF(INDEX(Import.PLE,$K28,EL$16)<=mediçao,CL28,0),0),PLE!$AA$28*CL28) -> 0 | EM28: =IF($K28<>1,IF(ISNUMBER(INDEX(Import.PLE,$K28,EM$16)),IF(INDEX(Import.PLE,$K28,EM$16)<=mediçao,CM28,0),0),PLE!$AA$28*CM28) -> 0 | EN28: =IF($K28<>1,IF(ISNUMBER(INDEX(Import.PLE,$K28,EN$16)),IF(INDEX(Import.PLE,$K28,EN$16)<=mediçao,CN28,0),0),PLE!$AA$28*CN28) -> 0 | EO28: =IF($K28<>1,IF(ISNUMBER(INDEX(Import.PLE,$K28,EO$16)),IF(INDEX(Import.PLE,$K28,EO$16)<=mediçao,CO28,0),0),PLE!$AA$28*CO28) -> 0 | EP28: =IF($K28<>1,IF(ISNUMBER(INDEX(Import.PLE,$K28,EP$16)),IF(INDEX(Import.PLE,$K28,EP$16)<=mediçao,CP28,0),0),PLE!$AA$28*CP28) -> 0 | EQ28: =IF($K28<>1,IF(ISNUMBER(INDEX(Import.PLE,$K28,EQ$16)),IF(INDEX(Import.PLE,$K28,EQ$16)<=mediçao,CQ28,0),0),PLE!$AA$28*CQ28) -> 0 | ER28: =IF($K28<>1,IF(ISNUMBER(INDEX(Import.PLE,$K28,ER$16)),IF(INDEX(Import.PLE,$K28,ER$16)<=mediçao,CR28,0),0),PLE!$AA$28*CR28) -> 0 | ES28: =IF($K28<>1,IF(ISNUMBER(INDEX(Import.PLE,$K28,ES$16)),IF(INDEX(Import.PLE,$K28,ES$16)<=mediçao,CS28,0),0),PLE!$AA$28*CS28) -> 0 | ET28: =IF($K28<>1,IF(ISNUMBER(INDEX(Import.PLE,$K28,ET$16)),IF(INDEX(Import.PLE,$K28,ET$16)<=mediçao,CT28,0),0),PLE!$AA$28*CT28) -> 0 | EU28: =IF($K28<>1,IF(ISNUMBER(INDEX(Import.PLE,$K28,EU$16)),IF(INDEX(Import.PLE,$K28,EU$16)<=mediçao,CU28,0),0),PLE!$AA$28*CU28) -> 0 | EV28: =IF($K28<>1,IF(ISNUMBER(INDEX(Import.PLE,$K28,EV$16)),IF(INDEX(Import.PLE,$K28,EV$16)<=mediçao,CV28,0),0),PLE!$AA$28*CV28) -> 0 | EW28: =IF($K28<>1,IF(ISNUMBER(INDEX(Import.PLE,$K28,EW$16)),IF(INDEX(Import.PLE,$K28,EW$16)<=mediçao,CW28,0),0),PLE!$AA$28*CW28) -> 0 | EX28: =IF($K28<>1,IF(ISNUMBER(INDEX(Import.PLE,$K28,EX$16)),IF(INDEX(Import.PLE,$K28,EX$16)<=mediçao,CX28,0),0),PLE!$AA$28*CX28) -> 0 | EY28: =IF($K28<>1,IF(ISNUMBER(INDEX(Import.PLE,$K28,EY$16)),IF(INDEX(Import.PLE,$K28,EY$16)<=mediçao,CY28,0),0),PLE!$AA$28*CY28) -> 0 | EZ28: =IF($K28<>1,IF(ISNUMBER(INDEX(Import.PLE,$K28,EZ$16)),IF(INDEX(Import.PLE,$K28,EZ$16)<=mediçao,CZ28,0),0),PLE!$AA$28*CZ28) -> 0 | FA28: =IF($K28<>1,IF(ISNUMBER(INDEX(Import.PLE,$K28,FA$16)),IF(INDEX(Import.PLE,$K28,FA$16)<=mediçao,DA28,0),0),PLE!$AA$28*DA28) -> 0 | FB28: =IF($K28<>1,IF(ISNUMBER(INDEX(Import.PLE,$K28,FB$16)),IF(INDEX(Import.PLE,$K28,FB$16)<=mediçao,DB28,0),0),PLE!$AA$28*DB28) -> 0 | FC28: =IF($K28<>1,IF(ISNUMBER(INDEX(Import.PLE,$K28,FC$16)),IF(INDEX(Import.PLE,$K28,FC$16)<=mediçao,DC28,0),0),PLE!$AA$28*DC28) -> 0 | FD28: =IF($K28<>1,IF(ISNUMBER(INDEX(Import.PLE,$K28,FD$16)),IF(INDEX(Import.PLE,$K28,FD$16)<=mediçao,DD28,0),0),PLE!$AA$28*DD28) -> 0 | FE28: =IF($K28<>1,IF(ISNUMBER(INDEX(Import.PLE,$K28,FE$16)),IF(INDEX(Import.PLE,$K28,FE$16)<=mediçao,DE28,0),0),PLE!$AA$28*DE28) -> 0 | FF28: =IF($K28<>1,IF(ISNUMBER(INDEX(Import.PLE,$K28,FF$16)),IF(INDEX(Import.PLE,$K28,FF$16)<=mediçao,DF28,0),0),PLE!$AA$28*DF28) -> 0 | FG28: =IF($K28<>1,IF(ISNUMBER(INDEX(Import.PLE,$K28,FG$16)),IF(INDEX(Import.PLE,$K28,FG$16)<=mediçao,DG28,0),0),PLE!$AA$28*DG28) -> 0 | FH28: =IF($K28<>1,IF(ISNUMBER(INDEX(Import.PLE,$K28,FH$16)),IF(INDEX(Import.PLE,$K28,FH$16)<=mediçao,DH28,0),0),PLE!$AA$28*DH28) -> 0 | FI28: =IF($K28<>1,IF(ISNUMBER(INDEX(Import.PLE,$K28,FI$16)),IF(INDEX(Import.PLE,$K28,FI$16)<=mediçao,DI28,0),0),PLE!$AA$28*DI28) -> 0 | FJ28: =IF($K28<>1,IF(ISNUMBER(INDEX(Import.PLE,$K28,FJ$16)),IF(INDEX(Import.PLE,$K28,FJ$16)<=mediçao,DJ28,0),0),PLE!$AA$28*DJ28) -> 0
B29: 12 | C29: Serviço | D29: 1.4.3. | E29: ESCAVACAO E CARGA MATERIAL 1A CATEGORIA, UTILIZANDO TRATOR DE ESTEIRAS DE 110 A 160HP COM LAMINA, PESO OPERACIONAL * 13T E PA CARREGADEIRA COM 170 HP. | F29: M3 | G29: 758.38 | H29: 3.369999209 | I29: 2555.74 | K29: =deactivatedados.form1 -> 5 | L29: 5-Subleito/Base/Imprimação | O29: 70.93 | P29: 163.8 | Q29: 181.35 | R29: 187.2 | S29: 155.1 | BM29: 0 | BN29: 239.0340439 | BO29: 552.0058704 | BP29: 611.1493565 | BQ29: 630.8638519 | BR29: 522.6868773 | BS29: 0 | BT29: 0 | BU29: 0 | BV29: 0 | BW29: 0 | BX29: 0 | BY29: 0 | BZ29: 0 | CA29: 0 | CB29: 0 | CC29: 0 | CD29: 0 | CE29: 0 | CF29: 0 | CG29: 0 | CH29: 0 | CI29: 0 | CJ29: 0 | CK29: 0 | CL29: 0 | CM29: 0 | CN29: 0 | CO29: 0 | CP29: 0 | CQ29: 0 | CR29: 0 | CS29: 0 | CT29: 0 | CU29: 0 | CV29: 0 | CW29: 0 | CX29: 0 | CY29: 0 | CZ29: 0 | DA29: 0 | DB29: 0 | DC29: 0 | DD29: 0 | DE29: 0 | DF29: 0 | DG29: 0 | DH29: 0 | DI29: 0 | DJ29: 0 | DK29: 1 | DL29: 0 | DM29: =IF($K29<>1,IF(ISNUMBER(INDEX(Import.PLE,$K29,DM$16)),IF(INDEX(Import.PLE,$K29,DM$16)<=mediçao,BM29,0),0),PLE!$AA$28*BM29) -> 0 | DN29: =IF($K29<>1,IF(ISNUMBER(INDEX(Import.PLE,$K29,DN$16)),IF(INDEX(Import.PLE,$K29,DN$16)<=mediçao,BN29,0),0),PLE!$AA$28*BN29) -> 0 | DO29: =IF($K29<>1,IF(ISNUMBER(INDEX(Import.PLE,$K29,DO$16)),IF(INDEX(Import.PLE,$K29,DO$16)<=mediçao,BO29,0),0),PLE!$AA$28*BO29) -> 0 | DP29: =IF($K29<>1,IF(ISNUMBER(INDEX(Import.PLE,$K29,DP$16)),IF(INDEX(Import.PLE,$K29,DP$16)<=mediçao,BP29,0),0),PLE!$AA$28*BP29) -> 0 | DQ29: =IF($K29<>1,IF(ISNUMBER(INDEX(Import.PLE,$K29,DQ$16)),IF(INDEX(Import.PLE,$K29,DQ$16)<=mediçao,BQ29,0),0),PLE!$AA$28*BQ29) -> 0 | DR29: =IF($K29<>1,IF(ISNUMBER(INDEX(Import.PLE,$K29,DR$16)),IF(INDEX(Import.PLE,$K29,DR$16)<=mediçao,BR29,0),0),PLE!$AA$28*BR29) -> 0 | DS29: =IF($K29<>1,IF(ISNUMBER(INDEX(Import.PLE,$K29,DS$16)),IF(INDEX(Import.PLE,$K29,DS$16)<=mediçao,BS29,0),0),PLE!$AA$28*BS29) -> 0 | DT29: =IF($K29<>1,IF(ISNUMBER(INDEX(Import.PLE,$K29,DT$16)),IF(INDEX(Import.PLE,$K29,DT$16)<=mediçao,BT29,0),0),PLE!$AA$28*BT29) -> 0 | DU29: =IF($K29<>1,IF(ISNUMBER(INDEX(Import.PLE,$K29,DU$16)),IF(INDEX(Import.PLE,$K29,DU$16)<=mediçao,BU29,0),0),PLE!$AA$28*BU29) -> 0 | DV29: =IF($K29<>1,IF(ISNUMBER(INDEX(Import.PLE,$K29,DV$16)),IF(INDEX(Import.PLE,$K29,DV$16)<=mediçao,BV29,0),0),PLE!$AA$28*BV29) -> 0 | DW29: =IF($K29<>1,IF(ISNUMBER(INDEX(Import.PLE,$K29,DW$16)),IF(INDEX(Import.PLE,$K29,DW$16)<=mediçao,BW29,0),0),PLE!$AA$28*BW29) -> 0 | DX29: =IF($K29<>1,IF(ISNUMBER(INDEX(Import.PLE,$K29,DX$16)),IF(INDEX(Import.PLE,$K29,DX$16)<=mediçao,BX29,0),0),PLE!$AA$28*BX29) -> 0 | DY29: =IF($K29<>1,IF(ISNUMBER(INDEX(Import.PLE,$K29,DY$16)),IF(INDEX(Import.PLE,$K29,DY$16)<=mediçao,BY29,0),0),PLE!$AA$28*BY29) -> 0 | DZ29: =IF($K29<>1,IF(ISNUMBER(INDEX(Import.PLE,$K29,DZ$16)),IF(INDEX(Import.PLE,$K29,DZ$16)<=mediçao,BZ29,0),0),PLE!$AA$28*BZ29) -> 0 | EA29: =IF($K29<>1,IF(ISNUMBER(INDEX(Import.PLE,$K29,EA$16)),IF(INDEX(Import.PLE,$K29,EA$16)<=mediçao,CA29,0),0),PLE!$AA$28*CA29) -> 0 | EB29: =IF($K29<>1,IF(ISNUMBER(INDEX(Import.PLE,$K29,EB$16)),IF(INDEX(Import.PLE,$K29,EB$16)<=mediçao,CB29,0),0),PLE!$AA$28*CB29) -> 0 | EC29: =IF($K29<>1,IF(ISNUMBER(INDEX(Import.PLE,$K29,EC$16)),IF(INDEX(Import.PLE,$K29,EC$16)<=mediçao,CC29,0),0),PLE!$AA$28*CC29) -> 0 | ED29: =IF($K29<>1,IF(ISNUMBER(INDEX(Import.PLE,$K29,ED$16)),IF(INDEX(Import.PLE,$K29,ED$16)<=mediçao,CD29,0),0),PLE!$AA$28*CD29) -> 0 | EE29: =IF($K29<>1,IF(ISNUMBER(INDEX(Import.PLE,$K29,EE$16)),IF(INDEX(Import.PLE,$K29,EE$16)<=mediçao,CE29,0),0),PLE!$AA$28*CE29) -> 0 | EF29: =IF($K29<>1,IF(ISNUMBER(INDEX(Import.PLE,$K29,EF$16)),IF(INDEX(Import.PLE,$K29,EF$16)<=mediçao,CF29,0),0),PLE!$AA$28*CF29) -> 0 | EG29: =IF($K29<>1,IF(ISNUMBER(INDEX(Import.PLE,$K29,EG$16)),IF(INDEX(Import.PLE,$K29,EG$16)<=mediçao,CG29,0),0),PLE!$AA$28*CG29) -> 0 | EH29: =IF($K29<>1,IF(ISNUMBER(INDEX(Import.PLE,$K29,EH$16)),IF(INDEX(Import.PLE,$K29,EH$16)<=mediçao,CH29,0),0),PLE!$AA$28*CH29) -> 0 | EI29: =IF($K29<>1,IF(ISNUMBER(INDEX(Import.PLE,$K29,EI$16)),IF(INDEX(Import.PLE,$K29,EI$16)<=mediçao,CI29,0),0),PLE!$AA$28*CI29) -> 0 | EJ29: =IF($K29<>1,IF(ISNUMBER(INDEX(Import.PLE,$K29,EJ$16)),IF(INDEX(Import.PLE,$K29,EJ$16)<=mediçao,CJ29,0),0),PLE!$AA$28*CJ29) -> 0 | EK29: =IF($K29<>1,IF(ISNUMBER(INDEX(Import.PLE,$K29,EK$16)),IF(INDEX(Import.PLE,$K29,EK$16)<=mediçao,CK29,0),0),PLE!$AA$28*CK29) -> 0 | EL29: =IF($K29<>1,IF(ISNUMBER(INDEX(Import.PLE,$K29,EL$16)),IF(INDEX(Import.PLE,$K29,EL$16)<=mediçao,CL29,0),0),PLE!$AA$28*CL29) -> 0 | EM29: =IF($K29<>1,IF(ISNUMBER(INDEX(Import.PLE,$K29,EM$16)),IF(INDEX(Import.PLE,$K29,EM$16)<=mediçao,CM29,0),0),PLE!$AA$28*CM29) -> 0 | EN29: =IF($K29<>1,IF(ISNUMBER(INDEX(Import.PLE,$K29,EN$16)),IF(INDEX(Import.PLE,$K29,EN$16)<=mediçao,CN29,0),0),PLE!$AA$28*CN29) -> 0 | EO29: =IF($K29<>1,IF(ISNUMBER(INDEX(Import.PLE,$K29,EO$16)),IF(INDEX(Import.PLE,$K29,EO$16)<=mediçao,CO29,0),0),PLE!$AA$28*CO29) -> 0 | EP29: =IF($K29<>1,IF(ISNUMBER(INDEX(Import.PLE,$K29,EP$16)),IF(INDEX(Import.PLE,$K29,EP$16)<=mediçao,CP29,0),0),PLE!$AA$28*CP29) -> 0 | EQ29: =IF($K29<>1,IF(ISNUMBER(INDEX(Import.PLE,$K29,EQ$16)),IF(INDEX(Import.PLE,$K29,EQ$16)<=mediçao,CQ29,0),0),PLE!$AA$28*CQ29) -> 0 | ER29: =IF($K29<>1,IF(ISNUMBER(INDEX(Import.PLE,$K29,ER$16)),IF(INDEX(Import.PLE,$K29,ER$16)<=mediçao,CR29,0),0),PLE!$AA$28*CR29) -> 0 | ES29: =IF($K29<>1,IF(ISNUMBER(INDEX(Import.PLE,$K29,ES$16)),IF(INDEX(Import.PLE,$K29,ES$16)<=mediçao,CS29,0),0),PLE!$AA$28*CS29) -> 0 | ET29: =IF($K29<>1,IF(ISNUMBER(INDEX(Import.PLE,$K29,ET$16)),IF(INDEX(Import.PLE,$K29,ET$16)<=mediçao,CT29,0),0),PLE!$AA$28*CT29) -> 0 | EU29: =IF($K29<>1,IF(ISNUMBER(INDEX(Import.PLE,$K29,EU$16)),IF(INDEX(Import.PLE,$K29,EU$16)<=mediçao,CU29,0),0),PLE!$AA$28*CU29) -> 0 | EV29: =IF($K29<>1,IF(ISNUMBER(INDEX(Import.PLE,$K29,EV$16)),IF(INDEX(Import.PLE,$K29,EV$16)<=mediçao,CV29,0),0),PLE!$AA$28*CV29) -> 0 | EW29: =IF($K29<>1,IF(ISNUMBER(INDEX(Import.PLE,$K29,EW$16)),IF(INDEX(Import.PLE,$K29,EW$16)<=mediçao,CW29,0),0),PLE!$AA$28*CW29) -> 0 | EX29: =IF($K29<>1,IF(ISNUMBER(INDEX(Import.PLE,$K29,EX$16)),IF(INDEX(Import.PLE,$K29,EX$16)<=mediçao,CX29,0),0),PLE!$AA$28*CX29) -> 0 | EY29: =IF($K29<>1,IF(ISNUMBER(INDEX(Import.PLE,$K29,EY$16)),IF(INDEX(Import.PLE,$K29,EY$16)<=mediçao,CY29,0),0),PLE!$AA$28*CY29) -> 0 | EZ29: =IF($K29<>1,IF(ISNUMBER(INDEX(Import.PLE,$K29,EZ$16)),IF(INDEX(Import.PLE,$K29,EZ$16)<=mediçao,CZ29,0),0),PLE!$AA$28*CZ29) -> 0 | FA29: =IF($K29<>1,IF(ISNUMBER(INDEX(Import.PLE,$K29,FA$16)),IF(INDEX(Import.PLE,$K29,FA$16)<=mediçao,DA29,0),0),PLE!$AA$28*DA29) -> 0 | FB29: =IF($K29<>1,IF(ISNUMBER(INDEX(Import.PLE,$K29,FB$16)),IF(INDEX(Import.PLE,$K29,FB$16)<=mediçao,DB29,0),0),PLE!$AA$28*DB29) -> 0 | FC29: =IF($K29<>1,IF(ISNUMBER(INDEX(Import.PLE,$K29,FC$16)),IF(INDEX(Import.PLE,$K29,FC$16)<=mediçao,DC29,0),0),PLE!$AA$28*DC29) -> 0 | FD29: =IF($K29<>1,IF(ISNUMBER(INDEX(Import.PLE,$K29,FD$16)),IF(INDEX(Import.PLE,$K29,FD$16)<=mediçao,DD29,0),0),PLE!$AA$28*DD29) -> 0 | FE29: =IF($K29<>1,IF(ISNUMBER(INDEX(Import.PLE,$K29,FE$16)),IF(INDEX(Import.PLE,$K29,FE$16)<=mediçao,DE29,0),0),PLE!$AA$28*DE29) -> 0 | FF29: =IF($K29<>1,IF(ISNUMBER(INDEX(Import.PLE,$K29,FF$16)),IF(INDEX(Import.PLE,$K29,FF$16)<=mediçao,DF29,0),0),PLE!$AA$28*DF29) -> 0 | FG29: =IF($K29<>1,IF(ISNUMBER(INDEX(Import.PLE,$K29,FG$16)),IF(INDEX(Import.PLE,$K29,FG$16)<=mediçao,DG29,0),0),PLE!$AA$28*DG29) -> 0 | FH29: =IF($K29<>1,IF(ISNUMBER(INDEX(Import.PLE,$K29,FH$16)),IF(INDEX(Import.PLE,$K29,FH$16)<=mediçao,DH29,0),0),PLE!$AA$28*DH29) -> 0 | FI29: =IF($K29<>1,IF(ISNUMBER(INDEX(Import.PLE,$K29,FI$16)),IF(INDEX(Import.PLE,$K29,FI$16)<=mediçao,DI29,0),0),PLE!$AA$28*DI29) -> 0 | FJ29: =IF($K29<>1,IF(ISNUMBER(INDEX(Import.PLE,$K29,FJ$16)),IF(INDEX(Import.PLE,$K29,FJ$16)<=mediçao,DJ29,0),0),PLE!$AA$28*DJ29) -> 0
B30: 13 | C30: Serviço | D30: 1.4.4. | E30: TRANSPORTE COM CAMINHÃO BASCULANTE DE 10 M³, EM VIA URBANA EM REVESTIMENTO PRIMÁRIO (UNIDADE: M3XKM). AF_07/2020 | F30: M3XKM | G30: 6067.04 | H30: 1.779999802 | I30: 10799.33 | K30: =deactivatedados.form1 -> 5 | L30: 5-Subleito/Base/Imprimação | O30: 567.44 | P30: 1310.4 | Q30: 1450.8 | R30: 1497.6 | S30: 1240.8 | BM30: 0 | BN30: 1010.043088 | BO30: 2332.511741 | BP30: 2582.423713 | BQ30: 2665.727704 | BR30: 2208.623755 | BS30: 0 | BT30: 0 | BU30: 0 | BV30: 0 | BW30: 0 | BX30: 0 | BY30: 0 | BZ30: 0 | CA30: 0 | CB30: 0 | CC30: 0 | CD30: 0 | CE30: 0 | CF30: 0 | CG30: 0 | CH30: 0 | CI30: 0 | CJ30: 0 | CK30: 0 | CL30: 0 | CM30: 0 | CN30: 0 | CO30: 0 | CP30: 0 | CQ30: 0 | CR30: 0 | CS30: 0 | CT30: 0 | CU30: 0 | CV30: 0 | CW30: 0 | CX30: 0 | CY30: 0 | CZ30: 0 | DA30: 0 | DB30: 0 | DC30: 0 | DD30: 0 | DE30: 0 | DF30: 0 | DG30: 0 | DH30: 0 | DI30: 0 | DJ30: 0 | DK30: 1 | DL30: 0 | DM30: =IF($K30<>1,IF(ISNUMBER(INDEX(Import.PLE,$K30,DM$16)),IF(INDEX(Import.PLE,$K30,DM$16)<=mediçao,BM30,0),0),PLE!$AA$28*BM30) -> 0 | DN30: =IF($K30<>1,IF(ISNUMBER(INDEX(Import.PLE,$K30,DN$16)),IF(INDEX(Import.PLE,$K30,DN$16)<=mediçao,BN30,0),0),PLE!$AA$28*BN30) -> 0 | DO30: =IF($K30<>1,IF(ISNUMBER(INDEX(Import.PLE,$K30,DO$16)),IF(INDEX(Import.PLE,$K30,DO$16)<=mediçao,BO30,0),0),PLE!$AA$28*BO30) -> 0 | DP30: =IF($K30<>1,IF(ISNUMBER(INDEX(Import.PLE,$K30,DP$16)),IF(INDEX(Import.PLE,$K30,DP$16)<=mediçao,BP30,0),0),PLE!$AA$28*BP30) -> 0 | DQ30: =IF($K30<>1,IF(ISNUMBER(INDEX(Import.PLE,$K30,DQ$16)),IF(INDEX(Import.PLE,$K30,DQ$16)<=mediçao,BQ30,0),0),PLE!$AA$28*BQ30) -> 0 | DR30: =IF($K30<>1,IF(ISNUMBER(INDEX(Import.PLE,$K30,DR$16)),IF(INDEX(Import.PLE,$K30,DR$16)<=mediçao,BR30,0),0),PLE!$AA$28*BR30) -> 0 | DS30: =IF($K30<>1,IF(ISNUMBER(INDEX(Import.PLE,$K30,DS$16)),IF(INDEX(Import.PLE,$K30,DS$16)<=mediçao,BS30,0),0),PLE!$AA$28*BS30) -> 0 | DT30: =IF($K30<>1,IF(ISNUMBER(INDEX(Import.PLE,$K30,DT$16)),IF(INDEX(Import.PLE,$K30,DT$16)<=mediçao,BT30,0),0),PLE!$AA$28*BT30) -> 0 | DU30: =IF($K30<>1,IF(ISNUMBER(INDEX(Import.PLE,$K30,DU$16)),IF(INDEX(Import.PLE,$K30,DU$16)<=mediçao,BU30,0),0),PLE!$AA$28*BU30) -> 0 | DV30: =IF($K30<>1,IF(ISNUMBER(INDEX(Import.PLE,$K30,DV$16)),IF(INDEX(Import.PLE,$K30,DV$16)<=mediçao,BV30,0),0),PLE!$AA$28*BV30) -> 0 | DW30: =IF($K30<>1,IF(ISNUMBER(INDEX(Import.PLE,$K30,DW$16)),IF(INDEX(Import.PLE,$K30,DW$16)<=mediçao,BW30,0),0),PLE!$AA$28*BW30) -> 0 | DX30: =IF($K30<>1,IF(ISNUMBER(INDEX(Import.PLE,$K30,DX$16)),IF(INDEX(Import.PLE,$K30,DX$16)<=mediçao,BX30,0),0),PLE!$AA$28*BX30) -> 0 | DY30: =IF($K30<>1,IF(ISNUMBER(INDEX(Import.PLE,$K30,DY$16)),IF(INDEX(Import.PLE,$K30,DY$16)<=mediçao,BY30,0),0),PLE!$AA$28*BY30) -> 0 | DZ30: =IF($K30<>1,IF(ISNUMBER(INDEX(Import.PLE,$K30,DZ$16)),IF(INDEX(Import.PLE,$K30,DZ$16)<=mediçao,BZ30,0),0),PLE!$AA$28*BZ30) -> 0 | EA30: =IF($K30<>1,IF(ISNUMBER(INDEX(Import.PLE,$K30,EA$16)),IF(INDEX(Import.PLE,$K30,EA$16)<=mediçao,CA30,0),0),PLE!$AA$28*CA30) -> 0 | EB30: =IF($K30<>1,IF(ISNUMBER(INDEX(Import.PLE,$K30,EB$16)),IF(INDEX(Import.PLE,$K30,EB$16)<=mediçao,CB30,0),0),PLE!$AA$28*CB30) -> 0 | EC30: =IF($K30<>1,IF(ISNUMBER(INDEX(Import.PLE,$K30,EC$16)),IF(INDEX(Import.PLE,$K30,EC$16)<=mediçao,CC30,0),0),PLE!$AA$28*CC30) -> 0 | ED30: =IF($K30<>1,IF(ISNUMBER(INDEX(Import.PLE,$K30,ED$16)),IF(INDEX(Import.PLE,$K30,ED$16)<=mediçao,CD30,0),0),PLE!$AA$28*CD30) -> 0 | EE30: =IF($K30<>1,IF(ISNUMBER(INDEX(Import.PLE,$K30,EE$16)),IF(INDEX(Import.PLE,$K30,EE$16)<=mediçao,CE30,0),0),PLE!$AA$28*CE30) -> 0 | EF30: =IF($K30<>1,IF(ISNUMBER(INDEX(Import.PLE,$K30,EF$16)),IF(INDEX(Import.PLE,$K30,EF$16)<=mediçao,CF30,0),0),PLE!$AA$28*CF30) -> 0 | EG30: =IF($K30<>1,IF(ISNUMBER(INDEX(Import.PLE,$K30,EG$16)),IF(INDEX(Import.PLE,$K30,EG$16)<=mediçao,CG30,0),0),PLE!$AA$28*CG30) -> 0 | EH30: =IF($K30<>1,IF(ISNUMBER(INDEX(Import.PLE,$K30,EH$16)),IF(INDEX(Import.PLE,$K30,EH$16)<=mediçao,CH30,0),0),PLE!$AA$28*CH30) -> 0 | EI30: =IF($K30<>1,IF(ISNUMBER(INDEX(Import.PLE,$K30,EI$16)),IF(INDEX(Import.PLE,$K30,EI$16)<=mediçao,CI30,0),0),PLE!$AA$28*CI30) -> 0 | EJ30: =IF($K30<>1,IF(ISNUMBER(INDEX(Import.PLE,$K30,EJ$16)),IF(INDEX(Import.PLE,$K30,EJ$16)<=mediçao,CJ30,0),0),PLE!$AA$28*CJ30) -> 0 | EK30: =IF($K30<>1,IF(ISNUMBER(INDEX(Import.PLE,$K30,EK$16)),IF(INDEX(Import.PLE,$K30,EK$16)<=mediçao,CK30,0),0),PLE!$AA$28*CK30) -> 0 | EL30: =IF($K30<>1,IF(ISNUMBER(INDEX(Import.PLE,$K30,EL$16)),IF(INDEX(Import.PLE,$K30,EL$16)<=mediçao,CL30,0),0),PLE!$AA$28*CL30) -> 0 | EM30: =IF($K30<>1,IF(ISNUMBER(INDEX(Import.PLE,$K30,EM$16)),IF(INDEX(Import.PLE,$K30,EM$16)<=mediçao,CM30,0),0),PLE!$AA$28*CM30) -> 0 | EN30: =IF($K30<>1,IF(ISNUMBER(INDEX(Import.PLE,$K30,EN$16)),IF(INDEX(Import.PLE,$K30,EN$16)<=mediçao,CN30,0),0),PLE!$AA$28*CN30) -> 0 | EO30: =IF($K30<>1,IF(ISNUMBER(INDEX(Import.PLE,$K30,EO$16)),IF(INDEX(Import.PLE,$K30,EO$16)<=mediçao,CO30,0),0),PLE!$AA$28*CO30) -> 0 | EP30: =IF($K30<>1,IF(ISNUMBER(INDEX(Import.PLE,$K30,EP$16)),IF(INDEX(Import.PLE,$K30,EP$16)<=mediçao,CP30,0),0),PLE!$AA$28*CP30) -> 0 | EQ30: =IF($K30<>1,IF(ISNUMBER(INDEX(Import.PLE,$K30,EQ$16)),IF(INDEX(Import.PLE,$K30,EQ$16)<=mediçao,CQ30,0),0),PLE!$AA$28*CQ30) -> 0 | ER30: =IF($K30<>1,IF(ISNUMBER(INDEX(Import.PLE,$K30,ER$16)),IF(INDEX(Import.PLE,$K30,ER$16)<=mediçao,CR30,0),0),PLE!$AA$28*CR30) -> 0 | ES30: =IF($K30<>1,IF(ISNUMBER(INDEX(Import.PLE,$K30,ES$16)),IF(INDEX(Import.PLE,$K30,ES$16)<=mediçao,CS30,0),0),PLE!$AA$28*CS30) -> 0 | ET30: =IF($K30<>1,IF(ISNUMBER(INDEX(Import.PLE,$K30,ET$16)),IF(INDEX(Import.PLE,$K30,ET$16)<=mediçao,CT30,0),0),PLE!$AA$28*CT30) -> 0 | EU30: =IF($K30<>1,IF(ISNUMBER(INDEX(Import.PLE,$K30,EU$16)),IF(INDEX(Import.PLE,$K30,EU$16)<=mediçao,CU30,0),0),PLE!$AA$28*CU30) -> 0 | EV30: =IF($K30<>1,IF(ISNUMBER(INDEX(Import.PLE,$K30,EV$16)),IF(INDEX(Import.PLE,$K30,EV$16)<=mediçao,CV30,0),0),PLE!$AA$28*CV30) -> 0 | EW30: =IF($K30<>1,IF(ISNUMBER(INDEX(Import.PLE,$K30,EW$16)),IF(INDEX(Import.PLE,$K30,EW$16)<=mediçao,CW30,0),0),PLE!$AA$28*CW30) -> 0 | EX30: =IF($K30<>1,IF(ISNUMBER(INDEX(Import.PLE,$K30,EX$16)),IF(INDEX(Import.PLE,$K30,EX$16)<=mediçao,CX30,0),0),PLE!$AA$28*CX30) -> 0 | EY30: =IF($K30<>1,IF(ISNUMBER(INDEX(Import.PLE,$K30,EY$16)),IF(INDEX(Import.PLE,$K30,EY$16)<=mediçao,CY30,0),0),PLE!$AA$28*CY30) -> 0 | EZ30: =IF($K30<>1,IF(ISNUMBER(INDEX(Import.PLE,$K30,EZ$16)),IF(INDEX(Import.PLE,$K30,EZ$16)<=mediçao,CZ30,0),0),PLE!$AA$28*CZ30) -> 0 | FA30: =IF($K30<>1,IF(ISNUMBER(INDEX(Import.PLE,$K30,FA$16)),IF(INDEX(Import.PLE,$K30,FA$16)<=mediçao,DA30,0),0),PLE!$AA$28*DA30) -> 0 | FB30: =IF($K30<>1,IF(ISNUMBER(INDEX(Import.PLE,$K30,FB$16)),IF(INDEX(Import.PLE,$K30,FB$16)<=mediçao,DB30,0),0),PLE!$AA$28*DB30) -> 0 | FC30: =IF($K30<>1,IF(ISNUMBER(INDEX(Import.PLE,$K30,FC$16)),IF(INDEX(Import.PLE,$K30,FC$16)<=mediçao,DC30,0),0),PLE!$AA$28*DC30) -> 0 | FD30: =IF($K30<>1,IF(ISNUMBER(INDEX(Import.PLE,$K30,FD$16)),IF(INDEX(Import.PLE,$K30,FD$16)<=mediçao,DD30,0),0),PLE!$AA$28*DD30) -> 0 | FE30: =IF($K30<>1,IF(ISNUMBER(INDEX(Import.PLE,$K30,FE$16)),IF(INDEX(Import.PLE,$K30,FE$16)<=mediçao,DE30,0),0),PLE!$AA$28*DE30) -> 0 | FF30: =IF($K30<>1,IF(ISNUMBER(INDEX(Import.PLE,$K30,FF$16)),IF(INDEX(Import.PLE,$K30,FF$16)<=mediçao,DF30,0),0),PLE!$AA$28*DF30) -> 0 | FG30: =IF($K30<>1,IF(ISNUMBER(INDEX(Import.PLE,$K30,FG$16)),IF(INDEX(Import.PLE,$K30,FG$16)<=mediçao,DG30,0),0),PLE!$AA$28*DG30) -> 0 | FH30: =IF($K30<>1,IF(ISNUMBER(INDEX(Import.PLE,$K30,FH$16)),IF(INDEX(Import.PLE,$K30,FH$16)<=mediçao,DH30,0),0),PLE!$AA$28*DH30) -> 0 | FI30: =IF($K30<>1,IF(ISNUMBER(INDEX(Import.PLE,$K30,FI$16)),IF(INDEX(Import.PLE,$K30,FI$16)<=mediçao,DI30,0),0),PLE!$AA$28*DI30) -> 0 | FJ30: =IF($K30<>1,IF(ISNUMBER(INDEX(Import.PLE,$K30,FJ$16)),IF(INDEX(Import.PLE,$K30,FJ$16)<=mediçao,DJ30,0),0),PLE!$AA$28*DJ30) -> 0
B31: 14 | C31: Serviço | D31: 1.4.5. | E31: EXECUÇÃO E COMPACTAÇÃO DE BASE E OU SUB BASE COM SOLO ESTABILIZADO GRANULO METRICAMENTE - EXCLUSIVE ESCAVAÇÃO, CARGA E TRANSPORTE E SOLO | F31: M3 | G31: 606.71 | H31: 8.180003626 | I31: 4962.89 | K31: =deactivatedados.form1 -> 5 | L31: 5-Subleito/Base/Imprimação | O31: 56.75 | P31: 131.04 | Q31: 145.08 | R31: 149.76 | S31: 124.08 | BM31: 0 | BN31: 464.2152058 | BO31: 1071.907675 | BP31: 1186.754926 | BQ31: 1225.037343 | BR31: 1014.97485 | BS31: 0 | BT31: 0 | BU31: 0 | BV31: 0 | BW31: 0 | BX31: 0 | BY31: 0 | BZ31: 0 | CA31: 0 | CB31: 0 | CC31: 0 | CD31: 0 | CE31: 0 | CF31: 0 | CG31: 0 | CH31: 0 | CI31: 0 | CJ31: 0 | CK31: 0 | CL31: 0 | CM31: 0 | CN31: 0 | CO31: 0 | CP31: 0 | CQ31: 0 | CR31: 0 | CS31: 0 | CT31: 0 | CU31: 0 | CV31: 0 | CW31: 0 | CX31: 0 | CY31: 0 | CZ31: 0 | DA31: 0 | DB31: 0 | DC31: 0 | DD31: 0 | DE31: 0 | DF31: 0 | DG31: 0 | DH31: 0 | DI31: 0 | DJ31: 0 | DK31: 1 | DL31: 0 | DM31: =IF($K31<>1,IF(ISNUMBER(INDEX(Import.PLE,$K31,DM$16)),IF(INDEX(Import.PLE,$K31,DM$16)<=mediçao,BM31,0),0),PLE!$AA$28*BM31) -> 0 | DN31: =IF($K31<>1,IF(ISNUMBER(INDEX(Import.PLE,$K31,DN$16)),IF(INDEX(Import.PLE,$K31,DN$16)<=mediçao,BN31,0),0),PLE!$AA$28*BN31) -> 0 | DO31: =IF($K31<>1,IF(ISNUMBER(INDEX(Import.PLE,$K31,DO$16)),IF(INDEX(Import.PLE,$K31,DO$16)<=mediçao,BO31,0),0),PLE!$AA$28*BO31) -> 0 | DP31: =IF($K31<>1,IF(ISNUMBER(INDEX(Import.PLE,$K31,DP$16)),IF(INDEX(Import.PLE,$K31,DP$16)<=mediçao,BP31,0),0),PLE!$AA$28*BP31) -> 0 | DQ31: =IF($K31<>1,IF(ISNUMBER(INDEX(Import.PLE,$K31,DQ$16)),IF(INDEX(Import.PLE,$K31,DQ$16)<=mediçao,BQ31,0),0),PLE!$AA$28*BQ31) -> 0 | DR31: =IF($K31<>1,IF(ISNUMBER(INDEX(Import.PLE,$K31,DR$16)),IF(INDEX(Import.PLE,$K31,DR$16)<=mediçao,BR31,0),0),PLE!$AA$28*BR31) -> 0 | DS31: =IF($K31<>1,IF(ISNUMBER(INDEX(Import.PLE,$K31,DS$16)),IF(INDEX(Import.PLE,$K31,DS$16)<=mediçao,BS31,0),0),PLE!$AA$28*BS31) -> 0 | DT31: =IF($K31<>1,IF(ISNUMBER(INDEX(Import.PLE,$K31,DT$16)),IF(INDEX(Import.PLE,$K31,DT$16)<=mediçao,BT31,0),0),PLE!$AA$28*BT31) -> 0 | DU31: =IF($K31<>1,IF(ISNUMBER(INDEX(Import.PLE,$K31,DU$16)),IF(INDEX(Import.PLE,$K31,DU$16)<=mediçao,BU31,0),0),PLE!$AA$28*BU31) -> 0 | DV31: =IF($K31<>1,IF(ISNUMBER(INDEX(Import.PLE,$K31,DV$16)),IF(INDEX(Import.PLE,$K31,DV$16)<=mediçao,BV31,0),0),PLE!$AA$28*BV31) -> 0 | DW31: =IF($K31<>1,IF(ISNUMBER(INDEX(Import.PLE,$K31,DW$16)),IF(INDEX(Import.PLE,$K31,DW$16)<=mediçao,BW31,0),0),PLE!$AA$28*BW31) -> 0 | DX31: =IF($K31<>1,IF(ISNUMBER(INDEX(Import.PLE,$K31,DX$16)),IF(INDEX(Import.PLE,$K31,DX$16)<=mediçao,BX31,0),0),PLE!$AA$28*BX31) -> 0 | DY31: =IF($K31<>1,IF(ISNUMBER(INDEX(Import.PLE,$K31,DY$16)),IF(INDEX(Import.PLE,$K31,DY$16)<=mediçao,BY31,0),0),PLE!$AA$28*BY31) -> 0 | DZ31: =IF($K31<>1,IF(ISNUMBER(INDEX(Import.PLE,$K31,DZ$16)),IF(INDEX(Import.PLE,$K31,DZ$16)<=mediçao,BZ31,0),0),PLE!$AA$28*BZ31) -> 0 | EA31: =IF($K31<>1,IF(ISNUMBER(INDEX(Import.PLE,$K31,EA$16)),IF(INDEX(Import.PLE,$K31,EA$16)<=mediçao,CA31,0),0),PLE!$AA$28*CA31) -> 0 | EB31: =IF($K31<>1,IF(ISNUMBER(INDEX(Import.PLE,$K31,EB$16)),IF(INDEX(Import.PLE,$K31,EB$16)<=mediçao,CB31,0),0),PLE!$AA$28*CB31) -> 0 | EC31: =IF($K31<>1,IF(ISNUMBER(INDEX(Import.PLE,$K31,EC$16)),IF(INDEX(Import.PLE,$K31,EC$16)<=mediçao,CC31,0),0),PLE!$AA$28*CC31) -> 0 | ED31: =IF($K31<>1,IF(ISNUMBER(INDEX(Import.PLE,$K31,ED$16)),IF(INDEX(Import.PLE,$K31,ED$16)<=mediçao,CD31,0),0),PLE!$AA$28*CD31) -> 0 | EE31: =IF($K31<>1,IF(ISNUMBER(INDEX(Import.PLE,$K31,EE$16)),IF(INDEX(Import.PLE,$K31,EE$16)<=mediçao,CE31,0),0),PLE!$AA$28*CE31) -> 0 | EF31: =IF($K31<>1,IF(ISNUMBER(INDEX(Import.PLE,$K31,EF$16)),IF(INDEX(Import.PLE,$K31,EF$16)<=mediçao,CF31,0),0),PLE!$AA$28*CF31) -> 0 | EG31: =IF($K31<>1,IF(ISNUMBER(INDEX(Import.PLE,$K31,EG$16)),IF(INDEX(Import.PLE,$K31,EG$16)<=mediçao,CG31,0),0),PLE!$AA$28*CG31) -> 0 | EH31: =IF($K31<>1,IF(ISNUMBER(INDEX(Import.PLE,$K31,EH$16)),IF(INDEX(Import.PLE,$K31,EH$16)<=mediçao,CH31,0),0),PLE!$AA$28*CH31) -> 0 | EI31: =IF($K31<>1,IF(ISNUMBER(INDEX(Import.PLE,$K31,EI$16)),IF(INDEX(Import.PLE,$K31,EI$16)<=mediçao,CI31,0),0),PLE!$AA$28*CI31) -> 0 | EJ31: =IF($K31<>1,IF(ISNUMBER(INDEX(Import.PLE,$K31,EJ$16)),IF(INDEX(Import.PLE,$K31,EJ$16)<=mediçao,CJ31,0),0),PLE!$AA$28*CJ31) -> 0 | EK31: =IF($K31<>1,IF(ISNUMBER(INDEX(Import.PLE,$K31,EK$16)),IF(INDEX(Import.PLE,$K31,EK$16)<=mediçao,CK31,0),0),PLE!$AA$28*CK31) -> 0 | EL31: =IF($K31<>1,IF(ISNUMBER(INDEX(Import.PLE,$K31,EL$16)),IF(INDEX(Import.PLE,$K31,EL$16)<=mediçao,CL31,0),0),PLE!$AA$28*CL31) -> 0 | EM31: =IF($K31<>1,IF(ISNUMBER(INDEX(Import.PLE,$K31,EM$16)),IF(INDEX(Import.PLE,$K31,EM$16)<=mediçao,CM31,0),0),PLE!$AA$28*CM31) -> 0 | EN31: =IF($K31<>1,IF(ISNUMBER(INDEX(Import.PLE,$K31,EN$16)),IF(INDEX(Import.PLE,$K31,EN$16)<=mediçao,CN31,0),0),PLE!$AA$28*CN31) -> 0 | EO31: =IF($K31<>1,IF(ISNUMBER(INDEX(Import.PLE,$K31,EO$16)),IF(INDEX(Import.PLE,$K31,EO$16)<=mediçao,CO31,0),0),PLE!$AA$28*CO31) -> 0 | EP31: =IF($K31<>1,IF(ISNUMBER(INDEX(Import.PLE,$K31,EP$16)),IF(INDEX(Import.PLE,$K31,EP$16)<=mediçao,CP31,0),0),PLE!$AA$28*CP31) -> 0 | EQ31: =IF($K31<>1,IF(ISNUMBER(INDEX(Import.PLE,$K31,EQ$16)),IF(INDEX(Import.PLE,$K31,EQ$16)<=mediçao,CQ31,0),0),PLE!$AA$28*CQ31) -> 0 | ER31: =IF($K31<>1,IF(ISNUMBER(INDEX(Import.PLE,$K31,ER$16)),IF(INDEX(Import.PLE,$K31,ER$16)<=mediçao,CR31,0),0),PLE!$AA$28*CR31) -> 0 | ES31: =IF($K31<>1,IF(ISNUMBER(INDEX(Import.PLE,$K31,ES$16)),IF(INDEX(Import.PLE,$K31,ES$16)<=mediçao,CS31,0),0),PLE!$AA$28*CS31) -> 0 | ET31: =IF($K31<>1,IF(ISNUMBER(INDEX(Import.PLE,$K31,ET$16)),IF(INDEX(Import.PLE,$K31,ET$16)<=mediçao,CT31,0),0),PLE!$AA$28*CT31) -> 0 | EU31: =IF($K31<>1,IF(ISNUMBER(INDEX(Import.PLE,$K31,EU$16)),IF(INDEX(Import.PLE,$K31,EU$16)<=mediçao,CU31,0),0),PLE!$AA$28*CU31) -> 0 | EV31: =IF($K31<>1,IF(ISNUMBER(INDEX(Import.PLE,$K31,EV$16)),IF(INDEX(Import.PLE,$K31,EV$16)<=mediçao,CV31,0),0),PLE!$AA$28*CV31) -> 0 | EW31: =IF($K31<>1,IF(ISNUMBER(INDEX(Import.PLE,$K31,EW$16)),IF(INDEX(Import.PLE,$K31,EW$16)<=mediçao,CW31,0),0),PLE!$AA$28*CW31) -> 0 | EX31: =IF($K31<>1,IF(ISNUMBER(INDEX(Import.PLE,$K31,EX$16)),IF(INDEX(Import.PLE,$K31,EX$16)<=mediçao,CX31,0),0),PLE!$AA$28*CX31) -> 0 | EY31: =IF($K31<>1,IF(ISNUMBER(INDEX(Import.PLE,$K31,EY$16)),IF(INDEX(Import.PLE,$K31,EY$16)<=mediçao,CY31,0),0),PLE!$AA$28*CY31) -> 0 | EZ31: =IF($K31<>1,IF(ISNUMBER(INDEX(Import.PLE,$K31,EZ$16)),IF(INDEX(Import.PLE,$K31,EZ$16)<=mediçao,CZ31,0),0),PLE!$AA$28*CZ31) -> 0 | FA31: =IF($K31<>1,IF(ISNUMBER(INDEX(Import.PLE,$K31,FA$16)),IF(INDEX(Import.PLE,$K31,FA$16)<=mediçao,DA31,0),0),PLE!$AA$28*DA31) -> 0 | FB31: =IF($K31<>1,IF(ISNUMBER(INDEX(Import.PLE,$K31,FB$16)),IF(INDEX(Import.PLE,$K31,FB$16)<=mediçao,DB31,0),0),PLE!$AA$28*DB31) -> 0 | FC31: =IF($K31<>1,IF(ISNUMBER(INDEX(Import.PLE,$K31,FC$16)),IF(INDEX(Import.PLE,$K31,FC$16)<=mediçao,DC31,0),0),PLE!$AA$28*DC31) -> 0 | FD31: =IF($K31<>1,IF(ISNUMBER(INDEX(Import.PLE,$K31,FD$16)),IF(INDEX(Import.PLE,$K31,FD$16)<=mediçao,DD31,0),0),PLE!$AA$28*DD31) -> 0 | FE31: =IF($K31<>1,IF(ISNUMBER(INDEX(Import.PLE,$K31,FE$16)),IF(INDEX(Import.PLE,$K31,FE$16)<=mediçao,DE31,0),0),PLE!$AA$28*DE31) -> 0 | FF31: =IF($K31<>1,IF(ISNUMBER(INDEX(Import.PLE,$K31,FF$16)),IF(INDEX(Import.PLE,$K31,FF$16)<=mediçao,DF31,0),0),PLE!$AA$28*DF31) -> 0 | FG31: =IF($K31<>1,IF(ISNUMBER(INDEX(Import.PLE,$K31,FG$16)),IF(INDEX(Import.PLE,$K31,FG$16)<=mediçao,DG31,0),0),PLE!$AA$28*DG31) -> 0 | FH31: =IF($K31<>1,IF(ISNUMBER(INDEX(Import.PLE,$K31,FH$16)),IF(INDEX(Import.PLE,$K31,FH$16)<=mediçao,DH31,0),0),PLE!$AA$28*DH31) -> 0 | FI31: =IF($K31<>1,IF(ISNUMBER(INDEX(Import.PLE,$K31,FI$16)),IF(INDEX(Import.PLE,$K31,FI$16)<=mediçao,DI31,0),0),PLE!$AA$28*DI31) -> 0 | FJ31: =IF($K31<>1,IF(ISNUMBER(INDEX(Import.PLE,$K31,FJ$16)),IF(INDEX(Import.PLE,$K31,FJ$16)<=mediçao,DJ31,0),0),PLE!$AA$28*DJ31) -> 0
B32: 15 | C32: Nível | D32: 1.5. | E32: REVESTIMENTO ASFÁLTICO | I32: 157215.89 | K32: =deactivatedados.form1 ->  | BM32: 0 | BN32: 0 | BO32: 0 | BP32: 0 | BQ32: 0 | BR32: 0 | BS32: 0 | BT32: 0 | BU32: 0 | BV32: 0 | BW32: 0 | BX32: 0 | BY32: 0 | BZ32: 0 | CA32: 0 | CB32: 0 | CC32: 0 | CD32: 0 | CE32: 0 | CF32: 0 | CG32: 0 | CH32: 0 | CI32: 0 | CJ32: 0 | CK32: 0 | CL32: 0 | CM32: 0 | CN32: 0 | CO32: 0 | CP32: 0 | CQ32: 0 | CR32: 0 | CS32: 0 | CT32: 0 | CU32: 0 | CV32: 0 | CW32: 0 | CX32: 0 | CY32: 0 | CZ32: 0 | DA32: 0 | DB32: 0 | DC32: 0 | DD32: 0 | DE32: 0 | DF32: 0 | DG32: 0 | DH32: 0 | DI32: 0 | DJ32: 0 | DK32: 1 | DL32: 0 | DM32: =IF($K32<>1,IF(ISNUMBER(INDEX(Import.PLE,$K32,DM$16)),IF(INDEX(Import.PLE,$K32,DM$16)<=mediçao,BM32,0),0),PLE!$AA$28*BM32) -> 0 | DN32: =IF($K32<>1,IF(ISNUMBER(INDEX(Import.PLE,$K32,DN$16)),IF(INDEX(Import.PLE,$K32,DN$16)<=mediçao,BN32,0),0),PLE!$AA$28*BN32) -> 0 | DO32: =IF($K32<>1,IF(ISNUMBER(INDEX(Import.PLE,$K32,DO$16)),IF(INDEX(Import.PLE,$K32,DO$16)<=mediçao,BO32,0),0),PLE!$AA$28*BO32) -> 0 | DP32: =IF($K32<>1,IF(ISNUMBER(INDEX(Import.PLE,$K32,DP$16)),IF(INDEX(Import.PLE,$K32,DP$16)<=mediçao,BP32,0),0),PLE!$AA$28*BP32) -> 0 | DQ32: =IF($K32<>1,IF(ISNUMBER(INDEX(Import.PLE,$K32,DQ$16)),IF(INDEX(Import.PLE,$K32,DQ$16)<=mediçao,BQ32,0),0),PLE!$AA$28*BQ32) -> 0 | DR32: =IF($K32<>1,IF(ISNUMBER(INDEX(Import.PLE,$K32,DR$16)),IF(INDEX(Import.PLE,$K32,DR$16)<=mediçao,BR32,0),0),PLE!$AA$28*BR32) -> 0 | DS32: =IF($K32<>1,IF(ISNUMBER(INDEX(Import.PLE,$K32,DS$16)),IF(INDEX(Import.PLE,$K32,DS$16)<=mediçao,BS32,0),0),PLE!$AA$28*BS32) -> 0 | DT32: =IF($K32<>1,IF(ISNUMBER(INDEX(Import.PLE,$K32,DT$16)),IF(INDEX(Import.PLE,$K32,DT$16)<=mediçao,BT32,0),0),PLE!$AA$28*BT32) -> 0 | DU32: =IF($K32<>1,IF(ISNUMBER(INDEX(Import.PLE,$K32,DU$16)),IF(INDEX(Import.PLE,$K32,DU$16)<=mediçao,BU32,0),0),PLE!$AA$28*BU32) -> 0 | DV32: =IF($K32<>1,IF(ISNUMBER(INDEX(Import.PLE,$K32,DV$16)),IF(INDEX(Import.PLE,$K32,DV$16)<=mediçao,BV32,0),0),PLE!$AA$28*BV32) -> 0 | DW32: =IF($K32<>1,IF(ISNUMBER(INDEX(Import.PLE,$K32,DW$16)),IF(INDEX(Import.PLE,$K32,DW$16)<=mediçao,BW32,0),0),PLE!$AA$28*BW32) -> 0 | DX32: =IF($K32<>1,IF(ISNUMBER(INDEX(Import.PLE,$K32,DX$16)),IF(INDEX(Import.PLE,$K32,DX$16)<=mediçao,BX32,0),0),PLE!$AA$28*BX32) -> 0 | DY32: =IF($K32<>1,IF(ISNUMBER(INDEX(Import.PLE,$K32,DY$16)),IF(INDEX(Import.PLE,$K32,DY$16)<=mediçao,BY32,0),0),PLE!$AA$28*BY32) -> 0 | DZ32: =IF($K32<>1,IF(ISNUMBER(INDEX(Import.PLE,$K32,DZ$16)),IF(INDEX(Import.PLE,$K32,DZ$16)<=mediçao,BZ32,0),0),PLE!$AA$28*BZ32) -> 0 | EA32: =IF($K32<>1,IF(ISNUMBER(INDEX(Import.PLE,$K32,EA$16)),IF(INDEX(Import.PLE,$K32,EA$16)<=mediçao,CA32,0),0),PLE!$AA$28*CA32) -> 0 | EB32: =IF($K32<>1,IF(ISNUMBER(INDEX(Import.PLE,$K32,EB$16)),IF(INDEX(Import.PLE,$K32,EB$16)<=mediçao,CB32,0),0),PLE!$AA$28*CB32) -> 0 | EC32: =IF($K32<>1,IF(ISNUMBER(INDEX(Import.PLE,$K32,EC$16)),IF(INDEX(Import.PLE,$K32,EC$16)<=mediçao,CC32,0),0),PLE!$AA$28*CC32) -> 0 | ED32: =IF($K32<>1,IF(ISNUMBER(INDEX(Import.PLE,$K32,ED$16)),IF(INDEX(Import.PLE,$K32,ED$16)<=mediçao,CD32,0),0),PLE!$AA$28*CD32) -> 0 | EE32: =IF($K32<>1,IF(ISNUMBER(INDEX(Import.PLE,$K32,EE$16)),IF(INDEX(Import.PLE,$K32,EE$16)<=mediçao,CE32,0),0),PLE!$AA$28*CE32) -> 0 | EF32: =IF($K32<>1,IF(ISNUMBER(INDEX(Import.PLE,$K32,EF$16)),IF(INDEX(Import.PLE,$K32,EF$16)<=mediçao,CF32,0),0),PLE!$AA$28*CF32) -> 0 | EG32: =IF($K32<>1,IF(ISNUMBER(INDEX(Import.PLE,$K32,EG$16)),IF(INDEX(Import.PLE,$K32,EG$16)<=mediçao,CG32,0),0),PLE!$AA$28*CG32) -> 0 | EH32: =IF($K32<>1,IF(ISNUMBER(INDEX(Import.PLE,$K32,EH$16)),IF(INDEX(Import.PLE,$K32,EH$16)<=mediçao,CH32,0),0),PLE!$AA$28*CH32) -> 0 | EI32: =IF($K32<>1,IF(ISNUMBER(INDEX(Import.PLE,$K32,EI$16)),IF(INDEX(Import.PLE,$K32,EI$16)<=mediçao,CI32,0),0),PLE!$AA$28*CI32) -> 0 | EJ32: =IF($K32<>1,IF(ISNUMBER(INDEX(Import.PLE,$K32,EJ$16)),IF(INDEX(Import.PLE,$K32,EJ$16)<=mediçao,CJ32,0),0),PLE!$AA$28*CJ32) -> 0 | EK32: =IF($K32<>1,IF(ISNUMBER(INDEX(Import.PLE,$K32,EK$16)),IF(INDEX(Import.PLE,$K32,EK$16)<=mediçao,CK32,0),0),PLE!$AA$28*CK32) -> 0 | EL32: =IF($K32<>1,IF(ISNUMBER(INDEX(Import.PLE,$K32,EL$16)),IF(INDEX(Import.PLE,$K32,EL$16)<=mediçao,CL32,0),0),PLE!$AA$28*CL32) -> 0 | EM32: =IF($K32<>1,IF(ISNUMBER(INDEX(Import.PLE,$K32,EM$16)),IF(INDEX(Import.PLE,$K32,EM$16)<=mediçao,CM32,0),0),PLE!$AA$28*CM32) -> 0 | EN32: =IF($K32<>1,IF(ISNUMBER(INDEX(Import.PLE,$K32,EN$16)),IF(INDEX(Import.PLE,$K32,EN$16)<=mediçao,CN32,0),0),PLE!$AA$28*CN32) -> 0 | EO32: =IF($K32<>1,IF(ISNUMBER(INDEX(Import.PLE,$K32,EO$16)),IF(INDEX(Import.PLE,$K32,EO$16)<=mediçao,CO32,0),0),PLE!$AA$28*CO32) -> 0 | EP32: =IF($K32<>1,IF(ISNUMBER(INDEX(Import.PLE,$K32,EP$16)),IF(INDEX(Import.PLE,$K32,EP$16)<=mediçao,CP32,0),0),PLE!$AA$28*CP32) -> 0 | EQ32: =IF($K32<>1,IF(ISNUMBER(INDEX(Import.PLE,$K32,EQ$16)),IF(INDEX(Import.PLE,$K32,EQ$16)<=mediçao,CQ32,0),0),PLE!$AA$28*CQ32) -> 0 | ER32: =IF($K32<>1,IF(ISNUMBER(INDEX(Import.PLE,$K32,ER$16)),IF(INDEX(Import.PLE,$K32,ER$16)<=mediçao,CR32,0),0),PLE!$AA$28*CR32) -> 0 | ES32: =IF($K32<>1,IF(ISNUMBER(INDEX(Import.PLE,$K32,ES$16)),IF(INDEX(Import.PLE,$K32,ES$16)<=mediçao,CS32,0),0),PLE!$AA$28*CS32) -> 0 | ET32: =IF($K32<>1,IF(ISNUMBER(INDEX(Import.PLE,$K32,ET$16)),IF(INDEX(Import.PLE,$K32,ET$16)<=mediçao,CT32,0),0),PLE!$AA$28*CT32) -> 0 | EU32: =IF($K32<>1,IF(ISNUMBER(INDEX(Import.PLE,$K32,EU$16)),IF(INDEX(Import.PLE,$K32,EU$16)<=mediçao,CU32,0),0),PLE!$AA$28*CU32) -> 0 | EV32: =IF($K32<>1,IF(ISNUMBER(INDEX(Import.PLE,$K32,EV$16)),IF(INDEX(Import.PLE,$K32,EV$16)<=mediçao,CV32,0),0),PLE!$AA$28*CV32) -> 0 | EW32: =IF($K32<>1,IF(ISNUMBER(INDEX(Import.PLE,$K32,EW$16)),IF(INDEX(Import.PLE,$K32,EW$16)<=mediçao,CW32,0),0),PLE!$AA$28*CW32) -> 0 | EX32: =IF($K32<>1,IF(ISNUMBER(INDEX(Import.PLE,$K32,EX$16)),IF(INDEX(Import.PLE,$K32,EX$16)<=mediçao,CX32,0),0),PLE!$AA$28*CX32) -> 0 | EY32: =IF($K32<>1,IF(ISNUMBER(INDEX(Import.PLE,$K32,EY$16)),IF(INDEX(Import.PLE,$K32,EY$16)<=mediçao,CY32,0),0),PLE!$AA$28*CY32) -> 0 | EZ32: =IF($K32<>1,IF(ISNUMBER(INDEX(Import.PLE,$K32,EZ$16)),IF(INDEX(Import.PLE,$K32,EZ$16)<=mediçao,CZ32,0),0),PLE!$AA$28*CZ32) -> 0 | FA32: =IF($K32<>1,IF(ISNUMBER(INDEX(Import.PLE,$K32,FA$16)),IF(INDEX(Import.PLE,$K32,FA$16)<=mediçao,DA32,0),0),PLE!$AA$28*DA32) -> 0 | FB32: =IF($K32<>1,IF(ISNUMBER(INDEX(Import.PLE,$K32,FB$16)),IF(INDEX(Import.PLE,$K32,FB$16)<=mediçao,DB32,0),0),PLE!$AA$28*DB32) -> 0 | FC32: =IF($K32<>1,IF(ISNUMBER(INDEX(Import.PLE,$K32,FC$16)),IF(INDEX(Import.PLE,$K32,FC$16)<=mediçao,DC32,0),0),PLE!$AA$28*DC32) -> 0 | FD32: =IF($K32<>1,IF(ISNUMBER(INDEX(Import.PLE,$K32,FD$16)),IF(INDEX(Import.PLE,$K32,FD$16)<=mediçao,DD32,0),0),PLE!$AA$28*DD32) -> 0 | FE32: =IF($K32<>1,IF(ISNUMBER(INDEX(Import.PLE,$K32,FE$16)),IF(INDEX(Import.PLE,$K32,FE$16)<=mediçao,DE32,0),0),PLE!$AA$28*DE32) -> 0 | FF32: =IF($K32<>1,IF(ISNUMBER(INDEX(Import.PLE,$K32,FF$16)),IF(INDEX(Import.PLE,$K32,FF$16)<=mediçao,DF32,0),0),PLE!$AA$28*DF32) -> 0 | FG32: =IF($K32<>1,IF(ISNUMBER(INDEX(Import.PLE,$K32,FG$16)),IF(INDEX(Import.PLE,$K32,FG$16)<=mediçao,DG32,0),0),PLE!$AA$28*DG32) -> 0 | FH32: =IF($K32<>1,IF(ISNUMBER(INDEX(Import.PLE,$K32,FH$16)),IF(INDEX(Import.PLE,$K32,FH$16)<=mediçao,DH32,0),0),PLE!$AA$28*DH32) -> 0 | FI32: =IF($K32<>1,IF(ISNUMBER(INDEX(Import.PLE,$K32,FI$16)),IF(INDEX(Import.PLE,$K32,FI$16)<=mediçao,DI32,0),0),PLE!$AA$28*DI32) -> 0 | FJ32: =IF($K32<>1,IF(ISNUMBER(INDEX(Import.PLE,$K32,FJ$16)),IF(INDEX(Import.PLE,$K32,FJ$16)<=mediçao,DJ32,0),0),PLE!$AA$28*DJ32) -> 0
B33: 16 | C33: Serviço | D33: 1.5.1. | E33: EXECUÇÃO DE IMPRIMAÇÃO COM ASFALTO DILUÍDO CM-30. AF_11/2019 | F33: M2 | G33: 3638.7 | H33: 8.489999176 | I33: 30892.56 | K33: =deactivatedados.form1 -> 5 | L33: 5-Subleito/Base/Imprimação | O33: 339.3 | P33: 789.6 | Q33: 874.2 | R33: 902.4 | S33: 733.2 | BM33: 0 | BN33: 2880.65672 | BO33: 6703.703349 | BP33: 7421.957279 | BQ33: 7661.375256 | BR33: 6224.867395 | BS33: 0 | BT33: 0 | BU33: 0 | BV33: 0 | BW33: 0 | BX33: 0 | BY33: 0 | BZ33: 0 | CA33: 0 | CB33: 0 | CC33: 0 | CD33: 0 | CE33: 0 | CF33: 0 | CG33: 0 | CH33: 0 | CI33: 0 | CJ33: 0 | CK33: 0 | CL33: 0 | CM33: 0 | CN33: 0 | CO33: 0 | CP33: 0 | CQ33: 0 | CR33: 0 | CS33: 0 | CT33: 0 | CU33: 0 | CV33: 0 | CW33: 0 | CX33: 0 | CY33: 0 | CZ33: 0 | DA33: 0 | DB33: 0 | DC33: 0 | DD33: 0 | DE33: 0 | DF33: 0 | DG33: 0 | DH33: 0 | DI33: 0 | DJ33: 0 | DK33: 1 | DL33: 0 | DM33: =IF($K33<>1,IF(ISNUMBER(INDEX(Import.PLE,$K33,DM$16)),IF(INDEX(Import.PLE,$K33,DM$16)<=mediçao,BM33,0),0),PLE!$AA$28*BM33) -> 0 | DN33: =IF($K33<>1,IF(ISNUMBER(INDEX(Import.PLE,$K33,DN$16)),IF(INDEX(Import.PLE,$K33,DN$16)<=mediçao,BN33,0),0),PLE!$AA$28*BN33) -> 0 | DO33: =IF($K33<>1,IF(ISNUMBER(INDEX(Import.PLE,$K33,DO$16)),IF(INDEX(Import.PLE,$K33,DO$16)<=mediçao,BO33,0),0),PLE!$AA$28*BO33) -> 0 | DP33: =IF($K33<>1,IF(ISNUMBER(INDEX(Import.PLE,$K33,DP$16)),IF(INDEX(Import.PLE,$K33,DP$16)<=mediçao,BP33,0),0),PLE!$AA$28*BP33) -> 0 | DQ33: =IF($K33<>1,IF(ISNUMBER(INDEX(Import.PLE,$K33,DQ$16)),IF(INDEX(Import.PLE,$K33,DQ$16)<=mediçao,BQ33,0),0),PLE!$AA$28*BQ33) -> 0 | DR33: =IF($K33<>1,IF(ISNUMBER(INDEX(Import.PLE,$K33,DR$16)),IF(INDEX(Import.PLE,$K33,DR$16)<=mediçao,BR33,0),0),PLE!$AA$28*BR33) -> 0 | DS33: =IF($K33<>1,IF(ISNUMBER(INDEX(Import.PLE,$K33,DS$16)),IF(INDEX(Import.PLE,$K33,DS$16)<=mediçao,BS33,0),0),PLE!$AA$28*BS33) -> 0 | DT33: =IF($K33<>1,IF(ISNUMBER(INDEX(Import.PLE,$K33,DT$16)),IF(INDEX(Import.PLE,$K33,DT$16)<=mediçao,BT33,0),0),PLE!$AA$28*BT33) -> 0 | DU33: =IF($K33<>1,IF(ISNUMBER(INDEX(Import.PLE,$K33,DU$16)),IF(INDEX(Import.PLE,$K33,DU$16)<=mediçao,BU33,0),0),PLE!$AA$28*BU33) -> 0 | DV33: =IF($K33<>1,IF(ISNUMBER(INDEX(Import.PLE,$K33,DV$16)),IF(INDEX(Import.PLE,$K33,DV$16)<=mediçao,BV33,0),0),PLE!$AA$28*BV33) -> 0 | DW33: =IF($K33<>1,IF(ISNUMBER(INDEX(Import.PLE,$K33,DW$16)),IF(INDEX(Import.PLE,$K33,DW$16)<=mediçao,BW33,0),0),PLE!$AA$28*BW33) -> 0 | DX33: =IF($K33<>1,IF(ISNUMBER(INDEX(Import.PLE,$K33,DX$16)),IF(INDEX(Import.PLE,$K33,DX$16)<=mediçao,BX33,0),0),PLE!$AA$28*BX33) -> 0 | DY33: =IF($K33<>1,IF(ISNUMBER(INDEX(Import.PLE,$K33,DY$16)),IF(INDEX(Import.PLE,$K33,DY$16)<=mediçao,BY33,0),0),PLE!$AA$28*BY33) -> 0 | DZ33: =IF($K33<>1,IF(ISNUMBER(INDEX(Import.PLE,$K33,DZ$16)),IF(INDEX(Import.PLE,$K33,DZ$16)<=mediçao,BZ33,0),0),PLE!$AA$28*BZ33) -> 0 | EA33: =IF($K33<>1,IF(ISNUMBER(INDEX(Import.PLE,$K33,EA$16)),IF(INDEX(Import.PLE,$K33,EA$16)<=mediçao,CA33,0),0),PLE!$AA$28*CA33) -> 0 | EB33: =IF($K33<>1,IF(ISNUMBER(INDEX(Import.PLE,$K33,EB$16)),IF(INDEX(Import.PLE,$K33,EB$16)<=mediçao,CB33,0),0),PLE!$AA$28*CB33) -> 0 | EC33: =IF($K33<>1,IF(ISNUMBER(INDEX(Import.PLE,$K33,EC$16)),IF(INDEX(Import.PLE,$K33,EC$16)<=mediçao,CC33,0),0),PLE!$AA$28*CC33) -> 0 | ED33: =IF($K33<>1,IF(ISNUMBER(INDEX(Import.PLE,$K33,ED$16)),IF(INDEX(Import.PLE,$K33,ED$16)<=mediçao,CD33,0),0),PLE!$AA$28*CD33) -> 0 | EE33: =IF($K33<>1,IF(ISNUMBER(INDEX(Import.PLE,$K33,EE$16)),IF(INDEX(Import.PLE,$K33,EE$16)<=mediçao,CE33,0),0),PLE!$AA$28*CE33) -> 0 | EF33: =IF($K33<>1,IF(ISNUMBER(INDEX(Import.PLE,$K33,EF$16)),IF(INDEX(Import.PLE,$K33,EF$16)<=mediçao,CF33,0),0),PLE!$AA$28*CF33) -> 0 | EG33: =IF($K33<>1,IF(ISNUMBER(INDEX(Import.PLE,$K33,EG$16)),IF(INDEX(Import.PLE,$K33,EG$16)<=mediçao,CG33,0),0),PLE!$AA$28*CG33) -> 0 | EH33: =IF($K33<>1,IF(ISNUMBER(INDEX(Import.PLE,$K33,EH$16)),IF(INDEX(Import.PLE,$K33,EH$16)<=mediçao,CH33,0),0),PLE!$AA$28*CH33) -> 0 | EI33: =IF($K33<>1,IF(ISNUMBER(INDEX(Import.PLE,$K33,EI$16)),IF(INDEX(Import.PLE,$K33,EI$16)<=mediçao,CI33,0),0),PLE!$AA$28*CI33) -> 0 | EJ33: =IF($K33<>1,IF(ISNUMBER(INDEX(Import.PLE,$K33,EJ$16)),IF(INDEX(Import.PLE,$K33,EJ$16)<=mediçao,CJ33,0),0),PLE!$AA$28*CJ33) -> 0 | EK33: =IF($K33<>1,IF(ISNUMBER(INDEX(Import.PLE,$K33,EK$16)),IF(INDEX(Import.PLE,$K33,EK$16)<=mediçao,CK33,0),0),PLE!$AA$28*CK33) -> 0 | EL33: =IF($K33<>1,IF(ISNUMBER(INDEX(Import.PLE,$K33,EL$16)),IF(INDEX(Import.PLE,$K33,EL$16)<=mediçao,CL33,0),0),PLE!$AA$28*CL33) -> 0 | EM33: =IF($K33<>1,IF(ISNUMBER(INDEX(Import.PLE,$K33,EM$16)),IF(INDEX(Import.PLE,$K33,EM$16)<=mediçao,CM33,0),0),PLE!$AA$28*CM33) -> 0 | EN33: =IF($K33<>1,IF(ISNUMBER(INDEX(Import.PLE,$K33,EN$16)),IF(INDEX(Import.PLE,$K33,EN$16)<=mediçao,CN33,0),0),PLE!$AA$28*CN33) -> 0 | EO33: =IF($K33<>1,IF(ISNUMBER(INDEX(Import.PLE,$K33,EO$16)),IF(INDEX(Import.PLE,$K33,EO$16)<=mediçao,CO33,0),0),PLE!$AA$28*CO33) -> 0 | EP33: =IF($K33<>1,IF(ISNUMBER(INDEX(Import.PLE,$K33,EP$16)),IF(INDEX(Import.PLE,$K33,EP$16)<=mediçao,CP33,0),0),PLE!$AA$28*CP33) -> 0 | EQ33: =IF($K33<>1,IF(ISNUMBER(INDEX(Import.PLE,$K33,EQ$16)),IF(INDEX(Import.PLE,$K33,EQ$16)<=mediçao,CQ33,0),0),PLE!$AA$28*CQ33) -> 0 | ER33: =IF($K33<>1,IF(ISNUMBER(INDEX(Import.PLE,$K33,ER$16)),IF(INDEX(Import.PLE,$K33,ER$16)<=mediçao,CR33,0),0),PLE!$AA$28*CR33) -> 0 | ES33: =IF($K33<>1,IF(ISNUMBER(INDEX(Import.PLE,$K33,ES$16)),IF(INDEX(Import.PLE,$K33,ES$16)<=mediçao,CS33,0),0),PLE!$AA$28*CS33) -> 0 | ET33: =IF($K33<>1,IF(ISNUMBER(INDEX(Import.PLE,$K33,ET$16)),IF(INDEX(Import.PLE,$K33,ET$16)<=mediçao,CT33,0),0),PLE!$AA$28*CT33) -> 0 | EU33: =IF($K33<>1,IF(ISNUMBER(INDEX(Import.PLE,$K33,EU$16)),IF(INDEX(Import.PLE,$K33,EU$16)<=mediçao,CU33,0),0),PLE!$AA$28*CU33) -> 0 | EV33: =IF($K33<>1,IF(ISNUMBER(INDEX(Import.PLE,$K33,EV$16)),IF(INDEX(Import.PLE,$K33,EV$16)<=mediçao,CV33,0),0),PLE!$AA$28*CV33) -> 0 | EW33: =IF($K33<>1,IF(ISNUMBER(INDEX(Import.PLE,$K33,EW$16)),IF(INDEX(Import.PLE,$K33,EW$16)<=mediçao,CW33,0),0),PLE!$AA$28*CW33) -> 0 | EX33: =IF($K33<>1,IF(ISNUMBER(INDEX(Import.PLE,$K33,EX$16)),IF(INDEX(Import.PLE,$K33,EX$16)<=mediçao,CX33,0),0),PLE!$AA$28*CX33) -> 0 | EY33: =IF($K33<>1,IF(ISNUMBER(INDEX(Import.PLE,$K33,EY$16)),IF(INDEX(Import.PLE,$K33,EY$16)<=mediçao,CY33,0),0),PLE!$AA$28*CY33) -> 0 | EZ33: =IF($K33<>1,IF(ISNUMBER(INDEX(Import.PLE,$K33,EZ$16)),IF(INDEX(Import.PLE,$K33,EZ$16)<=mediçao,CZ33,0),0),PLE!$AA$28*CZ33) -> 0 | FA33: =IF($K33<>1,IF(ISNUMBER(INDEX(Import.PLE,$K33,FA$16)),IF(INDEX(Import.PLE,$K33,FA$16)<=mediçao,DA33,0),0),PLE!$AA$28*DA33) -> 0 | FB33: =IF($K33<>1,IF(ISNUMBER(INDEX(Import.PLE,$K33,FB$16)),IF(INDEX(Import.PLE,$K33,FB$16)<=mediçao,DB33,0),0),PLE!$AA$28*DB33) -> 0 | FC33: =IF($K33<>1,IF(ISNUMBER(INDEX(Import.PLE,$K33,FC$16)),IF(INDEX(Import.PLE,$K33,FC$16)<=mediçao,DC33,0),0),PLE!$AA$28*DC33) -> 0 | FD33: =IF($K33<>1,IF(ISNUMBER(INDEX(Import.PLE,$K33,FD$16)),IF(INDEX(Import.PLE,$K33,FD$16)<=mediçao,DD33,0),0),PLE!$AA$28*DD33) -> 0 | FE33: =IF($K33<>1,IF(ISNUMBER(INDEX(Import.PLE,$K33,FE$16)),IF(INDEX(Import.PLE,$K33,FE$16)<=mediçao,DE33,0),0),PLE!$AA$28*DE33) -> 0 | FF33: =IF($K33<>1,IF(ISNUMBER(INDEX(Import.PLE,$K33,FF$16)),IF(INDEX(Import.PLE,$K33,FF$16)<=mediçao,DF33,0),0),PLE!$AA$28*DF33) -> 0 | FG33: =IF($K33<>1,IF(ISNUMBER(INDEX(Import.PLE,$K33,FG$16)),IF(INDEX(Import.PLE,$K33,FG$16)<=mediçao,DG33,0),0),PLE!$AA$28*DG33) -> 0 | FH33: =IF($K33<>1,IF(ISNUMBER(INDEX(Import.PLE,$K33,FH$16)),IF(INDEX(Import.PLE,$K33,FH$16)<=mediçao,DH33,0),0),PLE!$AA$28*DH33) -> 0 | FI33: =IF($K33<>1,IF(ISNUMBER(INDEX(Import.PLE,$K33,FI$16)),IF(INDEX(Import.PLE,$K33,FI$16)<=mediçao,DI33,0),0),PLE!$AA$28*DI33) -> 0 | FJ33: =IF($K33<>1,IF(ISNUMBER(INDEX(Import.PLE,$K33,FJ$16)),IF(INDEX(Import.PLE,$K33,FJ$16)<=mediçao,DJ33,0),0),PLE!$AA$28*DJ33) -> 0
B34: 17 | C34: Serviço | D34: 1.5.2. | E34: EXECUÇÃO DE PINTURA DE LIGAÇÃO COM EMULSÃO ASFÁLTICA RR-2C. AF_11/2019 | F34: M2 | G34: 3638.7 | H34: 2 | I34: 7277.4 | K34: =deactivatedados.form1 -> 6 | L34: 6-Revestimento Asfáltico | O34: 339.3 | P34: 789.6 | Q34: 874.2 | R34: 902.4 | S34: 733.2 | BM34: 0 | BN34: 678.6 | BO34: 1579.2 | BP34: 1748.4 | BQ34: 1804.8 | BR34: 1466.4 | BS34: 0 | BT34: 0 | BU34: 0 | BV34: 0 | BW34: 0 | BX34: 0 | BY34: 0 | BZ34: 0 | CA34: 0 | CB34: 0 | CC34: 0 | CD34: 0 | CE34: 0 | CF34: 0 | CG34: 0 | CH34: 0 | CI34: 0 | CJ34: 0 | CK34: 0 | CL34: 0 | CM34: 0 | CN34: 0 | CO34: 0 | CP34: 0 | CQ34: 0 | CR34: 0 | CS34: 0 | CT34: 0 | CU34: 0 | CV34: 0 | CW34: 0 | CX34: 0 | CY34: 0 | CZ34: 0 | DA34: 0 | DB34: 0 | DC34: 0 | DD34: 0 | DE34: 0 | DF34: 0 | DG34: 0 | DH34: 0 | DI34: 0 | DJ34: 0 | DK34: 1 | DL34: 0 | DM34: =IF($K34<>1,IF(ISNUMBER(INDEX(Import.PLE,$K34,DM$16)),IF(INDEX(Import.PLE,$K34,DM$16)<=mediçao,BM34,0),0),PLE!$AA$28*BM34) -> 0 | DN34: =IF($K34<>1,IF(ISNUMBER(INDEX(Import.PLE,$K34,DN$16)),IF(INDEX(Import.PLE,$K34,DN$16)<=mediçao,BN34,0),0),PLE!$AA$28*BN34) -> 0 | DO34: =IF($K34<>1,IF(ISNUMBER(INDEX(Import.PLE,$K34,DO$16)),IF(INDEX(Import.PLE,$K34,DO$16)<=mediçao,BO34,0),0),PLE!$AA$28*BO34) -> 0 | DP34: =IF($K34<>1,IF(ISNUMBER(INDEX(Import.PLE,$K34,DP$16)),IF(INDEX(Import.PLE,$K34,DP$16)<=mediçao,BP34,0),0),PLE!$AA$28*BP34) -> 0 | DQ34: =IF($K34<>1,IF(ISNUMBER(INDEX(Import.PLE,$K34,DQ$16)),IF(INDEX(Import.PLE,$K34,DQ$16)<=mediçao,BQ34,0),0),PLE!$AA$28*BQ34) -> 0 | DR34: =IF($K34<>1,IF(ISNUMBER(INDEX(Import.PLE,$K34,DR$16)),IF(INDEX(Import.PLE,$K34,DR$16)<=mediçao,BR34,0),0),PLE!$AA$28*BR34) -> 0 | DS34: =IF($K34<>1,IF(ISNUMBER(INDEX(Import.PLE,$K34,DS$16)),IF(INDEX(Import.PLE,$K34,DS$16)<=mediçao,BS34,0),0),PLE!$AA$28*BS34) -> 0 | DT34: =IF($K34<>1,IF(ISNUMBER(INDEX(Import.PLE,$K34,DT$16)),IF(INDEX(Import.PLE,$K34,DT$16)<=mediçao,BT34,0),0),PLE!$AA$28*BT34) -> 0 | DU34: =IF($K34<>1,IF(ISNUMBER(INDEX(Import.PLE,$K34,DU$16)),IF(INDEX(Import.PLE,$K34,DU$16)<=mediçao,BU34,0),0),PLE!$AA$28*BU34) -> 0 | DV34: =IF($K34<>1,IF(ISNUMBER(INDEX(Import.PLE,$K34,DV$16)),IF(INDEX(Import.PLE,$K34,DV$16)<=mediçao,BV34,0),0),PLE!$AA$28*BV34) -> 0 | DW34: =IF($K34<>1,IF(ISNUMBER(INDEX(Import.PLE,$K34,DW$16)),IF(INDEX(Import.PLE,$K34,DW$16)<=mediçao,BW34,0),0),PLE!$AA$28*BW34) -> 0 | DX34: =IF($K34<>1,IF(ISNUMBER(INDEX(Import.PLE,$K34,DX$16)),IF(INDEX(Import.PLE,$K34,DX$16)<=mediçao,BX34,0),0),PLE!$AA$28*BX34) -> 0 | DY34: =IF($K34<>1,IF(ISNUMBER(INDEX(Import.PLE,$K34,DY$16)),IF(INDEX(Import.PLE,$K34,DY$16)<=mediçao,BY34,0),0),PLE!$AA$28*BY34) -> 0 | DZ34: =IF($K34<>1,IF(ISNUMBER(INDEX(Import.PLE,$K34,DZ$16)),IF(INDEX(Import.PLE,$K34,DZ$16)<=mediçao,BZ34,0),0),PLE!$AA$28*BZ34) -> 0 | EA34: =IF($K34<>1,IF(ISNUMBER(INDEX(Import.PLE,$K34,EA$16)),IF(INDEX(Import.PLE,$K34,EA$16)<=mediçao,CA34,0),0),PLE!$AA$28*CA34) -> 0 | EB34: =IF($K34<>1,IF(ISNUMBER(INDEX(Import.PLE,$K34,EB$16)),IF(INDEX(Import.PLE,$K34,EB$16)<=mediçao,CB34,0),0),PLE!$AA$28*CB34) -> 0 | EC34: =IF($K34<>1,IF(ISNUMBER(INDEX(Import.PLE,$K34,EC$16)),IF(INDEX(Import.PLE,$K34,EC$16)<=mediçao,CC34,0),0),PLE!$AA$28*CC34) -> 0 | ED34: =IF($K34<>1,IF(ISNUMBER(INDEX(Import.PLE,$K34,ED$16)),IF(INDEX(Import.PLE,$K34,ED$16)<=mediçao,CD34,0),0),PLE!$AA$28*CD34) -> 0 | EE34: =IF($K34<>1,IF(ISNUMBER(INDEX(Import.PLE,$K34,EE$16)),IF(INDEX(Import.PLE,$K34,EE$16)<=mediçao,CE34,0),0),PLE!$AA$28*CE34) -> 0 | EF34: =IF($K34<>1,IF(ISNUMBER(INDEX(Import.PLE,$K34,EF$16)),IF(INDEX(Import.PLE,$K34,EF$16)<=mediçao,CF34,0),0),PLE!$AA$28*CF34) -> 0 | EG34: =IF($K34<>1,IF(ISNUMBER(INDEX(Import.PLE,$K34,EG$16)),IF(INDEX(Import.PLE,$K34,EG$16)<=mediçao,CG34,0),0),PLE!$AA$28*CG34) -> 0 | EH34: =IF($K34<>1,IF(ISNUMBER(INDEX(Import.PLE,$K34,EH$16)),IF(INDEX(Import.PLE,$K34,EH$16)<=mediçao,CH34,0),0),PLE!$AA$28*CH34) -> 0 | EI34: =IF($K34<>1,IF(ISNUMBER(INDEX(Import.PLE,$K34,EI$16)),IF(INDEX(Import.PLE,$K34,EI$16)<=mediçao,CI34,0),0),PLE!$AA$28*CI34) -> 0 | EJ34: =IF($K34<>1,IF(ISNUMBER(INDEX(Import.PLE,$K34,EJ$16)),IF(INDEX(Import.PLE,$K34,EJ$16)<=mediçao,CJ34,0),0),PLE!$AA$28*CJ34) -> 0 | EK34: =IF($K34<>1,IF(ISNUMBER(INDEX(Import.PLE,$K34,EK$16)),IF(INDEX(Import.PLE,$K34,EK$16)<=mediçao,CK34,0),0),PLE!$AA$28*CK34) -> 0 | EL34: =IF($K34<>1,IF(ISNUMBER(INDEX(Import.PLE,$K34,EL$16)),IF(INDEX(Import.PLE,$K34,EL$16)<=mediçao,CL34,0),0),PLE!$AA$28*CL34) -> 0 | EM34: =IF($K34<>1,IF(ISNUMBER(INDEX(Import.PLE,$K34,EM$16)),IF(INDEX(Import.PLE,$K34,EM$16)<=mediçao,CM34,0),0),PLE!$AA$28*CM34) -> 0 | EN34: =IF($K34<>1,IF(ISNUMBER(INDEX(Import.PLE,$K34,EN$16)),IF(INDEX(Import.PLE,$K34,EN$16)<=mediçao,CN34,0),0),PLE!$AA$28*CN34) -> 0 | EO34: =IF($K34<>1,IF(ISNUMBER(INDEX(Import.PLE,$K34,EO$16)),IF(INDEX(Import.PLE,$K34,EO$16)<=mediçao,CO34,0),0),PLE!$AA$28*CO34) -> 0 | EP34: =IF($K34<>1,IF(ISNUMBER(INDEX(Import.PLE,$K34,EP$16)),IF(INDEX(Import.PLE,$K34,EP$16)<=mediçao,CP34,0),0),PLE!$AA$28*CP34) -> 0 | EQ34: =IF($K34<>1,IF(ISNUMBER(INDEX(Import.PLE,$K34,EQ$16)),IF(INDEX(Import.PLE,$K34,EQ$16)<=mediçao,CQ34,0),0),PLE!$AA$28*CQ34) -> 0 | ER34: =IF($K34<>1,IF(ISNUMBER(INDEX(Import.PLE,$K34,ER$16)),IF(INDEX(Import.PLE,$K34,ER$16)<=mediçao,CR34,0),0),PLE!$AA$28*CR34) -> 0 | ES34: =IF($K34<>1,IF(ISNUMBER(INDEX(Import.PLE,$K34,ES$16)),IF(INDEX(Import.PLE,$K34,ES$16)<=mediçao,CS34,0),0),PLE!$AA$28*CS34) -> 0 | ET34: =IF($K34<>1,IF(ISNUMBER(INDEX(Import.PLE,$K34,ET$16)),IF(INDEX(Import.PLE,$K34,ET$16)<=mediçao,CT34,0),0),PLE!$AA$28*CT34) -> 0 | EU34: =IF($K34<>1,IF(ISNUMBER(INDEX(Import.PLE,$K34,EU$16)),IF(INDEX(Import.PLE,$K34,EU$16)<=mediçao,CU34,0),0),PLE!$AA$28*CU34) -> 0 | EV34: =IF($K34<>1,IF(ISNUMBER(INDEX(Import.PLE,$K34,EV$16)),IF(INDEX(Import.PLE,$K34,EV$16)<=mediçao,CV34,0),0),PLE!$AA$28*CV34) -> 0 | EW34: =IF($K34<>1,IF(ISNUMBER(INDEX(Import.PLE,$K34,EW$16)),IF(INDEX(Import.PLE,$K34,EW$16)<=mediçao,CW34,0),0),PLE!$AA$28*CW34) -> 0 | EX34: =IF($K34<>1,IF(ISNUMBER(INDEX(Import.PLE,$K34,EX$16)),IF(INDEX(Import.PLE,$K34,EX$16)<=mediçao,CX34,0),0),PLE!$AA$28*CX34) -> 0 | EY34: =IF($K34<>1,IF(ISNUMBER(INDEX(Import.PLE,$K34,EY$16)),IF(INDEX(Import.PLE,$K34,EY$16)<=mediçao,CY34,0),0),PLE!$AA$28*CY34) -> 0 | EZ34: =IF($K34<>1,IF(ISNUMBER(INDEX(Import.PLE,$K34,EZ$16)),IF(INDEX(Import.PLE,$K34,EZ$16)<=mediçao,CZ34,0),0),PLE!$AA$28*CZ34) -> 0 | FA34: =IF($K34<>1,IF(ISNUMBER(INDEX(Import.PLE,$K34,FA$16)),IF(INDEX(Import.PLE,$K34,FA$16)<=mediçao,DA34,0),0),PLE!$AA$28*DA34) -> 0 | FB34: =IF($K34<>1,IF(ISNUMBER(INDEX(Import.PLE,$K34,FB$16)),IF(INDEX(Import.PLE,$K34,FB$16)<=mediçao,DB34,0),0),PLE!$AA$28*DB34) -> 0 | FC34: =IF($K34<>1,IF(ISNUMBER(INDEX(Import.PLE,$K34,FC$16)),IF(INDEX(Import.PLE,$K34,FC$16)<=mediçao,DC34,0),0),PLE!$AA$28*DC34) -> 0 | FD34: =IF($K34<>1,IF(ISNUMBER(INDEX(Import.PLE,$K34,FD$16)),IF(INDEX(Import.PLE,$K34,FD$16)<=mediçao,DD34,0),0),PLE!$AA$28*DD34) -> 0 | FE34: =IF($K34<>1,IF(ISNUMBER(INDEX(Import.PLE,$K34,FE$16)),IF(INDEX(Import.PLE,$K34,FE$16)<=mediçao,DE34,0),0),PLE!$AA$28*DE34) -> 0 | FF34: =IF($K34<>1,IF(ISNUMBER(INDEX(Import.PLE,$K34,FF$16)),IF(INDEX(Import.PLE,$K34,FF$16)<=mediçao,DF34,0),0),PLE!$AA$28*DF34) -> 0 | FG34: =IF($K34<>1,IF(ISNUMBER(INDEX(Import.PLE,$K34,FG$16)),IF(INDEX(Import.PLE,$K34,FG$16)<=mediçao,DG34,0),0),PLE!$AA$28*DG34) -> 0 | FH34: =IF($K34<>1,IF(ISNUMBER(INDEX(Import.PLE,$K34,FH$16)),IF(INDEX(Import.PLE,$K34,FH$16)<=mediçao,DH34,0),0),PLE!$AA$28*DH34) -> 0 | FI34: =IF($K34<>1,IF(ISNUMBER(INDEX(Import.PLE,$K34,FI$16)),IF(INDEX(Import.PLE,$K34,FI$16)<=mediçao,DI34,0),0),PLE!$AA$28*DI34) -> 0 | FJ34: =IF($K34<>1,IF(ISNUMBER(INDEX(Import.PLE,$K34,FJ$16)),IF(INDEX(Import.PLE,$K34,FJ$16)<=mediçao,DJ34,0),0),PLE!$AA$28*DJ34) -> 0
B35: 18 | C35: Serviço | D35: 1.5.3. | E35: TRANSPORTE COM CAMINHÃO BASCULANTE 10 M3 DE MASSA ASFALTICA PARA PAVIMENTAÇÃO URBANA | F35: M3XKM | G35: 5003.22 | H35: 1.0499998 | I35: 5253.38 | K35: =deactivatedados.form1 -> 6 | L35: 6-Revestimento Asfáltico | O35: 466.54 | P35: 1085.7 | Q35: 1202.03 | R35: 1240.8 | S35: 1008.15 | BM35: 0 | BN35: 489.8669068 | BO35: 1139.984783 | BP35: 1262.13126 | BQ35: 1302.839752 | BR35: 1058.557298 | BS35: 0 | BT35: 0 | BU35: 0 | BV35: 0 | BW35: 0 | BX35: 0 | BY35: 0 | BZ35: 0 | CA35: 0 | CB35: 0 | CC35: 0 | CD35: 0 | CE35: 0 | CF35: 0 | CG35: 0 | CH35: 0 | CI35: 0 | CJ35: 0 | CK35: 0 | CL35: 0 | CM35: 0 | CN35: 0 | CO35: 0 | CP35: 0 | CQ35: 0 | CR35: 0 | CS35: 0 | CT35: 0 | CU35: 0 | CV35: 0 | CW35: 0 | CX35: 0 | CY35: 0 | CZ35: 0 | DA35: 0 | DB35: 0 | DC35: 0 | DD35: 0 | DE35: 0 | DF35: 0 | DG35: 0 | DH35: 0 | DI35: 0 | DJ35: 0 | DK35: 1 | DL35: 0 | DM35: =IF($K35<>1,IF(ISNUMBER(INDEX(Import.PLE,$K35,DM$16)),IF(INDEX(Import.PLE,$K35,DM$16)<=mediçao,BM35,0),0),PLE!$AA$28*BM35) -> 0 | DN35: =IF($K35<>1,IF(ISNUMBER(INDEX(Import.PLE,$K35,DN$16)),IF(INDEX(Import.PLE,$K35,DN$16)<=mediçao,BN35,0),0),PLE!$AA$28*BN35) -> 0 | DO35: =IF($K35<>1,IF(ISNUMBER(INDEX(Import.PLE,$K35,DO$16)),IF(INDEX(Import.PLE,$K35,DO$16)<=mediçao,BO35,0),0),PLE!$AA$28*BO35) -> 0 | DP35: =IF($K35<>1,IF(ISNUMBER(INDEX(Import.PLE,$K35,DP$16)),IF(INDEX(Import.PLE,$K35,DP$16)<=mediçao,BP35,0),0),PLE!$AA$28*BP35) -> 0 | DQ35: =IF($K35<>1,IF(ISNUMBER(INDEX(Import.PLE,$K35,DQ$16)),IF(INDEX(Import.PLE,$K35,DQ$16)<=mediçao,BQ35,0),0),PLE!$AA$28*BQ35) -> 0 | DR35: =IF($K35<>1,IF(ISNUMBER(INDEX(Import.PLE,$K35,DR$16)),IF(INDEX(Import.PLE,$K35,DR$16)<=mediçao,BR35,0),0),PLE!$AA$28*BR35) -> 0 | DS35: =IF($K35<>1,IF(ISNUMBER(INDEX(Import.PLE,$K35,DS$16)),IF(INDEX(Import.PLE,$K35,DS$16)<=mediçao,BS35,0),0),PLE!$AA$28*BS35) -> 0 | DT35: =IF($K35<>1,IF(ISNUMBER(INDEX(Import.PLE,$K35,DT$16)),IF(INDEX(Import.PLE,$K35,DT$16)<=mediçao,BT35,0),0),PLE!$AA$28*BT35) -> 0 | DU35: =IF($K35<>1,IF(ISNUMBER(INDEX(Import.PLE,$K35,DU$16)),IF(INDEX(Import.PLE,$K35,DU$16)<=mediçao,BU35,0),0),PLE!$AA$28*BU35) -> 0 | DV35: =IF($K35<>1,IF(ISNUMBER(INDEX(Import.PLE,$K35,DV$16)),IF(INDEX(Import.PLE,$K35,DV$16)<=mediçao,BV35,0),0),PLE!$AA$28*BV35) -> 0 | DW35: =IF($K35<>1,IF(ISNUMBER(INDEX(Import.PLE,$K35,DW$16)),IF(INDEX(Import.PLE,$K35,DW$16)<=mediçao,BW35,0),0),PLE!$AA$28*BW35) -> 0 | DX35: =IF($K35<>1,IF(ISNUMBER(INDEX(Import.PLE,$K35,DX$16)),IF(INDEX(Import.PLE,$K35,DX$16)<=mediçao,BX35,0),0),PLE!$AA$28*BX35) -> 0 | DY35: =IF($K35<>1,IF(ISNUMBER(INDEX(Import.PLE,$K35,DY$16)),IF(INDEX(Import.PLE,$K35,DY$16)<=mediçao,BY35,0),0),PLE!$AA$28*BY35) -> 0 | DZ35: =IF($K35<>1,IF(ISNUMBER(INDEX(Import.PLE,$K35,DZ$16)),IF(INDEX(Import.PLE,$K35,DZ$16)<=mediçao,BZ35,0),0),PLE!$AA$28*BZ35) -> 0 | EA35: =IF($K35<>1,IF(ISNUMBER(INDEX(Import.PLE,$K35,EA$16)),IF(INDEX(Import.PLE,$K35,EA$16)<=mediçao,CA35,0),0),PLE!$AA$28*CA35) -> 0 | EB35: =IF($K35<>1,IF(ISNUMBER(INDEX(Import.PLE,$K35,EB$16)),IF(INDEX(Import.PLE,$K35,EB$16)<=mediçao,CB35,0),0),PLE!$AA$28*CB35) -> 0 | EC35: =IF($K35<>1,IF(ISNUMBER(INDEX(Import.PLE,$K35,EC$16)),IF(INDEX(Import.PLE,$K35,EC$16)<=mediçao,CC35,0),0),PLE!$AA$28*CC35) -> 0 | ED35: =IF($K35<>1,IF(ISNUMBER(INDEX(Import.PLE,$K35,ED$16)),IF(INDEX(Import.PLE,$K35,ED$16)<=mediçao,CD35,0),0),PLE!$AA$28*CD35) -> 0 | EE35: =IF($K35<>1,IF(ISNUMBER(INDEX(Import.PLE,$K35,EE$16)),IF(INDEX(Import.PLE,$K35,EE$16)<=mediçao,CE35,0),0),PLE!$AA$28*CE35) -> 0 | EF35: =IF($K35<>1,IF(ISNUMBER(INDEX(Import.PLE,$K35,EF$16)),IF(INDEX(Import.PLE,$K35,EF$16)<=mediçao,CF35,0),0),PLE!$AA$28*CF35) -> 0 | EG35: =IF($K35<>1,IF(ISNUMBER(INDEX(Import.PLE,$K35,EG$16)),IF(INDEX(Import.PLE,$K35,EG$16)<=mediçao,CG35,0),0),PLE!$AA$28*CG35) -> 0 | EH35: =IF($K35<>1,IF(ISNUMBER(INDEX(Import.PLE,$K35,EH$16)),IF(INDEX(Import.PLE,$K35,EH$16)<=mediçao,CH35,0),0),PLE!$AA$28*CH35) -> 0 | EI35: =IF($K35<>1,IF(ISNUMBER(INDEX(Import.PLE,$K35,EI$16)),IF(INDEX(Import.PLE,$K35,EI$16)<=mediçao,CI35,0),0),PLE!$AA$28*CI35) -> 0 | EJ35: =IF($K35<>1,IF(ISNUMBER(INDEX(Import.PLE,$K35,EJ$16)),IF(INDEX(Import.PLE,$K35,EJ$16)<=mediçao,CJ35,0),0),PLE!$AA$28*CJ35) -> 0 | EK35: =IF($K35<>1,IF(ISNUMBER(INDEX(Import.PLE,$K35,EK$16)),IF(INDEX(Import.PLE,$K35,EK$16)<=mediçao,CK35,0),0),PLE!$AA$28*CK35) -> 0 | EL35: =IF($K35<>1,IF(ISNUMBER(INDEX(Import.PLE,$K35,EL$16)),IF(INDEX(Import.PLE,$K35,EL$16)<=mediçao,CL35,0),0),PLE!$AA$28*CL35) -> 0 | EM35: =IF($K35<>1,IF(ISNUMBER(INDEX(Import.PLE,$K35,EM$16)),IF(INDEX(Import.PLE,$K35,EM$16)<=mediçao,CM35,0),0),PLE!$AA$28*CM35) -> 0 | EN35: =IF($K35<>1,IF(ISNUMBER(INDEX(Import.PLE,$K35,EN$16)),IF(INDEX(Import.PLE,$K35,EN$16)<=mediçao,CN35,0),0),PLE!$AA$28*CN35) -> 0 | EO35: =IF($K35<>1,IF(ISNUMBER(INDEX(Import.PLE,$K35,EO$16)),IF(INDEX(Import.PLE,$K35,EO$16)<=mediçao,CO35,0),0),PLE!$AA$28*CO35) -> 0 | EP35: =IF($K35<>1,IF(ISNUMBER(INDEX(Import.PLE,$K35,EP$16)),IF(INDEX(Import.PLE,$K35,EP$16)<=mediçao,CP35,0),0),PLE!$AA$28*CP35) -> 0 | EQ35: =IF($K35<>1,IF(ISNUMBER(INDEX(Import.PLE,$K35,EQ$16)),IF(INDEX(Import.PLE,$K35,EQ$16)<=mediçao,CQ35,0),0),PLE!$AA$28*CQ35) -> 0 | ER35: =IF($K35<>1,IF(ISNUMBER(INDEX(Import.PLE,$K35,ER$16)),IF(INDEX(Import.PLE,$K35,ER$16)<=mediçao,CR35,0),0),PLE!$AA$28*CR35) -> 0 | ES35: =IF($K35<>1,IF(ISNUMBER(INDEX(Import.PLE,$K35,ES$16)),IF(INDEX(Import.PLE,$K35,ES$16)<=mediçao,CS35,0),0),PLE!$AA$28*CS35) -> 0 | ET35: =IF($K35<>1,IF(ISNUMBER(INDEX(Import.PLE,$K35,ET$16)),IF(INDEX(Import.PLE,$K35,ET$16)<=mediçao,CT35,0),0),PLE!$AA$28*CT35) -> 0 | EU35: =IF($K35<>1,IF(ISNUMBER(INDEX(Import.PLE,$K35,EU$16)),IF(INDEX(Import.PLE,$K35,EU$16)<=mediçao,CU35,0),0),PLE!$AA$28*CU35) -> 0 | EV35: =IF($K35<>1,IF(ISNUMBER(INDEX(Import.PLE,$K35,EV$16)),IF(INDEX(Import.PLE,$K35,EV$16)<=mediçao,CV35,0),0),PLE!$AA$28*CV35) -> 0 | EW35: =IF($K35<>1,IF(ISNUMBER(INDEX(Import.PLE,$K35,EW$16)),IF(INDEX(Import.PLE,$K35,EW$16)<=mediçao,CW35,0),0),PLE!$AA$28*CW35) -> 0 | EX35: =IF($K35<>1,IF(ISNUMBER(INDEX(Import.PLE,$K35,EX$16)),IF(INDEX(Import.PLE,$K35,EX$16)<=mediçao,CX35,0),0),PLE!$AA$28*CX35) -> 0 | EY35: =IF($K35<>1,IF(ISNUMBER(INDEX(Import.PLE,$K35,EY$16)),IF(INDEX(Import.PLE,$K35,EY$16)<=mediçao,CY35,0),0),PLE!$AA$28*CY35) -> 0 | EZ35: =IF($K35<>1,IF(ISNUMBER(INDEX(Import.PLE,$K35,EZ$16)),IF(INDEX(Import.PLE,$K35,EZ$16)<=mediçao,CZ35,0),0),PLE!$AA$28*CZ35) -> 0 | FA35: =IF($K35<>1,IF(ISNUMBER(INDEX(Import.PLE,$K35,FA$16)),IF(INDEX(Import.PLE,$K35,FA$16)<=mediçao,DA35,0),0),PLE!$AA$28*DA35) -> 0 | FB35: =IF($K35<>1,IF(ISNUMBER(INDEX(Import.PLE,$K35,FB$16)),IF(INDEX(Import.PLE,$K35,FB$16)<=mediçao,DB35,0),0),PLE!$AA$28*DB35) -> 0 | FC35: =IF($K35<>1,IF(ISNUMBER(INDEX(Import.PLE,$K35,FC$16)),IF(INDEX(Import.PLE,$K35,FC$16)<=mediçao,DC35,0),0),PLE!$AA$28*DC35) -> 0 | FD35: =IF($K35<>1,IF(ISNUMBER(INDEX(Import.PLE,$K35,FD$16)),IF(INDEX(Import.PLE,$K35,FD$16)<=mediçao,DD35,0),0),PLE!$AA$28*DD35) -> 0 | FE35: =IF($K35<>1,IF(ISNUMBER(INDEX(Import.PLE,$K35,FE$16)),IF(INDEX(Import.PLE,$K35,FE$16)<=mediçao,DE35,0),0),PLE!$AA$28*DE35) -> 0 | FF35: =IF($K35<>1,IF(ISNUMBER(INDEX(Import.PLE,$K35,FF$16)),IF(INDEX(Import.PLE,$K35,FF$16)<=mediçao,DF35,0),0),PLE!$AA$28*DF35) -> 0 | FG35: =IF($K35<>1,IF(ISNUMBER(INDEX(Import.PLE,$K35,FG$16)),IF(INDEX(Import.PLE,$K35,FG$16)<=mediçao,DG35,0),0),PLE!$AA$28*DG35) -> 0 | FH35: =IF($K35<>1,IF(ISNUMBER(INDEX(Import.PLE,$K35,FH$16)),IF(INDEX(Import.PLE,$K35,FH$16)<=mediçao,DH35,0),0),PLE!$AA$28*DH35) -> 0 | FI35: =IF($K35<>1,IF(ISNUMBER(INDEX(Import.PLE,$K35,FI$16)),IF(INDEX(Import.PLE,$K35,FI$16)<=mediçao,DI35,0),0),PLE!$AA$28*DI35) -> 0 | FJ35: =IF($K35<>1,IF(ISNUMBER(INDEX(Import.PLE,$K35,FJ$16)),IF(INDEX(Import.PLE,$K35,FJ$16)<=mediçao,DJ35,0),0),PLE!$AA$28*DJ35) -> 0
B36: 19 | C36: Serviço | D36: 1.5.4. | E36: EXECUÇÃO DE PAVIMENTO COM APLICAÇÃO DE CONCRETO ASFÁLTICO, CAMADA DE ROLAMENTO - EXCLUSIVE CARGA E TRANSPORTE. AF_11/2019 | F36: M3 | G36: 90.97 | H36: 1250.87996 | I36: 113792.55 | K36: =deactivatedados.form1 -> 6 | L36: 6-Revestimento Asfáltico | O36: 8.48 | P36: 19.74 | Q36: 21.86 | R36: 22.56 | S36: 18.33 | BM36: 0 | BN36: 10607.46206 | BO36: 24692.37042 | BP36: 27344.23593 | BQ36: 28219.85191 | BR36: 22928.62967 | BS36: 0 | BT36: 0 | BU36: 0 | BV36: 0 | BW36: 0 | BX36: 0 | BY36: 0 | BZ36: 0 | CA36: 0 | CB36: 0 | CC36: 0 | CD36: 0 | CE36: 0 | CF36: 0 | CG36: 0 | CH36: 0 | CI36: 0 | CJ36: 0 | CK36: 0 | CL36: 0 | CM36: 0 | CN36: 0 | CO36: 0 | CP36: 0 | CQ36: 0 | CR36: 0 | CS36: 0 | CT36: 0 | CU36: 0 | CV36: 0 | CW36: 0 | CX36: 0 | CY36: 0 | CZ36: 0 | DA36: 0 | DB36: 0 | DC36: 0 | DD36: 0 | DE36: 0 | DF36: 0 | DG36: 0 | DH36: 0 | DI36: 0 | DJ36: 0 | DK36: 1 | DL36: 0 | DM36: =IF($K36<>1,IF(ISNUMBER(INDEX(Import.PLE,$K36,DM$16)),IF(INDEX(Import.PLE,$K36,DM$16)<=mediçao,BM36,0),0),PLE!$AA$28*BM36) -> 0 | DN36: =IF($K36<>1,IF(ISNUMBER(INDEX(Import.PLE,$K36,DN$16)),IF(INDEX(Import.PLE,$K36,DN$16)<=mediçao,BN36,0),0),PLE!$AA$28*BN36) -> 0 | DO36: =IF($K36<>1,IF(ISNUMBER(INDEX(Import.PLE,$K36,DO$16)),IF(INDEX(Import.PLE,$K36,DO$16)<=mediçao,BO36,0),0),PLE!$AA$28*BO36) -> 0 | DP36: =IF($K36<>1,IF(ISNUMBER(INDEX(Import.PLE,$K36,DP$16)),IF(INDEX(Import.PLE,$K36,DP$16)<=mediçao,BP36,0),0),PLE!$AA$28*BP36) -> 0 | DQ36: =IF($K36<>1,IF(ISNUMBER(INDEX(Import.PLE,$K36,DQ$16)),IF(INDEX(Import.PLE,$K36,DQ$16)<=mediçao,BQ36,0),0),PLE!$AA$28*BQ36) -> 0 | DR36: =IF($K36<>1,IF(ISNUMBER(INDEX(Import.PLE,$K36,DR$16)),IF(INDEX(Import.PLE,$K36,DR$16)<=mediçao,BR36,0),0),PLE!$AA$28*BR36) -> 0 | DS36: =IF($K36<>1,IF(ISNUMBER(INDEX(Import.PLE,$K36,DS$16)),IF(INDEX(Import.PLE,$K36,DS$16)<=mediçao,BS36,0),0),PLE!$AA$28*BS36) -> 0 | DT36: =IF($K36<>1,IF(ISNUMBER(INDEX(Import.PLE,$K36,DT$16)),IF(INDEX(Import.PLE,$K36,DT$16)<=mediçao,BT36,0),0),PLE!$AA$28*BT36) -> 0 | DU36: =IF($K36<>1,IF(ISNUMBER(INDEX(Import.PLE,$K36,DU$16)),IF(INDEX(Import.PLE,$K36,DU$16)<=mediçao,BU36,0),0),PLE!$AA$28*BU36) -> 0 | DV36: =IF($K36<>1,IF(ISNUMBER(INDEX(Import.PLE,$K36,DV$16)),IF(INDEX(Import.PLE,$K36,DV$16)<=mediçao,BV36,0),0),PLE!$AA$28*BV36) -> 0 | DW36: =IF($K36<>1,IF(ISNUMBER(INDEX(Import.PLE,$K36,DW$16)),IF(INDEX(Import.PLE,$K36,DW$16)<=mediçao,BW36,0),0),PLE!$AA$28*BW36) -> 0 | DX36: =IF($K36<>1,IF(ISNUMBER(INDEX(Import.PLE,$K36,DX$16)),IF(INDEX(Import.PLE,$K36,DX$16)<=mediçao,BX36,0),0),PLE!$AA$28*BX36) -> 0 | DY36: =IF($K36<>1,IF(ISNUMBER(INDEX(Import.PLE,$K36,DY$16)),IF(INDEX(Import.PLE,$K36,DY$16)<=mediçao,BY36,0),0),PLE!$AA$28*BY36) -> 0 | DZ36: =IF($K36<>1,IF(ISNUMBER(INDEX(Import.PLE,$K36,DZ$16)),IF(INDEX(Import.PLE,$K36,DZ$16)<=mediçao,BZ36,0),0),PLE!$AA$28*BZ36) -> 0 | EA36: =IF($K36<>1,IF(ISNUMBER(INDEX(Import.PLE,$K36,EA$16)),IF(INDEX(Import.PLE,$K36,EA$16)<=mediçao,CA36,0),0),PLE!$AA$28*CA36) -> 0 | EB36: =IF($K36<>1,IF(ISNUMBER(INDEX(Import.PLE,$K36,EB$16)),IF(INDEX(Import.PLE,$K36,EB$16)<=mediçao,CB36,0),0),PLE!$AA$28*CB36) -> 0 | EC36: =IF($K36<>1,IF(ISNUMBER(INDEX(Import.PLE,$K36,EC$16)),IF(INDEX(Import.PLE,$K36,EC$16)<=mediçao,CC36,0),0),PLE!$AA$28*CC36) -> 0 | ED36: =IF($K36<>1,IF(ISNUMBER(INDEX(Import.PLE,$K36,ED$16)),IF(INDEX(Import.PLE,$K36,ED$16)<=mediçao,CD36,0),0),PLE!$AA$28*CD36) -> 0 | EE36: =IF($K36<>1,IF(ISNUMBER(INDEX(Import.PLE,$K36,EE$16)),IF(INDEX(Import.PLE,$K36,EE$16)<=mediçao,CE36,0),0),PLE!$AA$28*CE36) -> 0 | EF36: =IF($K36<>1,IF(ISNUMBER(INDEX(Import.PLE,$K36,EF$16)),IF(INDEX(Import.PLE,$K36,EF$16)<=mediçao,CF36,0),0),PLE!$AA$28*CF36) -> 0 | EG36: =IF($K36<>1,IF(ISNUMBER(INDEX(Import.PLE,$K36,EG$16)),IF(INDEX(Import.PLE,$K36,EG$16)<=mediçao,CG36,0),0),PLE!$AA$28*CG36) -> 0 | EH36: =IF($K36<>1,IF(ISNUMBER(INDEX(Import.PLE,$K36,EH$16)),IF(INDEX(Import.PLE,$K36,EH$16)<=mediçao,CH36,0),0),PLE!$AA$28*CH36) -> 0 | EI36: =IF($K36<>1,IF(ISNUMBER(INDEX(Import.PLE,$K36,EI$16)),IF(INDEX(Import.PLE,$K36,EI$16)<=mediçao,CI36,0),0),PLE!$AA$28*CI36) -> 0 | EJ36: =IF($K36<>1,IF(ISNUMBER(INDEX(Import.PLE,$K36,EJ$16)),IF(INDEX(Import.PLE,$K36,EJ$16)<=mediçao,CJ36,0),0),PLE!$AA$28*CJ36) -> 0 | EK36: =IF($K36<>1,IF(ISNUMBER(INDEX(Import.PLE,$K36,EK$16)),IF(INDEX(Import.PLE,$K36,EK$16)<=mediçao,CK36,0),0),PLE!$AA$28*CK36) -> 0 | EL36: =IF($K36<>1,IF(ISNUMBER(INDEX(Import.PLE,$K36,EL$16)),IF(INDEX(Import.PLE,$K36,EL$16)<=mediçao,CL36,0),0),PLE!$AA$28*CL36) -> 0 | EM36: =IF($K36<>1,IF(ISNUMBER(INDEX(Import.PLE,$K36,EM$16)),IF(INDEX(Import.PLE,$K36,EM$16)<=mediçao,CM36,0),0),PLE!$AA$28*CM36) -> 0 | EN36: =IF($K36<>1,IF(ISNUMBER(INDEX(Import.PLE,$K36,EN$16)),IF(INDEX(Import.PLE,$K36,EN$16)<=mediçao,CN36,0),0),PLE!$AA$28*CN36) -> 0 | EO36: =IF($K36<>1,IF(ISNUMBER(INDEX(Import.PLE,$K36,EO$16)),IF(INDEX(Import.PLE,$K36,EO$16)<=mediçao,CO36,0),0),PLE!$AA$28*CO36) -> 0 | EP36: =IF($K36<>1,IF(ISNUMBER(INDEX(Import.PLE,$K36,EP$16)),IF(INDEX(Import.PLE,$K36,EP$16)<=mediçao,CP36,0),0),PLE!$AA$28*CP36) -> 0 | EQ36: =IF($K36<>1,IF(ISNUMBER(INDEX(Import.PLE,$K36,EQ$16)),IF(INDEX(Import.PLE,$K36,EQ$16)<=mediçao,CQ36,0),0),PLE!$AA$28*CQ36) -> 0 | ER36: =IF($K36<>1,IF(ISNUMBER(INDEX(Import.PLE,$K36,ER$16)),IF(INDEX(Import.PLE,$K36,ER$16)<=mediçao,CR36,0),0),PLE!$AA$28*CR36) -> 0 | ES36: =IF($K36<>1,IF(ISNUMBER(INDEX(Import.PLE,$K36,ES$16)),IF(INDEX(Import.PLE,$K36,ES$16)<=mediçao,CS36,0),0),PLE!$AA$28*CS36) -> 0 | ET36: =IF($K36<>1,IF(ISNUMBER(INDEX(Import.PLE,$K36,ET$16)),IF(INDEX(Import.PLE,$K36,ET$16)<=mediçao,CT36,0),0),PLE!$AA$28*CT36) -> 0 | EU36: =IF($K36<>1,IF(ISNUMBER(INDEX(Import.PLE,$K36,EU$16)),IF(INDEX(Import.PLE,$K36,EU$16)<=mediçao,CU36,0),0),PLE!$AA$28*CU36) -> 0 | EV36: =IF($K36<>1,IF(ISNUMBER(INDEX(Import.PLE,$K36,EV$16)),IF(INDEX(Import.PLE,$K36,EV$16)<=mediçao,CV36,0),0),PLE!$AA$28*CV36) -> 0 | EW36: =IF($K36<>1,IF(ISNUMBER(INDEX(Import.PLE,$K36,EW$16)),IF(INDEX(Import.PLE,$K36,EW$16)<=mediçao,CW36,0),0),PLE!$AA$28*CW36) -> 0 | EX36: =IF($K36<>1,IF(ISNUMBER(INDEX(Import.PLE,$K36,EX$16)),IF(INDEX(Import.PLE,$K36,EX$16)<=mediçao,CX36,0),0),PLE!$AA$28*CX36) -> 0 | EY36: =IF($K36<>1,IF(ISNUMBER(INDEX(Import.PLE,$K36,EY$16)),IF(INDEX(Import.PLE,$K36,EY$16)<=mediçao,CY36,0),0),PLE!$AA$28*CY36) -> 0 | EZ36: =IF($K36<>1,IF(ISNUMBER(INDEX(Import.PLE,$K36,EZ$16)),IF(INDEX(Import.PLE,$K36,EZ$16)<=mediçao,CZ36,0),0),PLE!$AA$28*CZ36) -> 0 | FA36: =IF($K36<>1,IF(ISNUMBER(INDEX(Import.PLE,$K36,FA$16)),IF(INDEX(Import.PLE,$K36,FA$16)<=mediçao,DA36,0),0),PLE!$AA$28*DA36) -> 0 | FB36: =IF($K36<>1,IF(ISNUMBER(INDEX(Import.PLE,$K36,FB$16)),IF(INDEX(Import.PLE,$K36,FB$16)<=mediçao,DB36,0),0),PLE!$AA$28*DB36) -> 0 | FC36: =IF($K36<>1,IF(ISNUMBER(INDEX(Import.PLE,$K36,FC$16)),IF(INDEX(Import.PLE,$K36,FC$16)<=mediçao,DC36,0),0),PLE!$AA$28*DC36) -> 0 | FD36: =IF($K36<>1,IF(ISNUMBER(INDEX(Import.PLE,$K36,FD$16)),IF(INDEX(Import.PLE,$K36,FD$16)<=mediçao,DD36,0),0),PLE!$AA$28*DD36) -> 0 | FE36: =IF($K36<>1,IF(ISNUMBER(INDEX(Import.PLE,$K36,FE$16)),IF(INDEX(Import.PLE,$K36,FE$16)<=mediçao,DE36,0),0),PLE!$AA$28*DE36) -> 0 | FF36: =IF($K36<>1,IF(ISNUMBER(INDEX(Import.PLE,$K36,FF$16)),IF(INDEX(Import.PLE,$K36,FF$16)<=mediçao,DF36,0),0),PLE!$AA$28*DF36) -> 0 | FG36: =IF($K36<>1,IF(ISNUMBER(INDEX(Import.PLE,$K36,FG$16)),IF(INDEX(Import.PLE,$K36,FG$16)<=mediçao,DG36,0),0),PLE!$AA$28*DG36) -> 0 | FH36: =IF($K36<>1,IF(ISNUMBER(INDEX(Import.PLE,$K36,FH$16)),IF(INDEX(Import.PLE,$K36,FH$16)<=mediçao,DH36,0),0),PLE!$AA$28*DH36) -> 0 | FI36: =IF($K36<>1,IF(ISNUMBER(INDEX(Import.PLE,$K36,FI$16)),IF(INDEX(Import.PLE,$K36,FI$16)<=mediçao,DI36,0),0),PLE!$AA$28*DI36) -> 0 | FJ36: =IF($K36<>1,IF(ISNUMBER(INDEX(Import.PLE,$K36,FJ$16)),IF(INDEX(Import.PLE,$K36,FJ$16)<=mediçao,DJ36,0),0),PLE!$AA$28*DJ36) -> 0
B37: 20 | C37: Nível | D37: 1.6. | E37: MEIO-FIO/SARJETAS | I37: 27892.2 | K37: =deactivatedados.form1 ->  | BM37: 0 | BN37: 0 | BO37: 0 | BP37: 0 | BQ37: 0 | BR37: 0 | BS37: 0 | BT37: 0 | BU37: 0 | BV37: 0 | BW37: 0 | BX37: 0 | BY37: 0 | BZ37: 0 | CA37: 0 | CB37: 0 | CC37: 0 | CD37: 0 | CE37: 0 | CF37: 0 | CG37: 0 | CH37: 0 | CI37: 0 | CJ37: 0 | CK37: 0 | CL37: 0 | CM37: 0 | CN37: 0 | CO37: 0 | CP37: 0 | CQ37: 0 | CR37: 0 | CS37: 0 | CT37: 0 | CU37: 0 | CV37: 0 | CW37: 0 | CX37: 0 | CY37: 0 | CZ37: 0 | DA37: 0 | DB37: 0 | DC37: 0 | DD37: 0 | DE37: 0 | DF37: 0 | DG37: 0 | DH37: 0 | DI37: 0 | DJ37: 0 | DK37: 1 | DL37: 0 | DM37: =IF($K37<>1,IF(ISNUMBER(INDEX(Import.PLE,$K37,DM$16)),IF(INDEX(Import.PLE,$K37,DM$16)<=mediçao,BM37,0),0),PLE!$AA$28*BM37) -> 0 | DN37: =IF($K37<>1,IF(ISNUMBER(INDEX(Import.PLE,$K37,DN$16)),IF(INDEX(Import.PLE,$K37,DN$16)<=mediçao,BN37,0),0),PLE!$AA$28*BN37) -> 0 | DO37: =IF($K37<>1,IF(ISNUMBER(INDEX(Import.PLE,$K37,DO$16)),IF(INDEX(Import.PLE,$K37,DO$16)<=mediçao,BO37,0),0),PLE!$AA$28*BO37) -> 0 | DP37: =IF($K37<>1,IF(ISNUMBER(INDEX(Import.PLE,$K37,DP$16)),IF(INDEX(Import.PLE,$K37,DP$16)<=mediçao,BP37,0),0),PLE!$AA$28*BP37) -> 0 | DQ37: =IF($K37<>1,IF(ISNUMBER(INDEX(Import.PLE,$K37,DQ$16)),IF(INDEX(Import.PLE,$K37,DQ$16)<=mediçao,BQ37,0),0),PLE!$AA$28*BQ37) -> 0 | DR37: =IF($K37<>1,IF(ISNUMBER(INDEX(Import.PLE,$K37,DR$16)),IF(INDEX(Import.PLE,$K37,DR$16)<=mediçao,BR37,0),0),PLE!$AA$28*BR37) -> 0 | DS37: =IF($K37<>1,IF(ISNUMBER(INDEX(Import.PLE,$K37,DS$16)),IF(INDEX(Import.PLE,$K37,DS$16)<=mediçao,BS37,0),0),PLE!$AA$28*BS37) -> 0 | DT37: =IF($K37<>1,IF(ISNUMBER(INDEX(Import.PLE,$K37,DT$16)),IF(INDEX(Import.PLE,$K37,DT$16)<=mediçao,BT37,0),0),PLE!$AA$28*BT37) -> 0 | DU37: =IF($K37<>1,IF(ISNUMBER(INDEX(Import.PLE,$K37,DU$16)),IF(INDEX(Import.PLE,$K37,DU$16)<=mediçao,BU37,0),0),PLE!$AA$28*BU37) -> 0 | DV37: =IF($K37<>1,IF(ISNUMBER(INDEX(Import.PLE,$K37,DV$16)),IF(INDEX(Import.PLE,$K37,DV$16)<=mediçao,BV37,0),0),PLE!$AA$28*BV37) -> 0 | DW37: =IF($K37<>1,IF(ISNUMBER(INDEX(Import.PLE,$K37,DW$16)),IF(INDEX(Import.PLE,$K37,DW$16)<=mediçao,BW37,0),0),PLE!$AA$28*BW37) -> 0 | DX37: =IF($K37<>1,IF(ISNUMBER(INDEX(Import.PLE,$K37,DX$16)),IF(INDEX(Import.PLE,$K37,DX$16)<=mediçao,BX37,0),0),PLE!$AA$28*BX37) -> 0 | DY37: =IF($K37<>1,IF(ISNUMBER(INDEX(Import.PLE,$K37,DY$16)),IF(INDEX(Import.PLE,$K37,DY$16)<=mediçao,BY37,0),0),PLE!$AA$28*BY37) -> 0 | DZ37: =IF($K37<>1,IF(ISNUMBER(INDEX(Import.PLE,$K37,DZ$16)),IF(INDEX(Import.PLE,$K37,DZ$16)<=mediçao,BZ37,0),0),PLE!$AA$28*BZ37) -> 0 | EA37: =IF($K37<>1,IF(ISNUMBER(INDEX(Import.PLE,$K37,EA$16)),IF(INDEX(Import.PLE,$K37,EA$16)<=mediçao,CA37,0),0),PLE!$AA$28*CA37) -> 0 | EB37: =IF($K37<>1,IF(ISNUMBER(INDEX(Import.PLE,$K37,EB$16)),IF(INDEX(Import.PLE,$K37,EB$16)<=mediçao,CB37,0),0),PLE!$AA$28*CB37) -> 0 | EC37: =IF($K37<>1,IF(ISNUMBER(INDEX(Import.PLE,$K37,EC$16)),IF(INDEX(Import.PLE,$K37,EC$16)<=mediçao,CC37,0),0),PLE!$AA$28*CC37) -> 0 | ED37: =IF($K37<>1,IF(ISNUMBER(INDEX(Import.PLE,$K37,ED$16)),IF(INDEX(Import.PLE,$K37,ED$16)<=mediçao,CD37,0),0),PLE!$AA$28*CD37) -> 0 | EE37: =IF($K37<>1,IF(ISNUMBER(INDEX(Import.PLE,$K37,EE$16)),IF(INDEX(Import.PLE,$K37,EE$16)<=mediçao,CE37,0),0),PLE!$AA$28*CE37) -> 0 | EF37: =IF($K37<>1,IF(ISNUMBER(INDEX(Import.PLE,$K37,EF$16)),IF(INDEX(Import.PLE,$K37,EF$16)<=mediçao,CF37,0),0),PLE!$AA$28*CF37) -> 0 | EG37: =IF($K37<>1,IF(ISNUMBER(INDEX(Import.PLE,$K37,EG$16)),IF(INDEX(Import.PLE,$K37,EG$16)<=mediçao,CG37,0),0),PLE!$AA$28*CG37) -> 0 | EH37: =IF($K37<>1,IF(ISNUMBER(INDEX(Import.PLE,$K37,EH$16)),IF(INDEX(Import.PLE,$K37,EH$16)<=mediçao,CH37,0),0),PLE!$AA$28*CH37) -> 0 | EI37: =IF($K37<>1,IF(ISNUMBER(INDEX(Import.PLE,$K37,EI$16)),IF(INDEX(Import.PLE,$K37,EI$16)<=mediçao,CI37,0),0),PLE!$AA$28*CI37) -> 0 | EJ37: =IF($K37<>1,IF(ISNUMBER(INDEX(Import.PLE,$K37,EJ$16)),IF(INDEX(Import.PLE,$K37,EJ$16)<=mediçao,CJ37,0),0),PLE!$AA$28*CJ37) -> 0 | EK37: =IF($K37<>1,IF(ISNUMBER(INDEX(Import.PLE,$K37,EK$16)),IF(INDEX(Import.PLE,$K37,EK$16)<=mediçao,CK37,0),0),PLE!$AA$28*CK37) -> 0 | EL37: =IF($K37<>1,IF(ISNUMBER(INDEX(Import.PLE,$K37,EL$16)),IF(INDEX(Import.PLE,$K37,EL$16)<=mediçao,CL37,0),0),PLE!$AA$28*CL37) -> 0 | EM37: =IF($K37<>1,IF(ISNUMBER(INDEX(Import.PLE,$K37,EM$16)),IF(INDEX(Import.PLE,$K37,EM$16)<=mediçao,CM37,0),0),PLE!$AA$28*CM37) -> 0 | EN37: =IF($K37<>1,IF(ISNUMBER(INDEX(Import.PLE,$K37,EN$16)),IF(INDEX(Import.PLE,$K37,EN$16)<=mediçao,CN37,0),0),PLE!$AA$28*CN37) -> 0 | EO37: =IF($K37<>1,IF(ISNUMBER(INDEX(Import.PLE,$K37,EO$16)),IF(INDEX(Import.PLE,$K37,EO$16)<=mediçao,CO37,0),0),PLE!$AA$28*CO37) -> 0 | EP37: =IF($K37<>1,IF(ISNUMBER(INDEX(Import.PLE,$K37,EP$16)),IF(INDEX(Import.PLE,$K37,EP$16)<=mediçao,CP37,0),0),PLE!$AA$28*CP37) -> 0 | EQ37: =IF($K37<>1,IF(ISNUMBER(INDEX(Import.PLE,$K37,EQ$16)),IF(INDEX(Import.PLE,$K37,EQ$16)<=mediçao,CQ37,0),0),PLE!$AA$28*CQ37) -> 0 | ER37: =IF($K37<>1,IF(ISNUMBER(INDEX(Import.PLE,$K37,ER$16)),IF(INDEX(Import.PLE,$K37,ER$16)<=mediçao,CR37,0),0),PLE!$AA$28*CR37) -> 0 | ES37: =IF($K37<>1,IF(ISNUMBER(INDEX(Import.PLE,$K37,ES$16)),IF(INDEX(Import.PLE,$K37,ES$16)<=mediçao,CS37,0),0),PLE!$AA$28*CS37) -> 0 | ET37: =IF($K37<>1,IF(ISNUMBER(INDEX(Import.PLE,$K37,ET$16)),IF(INDEX(Import.PLE,$K37,ET$16)<=mediçao,CT37,0),0),PLE!$AA$28*CT37) -> 0 | EU37: =IF($K37<>1,IF(ISNUMBER(INDEX(Import.PLE,$K37,EU$16)),IF(INDEX(Import.PLE,$K37,EU$16)<=mediçao,CU37,0),0),PLE!$AA$28*CU37) -> 0 | EV37: =IF($K37<>1,IF(ISNUMBER(INDEX(Import.PLE,$K37,EV$16)),IF(INDEX(Import.PLE,$K37,EV$16)<=mediçao,CV37,0),0),PLE!$AA$28*CV37) -> 0 | EW37: =IF($K37<>1,IF(ISNUMBER(INDEX(Import.PLE,$K37,EW$16)),IF(INDEX(Import.PLE,$K37,EW$16)<=mediçao,CW37,0),0),PLE!$AA$28*CW37) -> 0 | EX37: =IF($K37<>1,IF(ISNUMBER(INDEX(Import.PLE,$K37,EX$16)),IF(INDEX(Import.PLE,$K37,EX$16)<=mediçao,CX37,0),0),PLE!$AA$28*CX37) -> 0 | EY37: =IF($K37<>1,IF(ISNUMBER(INDEX(Import.PLE,$K37,EY$16)),IF(INDEX(Import.PLE,$K37,EY$16)<=mediçao,CY37,0),0),PLE!$AA$28*CY37) -> 0 | EZ37: =IF($K37<>1,IF(ISNUMBER(INDEX(Import.PLE,$K37,EZ$16)),IF(INDEX(Import.PLE,$K37,EZ$16)<=mediçao,CZ37,0),0),PLE!$AA$28*CZ37) -> 0 | FA37: =IF($K37<>1,IF(ISNUMBER(INDEX(Import.PLE,$K37,FA$16)),IF(INDEX(Import.PLE,$K37,FA$16)<=mediçao,DA37,0),0),PLE!$AA$28*DA37) -> 0 | FB37: =IF($K37<>1,IF(ISNUMBER(INDEX(Import.PLE,$K37,FB$16)),IF(INDEX(Import.PLE,$K37,FB$16)<=mediçao,DB37,0),0),PLE!$AA$28*DB37) -> 0 | FC37: =IF($K37<>1,IF(ISNUMBER(INDEX(Import.PLE,$K37,FC$16)),IF(INDEX(Import.PLE,$K37,FC$16)<=mediçao,DC37,0),0),PLE!$AA$28*DC37) -> 0 | FD37: =IF($K37<>1,IF(ISNUMBER(INDEX(Import.PLE,$K37,FD$16)),IF(INDEX(Import.PLE,$K37,FD$16)<=mediçao,DD37,0),0),PLE!$AA$28*DD37) -> 0 | FE37: =IF($K37<>1,IF(ISNUMBER(INDEX(Import.PLE,$K37,FE$16)),IF(INDEX(Import.PLE,$K37,FE$16)<=mediçao,DE37,0),0),PLE!$AA$28*DE37) -> 0 | FF37: =IF($K37<>1,IF(ISNUMBER(INDEX(Import.PLE,$K37,FF$16)),IF(INDEX(Import.PLE,$K37,FF$16)<=mediçao,DF37,0),0),PLE!$AA$28*DF37) -> 0 | FG37: =IF($K37<>1,IF(ISNUMBER(INDEX(Import.PLE,$K37,FG$16)),IF(INDEX(Import.PLE,$K37,FG$16)<=mediçao,DG37,0),0),PLE!$AA$28*DG37) -> 0 | FH37: =IF($K37<>1,IF(ISNUMBER(INDEX(Import.PLE,$K37,FH$16)),IF(INDEX(Import.PLE,$K37,FH$16)<=mediçao,DH37,0),0),PLE!$AA$28*DH37) -> 0 | FI37: =IF($K37<>1,IF(ISNUMBER(INDEX(Import.PLE,$K37,FI$16)),IF(INDEX(Import.PLE,$K37,FI$16)<=mediçao,DI37,0),0),PLE!$AA$28*DI37) -> 0 | FJ37: =IF($K37<>1,IF(ISNUMBER(INDEX(Import.PLE,$K37,FJ$16)),IF(INDEX(Import.PLE,$K37,FJ$16)<=mediçao,DJ37,0),0),PLE!$AA$28*DJ37) -> 0
B38: 21 | C38: Serviço | D38: 1.6.1. | E38: GUIA (MEIO-FIO) E SARJETA CONJUGADOS DE CONCRETO, MOLDADA IN LOCO EM TRECHO RETO COM EXTRUSORA, 45 CM BASE (15 CM BASE DA GUIA + 30 CM BASE DA SARJETA) X 22 CM ALTURA. AF_06/2016 | F38: M | G38: 812 | H38: 34.35 | I38: 27892.2 | K38: =deactivatedados.form1 -> 7 | L38: 7-Meio-fio/Sarjetas | O38: 78 | P38: 168 | Q38: 186 | R38: 192 | S38: 188 | BM38: 0 | BN38: 2679.3 | BO38: 5770.8 | BP38: 6389.1 | BQ38: 6595.2 | BR38: 6457.8 | BS38: 0 | BT38: 0 | BU38: 0 | BV38: 0 | BW38: 0 | BX38: 0 | BY38: 0 | BZ38: 0 | CA38: 0 | CB38: 0 | CC38: 0 | CD38: 0 | CE38: 0 | CF38: 0 | CG38: 0 | CH38: 0 | CI38: 0 | CJ38: 0 | CK38: 0 | CL38: 0 | CM38: 0 | CN38: 0 | CO38: 0 | CP38: 0 | CQ38: 0 | CR38: 0 | CS38: 0 | CT38: 0 | CU38: 0 | CV38: 0 | CW38: 0 | CX38: 0 | CY38: 0 | CZ38: 0 | DA38: 0 | DB38: 0 | DC38: 0 | DD38: 0 | DE38: 0 | DF38: 0 | DG38: 0 | DH38: 0 | DI38: 0 | DJ38: 0 | DK38: 1 | DL38: 0 | DM38: =IF($K38<>1,IF(ISNUMBER(INDEX(Import.PLE,$K38,DM$16)),IF(INDEX(Import.PLE,$K38,DM$16)<=mediçao,BM38,0),0),PLE!$AA$28*BM38) -> 0 | DN38: =IF($K38<>1,IF(ISNUMBER(INDEX(Import.PLE,$K38,DN$16)),IF(INDEX(Import.PLE,$K38,DN$16)<=mediçao,BN38,0),0),PLE!$AA$28*BN38) -> 0 | DO38: =IF($K38<>1,IF(ISNUMBER(INDEX(Import.PLE,$K38,DO$16)),IF(INDEX(Import.PLE,$K38,DO$16)<=mediçao,BO38,0),0),PLE!$AA$28*BO38) -> 0 | DP38: =IF($K38<>1,IF(ISNUMBER(INDEX(Import.PLE,$K38,DP$16)),IF(INDEX(Import.PLE,$K38,DP$16)<=mediçao,BP38,0),0),PLE!$AA$28*BP38) -> 0 | DQ38: =IF($K38<>1,IF(ISNUMBER(INDEX(Import.PLE,$K38,DQ$16)),IF(INDEX(Import.PLE,$K38,DQ$16)<=mediçao,BQ38,0),0),PLE!$AA$28*BQ38) -> 0 | DR38: =IF($K38<>1,IF(ISNUMBER(INDEX(Import.PLE,$K38,DR$16)),IF(INDEX(Import.PLE,$K38,DR$16)<=mediçao,BR38,0),0),PLE!$AA$28*BR38) -> 0 | DS38: =IF($K38<>1,IF(ISNUMBER(INDEX(Import.PLE,$K38,DS$16)),IF(INDEX(Import.PLE,$K38,DS$16)<=mediçao,BS38,0),0),PLE!$AA$28*BS38) -> 0 | DT38: =IF($K38<>1,IF(ISNUMBER(INDEX(Import.PLE,$K38,DT$16)),IF(INDEX(Import.PLE,$K38,DT$16)<=mediçao,BT38,0),0),PLE!$AA$28*BT38) -> 0 | DU38: =IF($K38<>1,IF(ISNUMBER(INDEX(Import.PLE,$K38,DU$16)),IF(INDEX(Import.PLE,$K38,DU$16)<=mediçao,BU38,0),0),PLE!$AA$28*BU38) -> 0 | DV38: =IF($K38<>1,IF(ISNUMBER(INDEX(Import.PLE,$K38,DV$16)),IF(INDEX(Import.PLE,$K38,DV$16)<=mediçao,BV38,0),0),PLE!$AA$28*BV38) -> 0 | DW38: =IF($K38<>1,IF(ISNUMBER(INDEX(Import.PLE,$K38,DW$16)),IF(INDEX(Import.PLE,$K38,DW$16)<=mediçao,BW38,0),0),PLE!$AA$28*BW38) -> 0 | DX38: =IF($K38<>1,IF(ISNUMBER(INDEX(Import.PLE,$K38,DX$16)),IF(INDEX(Import.PLE,$K38,DX$16)<=mediçao,BX38,0),0),PLE!$AA$28*BX38) -> 0 | DY38: =IF($K38<>1,IF(ISNUMBER(INDEX(Import.PLE,$K38,DY$16)),IF(INDEX(Import.PLE,$K38,DY$16)<=mediçao,BY38,0),0),PLE!$AA$28*BY38) -> 0 | DZ38: =IF($K38<>1,IF(ISNUMBER(INDEX(Import.PLE,$K38,DZ$16)),IF(INDEX(Import.PLE,$K38,DZ$16)<=mediçao,BZ38,0),0),PLE!$AA$28*BZ38) -> 0 | EA38: =IF($K38<>1,IF(ISNUMBER(INDEX(Import.PLE,$K38,EA$16)),IF(INDEX(Import.PLE,$K38,EA$16)<=mediçao,CA38,0),0),PLE!$AA$28*CA38) -> 0 | EB38: =IF($K38<>1,IF(ISNUMBER(INDEX(Import.PLE,$K38,EB$16)),IF(INDEX(Import.PLE,$K38,EB$16)<=mediçao,CB38,0),0),PLE!$AA$28*CB38) -> 0 | EC38: =IF($K38<>1,IF(ISNUMBER(INDEX(Import.PLE,$K38,EC$16)),IF(INDEX(Import.PLE,$K38,EC$16)<=mediçao,CC38,0),0),PLE!$AA$28*CC38) -> 0 | ED38: =IF($K38<>1,IF(ISNUMBER(INDEX(Import.PLE,$K38,ED$16)),IF(INDEX(Import.PLE,$K38,ED$16)<=mediçao,CD38,0),0),PLE!$AA$28*CD38) -> 0 | EE38: =IF($K38<>1,IF(ISNUMBER(INDEX(Import.PLE,$K38,EE$16)),IF(INDEX(Import.PLE,$K38,EE$16)<=mediçao,CE38,0),0),PLE!$AA$28*CE38) -> 0 | EF38: =IF($K38<>1,IF(ISNUMBER(INDEX(Import.PLE,$K38,EF$16)),IF(INDEX(Import.PLE,$K38,EF$16)<=mediçao,CF38,0),0),PLE!$AA$28*CF38) -> 0 | EG38: =IF($K38<>1,IF(ISNUMBER(INDEX(Import.PLE,$K38,EG$16)),IF(INDEX(Import.PLE,$K38,EG$16)<=mediçao,CG38,0),0),PLE!$AA$28*CG38) -> 0 | EH38: =IF($K38<>1,IF(ISNUMBER(INDEX(Import.PLE,$K38,EH$16)),IF(INDEX(Import.PLE,$K38,EH$16)<=mediçao,CH38,0),0),PLE!$AA$28*CH38) -> 0 | EI38: =IF($K38<>1,IF(ISNUMBER(INDEX(Import.PLE,$K38,EI$16)),IF(INDEX(Import.PLE,$K38,EI$16)<=mediçao,CI38,0),0),PLE!$AA$28*CI38) -> 0 | EJ38: =IF($K38<>1,IF(ISNUMBER(INDEX(Import.PLE,$K38,EJ$16)),IF(INDEX(Import.PLE,$K38,EJ$16)<=mediçao,CJ38,0),0),PLE!$AA$28*CJ38) -> 0 | EK38: =IF($K38<>1,IF(ISNUMBER(INDEX(Import.PLE,$K38,EK$16)),IF(INDEX(Import.PLE,$K38,EK$16)<=mediçao,CK38,0),0),PLE!$AA$28*CK38) -> 0 | EL38: =IF($K38<>1,IF(ISNUMBER(INDEX(Import.PLE,$K38,EL$16)),IF(INDEX(Import.PLE,$K38,EL$16)<=mediçao,CL38,0),0),PLE!$AA$28*CL38) -> 0 | EM38: =IF($K38<>1,IF(ISNUMBER(INDEX(Import.PLE,$K38,EM$16)),IF(INDEX(Import.PLE,$K38,EM$16)<=mediçao,CM38,0),0),PLE!$AA$28*CM38) -> 0 | EN38: =IF($K38<>1,IF(ISNUMBER(INDEX(Import.PLE,$K38,EN$16)),IF(INDEX(Import.PLE,$K38,EN$16)<=mediçao,CN38,0),0),PLE!$AA$28*CN38) -> 0 | EO38: =IF($K38<>1,IF(ISNUMBER(INDEX(Import.PLE,$K38,EO$16)),IF(INDEX(Import.PLE,$K38,EO$16)<=mediçao,CO38,0),0),PLE!$AA$28*CO38) -> 0 | EP38: =IF($K38<>1,IF(ISNUMBER(INDEX(Import.PLE,$K38,EP$16)),IF(INDEX(Import.PLE,$K38,EP$16)<=mediçao,CP38,0),0),PLE!$AA$28*CP38) -> 0 | EQ38: =IF($K38<>1,IF(ISNUMBER(INDEX(Import.PLE,$K38,EQ$16)),IF(INDEX(Import.PLE,$K38,EQ$16)<=mediçao,CQ38,0),0),PLE!$AA$28*CQ38) -> 0 | ER38: =IF($K38<>1,IF(ISNUMBER(INDEX(Import.PLE,$K38,ER$16)),IF(INDEX(Import.PLE,$K38,ER$16)<=mediçao,CR38,0),0),PLE!$AA$28*CR38) -> 0 | ES38: =IF($K38<>1,IF(ISNUMBER(INDEX(Import.PLE,$K38,ES$16)),IF(INDEX(Import.PLE,$K38,ES$16)<=mediçao,CS38,0),0),PLE!$AA$28*CS38) -> 0 | ET38: =IF($K38<>1,IF(ISNUMBER(INDEX(Import.PLE,$K38,ET$16)),IF(INDEX(Import.PLE,$K38,ET$16)<=mediçao,CT38,0),0),PLE!$AA$28*CT38) -> 0 | EU38: =IF($K38<>1,IF(ISNUMBER(INDEX(Import.PLE,$K38,EU$16)),IF(INDEX(Import.PLE,$K38,EU$16)<=mediçao,CU38,0),0),PLE!$AA$28*CU38) -> 0 | EV38: =IF($K38<>1,IF(ISNUMBER(INDEX(Import.PLE,$K38,EV$16)),IF(INDEX(Import.PLE,$K38,EV$16)<=mediçao,CV38,0),0),PLE!$AA$28*CV38) -> 0 | EW38: =IF($K38<>1,IF(ISNUMBER(INDEX(Import.PLE,$K38,EW$16)),IF(INDEX(Import.PLE,$K38,EW$16)<=mediçao,CW38,0),0),PLE!$AA$28*CW38) -> 0 | EX38: =IF($K38<>1,IF(ISNUMBER(INDEX(Import.PLE,$K38,EX$16)),IF(INDEX(Import.PLE,$K38,EX$16)<=mediçao,CX38,0),0),PLE!$AA$28*CX38) -> 0 | EY38: =IF($K38<>1,IF(ISNUMBER(INDEX(Import.PLE,$K38,EY$16)),IF(INDEX(Import.PLE,$K38,EY$16)<=mediçao,CY38,0),0),PLE!$AA$28*CY38) -> 0 | EZ38: =IF($K38<>1,IF(ISNUMBER(INDEX(Import.PLE,$K38,EZ$16)),IF(INDEX(Import.PLE,$K38,EZ$16)<=mediçao,CZ38,0),0),PLE!$AA$28*CZ38) -> 0 | FA38: =IF($K38<>1,IF(ISNUMBER(INDEX(Import.PLE,$K38,FA$16)),IF(INDEX(Import.PLE,$K38,FA$16)<=mediçao,DA38,0),0),PLE!$AA$28*DA38) -> 0 | FB38: =IF($K38<>1,IF(ISNUMBER(INDEX(Import.PLE,$K38,FB$16)),IF(INDEX(Import.PLE,$K38,FB$16)<=mediçao,DB38,0),0),PLE!$AA$28*DB38) -> 0 | FC38: =IF($K38<>1,IF(ISNUMBER(INDEX(Import.PLE,$K38,FC$16)),IF(INDEX(Import.PLE,$K38,FC$16)<=mediçao,DC38,0),0),PLE!$AA$28*DC38) -> 0 | FD38: =IF($K38<>1,IF(ISNUMBER(INDEX(Import.PLE,$K38,FD$16)),IF(INDEX(Import.PLE,$K38,FD$16)<=mediçao,DD38,0),0),PLE!$AA$28*DD38) -> 0 | FE38: =IF($K38<>1,IF(ISNUMBER(INDEX(Import.PLE,$K38,FE$16)),IF(INDEX(Import.PLE,$K38,FE$16)<=mediçao,DE38,0),0),PLE!$AA$28*DE38) -> 0 | FF38: =IF($K38<>1,IF(ISNUMBER(INDEX(Import.PLE,$K38,FF$16)),IF(INDEX(Import.PLE,$K38,FF$16)<=mediçao,DF38,0),0),PLE!$AA$28*DF38) -> 0 | FG38: =IF($K38<>1,IF(ISNUMBER(INDEX(Import.PLE,$K38,FG$16)),IF(INDEX(Import.PLE,$K38,FG$16)<=mediçao,DG38,0),0),PLE!$AA$28*DG38) -> 0 | FH38: =IF($K38<>1,IF(ISNUMBER(INDEX(Import.PLE,$K38,FH$16)),IF(INDEX(Import.PLE,$K38,FH$16)<=mediçao,DH38,0),0),PLE!$AA$28*DH38) -> 0 | FI38: =IF($K38<>1,IF(ISNUMBER(INDEX(Import.PLE,$K38,FI$16)),IF(INDEX(Import.PLE,$K38,FI$16)<=mediçao,DI38,0),0),PLE!$AA$28*DI38) -> 0 | FJ38: =IF($K38<>1,IF(ISNUMBER(INDEX(Import.PLE,$K38,FJ$16)),IF(INDEX(Import.PLE,$K38,FJ$16)<=mediçao,DJ38,0),0),PLE!$AA$28*DJ38) -> 0
B39: 22 | C39: Nível | D39: 1.7. | E39: CALÇADAS/REBAIXAMENTOS | I39: 33292.27 | K39: =deactivatedados.form1 ->  | BM39: 0 | BN39: 0 | BO39: 0 | BP39: 0 | BQ39: 0 | BR39: 0 | BS39: 0 | BT39: 0 | BU39: 0 | BV39: 0 | BW39: 0 | BX39: 0 | BY39: 0 | BZ39: 0 | CA39: 0 | CB39: 0 | CC39: 0 | CD39: 0 | CE39: 0 | CF39: 0 | CG39: 0 | CH39: 0 | CI39: 0 | CJ39: 0 | CK39: 0 | CL39: 0 | CM39: 0 | CN39: 0 | CO39: 0 | CP39: 0 | CQ39: 0 | CR39: 0 | CS39: 0 | CT39: 0 | CU39: 0 | CV39: 0 | CW39: 0 | CX39: 0 | CY39: 0 | CZ39: 0 | DA39: 0 | DB39: 0 | DC39: 0 | DD39: 0 | DE39: 0 | DF39: 0 | DG39: 0 | DH39: 0 | DI39: 0 | DJ39: 0 | DK39: 1 | DL39: 0 | DM39: =IF($K39<>1,IF(ISNUMBER(INDEX(Import.PLE,$K39,DM$16)),IF(INDEX(Import.PLE,$K39,DM$16)<=mediçao,BM39,0),0),PLE!$AA$28*BM39) -> 0 | DN39: =IF($K39<>1,IF(ISNUMBER(INDEX(Import.PLE,$K39,DN$16)),IF(INDEX(Import.PLE,$K39,DN$16)<=mediçao,BN39,0),0),PLE!$AA$28*BN39) -> 0 | DO39: =IF($K39<>1,IF(ISNUMBER(INDEX(Import.PLE,$K39,DO$16)),IF(INDEX(Import.PLE,$K39,DO$16)<=mediçao,BO39,0),0),PLE!$AA$28*BO39) -> 0 | DP39: =IF($K39<>1,IF(ISNUMBER(INDEX(Import.PLE,$K39,DP$16)),IF(INDEX(Import.PLE,$K39,DP$16)<=mediçao,BP39,0),0),PLE!$AA$28*BP39) -> 0 | DQ39: =IF($K39<>1,IF(ISNUMBER(INDEX(Import.PLE,$K39,DQ$16)),IF(INDEX(Import.PLE,$K39,DQ$16)<=mediçao,BQ39,0),0),PLE!$AA$28*BQ39) -> 0 | DR39: =IF($K39<>1,IF(ISNUMBER(INDEX(Import.PLE,$K39,DR$16)),IF(INDEX(Import.PLE,$K39,DR$16)<=mediçao,BR39,0),0),PLE!$AA$28*BR39) -> 0 | DS39: =IF($K39<>1,IF(ISNUMBER(INDEX(Import.PLE,$K39,DS$16)),IF(INDEX(Import.PLE,$K39,DS$16)<=mediçao,BS39,0),0),PLE!$AA$28*BS39) -> 0 | DT39: =IF($K39<>1,IF(ISNUMBER(INDEX(Import.PLE,$K39,DT$16)),IF(INDEX(Import.PLE,$K39,DT$16)<=mediçao,BT39,0),0),PLE!$AA$28*BT39) -> 0 | DU39: =IF($K39<>1,IF(ISNUMBER(INDEX(Import.PLE,$K39,DU$16)),IF(INDEX(Import.PLE,$K39,DU$16)<=mediçao,BU39,0),0),PLE!$AA$28*BU39) -> 0 | DV39: =IF($K39<>1,IF(ISNUMBER(INDEX(Import.PLE,$K39,DV$16)),IF(INDEX(Import.PLE,$K39,DV$16)<=mediçao,BV39,0),0),PLE!$AA$28*BV39) -> 0 | DW39: =IF($K39<>1,IF(ISNUMBER(INDEX(Import.PLE,$K39,DW$16)),IF(INDEX(Import.PLE,$K39,DW$16)<=mediçao,BW39,0),0),PLE!$AA$28*BW39) -> 0 | DX39: =IF($K39<>1,IF(ISNUMBER(INDEX(Import.PLE,$K39,DX$16)),IF(INDEX(Import.PLE,$K39,DX$16)<=mediçao,BX39,0),0),PLE!$AA$28*BX39) -> 0 | DY39: =IF($K39<>1,IF(ISNUMBER(INDEX(Import.PLE,$K39,DY$16)),IF(INDEX(Import.PLE,$K39,DY$16)<=mediçao,BY39,0),0),PLE!$AA$28*BY39) -> 0 | DZ39: =IF($K39<>1,IF(ISNUMBER(INDEX(Import.PLE,$K39,DZ$16)),IF(INDEX(Import.PLE,$K39,DZ$16)<=mediçao,BZ39,0),0),PLE!$AA$28*BZ39) -> 0 | EA39: =IF($K39<>1,IF(ISNUMBER(INDEX(Import.PLE,$K39,EA$16)),IF(INDEX(Import.PLE,$K39,EA$16)<=mediçao,CA39,0),0),PLE!$AA$28*CA39) -> 0 | EB39: =IF($K39<>1,IF(ISNUMBER(INDEX(Import.PLE,$K39,EB$16)),IF(INDEX(Import.PLE,$K39,EB$16)<=mediçao,CB39,0),0),PLE!$AA$28*CB39) -> 0 | EC39: =IF($K39<>1,IF(ISNUMBER(INDEX(Import.PLE,$K39,EC$16)),IF(INDEX(Import.PLE,$K39,EC$16)<=mediçao,CC39,0),0),PLE!$AA$28*CC39) -> 0 | ED39: =IF($K39<>1,IF(ISNUMBER(INDEX(Import.PLE,$K39,ED$16)),IF(INDEX(Import.PLE,$K39,ED$16)<=mediçao,CD39,0),0),PLE!$AA$28*CD39) -> 0 | EE39: =IF($K39<>1,IF(ISNUMBER(INDEX(Import.PLE,$K39,EE$16)),IF(INDEX(Import.PLE,$K39,EE$16)<=mediçao,CE39,0),0),PLE!$AA$28*CE39) -> 0 | EF39: =IF($K39<>1,IF(ISNUMBER(INDEX(Import.PLE,$K39,EF$16)),IF(INDEX(Import.PLE,$K39,EF$16)<=mediçao,CF39,0),0),PLE!$AA$28*CF39) -> 0 | EG39: =IF($K39<>1,IF(ISNUMBER(INDEX(Import.PLE,$K39,EG$16)),IF(INDEX(Import.PLE,$K39,EG$16)<=mediçao,CG39,0),0),PLE!$AA$28*CG39) -> 0 | EH39: =IF($K39<>1,IF(ISNUMBER(INDEX(Import.PLE,$K39,EH$16)),IF(INDEX(Import.PLE,$K39,EH$16)<=mediçao,CH39,0),0),PLE!$AA$28*CH39) -> 0 | EI39: =IF($K39<>1,IF(ISNUMBER(INDEX(Import.PLE,$K39,EI$16)),IF(INDEX(Import.PLE,$K39,EI$16)<=mediçao,CI39,0),0),PLE!$AA$28*CI39) -> 0 | EJ39: =IF($K39<>1,IF(ISNUMBER(INDEX(Import.PLE,$K39,EJ$16)),IF(INDEX(Import.PLE,$K39,EJ$16)<=mediçao,CJ39,0),0),PLE!$AA$28*CJ39) -> 0 | EK39: =IF($K39<>1,IF(ISNUMBER(INDEX(Import.PLE,$K39,EK$16)),IF(INDEX(Import.PLE,$K39,EK$16)<=mediçao,CK39,0),0),PLE!$AA$28*CK39) -> 0 | EL39: =IF($K39<>1,IF(ISNUMBER(INDEX(Import.PLE,$K39,EL$16)),IF(INDEX(Import.PLE,$K39,EL$16)<=mediçao,CL39,0),0),PLE!$AA$28*CL39) -> 0 | EM39: =IF($K39<>1,IF(ISNUMBER(INDEX(Import.PLE,$K39,EM$16)),IF(INDEX(Import.PLE,$K39,EM$16)<=mediçao,CM39,0),0),PLE!$AA$28*CM39) -> 0 | EN39: =IF($K39<>1,IF(ISNUMBER(INDEX(Import.PLE,$K39,EN$16)),IF(INDEX(Import.PLE,$K39,EN$16)<=mediçao,CN39,0),0),PLE!$AA$28*CN39) -> 0 | EO39: =IF($K39<>1,IF(ISNUMBER(INDEX(Import.PLE,$K39,EO$16)),IF(INDEX(Import.PLE,$K39,EO$16)<=mediçao,CO39,0),0),PLE!$AA$28*CO39) -> 0 | EP39: =IF($K39<>1,IF(ISNUMBER(INDEX(Import.PLE,$K39,EP$16)),IF(INDEX(Import.PLE,$K39,EP$16)<=mediçao,CP39,0),0),PLE!$AA$28*CP39) -> 0 | EQ39: =IF($K39<>1,IF(ISNUMBER(INDEX(Import.PLE,$K39,EQ$16)),IF(INDEX(Import.PLE,$K39,EQ$16)<=mediçao,CQ39,0),0),PLE!$AA$28*CQ39) -> 0 | ER39: =IF($K39<>1,IF(ISNUMBER(INDEX(Import.PLE,$K39,ER$16)),IF(INDEX(Import.PLE,$K39,ER$16)<=mediçao,CR39,0),0),PLE!$AA$28*CR39) -> 0 | ES39: =IF($K39<>1,IF(ISNUMBER(INDEX(Import.PLE,$K39,ES$16)),IF(INDEX(Import.PLE,$K39,ES$16)<=mediçao,CS39,0),0),PLE!$AA$28*CS39) -> 0 | ET39: =IF($K39<>1,IF(ISNUMBER(INDEX(Import.PLE,$K39,ET$16)),IF(INDEX(Import.PLE,$K39,ET$16)<=mediçao,CT39,0),0),PLE!$AA$28*CT39) -> 0 | EU39: =IF($K39<>1,IF(ISNUMBER(INDEX(Import.PLE,$K39,EU$16)),IF(INDEX(Import.PLE,$K39,EU$16)<=mediçao,CU39,0),0),PLE!$AA$28*CU39) -> 0 | EV39: =IF($K39<>1,IF(ISNUMBER(INDEX(Import.PLE,$K39,EV$16)),IF(INDEX(Import.PLE,$K39,EV$16)<=mediçao,CV39,0),0),PLE!$AA$28*CV39) -> 0 | EW39: =IF($K39<>1,IF(ISNUMBER(INDEX(Import.PLE,$K39,EW$16)),IF(INDEX(Import.PLE,$K39,EW$16)<=mediçao,CW39,0),0),PLE!$AA$28*CW39) -> 0 | EX39: =IF($K39<>1,IF(ISNUMBER(INDEX(Import.PLE,$K39,EX$16)),IF(INDEX(Import.PLE,$K39,EX$16)<=mediçao,CX39,0),0),PLE!$AA$28*CX39) -> 0 | EY39: =IF($K39<>1,IF(ISNUMBER(INDEX(Import.PLE,$K39,EY$16)),IF(INDEX(Import.PLE,$K39,EY$16)<=mediçao,CY39,0),0),PLE!$AA$28*CY39) -> 0 | EZ39: =IF($K39<>1,IF(ISNUMBER(INDEX(Import.PLE,$K39,EZ$16)),IF(INDEX(Import.PLE,$K39,EZ$16)<=mediçao,CZ39,0),0),PLE!$AA$28*CZ39) -> 0 | FA39: =IF($K39<>1,IF(ISNUMBER(INDEX(Import.PLE,$K39,FA$16)),IF(INDEX(Import.PLE,$K39,FA$16)<=mediçao,DA39,0),0),PLE!$AA$28*DA39) -> 0 | FB39: =IF($K39<>1,IF(ISNUMBER(INDEX(Import.PLE,$K39,FB$16)),IF(INDEX(Import.PLE,$K39,FB$16)<=mediçao,DB39,0),0),PLE!$AA$28*DB39) -> 0 | FC39: =IF($K39<>1,IF(ISNUMBER(INDEX(Import.PLE,$K39,FC$16)),IF(INDEX(Import.PLE,$K39,FC$16)<=mediçao,DC39,0),0),PLE!$AA$28*DC39) -> 0 | FD39: =IF($K39<>1,IF(ISNUMBER(INDEX(Import.PLE,$K39,FD$16)),IF(INDEX(Import.PLE,$K39,FD$16)<=mediçao,DD39,0),0),PLE!$AA$28*DD39) -> 0 | FE39: =IF($K39<>1,IF(ISNUMBER(INDEX(Import.PLE,$K39,FE$16)),IF(INDEX(Import.PLE,$K39,FE$16)<=mediçao,DE39,0),0),PLE!$AA$28*DE39) -> 0 | FF39: =IF($K39<>1,IF(ISNUMBER(INDEX(Import.PLE,$K39,FF$16)),IF(INDEX(Import.PLE,$K39,FF$16)<=mediçao,DF39,0),0),PLE!$AA$28*DF39) -> 0 | FG39: =IF($K39<>1,IF(ISNUMBER(INDEX(Import.PLE,$K39,FG$16)),IF(INDEX(Import.PLE,$K39,FG$16)<=mediçao,DG39,0),0),PLE!$AA$28*DG39) -> 0 | FH39: =IF($K39<>1,IF(ISNUMBER(INDEX(Import.PLE,$K39,FH$16)),IF(INDEX(Import.PLE,$K39,FH$16)<=mediçao,DH39,0),0),PLE!$AA$28*DH39) -> 0 | FI39: =IF($K39<>1,IF(ISNUMBER(INDEX(Import.PLE,$K39,FI$16)),IF(INDEX(Import.PLE,$K39,FI$16)<=mediçao,DI39,0),0),PLE!$AA$28*DI39) -> 0 | FJ39: =IF($K39<>1,IF(ISNUMBER(INDEX(Import.PLE,$K39,FJ$16)),IF(INDEX(Import.PLE,$K39,FJ$16)<=mediçao,DJ39,0),0),PLE!$AA$28*DJ39) -> 0
B40: 23 | C40: Serviço | D40: 1.7.1. | E40: EXECUÇÃO DE PASSEIO (CALÇADA) OU PISO DE CONCRETO COM CONCRETO MOLDADO IN LOCO, USINADO, ACABAMENTO CONVENCIONAL, NÃO ARMADO. AF_07/2016 | F40: M3 | G40: 63.23 | H40: 469 | I40: 29654.87 | K40: =deactivatedados.form1 -> 8 | L40: 8-Passeios/Rebaixamentos | O40: 5.85 | P40: 12.6 | Q40: 16.28 | R40: 14.4 | S40: 14.1 | BM40: 0 | BN40: 2743.65 | BO40: 5909.4 | BP40: 7635.32 | BQ40: 6753.6 | BR40: 6612.9 | BS40: 0 | BT40: 0 | BU40: 0 | BV40: 0 | BW40: 0 | BX40: 0 | BY40: 0 | BZ40: 0 | CA40: 0 | CB40: 0 | CC40: 0 | CD40: 0 | CE40: 0 | CF40: 0 | CG40: 0 | CH40: 0 | CI40: 0 | CJ40: 0 | CK40: 0 | CL40: 0 | CM40: 0 | CN40: 0 | CO40: 0 | CP40: 0 | CQ40: 0 | CR40: 0 | CS40: 0 | CT40: 0 | CU40: 0 | CV40: 0 | CW40: 0 | CX40: 0 | CY40: 0 | CZ40: 0 | DA40: 0 | DB40: 0 | DC40: 0 | DD40: 0 | DE40: 0 | DF40: 0 | DG40: 0 | DH40: 0 | DI40: 0 | DJ40: 0 | DK40: 1 | DL40: 0 | DM40: =IF($K40<>1,IF(ISNUMBER(INDEX(Import.PLE,$K40,DM$16)),IF(INDEX(Import.PLE,$K40,DM$16)<=mediçao,BM40,0),0),PLE!$AA$28*BM40) -> 0 | DN40: =IF($K40<>1,IF(ISNUMBER(INDEX(Import.PLE,$K40,DN$16)),IF(INDEX(Import.PLE,$K40,DN$16)<=mediçao,BN40,0),0),PLE!$AA$28*BN40) -> 0 | DO40: =IF($K40<>1,IF(ISNUMBER(INDEX(Import.PLE,$K40,DO$16)),IF(INDEX(Import.PLE,$K40,DO$16)<=mediçao,BO40,0),0),PLE!$AA$28*BO40) -> 0 | DP40: =IF($K40<>1,IF(ISNUMBER(INDEX(Import.PLE,$K40,DP$16)),IF(INDEX(Import.PLE,$K40,DP$16)<=mediçao,BP40,0),0),PLE!$AA$28*BP40) -> 0 | DQ40: =IF($K40<>1,IF(ISNUMBER(INDEX(Import.PLE,$K40,DQ$16)),IF(INDEX(Import.PLE,$K40,DQ$16)<=mediçao,BQ40,0),0),PLE!$AA$28*BQ40) -> 0 | DR40: =IF($K40<>1,IF(ISNUMBER(INDEX(Import.PLE,$K40,DR$16)),IF(INDEX(Import.PLE,$K40,DR$16)<=mediçao,BR40,0),0),PLE!$AA$28*BR40) -> 0 | DS40: =IF($K40<>1,IF(ISNUMBER(INDEX(Import.PLE,$K40,DS$16)),IF(INDEX(Import.PLE,$K40,DS$16)<=mediçao,BS40,0),0),PLE!$AA$28*BS40) -> 0 | DT40: =IF($K40<>1,IF(ISNUMBER(INDEX(Import.PLE,$K40,DT$16)),IF(INDEX(Import.PLE,$K40,DT$16)<=mediçao,BT40,0),0),PLE!$AA$28*BT40) -> 0 | DU40: =IF($K40<>1,IF(ISNUMBER(INDEX(Import.PLE,$K40,DU$16)),IF(INDEX(Import.PLE,$K40,DU$16)<=mediçao,BU40,0),0),PLE!$AA$28*BU40) -> 0 | DV40: =IF($K40<>1,IF(ISNUMBER(INDEX(Import.PLE,$K40,DV$16)),IF(INDEX(Import.PLE,$K40,DV$16)<=mediçao,BV40,0),0),PLE!$AA$28*BV40) -> 0 | DW40: =IF($K40<>1,IF(ISNUMBER(INDEX(Import.PLE,$K40,DW$16)),IF(INDEX(Import.PLE,$K40,DW$16)<=mediçao,BW40,0),0),PLE!$AA$28*BW40) -> 0 | DX40: =IF($K40<>1,IF(ISNUMBER(INDEX(Import.PLE,$K40,DX$16)),IF(INDEX(Import.PLE,$K40,DX$16)<=mediçao,BX40,0),0),PLE!$AA$28*BX40) -> 0 | DY40: =IF($K40<>1,IF(ISNUMBER(INDEX(Import.PLE,$K40,DY$16)),IF(INDEX(Import.PLE,$K40,DY$16)<=mediçao,BY40,0),0),PLE!$AA$28*BY40) -> 0 | DZ40: =IF($K40<>1,IF(ISNUMBER(INDEX(Import.PLE,$K40,DZ$16)),IF(INDEX(Import.PLE,$K40,DZ$16)<=mediçao,BZ40,0),0),PLE!$AA$28*BZ40) -> 0 | EA40: =IF($K40<>1,IF(ISNUMBER(INDEX(Import.PLE,$K40,EA$16)),IF(INDEX(Import.PLE,$K40,EA$16)<=mediçao,CA40,0),0),PLE!$AA$28*CA40) -> 0 | EB40: =IF($K40<>1,IF(ISNUMBER(INDEX(Import.PLE,$K40,EB$16)),IF(INDEX(Import.PLE,$K40,EB$16)<=mediçao,CB40,0),0),PLE!$AA$28*CB40) -> 0 | EC40: =IF($K40<>1,IF(ISNUMBER(INDEX(Import.PLE,$K40,EC$16)),IF(INDEX(Import.PLE,$K40,EC$16)<=mediçao,CC40,0),0),PLE!$AA$28*CC40) -> 0 | ED40: =IF($K40<>1,IF(ISNUMBER(INDEX(Import.PLE,$K40,ED$16)),IF(INDEX(Import.PLE,$K40,ED$16)<=mediçao,CD40,0),0),PLE!$AA$28*CD40) -> 0 | EE40: =IF($K40<>1,IF(ISNUMBER(INDEX(Import.PLE,$K40,EE$16)),IF(INDEX(Import.PLE,$K40,EE$16)<=mediçao,CE40,0),0),PLE!$AA$28*CE40) -> 0 | EF40: =IF($K40<>1,IF(ISNUMBER(INDEX(Import.PLE,$K40,EF$16)),IF(INDEX(Import.PLE,$K40,EF$16)<=mediçao,CF40,0),0),PLE!$AA$28*CF40) -> 0 | EG40: =IF($K40<>1,IF(ISNUMBER(INDEX(Import.PLE,$K40,EG$16)),IF(INDEX(Import.PLE,$K40,EG$16)<=mediçao,CG40,0),0),PLE!$AA$28*CG40) -> 0 | EH40: =IF($K40<>1,IF(ISNUMBER(INDEX(Import.PLE,$K40,EH$16)),IF(INDEX(Import.PLE,$K40,EH$16)<=mediçao,CH40,0),0),PLE!$AA$28*CH40) -> 0 | EI40: =IF($K40<>1,IF(ISNUMBER(INDEX(Import.PLE,$K40,EI$16)),IF(INDEX(Import.PLE,$K40,EI$16)<=mediçao,CI40,0),0),PLE!$AA$28*CI40) -> 0 | EJ40: =IF($K40<>1,IF(ISNUMBER(INDEX(Import.PLE,$K40,EJ$16)),IF(INDEX(Import.PLE,$K40,EJ$16)<=mediçao,CJ40,0),0),PLE!$AA$28*CJ40) -> 0 | EK40: =IF($K40<>1,IF(ISNUMBER(INDEX(Import.PLE,$K40,EK$16)),IF(INDEX(Import.PLE,$K40,EK$16)<=mediçao,CK40,0),0),PLE!$AA$28*CK40) -> 0 | EL40: =IF($K40<>1,IF(ISNUMBER(INDEX(Import.PLE,$K40,EL$16)),IF(INDEX(Import.PLE,$K40,EL$16)<=mediçao,CL40,0),0),PLE!$AA$28*CL40) -> 0 | EM40: =IF($K40<>1,IF(ISNUMBER(INDEX(Import.PLE,$K40,EM$16)),IF(INDEX(Import.PLE,$K40,EM$16)<=mediçao,CM40,0),0),PLE!$AA$28*CM40) -> 0 | EN40: =IF($K40<>1,IF(ISNUMBER(INDEX(Import.PLE,$K40,EN$16)),IF(INDEX(Import.PLE,$K40,EN$16)<=mediçao,CN40,0),0),PLE!$AA$28*CN40) -> 0 | EO40: =IF($K40<>1,IF(ISNUMBER(INDEX(Import.PLE,$K40,EO$16)),IF(INDEX(Import.PLE,$K40,EO$16)<=mediçao,CO40,0),0),PLE!$AA$28*CO40) -> 0 | EP40: =IF($K40<>1,IF(ISNUMBER(INDEX(Import.PLE,$K40,EP$16)),IF(INDEX(Import.PLE,$K40,EP$16)<=mediçao,CP40,0),0),PLE!$AA$28*CP40) -> 0 | EQ40: =IF($K40<>1,IF(ISNUMBER(INDEX(Import.PLE,$K40,EQ$16)),IF(INDEX(Import.PLE,$K40,EQ$16)<=mediçao,CQ40,0),0),PLE!$AA$28*CQ40) -> 0 | ER40: =IF($K40<>1,IF(ISNUMBER(INDEX(Import.PLE,$K40,ER$16)),IF(INDEX(Import.PLE,$K40,ER$16)<=mediçao,CR40,0),0),PLE!$AA$28*CR40) -> 0 | ES40: =IF($K40<>1,IF(ISNUMBER(INDEX(Import.PLE,$K40,ES$16)),IF(INDEX(Import.PLE,$K40,ES$16)<=mediçao,CS40,0),0),PLE!$AA$28*CS40) -> 0 | ET40: =IF($K40<>1,IF(ISNUMBER(INDEX(Import.PLE,$K40,ET$16)),IF(INDEX(Import.PLE,$K40,ET$16)<=mediçao,CT40,0),0),PLE!$AA$28*CT40) -> 0 | EU40: =IF($K40<>1,IF(ISNUMBER(INDEX(Import.PLE,$K40,EU$16)),IF(INDEX(Import.PLE,$K40,EU$16)<=mediçao,CU40,0),0),PLE!$AA$28*CU40) -> 0 | EV40: =IF($K40<>1,IF(ISNUMBER(INDEX(Import.PLE,$K40,EV$16)),IF(INDEX(Import.PLE,$K40,EV$16)<=mediçao,CV40,0),0),PLE!$AA$28*CV40) -> 0 | EW40: =IF($K40<>1,IF(ISNUMBER(INDEX(Import.PLE,$K40,EW$16)),IF(INDEX(Import.PLE,$K40,EW$16)<=mediçao,CW40,0),0),PLE!$AA$28*CW40) -> 0 | EX40: =IF($K40<>1,IF(ISNUMBER(INDEX(Import.PLE,$K40,EX$16)),IF(INDEX(Import.PLE,$K40,EX$16)<=mediçao,CX40,0),0),PLE!$AA$28*CX40) -> 0 | EY40: =IF($K40<>1,IF(ISNUMBER(INDEX(Import.PLE,$K40,EY$16)),IF(INDEX(Import.PLE,$K40,EY$16)<=mediçao,CY40,0),0),PLE!$AA$28*CY40) -> 0 | EZ40: =IF($K40<>1,IF(ISNUMBER(INDEX(Import.PLE,$K40,EZ$16)),IF(INDEX(Import.PLE,$K40,EZ$16)<=mediçao,CZ40,0),0),PLE!$AA$28*CZ40) -> 0 | FA40: =IF($K40<>1,IF(ISNUMBER(INDEX(Import.PLE,$K40,FA$16)),IF(INDEX(Import.PLE,$K40,FA$16)<=mediçao,DA40,0),0),PLE!$AA$28*DA40) -> 0 | FB40: =IF($K40<>1,IF(ISNUMBER(INDEX(Import.PLE,$K40,FB$16)),IF(INDEX(Import.PLE,$K40,FB$16)<=mediçao,DB40,0),0),PLE!$AA$28*DB40) -> 0 | FC40: =IF($K40<>1,IF(ISNUMBER(INDEX(Import.PLE,$K40,FC$16)),IF(INDEX(Import.PLE,$K40,FC$16)<=mediçao,DC40,0),0),PLE!$AA$28*DC40) -> 0 | FD40: =IF($K40<>1,IF(ISNUMBER(INDEX(Import.PLE,$K40,FD$16)),IF(INDEX(Import.PLE,$K40,FD$16)<=mediçao,DD40,0),0),PLE!$AA$28*DD40) -> 0 | FE40: =IF($K40<>1,IF(ISNUMBER(INDEX(Import.PLE,$K40,FE$16)),IF(INDEX(Import.PLE,$K40,FE$16)<=mediçao,DE40,0),0),PLE!$AA$28*DE40) -> 0 | FF40: =IF($K40<>1,IF(ISNUMBER(INDEX(Import.PLE,$K40,FF$16)),IF(INDEX(Import.PLE,$K40,FF$16)<=mediçao,DF40,0),0),PLE!$AA$28*DF40) -> 0 | FG40: =IF($K40<>1,IF(ISNUMBER(INDEX(Import.PLE,$K40,FG$16)),IF(INDEX(Import.PLE,$K40,FG$16)<=mediçao,DG40,0),0),PLE!$AA$28*DG40) -> 0 | FH40: =IF($K40<>1,IF(ISNUMBER(INDEX(Import.PLE,$K40,FH$16)),IF(INDEX(Import.PLE,$K40,FH$16)<=mediçao,DH40,0),0),PLE!$AA$28*DH40) -> 0 | FI40: =IF($K40<>1,IF(ISNUMBER(INDEX(Import.PLE,$K40,FI$16)),IF(INDEX(Import.PLE,$K40,FI$16)<=mediçao,DI40,0),0),PLE!$AA$28*DI40) -> 0 | FJ40: =IF($K40<>1,IF(ISNUMBER(INDEX(Import.PLE,$K40,FJ$16)),IF(INDEX(Import.PLE,$K40,FJ$16)<=mediçao,DJ40,0),0),PLE!$AA$28*DJ40) -> 0
B41: 24 | C41: =IF(D41="","",IF(ISNUMBER(VALUE(D41)),"Meta",IF(AND(F41<>"",I41<>""),"Serviço","Nível"))) -> Serviço | D41: 1.7.2. | E41: RAMPA DE CONCRETO - VER DETALHAMENTO NOS PROJETOS | F41: UND | G41: =IF(Nível="Serviço",SUMIF($N$15:$BK$15,"<>"&"",N41:BK41),"") -> 10 | H41: =IF(AND(ISNUMBER(G41),G41<>0),I41/G41,IF(G41=0,0,"")) -> 363.74 | I41: 3637.4 | K41: =deactivatedados.form1 -> 8 | L41: 8-Passeios/Rebaixamentos | O41: 2 | P41: 2 | Q41: 2 | R41: 2 | S41: 2 | BM41: =IF(N$15="",0,IF(ISNUMBER(PreçoUnit),PreçoUnit*INDEX(Import.PLQ,$B41,BM$16),0)) -> 0 | BN41: =IF(O$15="",0,IF(ISNUMBER(PreçoUnit),PreçoUnit*INDEX(Import.PLQ,$B41,BN$16),0)) -> 727.48 | BO41: =IF(P$15="",0,IF(ISNUMBER(PreçoUnit),PreçoUnit*INDEX(Import.PLQ,$B41,BO$16),0)) -> 727.48 | BP41: =IF(Q$15="",0,IF(ISNUMBER(PreçoUnit),PreçoUnit*INDEX(Import.PLQ,$B41,BP$16),0)) -> 727.48 | BQ41: =IF(R$15="",0,IF(ISNUMBER(PreçoUnit),PreçoUnit*INDEX(Import.PLQ,$B41,BQ$16),0)) -> 727.48 | BR41: =IF(S$15="",0,IF(ISNUMBER(PreçoUnit),PreçoUnit*INDEX(Import.PLQ,$B41,BR$16),0)) -> 727.48 | BS41: =IF(T$15="",0,IF(ISNUMBER(PreçoUnit),PreçoUnit*INDEX(Import.PLQ,$B41,BS$16),0)) -> 0 | BT41: =IF(U$15="",0,IF(ISNUMBER(PreçoUnit),PreçoUnit*INDEX(Import.PLQ,$B41,BT$16),0)) -> 0 | BU41: =IF(V$15="",0,IF(ISNUMBER(PreçoUnit),PreçoUnit*INDEX(Import.PLQ,$B41,BU$16),0)) -> 0 | BV41: =IF(W$15="",0,IF(ISNUMBER(PreçoUnit),PreçoUnit*INDEX(Import.PLQ,$B41,BV$16),0)) -> 0 | BW41: =IF(X$15="",0,IF(ISNUMBER(PreçoUnit),PreçoUnit*INDEX(Import.PLQ,$B41,BW$16),0)) -> 0 | BX41: =IF(Y$15="",0,IF(ISNUMBER(PreçoUnit),PreçoUnit*INDEX(Import.PLQ,$B41,BX$16),0)) -> 0 | BY41: =IF(Z$15="",0,IF(ISNUMBER(PreçoUnit),PreçoUnit*INDEX(Import.PLQ,$B41,BY$16),0)) -> 0 | BZ41: =IF(AA$15="",0,IF(ISNUMBER(PreçoUnit),PreçoUnit*INDEX(Import.PLQ,$B41,BZ$16),0)) -> 0 | CA41: =IF(AB$15="",0,IF(ISNUMBER(PreçoUnit),PreçoUnit*INDEX(Import.PLQ,$B41,CA$16),0)) -> 0 | CB41: =IF(AC$15="",0,IF(ISNUMBER(PreçoUnit),PreçoUnit*INDEX(Import.PLQ,$B41,CB$16),0)) -> 0 | CC41: =IF(AD$15="",0,IF(ISNUMBER(PreçoUnit),PreçoUnit*INDEX(Import.PLQ,$B41,CC$16),0)) -> 0 | CD41: =IF(AE$15="",0,IF(ISNUMBER(PreçoUnit),PreçoUnit*INDEX(Import.PLQ,$B41,CD$16),0)) -> 0 | CE41: =IF(AF$15="",0,IF(ISNUMBER(PreçoUnit),PreçoUnit*INDEX(Import.PLQ,$B41,CE$16),0)) -> 0 | CF41: =IF(AG$15="",0,IF(ISNUMBER(PreçoUnit),PreçoUnit*INDEX(Import.PLQ,$B41,CF$16),0)) -> 0 | CG41: =IF(AH$15="",0,IF(ISNUMBER(PreçoUnit),PreçoUnit*INDEX(Import.PLQ,$B41,CG$16),0)) -> 0 | CH41: =IF(AI$15="",0,IF(ISNUMBER(PreçoUnit),PreçoUnit*INDEX(Import.PLQ,$B41,CH$16),0)) -> 0 | CI41: =IF(AJ$15="",0,IF(ISNUMBER(PreçoUnit),PreçoUnit*INDEX(Import.PLQ,$B41,CI$16),0)) -> 0 | CJ41: =IF(AK$15="",0,IF(ISNUMBER(PreçoUnit),PreçoUnit*INDEX(Import.PLQ,$B41,CJ$16),0)) -> 0 | CK41: =IF(AL$15="",0,IF(ISNUMBER(PreçoUnit),PreçoUnit*INDEX(Import.PLQ,$B41,CK$16),0)) -> 0 | CL41: =IF(AM$15="",0,IF(ISNUMBER(PreçoUnit),PreçoUnit*INDEX(Import.PLQ,$B41,CL$16),0)) -> 0 | CM41: =IF(AN$15="",0,IF(ISNUMBER(PreçoUnit),PreçoUnit*INDEX(Import.PLQ,$B41,CM$16),0)) -> 0 | CN41: =IF(AO$15="",0,IF(ISNUMBER(PreçoUnit),PreçoUnit*INDEX(Import.PLQ,$B41,CN$16),0)) -> 0 | CO41: =IF(AP$15="",0,IF(ISNUMBER(PreçoUnit),PreçoUnit*INDEX(Import.PLQ,$B41,CO$16),0)) -> 0 | CP41: =IF(AQ$15="",0,IF(ISNUMBER(PreçoUnit),PreçoUnit*INDEX(Import.PLQ,$B41,CP$16),0)) -> 0 | CQ41: =IF(AR$15="",0,IF(ISNUMBER(PreçoUnit),PreçoUnit*INDEX(Import.PLQ,$B41,CQ$16),0)) -> 0 | CR41: =IF(AS$15="",0,IF(ISNUMBER(PreçoUnit),PreçoUnit*INDEX(Import.PLQ,$B41,CR$16),0)) -> 0 | CS41: =IF(AT$15="",0,IF(ISNUMBER(PreçoUnit),PreçoUnit*INDEX(Import.PLQ,$B41,CS$16),0)) -> 0 | CT41: =IF(AU$15="",0,IF(ISNUMBER(PreçoUnit),PreçoUnit*INDEX(Import.PLQ,$B41,CT$16),0)) -> 0 | CU41: =IF(AV$15="",0,IF(ISNUMBER(PreçoUnit),PreçoUnit*INDEX(Import.PLQ,$B41,CU$16),0)) -> 0 | CV41: =IF(AW$15="",0,IF(ISNUMBER(PreçoUnit),PreçoUnit*INDEX(Import.PLQ,$B41,CV$16),0)) -> 0 | CW41: =IF(AX$15="",0,IF(ISNUMBER(PreçoUnit),PreçoUnit*INDEX(Import.PLQ,$B41,CW$16),0)) -> 0 | CX41: =IF(AY$15="",0,IF(ISNUMBER(PreçoUnit),PreçoUnit*INDEX(Import.PLQ,$B41,CX$16),0)) -> 0 | CY41: =IF(AZ$15="",0,IF(ISNUMBER(PreçoUnit),PreçoUnit*INDEX(Import.PLQ,$B41,CY$16),0)) -> 0 | CZ41: =IF(BA$15="",0,IF(ISNUMBER(PreçoUnit),PreçoUnit*INDEX(Import.PLQ,$B41,CZ$16),0)) -> 0 | DA41: =IF(BB$15="",0,IF(ISNUMBER(PreçoUnit),PreçoUnit*INDEX(Import.PLQ,$B41,DA$16),0)) -> 0 | DB41: =IF(BC$15="",0,IF(ISNUMBER(PreçoUnit),PreçoUnit*INDEX(Import.PLQ,$B41,DB$16),0)) -> 0 | DC41: =IF(BD$15="",0,IF(ISNUMBER(PreçoUnit),PreçoUnit*INDEX(Import.PLQ,$B41,DC$16),0)) -> 0 | DD41: =IF(BE$15="",0,IF(ISNUMBER(PreçoUnit),PreçoUnit*INDEX(Import.PLQ,$B41,DD$16),0)) -> 0 | DE41: =IF(BF$15="",0,IF(ISNUMBER(PreçoUnit),PreçoUnit*INDEX(Import.PLQ,$B41,DE$16),0)) -> 0 | DF41: =IF(BG$15="",0,IF(ISNUMBER(PreçoUnit),PreçoUnit*INDEX(Import.PLQ,$B41,DF$16),0)) -> 0 | DG41: =IF(BH$15="",0,IF(ISNUMBER(PreçoUnit),PreçoUnit*INDEX(Import.PLQ,$B41,DG$16),0)) -> 0 | DH41: =IF(BI$15="",0,IF(ISNUMBER(PreçoUnit),PreçoUnit*INDEX(Import.PLQ,$B41,DH$16),0)) -> 0 | DI41: =IF(BJ$15="",0,IF(ISNUMBER(PreçoUnit),PreçoUnit*INDEX(Import.PLQ,$B41,DI$16),0)) -> 0 | DJ41: =IF(BK$15="",0,IF(ISNUMBER(PreçoUnit),PreçoUnit*INDEX(Import.PLQ,$B41,DJ$16),0)) -> 0 | DK41: =IF(D41="",0,IF(ISNUMBER(VALUE(D41)),VALUE(D41),LEFT(D41,FIND(".",D41)-1))) -> 1 | DL41: =SUM(DM41:FJ41) -> 0 | DM41: =IF($K41<>1,IF(ISNUMBER(INDEX(Import.PLE,$K41,DM$16)),IF(INDEX(Import.PLE,$K41,DM$16)<=mediçao,BM41,0),0),PLE!$AA$28*BM41) -> 0 | DN41: =IF($K41<>1,IF(ISNUMBER(INDEX(Import.PLE,$K41,DN$16)),IF(INDEX(Import.PLE,$K41,DN$16)<=mediçao,BN41,0),0),PLE!$AA$28*BN41) -> 0 | DO41: =IF($K41<>1,IF(ISNUMBER(INDEX(Import.PLE,$K41,DO$16)),IF(INDEX(Import.PLE,$K41,DO$16)<=mediçao,BO41,0),0),PLE!$AA$28*BO41) -> 0 | DP41: =IF($K41<>1,IF(ISNUMBER(INDEX(Import.PLE,$K41,DP$16)),IF(INDEX(Import.PLE,$K41,DP$16)<=mediçao,BP41,0),0),PLE!$AA$28*BP41) -> 0 | DQ41: =IF($K41<>1,IF(ISNUMBER(INDEX(Import.PLE,$K41,DQ$16)),IF(INDEX(Import.PLE,$K41,DQ$16)<=mediçao,BQ41,0),0),PLE!$AA$28*BQ41) -> 0 | DR41: =IF($K41<>1,IF(ISNUMBER(INDEX(Import.PLE,$K41,DR$16)),IF(INDEX(Import.PLE,$K41,DR$16)<=mediçao,BR41,0),0),PLE!$AA$28*BR41) -> 0 | DS41: =IF($K41<>1,IF(ISNUMBER(INDEX(Import.PLE,$K41,DS$16)),IF(INDEX(Import.PLE,$K41,DS$16)<=mediçao,BS41,0),0),PLE!$AA$28*BS41) -> 0 | DT41: =IF($K41<>1,IF(ISNUMBER(INDEX(Import.PLE,$K41,DT$16)),IF(INDEX(Import.PLE,$K41,DT$16)<=mediçao,BT41,0),0),PLE!$AA$28*BT41) -> 0 | DU41: =IF($K41<>1,IF(ISNUMBER(INDEX(Import.PLE,$K41,DU$16)),IF(INDEX(Import.PLE,$K41,DU$16)<=mediçao,BU41,0),0),PLE!$AA$28*BU41) -> 0 | DV41: =IF($K41<>1,IF(ISNUMBER(INDEX(Import.PLE,$K41,DV$16)),IF(INDEX(Import.PLE,$K41,DV$16)<=mediçao,BV41,0),0),PLE!$AA$28*BV41) -> 0 | DW41: =IF($K41<>1,IF(ISNUMBER(INDEX(Import.PLE,$K41,DW$16)),IF(INDEX(Import.PLE,$K41,DW$16)<=mediçao,BW41,0),0),PLE!$AA$28*BW41) -> 0 | DX41: =IF($K41<>1,IF(ISNUMBER(INDEX(Import.PLE,$K41,DX$16)),IF(INDEX(Import.PLE,$K41,DX$16)<=mediçao,BX41,0),0),PLE!$AA$28*BX41) -> 0 | DY41: =IF($K41<>1,IF(ISNUMBER(INDEX(Import.PLE,$K41,DY$16)),IF(INDEX(Import.PLE,$K41,DY$16)<=mediçao,BY41,0),0),PLE!$AA$28*BY41) -> 0 | DZ41: =IF($K41<>1,IF(ISNUMBER(INDEX(Import.PLE,$K41,DZ$16)),IF(INDEX(Import.PLE,$K41,DZ$16)<=mediçao,BZ41,0),0),PLE!$AA$28*BZ41) -> 0 | EA41: =IF($K41<>1,IF(ISNUMBER(INDEX(Import.PLE,$K41,EA$16)),IF(INDEX(Import.PLE,$K41,EA$16)<=mediçao,CA41,0),0),PLE!$AA$28*CA41) -> 0 | EB41: =IF($K41<>1,IF(ISNUMBER(INDEX(Import.PLE,$K41,EB$16)),IF(INDEX(Import.PLE,$K41,EB$16)<=mediçao,CB41,0),0),PLE!$AA$28*CB41) -> 0 | EC41: =IF($K41<>1,IF(ISNUMBER(INDEX(Import.PLE,$K41,EC$16)),IF(INDEX(Import.PLE,$K41,EC$16)<=mediçao,CC41,0),0),PLE!$AA$28*CC41) -> 0 | ED41: =IF($K41<>1,IF(ISNUMBER(INDEX(Import.PLE,$K41,ED$16)),IF(INDEX(Import.PLE,$K41,ED$16)<=mediçao,CD41,0),0),PLE!$AA$28*CD41) -> 0 | EE41: =IF($K41<>1,IF(ISNUMBER(INDEX(Import.PLE,$K41,EE$16)),IF(INDEX(Import.PLE,$K41,EE$16)<=mediçao,CE41,0),0),PLE!$AA$28*CE41) -> 0 | EF41: =IF($K41<>1,IF(ISNUMBER(INDEX(Import.PLE,$K41,EF$16)),IF(INDEX(Import.PLE,$K41,EF$16)<=mediçao,CF41,0),0),PLE!$AA$28*CF41) -> 0 | EG41: =IF($K41<>1,IF(ISNUMBER(INDEX(Import.PLE,$K41,EG$16)),IF(INDEX(Import.PLE,$K41,EG$16)<=mediçao,CG41,0),0),PLE!$AA$28*CG41) -> 0 | EH41: =IF($K41<>1,IF(ISNUMBER(INDEX(Import.PLE,$K41,EH$16)),IF(INDEX(Import.PLE,$K41,EH$16)<=mediçao,CH41,0),0),PLE!$AA$28*CH41) -> 0 | EI41: =IF($K41<>1,IF(ISNUMBER(INDEX(Import.PLE,$K41,EI$16)),IF(INDEX(Import.PLE,$K41,EI$16)<=mediçao,CI41,0),0),PLE!$AA$28*CI41) -> 0 | EJ41: =IF($K41<>1,IF(ISNUMBER(INDEX(Import.PLE,$K41,EJ$16)),IF(INDEX(Import.PLE,$K41,EJ$16)<=mediçao,CJ41,0),0),PLE!$AA$28*CJ41) -> 0 | EK41: =IF($K41<>1,IF(ISNUMBER(INDEX(Import.PLE,$K41,EK$16)),IF(INDEX(Import.PLE,$K41,EK$16)<=mediçao,CK41,0),0),PLE!$AA$28*CK41) -> 0 | EL41: =IF($K41<>1,IF(ISNUMBER(INDEX(Import.PLE,$K41,EL$16)),IF(INDEX(Import.PLE,$K41,EL$16)<=mediçao,CL41,0),0),PLE!$AA$28*CL41) -> 0 | EM41: =IF($K41<>1,IF(ISNUMBER(INDEX(Import.PLE,$K41,EM$16)),IF(INDEX(Import.PLE,$K41,EM$16)<=mediçao,CM41,0),0),PLE!$AA$28*CM41) -> 0 | EN41: =IF($K41<>1,IF(ISNUMBER(INDEX(Import.PLE,$K41,EN$16)),IF(INDEX(Import.PLE,$K41,EN$16)<=mediçao,CN41,0),0),PLE!$AA$28*CN41) -> 0 | EO41: =IF($K41<>1,IF(ISNUMBER(INDEX(Import.PLE,$K41,EO$16)),IF(INDEX(Import.PLE,$K41,EO$16)<=mediçao,CO41,0),0),PLE!$AA$28*CO41) -> 0 | EP41: =IF($K41<>1,IF(ISNUMBER(INDEX(Import.PLE,$K41,EP$16)),IF(INDEX(Import.PLE,$K41,EP$16)<=mediçao,CP41,0),0),PLE!$AA$28*CP41) -> 0 | EQ41: =IF($K41<>1,IF(ISNUMBER(INDEX(Import.PLE,$K41,EQ$16)),IF(INDEX(Import.PLE,$K41,EQ$16)<=mediçao,CQ41,0),0),PLE!$AA$28*CQ41) -> 0 | ER41: =IF($K41<>1,IF(ISNUMBER(INDEX(Import.PLE,$K41,ER$16)),IF(INDEX(Import.PLE,$K41,ER$16)<=mediçao,CR41,0),0),PLE!$AA$28*CR41) -> 0 | ES41: =IF($K41<>1,IF(ISNUMBER(INDEX(Import.PLE,$K41,ES$16)),IF(INDEX(Import.PLE,$K41,ES$16)<=mediçao,CS41,0),0),PLE!$AA$28*CS41) -> 0 | ET41: =IF($K41<>1,IF(ISNUMBER(INDEX(Import.PLE,$K41,ET$16)),IF(INDEX(Import.PLE,$K41,ET$16)<=mediçao,CT41,0),0),PLE!$AA$28*CT41) -> 0 | EU41: =IF($K41<>1,IF(ISNUMBER(INDEX(Import.PLE,$K41,EU$16)),IF(INDEX(Import.PLE,$K41,EU$16)<=mediçao,CU41,0),0),PLE!$AA$28*CU41) -> 0 | EV41: =IF($K41<>1,IF(ISNUMBER(INDEX(Import.PLE,$K41,EV$16)),IF(INDEX(Import.PLE,$K41,EV$16)<=mediçao,CV41,0),0),PLE!$AA$28*CV41) -> 0 | EW41: =IF($K41<>1,IF(ISNUMBER(INDEX(Import.PLE,$K41,EW$16)),IF(INDEX(Import.PLE,$K41,EW$16)<=mediçao,CW41,0),0),PLE!$AA$28*CW41) -> 0 | EX41: =IF($K41<>1,IF(ISNUMBER(INDEX(Import.PLE,$K41,EX$16)),IF(INDEX(Import.PLE,$K41,EX$16)<=mediçao,CX41,0),0),PLE!$AA$28*CX41) -> 0 | EY41: =IF($K41<>1,IF(ISNUMBER(INDEX(Import.PLE,$K41,EY$16)),IF(INDEX(Import.PLE,$K41,EY$16)<=mediçao,CY41,0),0),PLE!$AA$28*CY41) -> 0 | EZ41: =IF($K41<>1,IF(ISNUMBER(INDEX(Import.PLE,$K41,EZ$16)),IF(INDEX(Import.PLE,$K41,EZ$16)<=mediçao,CZ41,0),0),PLE!$AA$28*CZ41) -> 0 | FA41: =IF($K41<>1,IF(ISNUMBER(INDEX(Import.PLE,$K41,FA$16)),IF(INDEX(Import.PLE,$K41,FA$16)<=mediçao,DA41,0),0),PLE!$AA$28*DA41) -> 0 | FB41: =IF($K41<>1,IF(ISNUMBER(INDEX(Import.PLE,$K41,FB$16)),IF(INDEX(Import.PLE,$K41,FB$16)<=mediçao,DB41,0),0),PLE!$AA$28*DB41) -> 0 | FC41: =IF($K41<>1,IF(ISNUMBER(INDEX(Import.PLE,$K41,FC$16)),IF(INDEX(Import.PLE,$K41,FC$16)<=mediçao,DC41,0),0),PLE!$AA$28*DC41) -> 0 | FD41: =IF($K41<>1,IF(ISNUMBER(INDEX(Import.PLE,$K41,FD$16)),IF(INDEX(Import.PLE,$K41,FD$16)<=mediçao,DD41,0),0),PLE!$AA$28*DD41) -> 0 | FE41: =IF($K41<>1,IF(ISNUMBER(INDEX(Import.PLE,$K41,FE$16)),IF(INDEX(Import.PLE,$K41,FE$16)<=mediçao,DE41,0),0),PLE!$AA$28*DE41) -> 0 | FF41: =IF($K41<>1,IF(ISNUMBER(INDEX(Import.PLE,$K41,FF$16)),IF(INDEX(Import.PLE,$K41,FF$16)<=mediçao,DF41,0),0),PLE!$AA$28*DF41) -> 0 | FG41: =IF($K41<>1,IF(ISNUMBER(INDEX(Import.PLE,$K41,FG$16)),IF(INDEX(Import.PLE,$K41,FG$16)<=mediçao,DG41,0),0),PLE!$AA$28*DG41) -> 0 | FH41: =IF($K41<>1,IF(ISNUMBER(INDEX(Import.PLE,$K41,FH$16)),IF(INDEX(Import.PLE,$K41,FH$16)<=mediçao,DH41,0),0),PLE!$AA$28*DH41) -> 0 | FI41: =IF($K41<>1,IF(ISNUMBER(INDEX(Import.PLE,$K41,FI$16)),IF(INDEX(Import.PLE,$K41,FI$16)<=mediçao,DI41,0),0),PLE!$AA$28*DI41) -> 0 | FJ41: =IF($K41<>1,IF(ISNUMBER(INDEX(Import.PLE,$K41,FJ$16)),IF(INDEX(Import.PLE,$K41,FJ$16)<=mediçao,DJ41,0),0),PLE!$AA$28*DJ41) -> 0
B42: 25 | C42: Nível | D42: 1.8. | E42: SINALIZAÇÃO VIÁRIA | I42: 6719.5 | K42: =deactivatedados.form1 ->  | BM42: 0 | BN42: 0 | BO42: 0 | BP42: 0 | BQ42: 0 | BR42: 0 | BS42: 0 | BT42: 0 | BU42: 0 | BV42: 0 | BW42: 0 | BX42: 0 | BY42: 0 | BZ42: 0 | CA42: 0 | CB42: 0 | CC42: 0 | CD42: 0 | CE42: 0 | CF42: 0 | CG42: 0 | CH42: 0 | CI42: 0 | CJ42: 0 | CK42: 0 | CL42: 0 | CM42: 0 | CN42: 0 | CO42: 0 | CP42: 0 | CQ42: 0 | CR42: 0 | CS42: 0 | CT42: 0 | CU42: 0 | CV42: 0 | CW42: 0 | CX42: 0 | CY42: 0 | CZ42: 0 | DA42: 0 | DB42: 0 | DC42: 0 | DD42: 0 | DE42: 0 | DF42: 0 | DG42: 0 | DH42: 0 | DI42: 0 | DJ42: 0 | DK42: 1 | DL42: 0 | DM42: =IF($K42<>1,IF(ISNUMBER(INDEX(Import.PLE,$K42,DM$16)),IF(INDEX(Import.PLE,$K42,DM$16)<=mediçao,BM42,0),0),PLE!$AA$28*BM42) -> 0 | DN42: =IF($K42<>1,IF(ISNUMBER(INDEX(Import.PLE,$K42,DN$16)),IF(INDEX(Import.PLE,$K42,DN$16)<=mediçao,BN42,0),0),PLE!$AA$28*BN42) -> 0 | DO42: =IF($K42<>1,IF(ISNUMBER(INDEX(Import.PLE,$K42,DO$16)),IF(INDEX(Import.PLE,$K42,DO$16)<=mediçao,BO42,0),0),PLE!$AA$28*BO42) -> 0 | DP42: =IF($K42<>1,IF(ISNUMBER(INDEX(Import.PLE,$K42,DP$16)),IF(INDEX(Import.PLE,$K42,DP$16)<=mediçao,BP42,0),0),PLE!$AA$28*BP42) -> 0 | DQ42: =IF($K42<>1,IF(ISNUMBER(INDEX(Import.PLE,$K42,DQ$16)),IF(INDEX(Import.PLE,$K42,DQ$16)<=mediçao,BQ42,0),0),PLE!$AA$28*BQ42) -> 0 | DR42: =IF($K42<>1,IF(ISNUMBER(INDEX(Import.PLE,$K42,DR$16)),IF(INDEX(Import.PLE,$K42,DR$16)<=mediçao,BR42,0),0),PLE!$AA$28*BR42) -> 0 | DS42: =IF($K42<>1,IF(ISNUMBER(INDEX(Import.PLE,$K42,DS$16)),IF(INDEX(Import.PLE,$K42,DS$16)<=mediçao,BS42,0),0),PLE!$AA$28*BS42) -> 0 | DT42: =IF($K42<>1,IF(ISNUMBER(INDEX(Import.PLE,$K42,DT$16)),IF(INDEX(Import.PLE,$K42,DT$16)<=mediçao,BT42,0),0),PLE!$AA$28*BT42) -> 0 | DU42: =IF($K42<>1,IF(ISNUMBER(INDEX(Import.PLE,$K42,DU$16)),IF(INDEX(Import.PLE,$K42,DU$16)<=mediçao,BU42,0),0),PLE!$AA$28*BU42) -> 0 | DV42: =IF($K42<>1,IF(ISNUMBER(INDEX(Import.PLE,$K42,DV$16)),IF(INDEX(Import.PLE,$K42,DV$16)<=mediçao,BV42,0),0),PLE!$AA$28*BV42) -> 0 | DW42: =IF($K42<>1,IF(ISNUMBER(INDEX(Import.PLE,$K42,DW$16)),IF(INDEX(Import.PLE,$K42,DW$16)<=mediçao,BW42,0),0),PLE!$AA$28*BW42) -> 0 | DX42: =IF($K42<>1,IF(ISNUMBER(INDEX(Import.PLE,$K42,DX$16)),IF(INDEX(Import.PLE,$K42,DX$16)<=mediçao,BX42,0),0),PLE!$AA$28*BX42) -> 0 | DY42: =IF($K42<>1,IF(ISNUMBER(INDEX(Import.PLE,$K42,DY$16)),IF(INDEX(Import.PLE,$K42,DY$16)<=mediçao,BY42,0),0),PLE!$AA$28*BY42) -> 0 | DZ42: =IF($K42<>1,IF(ISNUMBER(INDEX(Import.PLE,$K42,DZ$16)),IF(INDEX(Import.PLE,$K42,DZ$16)<=mediçao,BZ42,0),0),PLE!$AA$28*BZ42) -> 0 | EA42: =IF($K42<>1,IF(ISNUMBER(INDEX(Import.PLE,$K42,EA$16)),IF(INDEX(Import.PLE,$K42,EA$16)<=mediçao,CA42,0),0),PLE!$AA$28*CA42) -> 0 | EB42: =IF($K42<>1,IF(ISNUMBER(INDEX(Import.PLE,$K42,EB$16)),IF(INDEX(Import.PLE,$K42,EB$16)<=mediçao,CB42,0),0),PLE!$AA$28*CB42) -> 0 | EC42: =IF($K42<>1,IF(ISNUMBER(INDEX(Import.PLE,$K42,EC$16)),IF(INDEX(Import.PLE,$K42,EC$16)<=mediçao,CC42,0),0),PLE!$AA$28*CC42) -> 0 | ED42: =IF($K42<>1,IF(ISNUMBER(INDEX(Import.PLE,$K42,ED$16)),IF(INDEX(Import.PLE,$K42,ED$16)<=mediçao,CD42,0),0),PLE!$AA$28*CD42) -> 0 | EE42: =IF($K42<>1,IF(ISNUMBER(INDEX(Import.PLE,$K42,EE$16)),IF(INDEX(Import.PLE,$K42,EE$16)<=mediçao,CE42,0),0),PLE!$AA$28*CE42) -> 0 | EF42: =IF($K42<>1,IF(ISNUMBER(INDEX(Import.PLE,$K42,EF$16)),IF(INDEX(Import.PLE,$K42,EF$16)<=mediçao,CF42,0),0),PLE!$AA$28*CF42) -> 0 | EG42: =IF($K42<>1,IF(ISNUMBER(INDEX(Import.PLE,$K42,EG$16)),IF(INDEX(Import.PLE,$K42,EG$16)<=mediçao,CG42,0),0),PLE!$AA$28*CG42) -> 0 | EH42: =IF($K42<>1,IF(ISNUMBER(INDEX(Import.PLE,$K42,EH$16)),IF(INDEX(Import.PLE,$K42,EH$16)<=mediçao,CH42,0),0),PLE!$AA$28*CH42) -> 0 | EI42: =IF($K42<>1,IF(ISNUMBER(INDEX(Import.PLE,$K42,EI$16)),IF(INDEX(Import.PLE,$K42,EI$16)<=mediçao,CI42,0),0),PLE!$AA$28*CI42) -> 0 | EJ42: =IF($K42<>1,IF(ISNUMBER(INDEX(Import.PLE,$K42,EJ$16)),IF(INDEX(Import.PLE,$K42,EJ$16)<=mediçao,CJ42,0),0),PLE!$AA$28*CJ42) -> 0 | EK42: =IF($K42<>1,IF(ISNUMBER(INDEX(Import.PLE,$K42,EK$16)),IF(INDEX(Import.PLE,$K42,EK$16)<=mediçao,CK42,0),0),PLE!$AA$28*CK42) -> 0 | EL42: =IF($K42<>1,IF(ISNUMBER(INDEX(Import.PLE,$K42,EL$16)),IF(INDEX(Import.PLE,$K42,EL$16)<=mediçao,CL42,0),0),PLE!$AA$28*CL42) -> 0 | EM42: =IF($K42<>1,IF(ISNUMBER(INDEX(Import.PLE,$K42,EM$16)),IF(INDEX(Import.PLE,$K42,EM$16)<=mediçao,CM42,0),0),PLE!$AA$28*CM42) -> 0 | EN42: =IF($K42<>1,IF(ISNUMBER(INDEX(Import.PLE,$K42,EN$16)),IF(INDEX(Import.PLE,$K42,EN$16)<=mediçao,CN42,0),0),PLE!$AA$28*CN42) -> 0 | EO42: =IF($K42<>1,IF(ISNUMBER(INDEX(Import.PLE,$K42,EO$16)),IF(INDEX(Import.PLE,$K42,EO$16)<=mediçao,CO42,0),0),PLE!$AA$28*CO42) -> 0 | EP42: =IF($K42<>1,IF(ISNUMBER(INDEX(Import.PLE,$K42,EP$16)),IF(INDEX(Import.PLE,$K42,EP$16)<=mediçao,CP42,0),0),PLE!$AA$28*CP42) -> 0 | EQ42: =IF($K42<>1,IF(ISNUMBER(INDEX(Import.PLE,$K42,EQ$16)),IF(INDEX(Import.PLE,$K42,EQ$16)<=mediçao,CQ42,0),0),PLE!$AA$28*CQ42) -> 0 | ER42: =IF($K42<>1,IF(ISNUMBER(INDEX(Import.PLE,$K42,ER$16)),IF(INDEX(Import.PLE,$K42,ER$16)<=mediçao,CR42,0),0),PLE!$AA$28*CR42) -> 0 | ES42: =IF($K42<>1,IF(ISNUMBER(INDEX(Import.PLE,$K42,ES$16)),IF(INDEX(Import.PLE,$K42,ES$16)<=mediçao,CS42,0),0),PLE!$AA$28*CS42) -> 0 | ET42: =IF($K42<>1,IF(ISNUMBER(INDEX(Import.PLE,$K42,ET$16)),IF(INDEX(Import.PLE,$K42,ET$16)<=mediçao,CT42,0),0),PLE!$AA$28*CT42) -> 0 | EU42: =IF($K42<>1,IF(ISNUMBER(INDEX(Import.PLE,$K42,EU$16)),IF(INDEX(Import.PLE,$K42,EU$16)<=mediçao,CU42,0),0),PLE!$AA$28*CU42) -> 0 | EV42: =IF($K42<>1,IF(ISNUMBER(INDEX(Import.PLE,$K42,EV$16)),IF(INDEX(Import.PLE,$K42,EV$16)<=mediçao,CV42,0),0),PLE!$AA$28*CV42) -> 0 | EW42: =IF($K42<>1,IF(ISNUMBER(INDEX(Import.PLE,$K42,EW$16)),IF(INDEX(Import.PLE,$K42,EW$16)<=mediçao,CW42,0),0),PLE!$AA$28*CW42) -> 0 | EX42: =IF($K42<>1,IF(ISNUMBER(INDEX(Import.PLE,$K42,EX$16)),IF(INDEX(Import.PLE,$K42,EX$16)<=mediçao,CX42,0),0),PLE!$AA$28*CX42) -> 0 | EY42: =IF($K42<>1,IF(ISNUMBER(INDEX(Import.PLE,$K42,EY$16)),IF(INDEX(Import.PLE,$K42,EY$16)<=mediçao,CY42,0),0),PLE!$AA$28*CY42) -> 0 | EZ42: =IF($K42<>1,IF(ISNUMBER(INDEX(Import.PLE,$K42,EZ$16)),IF(INDEX(Import.PLE,$K42,EZ$16)<=mediçao,CZ42,0),0),PLE!$AA$28*CZ42) -> 0 | FA42: =IF($K42<>1,IF(ISNUMBER(INDEX(Import.PLE,$K42,FA$16)),IF(INDEX(Import.PLE,$K42,FA$16)<=mediçao,DA42,0),0),PLE!$AA$28*DA42) -> 0 | FB42: =IF($K42<>1,IF(ISNUMBER(INDEX(Import.PLE,$K42,FB$16)),IF(INDEX(Import.PLE,$K42,FB$16)<=mediçao,DB42,0),0),PLE!$AA$28*DB42) -> 0 | FC42: =IF($K42<>1,IF(ISNUMBER(INDEX(Import.PLE,$K42,FC$16)),IF(INDEX(Import.PLE,$K42,FC$16)<=mediçao,DC42,0),0),PLE!$AA$28*DC42) -> 0 | FD42: =IF($K42<>1,IF(ISNUMBER(INDEX(Import.PLE,$K42,FD$16)),IF(INDEX(Import.PLE,$K42,FD$16)<=mediçao,DD42,0),0),PLE!$AA$28*DD42) -> 0 | FE42: =IF($K42<>1,IF(ISNUMBER(INDEX(Import.PLE,$K42,FE$16)),IF(INDEX(Import.PLE,$K42,FE$16)<=mediçao,DE42,0),0),PLE!$AA$28*DE42) -> 0 | FF42: =IF($K42<>1,IF(ISNUMBER(INDEX(Import.PLE,$K42,FF$16)),IF(INDEX(Import.PLE,$K42,FF$16)<=mediçao,DF42,0),0),PLE!$AA$28*DF42) -> 0 | FG42: =IF($K42<>1,IF(ISNUMBER(INDEX(Import.PLE,$K42,FG$16)),IF(INDEX(Import.PLE,$K42,FG$16)<=mediçao,DG42,0),0),PLE!$AA$28*DG42) -> 0 | FH42: =IF($K42<>1,IF(ISNUMBER(INDEX(Import.PLE,$K42,FH$16)),IF(INDEX(Import.PLE,$K42,FH$16)<=mediçao,DH42,0),0),PLE!$AA$28*DH42) -> 0 | FI42: =IF($K42<>1,IF(ISNUMBER(INDEX(Import.PLE,$K42,FI$16)),IF(INDEX(Import.PLE,$K42,FI$16)<=mediçao,DI42,0),0),PLE!$AA$28*DI42) -> 0 | FJ42: =IF($K42<>1,IF(ISNUMBER(INDEX(Import.PLE,$K42,FJ$16)),IF(INDEX(Import.PLE,$K42,FJ$16)<=mediçao,DJ42,0),0),PLE!$AA$28*DJ42) -> 0
B43: 26 | C43: Serviço | D43: 1.8.1. | E43: SINALIZACAO HORIZONTAL COM TINTA RETRORREFLETIVA A BASE DE RESINA ACRILICA COM MICROESFERAS DE VIDRO | F43: M2 | G43: 108.88 | H43: 19.60001837 | I43: 2134.05 | K43: =deactivatedados.form1 -> 9 | L43: 9-Sinalização Viária | O43: 21.2 | P43: 22.68 | Q43: 22.68 | R43: 22.68 | S43: 19.64 | BM43: 0 | BN43: 415.5203894 | BO43: 444.5284166 | BP43: 444.5284166 | BQ43: 444.5284166 | BR43: 384.9443608 | BS43: 0 | BT43: 0 | BU43: 0 | BV43: 0 | BW43: 0 | BX43: 0 | BY43: 0 | BZ43: 0 | CA43: 0 | CB43: 0 | CC43: 0 | CD43: 0 | CE43: 0 | CF43: 0 | CG43: 0 | CH43: 0 | CI43: 0 | CJ43: 0 | CK43: 0 | CL43: 0 | CM43: 0 | CN43: 0 | CO43: 0 | CP43: 0 | CQ43: 0 | CR43: 0 | CS43: 0 | CT43: 0 | CU43: 0 | CV43: 0 | CW43: 0 | CX43: 0 | CY43: 0 | CZ43: 0 | DA43: 0 | DB43: 0 | DC43: 0 | DD43: 0 | DE43: 0 | DF43: 0 | DG43: 0 | DH43: 0 | DI43: 0 | DJ43: 0 | DK43: 1 | DL43: 0 | DM43: =IF($K43<>1,IF(ISNUMBER(INDEX(Import.PLE,$K43,DM$16)),IF(INDEX(Import.PLE,$K43,DM$16)<=mediçao,BM43,0),0),PLE!$AA$28*BM43) -> 0 | DN43: =IF($K43<>1,IF(ISNUMBER(INDEX(Import.PLE,$K43,DN$16)),IF(INDEX(Import.PLE,$K43,DN$16)<=mediçao,BN43,0),0),PLE!$AA$28*BN43) -> 0 | DO43: =IF($K43<>1,IF(ISNUMBER(INDEX(Import.PLE,$K43,DO$16)),IF(INDEX(Import.PLE,$K43,DO$16)<=mediçao,BO43,0),0),PLE!$AA$28*BO43) -> 0 | DP43: =IF($K43<>1,IF(ISNUMBER(INDEX(Import.PLE,$K43,DP$16)),IF(INDEX(Import.PLE,$K43,DP$16)<=mediçao,BP43,0),0),PLE!$AA$28*BP43) -> 0 | DQ43: =IF($K43<>1,IF(ISNUMBER(INDEX(Import.PLE,$K43,DQ$16)),IF(INDEX(Import.PLE,$K43,DQ$16)<=mediçao,BQ43,0),0),PLE!$AA$28*BQ43) -> 0 | DR43: =IF($K43<>1,IF(ISNUMBER(INDEX(Import.PLE,$K43,DR$16)),IF(INDEX(Import.PLE,$K43,DR$16)<=mediçao,BR43,0),0),PLE!$AA$28*BR43) -> 0 | DS43: =IF($K43<>1,IF(ISNUMBER(INDEX(Import.PLE,$K43,DS$16)),IF(INDEX(Import.PLE,$K43,DS$16)<=mediçao,BS43,0),0),PLE!$AA$28*BS43) -> 0 | DT43: =IF($K43<>1,IF(ISNUMBER(INDEX(Import.PLE,$K43,DT$16)),IF(INDEX(Import.PLE,$K43,DT$16)<=mediçao,BT43,0),0),PLE!$AA$28*BT43) -> 0 | DU43: =IF($K43<>1,IF(ISNUMBER(INDEX(Import.PLE,$K43,DU$16)),IF(INDEX(Import.PLE,$K43,DU$16)<=mediçao,BU43,0),0),PLE!$AA$28*BU43) -> 0 | DV43: =IF($K43<>1,IF(ISNUMBER(INDEX(Import.PLE,$K43,DV$16)),IF(INDEX(Import.PLE,$K43,DV$16)<=mediçao,BV43,0),0),PLE!$AA$28*BV43) -> 0 | DW43: =IF($K43<>1,IF(ISNUMBER(INDEX(Import.PLE,$K43,DW$16)),IF(INDEX(Import.PLE,$K43,DW$16)<=mediçao,BW43,0),0),PLE!$AA$28*BW43) -> 0 | DX43: =IF($K43<>1,IF(ISNUMBER(INDEX(Import.PLE,$K43,DX$16)),IF(INDEX(Import.PLE,$K43,DX$16)<=mediçao,BX43,0),0),PLE!$AA$28*BX43) -> 0 | DY43: =IF($K43<>1,IF(ISNUMBER(INDEX(Import.PLE,$K43,DY$16)),IF(INDEX(Import.PLE,$K43,DY$16)<=mediçao,BY43,0),0),PLE!$AA$28*BY43) -> 0 | DZ43: =IF($K43<>1,IF(ISNUMBER(INDEX(Import.PLE,$K43,DZ$16)),IF(INDEX(Import.PLE,$K43,DZ$16)<=mediçao,BZ43,0),0),PLE!$AA$28*BZ43) -> 0 | EA43: =IF($K43<>1,IF(ISNUMBER(INDEX(Import.PLE,$K43,EA$16)),IF(INDEX(Import.PLE,$K43,EA$16)<=mediçao,CA43,0),0),PLE!$AA$28*CA43) -> 0 | EB43: =IF($K43<>1,IF(ISNUMBER(INDEX(Import.PLE,$K43,EB$16)),IF(INDEX(Import.PLE,$K43,EB$16)<=mediçao,CB43,0),0),PLE!$AA$28*CB43) -> 0 | EC43: =IF($K43<>1,IF(ISNUMBER(INDEX(Import.PLE,$K43,EC$16)),IF(INDEX(Import.PLE,$K43,EC$16)<=mediçao,CC43,0),0),PLE!$AA$28*CC43) -> 0 | ED43: =IF($K43<>1,IF(ISNUMBER(INDEX(Import.PLE,$K43,ED$16)),IF(INDEX(Import.PLE,$K43,ED$16)<=mediçao,CD43,0),0),PLE!$AA$28*CD43) -> 0 | EE43: =IF($K43<>1,IF(ISNUMBER(INDEX(Import.PLE,$K43,EE$16)),IF(INDEX(Import.PLE,$K43,EE$16)<=mediçao,CE43,0),0),PLE!$AA$28*CE43) -> 0 | EF43: =IF($K43<>1,IF(ISNUMBER(INDEX(Import.PLE,$K43,EF$16)),IF(INDEX(Import.PLE,$K43,EF$16)<=mediçao,CF43,0),0),PLE!$AA$28*CF43) -> 0 | EG43: =IF($K43<>1,IF(ISNUMBER(INDEX(Import.PLE,$K43,EG$16)),IF(INDEX(Import.PLE,$K43,EG$16)<=mediçao,CG43,0),0),PLE!$AA$28*CG43) -> 0 | EH43: =IF($K43<>1,IF(ISNUMBER(INDEX(Import.PLE,$K43,EH$16)),IF(INDEX(Import.PLE,$K43,EH$16)<=mediçao,CH43,0),0),PLE!$AA$28*CH43) -> 0 | EI43: =IF($K43<>1,IF(ISNUMBER(INDEX(Import.PLE,$K43,EI$16)),IF(INDEX(Import.PLE,$K43,EI$16)<=mediçao,CI43,0),0),PLE!$AA$28*CI43) -> 0 | EJ43: =IF($K43<>1,IF(ISNUMBER(INDEX(Import.PLE,$K43,EJ$16)),IF(INDEX(Import.PLE,$K43,EJ$16)<=mediçao,CJ43,0),0),PLE!$AA$28*CJ43) -> 0 | EK43: =IF($K43<>1,IF(ISNUMBER(INDEX(Import.PLE,$K43,EK$16)),IF(INDEX(Import.PLE,$K43,EK$16)<=mediçao,CK43,0),0),PLE!$AA$28*CK43) -> 0 | EL43: =IF($K43<>1,IF(ISNUMBER(INDEX(Import.PLE,$K43,EL$16)),IF(INDEX(Import.PLE,$K43,EL$16)<=mediçao,CL43,0),0),PLE!$AA$28*CL43) -> 0 | EM43: =IF($K43<>1,IF(ISNUMBER(INDEX(Import.PLE,$K43,EM$16)),IF(INDEX(Import.PLE,$K43,EM$16)<=mediçao,CM43,0),0),PLE!$AA$28*CM43) -> 0 | EN43: =IF($K43<>1,IF(ISNUMBER(INDEX(Import.PLE,$K43,EN$16)),IF(INDEX(Import.PLE,$K43,EN$16)<=mediçao,CN43,0),0),PLE!$AA$28*CN43) -> 0 | EO43: =IF($K43<>1,IF(ISNUMBER(INDEX(Import.PLE,$K43,EO$16)),IF(INDEX(Import.PLE,$K43,EO$16)<=mediçao,CO43,0),0),PLE!$AA$28*CO43) -> 0 | EP43: =IF($K43<>1,IF(ISNUMBER(INDEX(Import.PLE,$K43,EP$16)),IF(INDEX(Import.PLE,$K43,EP$16)<=mediçao,CP43,0),0),PLE!$AA$28*CP43) -> 0 | EQ43: =IF($K43<>1,IF(ISNUMBER(INDEX(Import.PLE,$K43,EQ$16)),IF(INDEX(Import.PLE,$K43,EQ$16)<=mediçao,CQ43,0),0),PLE!$AA$28*CQ43) -> 0 | ER43: =IF($K43<>1,IF(ISNUMBER(INDEX(Import.PLE,$K43,ER$16)),IF(INDEX(Import.PLE,$K43,ER$16)<=mediçao,CR43,0),0),PLE!$AA$28*CR43) -> 0 | ES43: =IF($K43<>1,IF(ISNUMBER(INDEX(Import.PLE,$K43,ES$16)),IF(INDEX(Import.PLE,$K43,ES$16)<=mediçao,CS43,0),0),PLE!$AA$28*CS43) -> 0 | ET43: =IF($K43<>1,IF(ISNUMBER(INDEX(Import.PLE,$K43,ET$16)),IF(INDEX(Import.PLE,$K43,ET$16)<=mediçao,CT43,0),0),PLE!$AA$28*CT43) -> 0 | EU43: =IF($K43<>1,IF(ISNUMBER(INDEX(Import.PLE,$K43,EU$16)),IF(INDEX(Import.PLE,$K43,EU$16)<=mediçao,CU43,0),0),PLE!$AA$28*CU43) -> 0 | EV43: =IF($K43<>1,IF(ISNUMBER(INDEX(Import.PLE,$K43,EV$16)),IF(INDEX(Import.PLE,$K43,EV$16)<=mediçao,CV43,0),0),PLE!$AA$28*CV43) -> 0 | EW43: =IF($K43<>1,IF(ISNUMBER(INDEX(Import.PLE,$K43,EW$16)),IF(INDEX(Import.PLE,$K43,EW$16)<=mediçao,CW43,0),0),PLE!$AA$28*CW43) -> 0 | EX43: =IF($K43<>1,IF(ISNUMBER(INDEX(Import.PLE,$K43,EX$16)),IF(INDEX(Import.PLE,$K43,EX$16)<=mediçao,CX43,0),0),PLE!$AA$28*CX43) -> 0 | EY43: =IF($K43<>1,IF(ISNUMBER(INDEX(Import.PLE,$K43,EY$16)),IF(INDEX(Import.PLE,$K43,EY$16)<=mediçao,CY43,0),0),PLE!$AA$28*CY43) -> 0 | EZ43: =IF($K43<>1,IF(ISNUMBER(INDEX(Import.PLE,$K43,EZ$16)),IF(INDEX(Import.PLE,$K43,EZ$16)<=mediçao,CZ43,0),0),PLE!$AA$28*CZ43) -> 0 | FA43: =IF($K43<>1,IF(ISNUMBER(INDEX(Import.PLE,$K43,FA$16)),IF(INDEX(Import.PLE,$K43,FA$16)<=mediçao,DA43,0),0),PLE!$AA$28*DA43) -> 0 | FB43: =IF($K43<>1,IF(ISNUMBER(INDEX(Import.PLE,$K43,FB$16)),IF(INDEX(Import.PLE,$K43,FB$16)<=mediçao,DB43,0),0),PLE!$AA$28*DB43) -> 0 | FC43: =IF($K43<>1,IF(ISNUMBER(INDEX(Import.PLE,$K43,FC$16)),IF(INDEX(Import.PLE,$K43,FC$16)<=mediçao,DC43,0),0),PLE!$AA$28*DC43) -> 0 | FD43: =IF($K43<>1,IF(ISNUMBER(INDEX(Import.PLE,$K43,FD$16)),IF(INDEX(Import.PLE,$K43,FD$16)<=mediçao,DD43,0),0),PLE!$AA$28*DD43) -> 0 | FE43: =IF($K43<>1,IF(ISNUMBER(INDEX(Import.PLE,$K43,FE$16)),IF(INDEX(Import.PLE,$K43,FE$16)<=mediçao,DE43,0),0),PLE!$AA$28*DE43) -> 0 | FF43: =IF($K43<>1,IF(ISNUMBER(INDEX(Import.PLE,$K43,FF$16)),IF(INDEX(Import.PLE,$K43,FF$16)<=mediçao,DF43,0),0),PLE!$AA$28*DF43) -> 0 | FG43: =IF($K43<>1,IF(ISNUMBER(INDEX(Import.PLE,$K43,FG$16)),IF(INDEX(Import.PLE,$K43,FG$16)<=mediçao,DG43,0),0),PLE!$AA$28*DG43) -> 0 | FH43: =IF($K43<>1,IF(ISNUMBER(INDEX(Import.PLE,$K43,FH$16)),IF(INDEX(Import.PLE,$K43,FH$16)<=mediçao,DH43,0),0),PLE!$AA$28*DH43) -> 0 | FI43: =IF($K43<>1,IF(ISNUMBER(INDEX(Import.PLE,$K43,FI$16)),IF(INDEX(Import.PLE,$K43,FI$16)<=mediçao,DI43,0),0),PLE!$AA$28*DI43) -> 0 | FJ43: =IF($K43<>1,IF(ISNUMBER(INDEX(Import.PLE,$K43,FJ$16)),IF(INDEX(Import.PLE,$K43,FJ$16)<=mediçao,DJ43,0),0),PLE!$AA$28*DJ43) -> 0
B44: 27 | C44: Serviço | D44: 1.8.2. | E44: PLACA DE SINALIZAÇÃO VIÁRIA OCTOGONAL L=25CM, COM SUPORTE DE AÇO GALVANIZADO (D=50MM E H= 3 METROS), INCLUSIVE BASE DE CONCRETO NÃO ESTRUTURAL - PARADA OBRIGATÓRIA | F44: UND | G44: 10 | H44: 401.94 | I44: 4019.4 | K44: =deactivatedados.form1 -> 9 | L44: 9-Sinalização Viária | O44: 2 | P44: 2 | Q44: 2 | R44: 2 | S44: 2 | BM44: 0 | BN44: 803.88 | BO44: 803.88 | BP44: 803.88 | BQ44: 803.88 | BR44: 803.88 | BS44: 0 | BT44: 0 | BU44: 0 | BV44: 0 | BW44: 0 | BX44: 0 | BY44: 0 | BZ44: 0 | CA44: 0 | CB44: 0 | CC44: 0 | CD44: 0 | CE44: 0 | CF44: 0 | CG44: 0 | CH44: 0 | CI44: 0 | CJ44: 0 | CK44: 0 | CL44: 0 | CM44: 0 | CN44: 0 | CO44: 0 | CP44: 0 | CQ44: 0 | CR44: 0 | CS44: 0 | CT44: 0 | CU44: 0 | CV44: 0 | CW44: 0 | CX44: 0 | CY44: 0 | CZ44: 0 | DA44: 0 | DB44: 0 | DC44: 0 | DD44: 0 | DE44: 0 | DF44: 0 | DG44: 0 | DH44: 0 | DI44: 0 | DJ44: 0 | DK44: 1 | DL44: 0 | DM44: =IF($K44<>1,IF(ISNUMBER(INDEX(Import.PLE,$K44,DM$16)),IF(INDEX(Import.PLE,$K44,DM$16)<=mediçao,BM44,0),0),PLE!$AA$28*BM44) -> 0 | DN44: =IF($K44<>1,IF(ISNUMBER(INDEX(Import.PLE,$K44,DN$16)),IF(INDEX(Import.PLE,$K44,DN$16)<=mediçao,BN44,0),0),PLE!$AA$28*BN44) -> 0 | DO44: =IF($K44<>1,IF(ISNUMBER(INDEX(Import.PLE,$K44,DO$16)),IF(INDEX(Import.PLE,$K44,DO$16)<=mediçao,BO44,0),0),PLE!$AA$28*BO44) -> 0 | DP44: =IF($K44<>1,IF(ISNUMBER(INDEX(Import.PLE,$K44,DP$16)),IF(INDEX(Import.PLE,$K44,DP$16)<=mediçao,BP44,0),0),PLE!$AA$28*BP44) -> 0 | DQ44: =IF($K44<>1,IF(ISNUMBER(INDEX(Import.PLE,$K44,DQ$16)),IF(INDEX(Import.PLE,$K44,DQ$16)<=mediçao,BQ44,0),0),PLE!$AA$28*BQ44) -> 0 | DR44: =IF($K44<>1,IF(ISNUMBER(INDEX(Import.PLE,$K44,DR$16)),IF(INDEX(Import.PLE,$K44,DR$16)<=mediçao,BR44,0),0),PLE!$AA$28*BR44) -> 0 | DS44: =IF($K44<>1,IF(ISNUMBER(INDEX(Import.PLE,$K44,DS$16)),IF(INDEX(Import.PLE,$K44,DS$16)<=mediçao,BS44,0),0),PLE!$AA$28*BS44) -> 0 | DT44: =IF($K44<>1,IF(ISNUMBER(INDEX(Import.PLE,$K44,DT$16)),IF(INDEX(Import.PLE,$K44,DT$16)<=mediçao,BT44,0),0),PLE!$AA$28*BT44) -> 0 | DU44: =IF($K44<>1,IF(ISNUMBER(INDEX(Import.PLE,$K44,DU$16)),IF(INDEX(Import.PLE,$K44,DU$16)<=mediçao,BU44,0),0),PLE!$AA$28*BU44) -> 0 | DV44: =IF($K44<>1,IF(ISNUMBER(INDEX(Import.PLE,$K44,DV$16)),IF(INDEX(Import.PLE,$K44,DV$16)<=mediçao,BV44,0),0),PLE!$AA$28*BV44) -> 0 | DW44: =IF($K44<>1,IF(ISNUMBER(INDEX(Import.PLE,$K44,DW$16)),IF(INDEX(Import.PLE,$K44,DW$16)<=mediçao,BW44,0),0),PLE!$AA$28*BW44) -> 0 | DX44: =IF($K44<>1,IF(ISNUMBER(INDEX(Import.PLE,$K44,DX$16)),IF(INDEX(Import.PLE,$K44,DX$16)<=mediçao,BX44,0),0),PLE!$AA$28*BX44) -> 0 | DY44: =IF($K44<>1,IF(ISNUMBER(INDEX(Import.PLE,$K44,DY$16)),IF(INDEX(Import.PLE,$K44,DY$16)<=mediçao,BY44,0),0),PLE!$AA$28*BY44) -> 0 | DZ44: =IF($K44<>1,IF(ISNUMBER(INDEX(Import.PLE,$K44,DZ$16)),IF(INDEX(Import.PLE,$K44,DZ$16)<=mediçao,BZ44,0),0),PLE!$AA$28*BZ44) -> 0 | EA44: =IF($K44<>1,IF(ISNUMBER(INDEX(Import.PLE,$K44,EA$16)),IF(INDEX(Import.PLE,$K44,EA$16)<=mediçao,CA44,0),0),PLE!$AA$28*CA44) -> 0 | EB44: =IF($K44<>1,IF(ISNUMBER(INDEX(Import.PLE,$K44,EB$16)),IF(INDEX(Import.PLE,$K44,EB$16)<=mediçao,CB44,0),0),PLE!$AA$28*CB44) -> 0 | EC44: =IF($K44<>1,IF(ISNUMBER(INDEX(Import.PLE,$K44,EC$16)),IF(INDEX(Import.PLE,$K44,EC$16)<=mediçao,CC44,0),0),PLE!$AA$28*CC44) -> 0 | ED44: =IF($K44<>1,IF(ISNUMBER(INDEX(Import.PLE,$K44,ED$16)),IF(INDEX(Import.PLE,$K44,ED$16)<=mediçao,CD44,0),0),PLE!$AA$28*CD44) -> 0 | EE44: =IF($K44<>1,IF(ISNUMBER(INDEX(Import.PLE,$K44,EE$16)),IF(INDEX(Import.PLE,$K44,EE$16)<=mediçao,CE44,0),0),PLE!$AA$28*CE44) -> 0 | EF44: =IF($K44<>1,IF(ISNUMBER(INDEX(Import.PLE,$K44,EF$16)),IF(INDEX(Import.PLE,$K44,EF$16)<=mediçao,CF44,0),0),PLE!$AA$28*CF44) -> 0 | EG44: =IF($K44<>1,IF(ISNUMBER(INDEX(Import.PLE,$K44,EG$16)),IF(INDEX(Import.PLE,$K44,EG$16)<=mediçao,CG44,0),0),PLE!$AA$28*CG44) -> 0 | EH44: =IF($K44<>1,IF(ISNUMBER(INDEX(Import.PLE,$K44,EH$16)),IF(INDEX(Import.PLE,$K44,EH$16)<=mediçao,CH44,0),0),PLE!$AA$28*CH44) -> 0 | EI44: =IF($K44<>1,IF(ISNUMBER(INDEX(Import.PLE,$K44,EI$16)),IF(INDEX(Import.PLE,$K44,EI$16)<=mediçao,CI44,0),0),PLE!$AA$28*CI44) -> 0 | EJ44: =IF($K44<>1,IF(ISNUMBER(INDEX(Import.PLE,$K44,EJ$16)),IF(INDEX(Import.PLE,$K44,EJ$16)<=mediçao,CJ44,0),0),PLE!$AA$28*CJ44) -> 0 | EK44: =IF($K44<>1,IF(ISNUMBER(INDEX(Import.PLE,$K44,EK$16)),IF(INDEX(Import.PLE,$K44,EK$16)<=mediçao,CK44,0),0),PLE!$AA$28*CK44) -> 0 | EL44: =IF($K44<>1,IF(ISNUMBER(INDEX(Import.PLE,$K44,EL$16)),IF(INDEX(Import.PLE,$K44,EL$16)<=mediçao,CL44,0),0),PLE!$AA$28*CL44) -> 0 | EM44: =IF($K44<>1,IF(ISNUMBER(INDEX(Import.PLE,$K44,EM$16)),IF(INDEX(Import.PLE,$K44,EM$16)<=mediçao,CM44,0),0),PLE!$AA$28*CM44) -> 0 | EN44: =IF($K44<>1,IF(ISNUMBER(INDEX(Import.PLE,$K44,EN$16)),IF(INDEX(Import.PLE,$K44,EN$16)<=mediçao,CN44,0),0),PLE!$AA$28*CN44) -> 0 | EO44: =IF($K44<>1,IF(ISNUMBER(INDEX(Import.PLE,$K44,EO$16)),IF(INDEX(Import.PLE,$K44,EO$16)<=mediçao,CO44,0),0),PLE!$AA$28*CO44) -> 0 | EP44: =IF($K44<>1,IF(ISNUMBER(INDEX(Import.PLE,$K44,EP$16)),IF(INDEX(Import.PLE,$K44,EP$16)<=mediçao,CP44,0),0),PLE!$AA$28*CP44) -> 0 | EQ44: =IF($K44<>1,IF(ISNUMBER(INDEX(Import.PLE,$K44,EQ$16)),IF(INDEX(Import.PLE,$K44,EQ$16)<=mediçao,CQ44,0),0),PLE!$AA$28*CQ44) -> 0 | ER44: =IF($K44<>1,IF(ISNUMBER(INDEX(Import.PLE,$K44,ER$16)),IF(INDEX(Import.PLE,$K44,ER$16)<=mediçao,CR44,0),0),PLE!$AA$28*CR44) -> 0 | ES44: =IF($K44<>1,IF(ISNUMBER(INDEX(Import.PLE,$K44,ES$16)),IF(INDEX(Import.PLE,$K44,ES$16)<=mediçao,CS44,0),0),PLE!$AA$28*CS44) -> 0 | ET44: =IF($K44<>1,IF(ISNUMBER(INDEX(Import.PLE,$K44,ET$16)),IF(INDEX(Import.PLE,$K44,ET$16)<=mediçao,CT44,0),0),PLE!$AA$28*CT44) -> 0 | EU44: =IF($K44<>1,IF(ISNUMBER(INDEX(Import.PLE,$K44,EU$16)),IF(INDEX(Import.PLE,$K44,EU$16)<=mediçao,CU44,0),0),PLE!$AA$28*CU44) -> 0 | EV44: =IF($K44<>1,IF(ISNUMBER(INDEX(Import.PLE,$K44,EV$16)),IF(INDEX(Import.PLE,$K44,EV$16)<=mediçao,CV44,0),0),PLE!$AA$28*CV44) -> 0 | EW44: =IF($K44<>1,IF(ISNUMBER(INDEX(Import.PLE,$K44,EW$16)),IF(INDEX(Import.PLE,$K44,EW$16)<=mediçao,CW44,0),0),PLE!$AA$28*CW44) -> 0 | EX44: =IF($K44<>1,IF(ISNUMBER(INDEX(Import.PLE,$K44,EX$16)),IF(INDEX(Import.PLE,$K44,EX$16)<=mediçao,CX44,0),0),PLE!$AA$28*CX44) -> 0 | EY44: =IF($K44<>1,IF(ISNUMBER(INDEX(Import.PLE,$K44,EY$16)),IF(INDEX(Import.PLE,$K44,EY$16)<=mediçao,CY44,0),0),PLE!$AA$28*CY44) -> 0 | EZ44: =IF($K44<>1,IF(ISNUMBER(INDEX(Import.PLE,$K44,EZ$16)),IF(INDEX(Import.PLE,$K44,EZ$16)<=mediçao,CZ44,0),0),PLE!$AA$28*CZ44) -> 0 | FA44: =IF($K44<>1,IF(ISNUMBER(INDEX(Import.PLE,$K44,FA$16)),IF(INDEX(Import.PLE,$K44,FA$16)<=mediçao,DA44,0),0),PLE!$AA$28*DA44) -> 0 | FB44: =IF($K44<>1,IF(ISNUMBER(INDEX(Import.PLE,$K44,FB$16)),IF(INDEX(Import.PLE,$K44,FB$16)<=mediçao,DB44,0),0),PLE!$AA$28*DB44) -> 0 | FC44: =IF($K44<>1,IF(ISNUMBER(INDEX(Import.PLE,$K44,FC$16)),IF(INDEX(Import.PLE,$K44,FC$16)<=mediçao,DC44,0),0),PLE!$AA$28*DC44) -> 0 | FD44: =IF($K44<>1,IF(ISNUMBER(INDEX(Import.PLE,$K44,FD$16)),IF(INDEX(Import.PLE,$K44,FD$16)<=mediçao,DD44,0),0),PLE!$AA$28*DD44) -> 0 | FE44: =IF($K44<>1,IF(ISNUMBER(INDEX(Import.PLE,$K44,FE$16)),IF(INDEX(Import.PLE,$K44,FE$16)<=mediçao,DE44,0),0),PLE!$AA$28*DE44) -> 0 | FF44: =IF($K44<>1,IF(ISNUMBER(INDEX(Import.PLE,$K44,FF$16)),IF(INDEX(Import.PLE,$K44,FF$16)<=mediçao,DF44,0),0),PLE!$AA$28*DF44) -> 0 | FG44: =IF($K44<>1,IF(ISNUMBER(INDEX(Import.PLE,$K44,FG$16)),IF(INDEX(Import.PLE,$K44,FG$16)<=mediçao,DG44,0),0),PLE!$AA$28*DG44) -> 0 | FH44: =IF($K44<>1,IF(ISNUMBER(INDEX(Import.PLE,$K44,FH$16)),IF(INDEX(Import.PLE,$K44,FH$16)<=mediçao,DH44,0),0),PLE!$AA$28*DH44) -> 0 | FI44: =IF($K44<>1,IF(ISNUMBER(INDEX(Import.PLE,$K44,FI$16)),IF(INDEX(Import.PLE,$K44,FI$16)<=mediçao,DI44,0),0),PLE!$AA$28*DI44) -> 0 | FJ44: =IF($K44<>1,IF(ISNUMBER(INDEX(Import.PLE,$K44,FJ$16)),IF(INDEX(Import.PLE,$K44,FJ$16)<=mediçao,DJ44,0),0),PLE!$AA$28*DJ44) -> 0
B45: 28 | C45: Serviço | D45: 1.8.3. | E45: PLACA ESMALTADA PARA IDENTIFICAÇÃO NR DE RUA, DIMENSÕES 45X25CM | F45: UN | G45: 5 | H45: 113.21 | I45: 566.05 | K45: =deactivatedados.form1 -> 9 | L45: 9-Sinalização Viária | O45: 1 | P45: 1 | Q45: 1 | R45: 1 | S45: 1 | BM45: 0 | BN45: 113.21 | BO45: 113.21 | BP45: 113.21 | BQ45: 113.21 | BR45: 113.21 | BS45: 0 | BT45: 0 | BU45: 0 | BV45: 0 | BW45: 0 | BX45: 0 | BY45: 0 | BZ45: 0 | CA45: 0 | CB45: 0 | CC45: 0 | CD45: 0 | CE45: 0 | CF45: 0 | CG45: 0 | CH45: 0 | CI45: 0 | CJ45: 0 | CK45: 0 | CL45: 0 | CM45: 0 | CN45: 0 | CO45: 0 | CP45: 0 | CQ45: 0 | CR45: 0 | CS45: 0 | CT45: 0 | CU45: 0 | CV45: 0 | CW45: 0 | CX45: 0 | CY45: 0 | CZ45: 0 | DA45: 0 | DB45: 0 | DC45: 0 | DD45: 0 | DE45: 0 | DF45: 0 | DG45: 0 | DH45: 0 | DI45: 0 | DJ45: 0 | DK45: 1 | DL45: 0 | DM45: =IF($K45<>1,IF(ISNUMBER(INDEX(Import.PLE,$K45,DM$16)),IF(INDEX(Import.PLE,$K45,DM$16)<=mediçao,BM45,0),0),PLE!$AA$28*BM45) -> 0 | DN45: =IF($K45<>1,IF(ISNUMBER(INDEX(Import.PLE,$K45,DN$16)),IF(INDEX(Import.PLE,$K45,DN$16)<=mediçao,BN45,0),0),PLE!$AA$28*BN45) -> 0 | DO45: =IF($K45<>1,IF(ISNUMBER(INDEX(Import.PLE,$K45,DO$16)),IF(INDEX(Import.PLE,$K45,DO$16)<=mediçao,BO45,0),0),PLE!$AA$28*BO45) -> 0 | DP45: =IF($K45<>1,IF(ISNUMBER(INDEX(Import.PLE,$K45,DP$16)),IF(INDEX(Import.PLE,$K45,DP$16)<=mediçao,BP45,0),0),PLE!$AA$28*BP45) -> 0 | DQ45: =IF($K45<>1,IF(ISNUMBER(INDEX(Import.PLE,$K45,DQ$16)),IF(INDEX(Import.PLE,$K45,DQ$16)<=mediçao,BQ45,0),0),PLE!$AA$28*BQ45) -> 0 | DR45: =IF($K45<>1,IF(ISNUMBER(INDEX(Import.PLE,$K45,DR$16)),IF(INDEX(Import.PLE,$K45,DR$16)<=mediçao,BR45,0),0),PLE!$AA$28*BR45) -> 0 | DS45: =IF($K45<>1,IF(ISNUMBER(INDEX(Import.PLE,$K45,DS$16)),IF(INDEX(Import.PLE,$K45,DS$16)<=mediçao,BS45,0),0),PLE!$AA$28*BS45) -> 0 | DT45: =IF($K45<>1,IF(ISNUMBER(INDEX(Import.PLE,$K45,DT$16)),IF(INDEX(Import.PLE,$K45,DT$16)<=mediçao,BT45,0),0),PLE!$AA$28*BT45) -> 0 | DU45: =IF($K45<>1,IF(ISNUMBER(INDEX(Import.PLE,$K45,DU$16)),IF(INDEX(Import.PLE,$K45,DU$16)<=mediçao,BU45,0),0),PLE!$AA$28*BU45) -> 0 | DV45: =IF($K45<>1,IF(ISNUMBER(INDEX(Import.PLE,$K45,DV$16)),IF(INDEX(Import.PLE,$K45,DV$16)<=mediçao,BV45,0),0),PLE!$AA$28*BV45) -> 0 | DW45: =IF($K45<>1,IF(ISNUMBER(INDEX(Import.PLE,$K45,DW$16)),IF(INDEX(Import.PLE,$K45,DW$16)<=mediçao,BW45,0),0),PLE!$AA$28*BW45) -> 0 | DX45: =IF($K45<>1,IF(ISNUMBER(INDEX(Import.PLE,$K45,DX$16)),IF(INDEX(Import.PLE,$K45,DX$16)<=mediçao,BX45,0),0),PLE!$AA$28*BX45) -> 0 | DY45: =IF($K45<>1,IF(ISNUMBER(INDEX(Import.PLE,$K45,DY$16)),IF(INDEX(Import.PLE,$K45,DY$16)<=mediçao,BY45,0),0),PLE!$AA$28*BY45) -> 0 | DZ45: =IF($K45<>1,IF(ISNUMBER(INDEX(Import.PLE,$K45,DZ$16)),IF(INDEX(Import.PLE,$K45,DZ$16)<=mediçao,BZ45,0),0),PLE!$AA$28*BZ45) -> 0 | EA45: =IF($K45<>1,IF(ISNUMBER(INDEX(Import.PLE,$K45,EA$16)),IF(INDEX(Import.PLE,$K45,EA$16)<=mediçao,CA45,0),0),PLE!$AA$28*CA45) -> 0 | EB45: =IF($K45<>1,IF(ISNUMBER(INDEX(Import.PLE,$K45,EB$16)),IF(INDEX(Import.PLE,$K45,EB$16)<=mediçao,CB45,0),0),PLE!$AA$28*CB45) -> 0 | EC45: =IF($K45<>1,IF(ISNUMBER(INDEX(Import.PLE,$K45,EC$16)),IF(INDEX(Import.PLE,$K45,EC$16)<=mediçao,CC45,0),0),PLE!$AA$28*CC45) -> 0 | ED45: =IF($K45<>1,IF(ISNUMBER(INDEX(Import.PLE,$K45,ED$16)),IF(INDEX(Import.PLE,$K45,ED$16)<=mediçao,CD45,0),0),PLE!$AA$28*CD45) -> 0 | EE45: =IF($K45<>1,IF(ISNUMBER(INDEX(Import.PLE,$K45,EE$16)),IF(INDEX(Import.PLE,$K45,EE$16)<=mediçao,CE45,0),0),PLE!$AA$28*CE45) -> 0 | EF45: =IF($K45<>1,IF(ISNUMBER(INDEX(Import.PLE,$K45,EF$16)),IF(INDEX(Import.PLE,$K45,EF$16)<=mediçao,CF45,0),0),PLE!$AA$28*CF45) -> 0 | EG45: =IF($K45<>1,IF(ISNUMBER(INDEX(Import.PLE,$K45,EG$16)),IF(INDEX(Import.PLE,$K45,EG$16)<=mediçao,CG45,0),0),PLE!$AA$28*CG45) -> 0 | EH45: =IF($K45<>1,IF(ISNUMBER(INDEX(Import.PLE,$K45,EH$16)),IF(INDEX(Import.PLE,$K45,EH$16)<=mediçao,CH45,0),0),PLE!$AA$28*CH45) -> 0 | EI45: =IF($K45<>1,IF(ISNUMBER(INDEX(Import.PLE,$K45,EI$16)),IF(INDEX(Import.PLE,$K45,EI$16)<=mediçao,CI45,0),0),PLE!$AA$28*CI45) -> 0 | EJ45: =IF($K45<>1,IF(ISNUMBER(INDEX(Import.PLE,$K45,EJ$16)),IF(INDEX(Import.PLE,$K45,EJ$16)<=mediçao,CJ45,0),0),PLE!$AA$28*CJ45) -> 0 | EK45: =IF($K45<>1,IF(ISNUMBER(INDEX(Import.PLE,$K45,EK$16)),IF(INDEX(Import.PLE,$K45,EK$16)<=mediçao,CK45,0),0),PLE!$AA$28*CK45) -> 0 | EL45: =IF($K45<>1,IF(ISNUMBER(INDEX(Import.PLE,$K45,EL$16)),IF(INDEX(Import.PLE,$K45,EL$16)<=mediçao,CL45,0),0),PLE!$AA$28*CL45) -> 0 | EM45: =IF($K45<>1,IF(ISNUMBER(INDEX(Import.PLE,$K45,EM$16)),IF(INDEX(Import.PLE,$K45,EM$16)<=mediçao,CM45,0),0),PLE!$AA$28*CM45) -> 0 | EN45: =IF($K45<>1,IF(ISNUMBER(INDEX(Import.PLE,$K45,EN$16)),IF(INDEX(Import.PLE,$K45,EN$16)<=mediçao,CN45,0),0),PLE!$AA$28*CN45) -> 0 | EO45: =IF($K45<>1,IF(ISNUMBER(INDEX(Import.PLE,$K45,EO$16)),IF(INDEX(Import.PLE,$K45,EO$16)<=mediçao,CO45,0),0),PLE!$AA$28*CO45) -> 0 | EP45: =IF($K45<>1,IF(ISNUMBER(INDEX(Import.PLE,$K45,EP$16)),IF(INDEX(Import.PLE,$K45,EP$16)<=mediçao,CP45,0),0),PLE!$AA$28*CP45) -> 0 | EQ45: =IF($K45<>1,IF(ISNUMBER(INDEX(Import.PLE,$K45,EQ$16)),IF(INDEX(Import.PLE,$K45,EQ$16)<=mediçao,CQ45,0),0),PLE!$AA$28*CQ45) -> 0 | ER45: =IF($K45<>1,IF(ISNUMBER(INDEX(Import.PLE,$K45,ER$16)),IF(INDEX(Import.PLE,$K45,ER$16)<=mediçao,CR45,0),0),PLE!$AA$28*CR45) -> 0 | ES45: =IF($K45<>1,IF(ISNUMBER(INDEX(Import.PLE,$K45,ES$16)),IF(INDEX(Import.PLE,$K45,ES$16)<=mediçao,CS45,0),0),PLE!$AA$28*CS45) -> 0 | ET45: =IF($K45<>1,IF(ISNUMBER(INDEX(Import.PLE,$K45,ET$16)),IF(INDEX(Import.PLE,$K45,ET$16)<=mediçao,CT45,0),0),PLE!$AA$28*CT45) -> 0 | EU45: =IF($K45<>1,IF(ISNUMBER(INDEX(Import.PLE,$K45,EU$16)),IF(INDEX(Import.PLE,$K45,EU$16)<=mediçao,CU45,0),0),PLE!$AA$28*CU45) -> 0 | EV45: =IF($K45<>1,IF(ISNUMBER(INDEX(Import.PLE,$K45,EV$16)),IF(INDEX(Import.PLE,$K45,EV$16)<=mediçao,CV45,0),0),PLE!$AA$28*CV45) -> 0 | EW45: =IF($K45<>1,IF(ISNUMBER(INDEX(Import.PLE,$K45,EW$16)),IF(INDEX(Import.PLE,$K45,EW$16)<=mediçao,CW45,0),0),PLE!$AA$28*CW45) -> 0 | EX45: =IF($K45<>1,IF(ISNUMBER(INDEX(Import.PLE,$K45,EX$16)),IF(INDEX(Import.PLE,$K45,EX$16)<=mediçao,CX45,0),0),PLE!$AA$28*CX45) -> 0 | EY45: =IF($K45<>1,IF(ISNUMBER(INDEX(Import.PLE,$K45,EY$16)),IF(INDEX(Import.PLE,$K45,EY$16)<=mediçao,CY45,0),0),PLE!$AA$28*CY45) -> 0 | EZ45: =IF($K45<>1,IF(ISNUMBER(INDEX(Import.PLE,$K45,EZ$16)),IF(INDEX(Import.PLE,$K45,EZ$16)<=mediçao,CZ45,0),0),PLE!$AA$28*CZ45) -> 0 | FA45: =IF($K45<>1,IF(ISNUMBER(INDEX(Import.PLE,$K45,FA$16)),IF(INDEX(Import.PLE,$K45,FA$16)<=mediçao,DA45,0),0),PLE!$AA$28*DA45) -> 0 | FB45: =IF($K45<>1,IF(ISNUMBER(INDEX(Import.PLE,$K45,FB$16)),IF(INDEX(Import.PLE,$K45,FB$16)<=mediçao,DB45,0),0),PLE!$AA$28*DB45) -> 0 | FC45: =IF($K45<>1,IF(ISNUMBER(INDEX(Import.PLE,$K45,FC$16)),IF(INDEX(Import.PLE,$K45,FC$16)<=mediçao,DC45,0),0),PLE!$AA$28*DC45) -> 0 | FD45: =IF($K45<>1,IF(ISNUMBER(INDEX(Import.PLE,$K45,FD$16)),IF(INDEX(Import.PLE,$K45,FD$16)<=mediçao,DD45,0),0),PLE!$AA$28*DD45) -> 0 | FE45: =IF($K45<>1,IF(ISNUMBER(INDEX(Import.PLE,$K45,FE$16)),IF(INDEX(Import.PLE,$K45,FE$16)<=mediçao,DE45,0),0),PLE!$AA$28*DE45) -> 0 | FF45: =IF($K45<>1,IF(ISNUMBER(INDEX(Import.PLE,$K45,FF$16)),IF(INDEX(Import.PLE,$K45,FF$16)<=mediçao,DF45,0),0),PLE!$AA$28*DF45) -> 0 | FG45: =IF($K45<>1,IF(ISNUMBER(INDEX(Import.PLE,$K45,FG$16)),IF(INDEX(Import.PLE,$K45,FG$16)<=mediçao,DG45,0),0),PLE!$AA$28*DG45) -> 0 | FH45: =IF($K45<>1,IF(ISNUMBER(INDEX(Import.PLE,$K45,FH$16)),IF(INDEX(Import.PLE,$K45,FH$16)<=mediçao,DH45,0),0),PLE!$AA$28*DH45) -> 0 | FI45: =IF($K45<>1,IF(ISNUMBER(INDEX(Import.PLE,$K45,FI$16)),IF(INDEX(Import.PLE,$K45,FI$16)<=mediçao,DI45,0),0),PLE!$AA$28*DI45) -> 0 | FJ45: =IF($K45<>1,IF(ISNUMBER(INDEX(Import.PLE,$K45,FJ$16)),IF(INDEX(Import.PLE,$K45,FJ$16)<=mediçao,DJ45,0),0),PLE!$AA$28*DJ45) -> 0
B46: 29 | C46: Evento | D46: Evento | E46: =INDEX(Eventos,K46,2) -> Administração Local | F46: R$ | H46: =IF(AND(ISNUMBER(G46),G46<>0),I46/G46,IF(G46=0,0,"")) ->  | I46: =SUM(N46:BK46) -> 5713.18 | K46: =INDEX(Eventos,ROW(Nível)-ROW(LForçamento),1) -> 1 | L46: =IF(AND(NumEvento<>"",Nível="Serviço"),INDEX(Eventos,NumEvento,2),"") ->  | N46: =IF(N$15="",0,SUMIF(Import.numEventos,$K46,OFFSET(PreçoServiçoPorFrente,0,N$16-1,,1))) -> 5713.18 | O46: 0 | P46: 0 | Q46: 0 | R46: 0 | S46: 0 | T46: 0 | U46: 0 | V46: 0 | W46: 0 | X46: =IF(X$15="",0,SUMIF(Import.numEventos,$K46,OFFSET(PreçoServiçoPorFrente,0,X$16-1,,1))) -> 0 | Y46: 0 | Z46: 0 | AA46: 0 | AB46: 0 | AC46: 0 | AD46: 0 | AE46: 0 | AF46: 0 | AG46: 0 | AH46: =IF(AH$15="",0,SUMIF(Import.numEventos,$K46,OFFSET(PreçoServiçoPorFrente,0,AH$16-1,,1))) -> 0 | AI46: 0 | AJ46: 0 | AK46: 0 | AL46: 0 | AM46: 0 | AN46: 0 | AO46: 0 | AP46: 0 | AQ46: 0 | AR46: =IF(AR$15="",0,SUMIF(Import.numEventos,$K46,OFFSET(PreçoServiçoPorFrente,0,AR$16-1,,1))) -> 0 | AS46: 0 | AT46: 0 | AU46: 0 | AV46: 0 | AW46: 0 | AX46: 0 | AY46: 0 | AZ46: 0 | BA46: 0 | BB46: =IF(BB$15="",0,SUMIF(Import.numEventos,$K46,OFFSET(PreçoServiçoPorFrente,0,BB$16-1,,1))) -> 0 | BC46: 0 | BD46: 0 | BE46: 0 | BF46: 0 | BG46: 0 | BH46: 0 | BI46: 0 | BJ46: 0 | BK46: 0
B47: 30 | C47: Evento | D47: Evento | E47: =INDEX(Eventos,K47,2) -> Serviços Preliminares | F47: R$ | H47: =IF(AND(ISNUMBER(G47),G47<>0),I47/G47,IF(G47=0,0,"")) ->  | I47: =SUM(N47:BK47) -> 1629.18 | K47: =INDEX(Eventos,ROW(Nível)-ROW(LForçamento),1) -> 2 | L47: =IF(AND(NumEvento<>"",Nível="Serviço"),INDEX(Eventos,NumEvento,2),"") ->  | N47: 1629.18 | O47: 0 | P47: 0 | Q47: 0 | R47: 0 | S47: 0 | T47: 0 | U47: 0 | V47: 0 | W47: 0 | X47: 0 | Y47: 0 | Z47: 0 | AA47: 0 | AB47: 0 | AC47: 0 | AD47: 0 | AE47: 0 | AF47: 0 | AG47: 0 | AH47: 0 | AI47: 0 | AJ47: 0 | AK47: 0 | AL47: 0 | AM47: 0 | AN47: 0 | AO47: 0 | AP47: 0 | AQ47: 0 | AR47: 0 | AS47: 0 | AT47: 0 | AU47: 0 | AV47: 0 | AW47: 0 | AX47: 0 | AY47: 0 | AZ47: 0 | BA47: 0 | BB47: 0 | BC47: 0 | BD47: 0 | BE47: 0 | BF47: 0 | BG47: 0 | BH47: 0 | BI47: 0 | BJ47: 0 | BK47: 0
B48: 31 | C48: Evento | D48: Evento | E48: =INDEX(Eventos,K48,2) -> Mobilização | F48: R$ | H48: =IF(AND(ISNUMBER(G48),G48<>0),I48/G48,IF(G48=0,0,"")) ->  | I48: =SUM(N48:BK48) -> 1559.62 | K48: =INDEX(Eventos,ROW(Nível)-ROW(LForçamento),1) -> 3 | L48: =IF(AND(NumEvento<>"",Nível="Serviço"),INDEX(Eventos,NumEvento,2),"") ->  | N48: 1559.62 | O48: 0 | P48: 0 | Q48: 0 | R48: 0 | S48: 0 | T48: 0 | U48: 0 | V48: 0 | W48: 0 | X48: 0 | Y48: 0 | Z48: 0 | AA48: 0 | AB48: 0 | AC48: 0 | AD48: 0 | AE48: 0 | AF48: 0 | AG48: 0 | AH48: 0 | AI48: 0 | AJ48: 0 | AK48: 0 | AL48: 0 | AM48: 0 | AN48: 0 | AO48: 0 | AP48: 0 | AQ48: 0 | AR48: 0 | AS48: 0 | AT48: 0 | AU48: 0 | AV48: 0 | AW48: 0 | AX48: 0 | AY48: 0 | AZ48: 0 | BA48: 0 | BB48: 0 | BC48: 0 | BD48: 0 | BE48: 0 | BF48: 0 | BG48: 0 | BH48: 0 | BI48: 0 | BJ48: 0 | BK48: 0
B49: 32 | C49: Evento | D49: Evento | E49: =INDEX(Eventos,K49,2) -> Desmobilização | F49: R$ | H49: =IF(AND(ISNUMBER(G49),G49<>0),I49/G49,IF(G49=0,0,"")) ->  | I49: =SUM(N49:BK49) -> 1559.62 | K49: =INDEX(Eventos,ROW(Nível)-ROW(LForçamento),1) -> 4 | L49: =IF(AND(NumEvento<>"",Nível="Serviço"),INDEX(Eventos,NumEvento,2),"") ->  | N49: 1559.62 | O49: 0 | P49: 0 | Q49: 0 | R49: 0 | S49: 0 | T49: 0 | U49: 0 | V49: 0 | W49: 0 | X49: 0 | Y49: 0 | Z49: 0 | AA49: 0 | AB49: 0 | AC49: 0 | AD49: 0 | AE49: 0 | AF49: 0 | AG49: 0 | AH49: 0 | AI49: 0 | AJ49: 0 | AK49: 0 | AL49: 0 | AM49: 0 | AN49: 0 | AO49: 0 | AP49: 0 | AQ49: 0 | AR49: 0 | AS49: 0 | AT49: 0 | AU49: 0 | AV49: 0 | AW49: 0 | AX49: 0 | AY49: 0 | AZ49: 0 | BA49: 0 | BB49: 0 | BC49: 0 | BD49: 0 | BE49: 0 | BF49: 0 | BG49: 0 | BH49: 0 | BI49: 0 | BJ49: 0 | BK49: 0
B50: 33 | C50: Evento | D50: Evento | E50: =INDEX(Eventos,K50,2) -> Subleito/Base/Imprimação | F50: R$ | H50: =IF(AND(ISNUMBER(G50),G50<>0),I50/G50,IF(G50=0,0,"")) ->  | I50: =SUM(N50:BK50) -> 58311.1 | K50: =INDEX(Eventos,ROW(Nível)-ROW(LForçamento),1) -> 5 | L50: =IF(AND(NumEvento<>"",Nível="Serviço"),INDEX(Eventos,NumEvento,2),"") ->  | N50: 0 | O50: 5445.124525 | P50: 12625.72972 | Q50: 13978.48647 | R50: 14429.40539 | S50: 11832.3539 | T50: 0 | U50: 0 | V50: 0 | W50: 0 | X50: 0 | Y50: 0 | Z50: 0 | AA50: 0 | AB50: 0 | AC50: 0 | AD50: 0 | AE50: 0 | AF50: 0 | AG50: 0 | AH50: 0 | AI50: 0 | AJ50: 0 | AK50: 0 | AL50: 0 | AM50: 0 | AN50: 0 | AO50: 0 | AP50: 0 | AQ50: 0 | AR50: 0 | AS50: 0 | AT50: 0 | AU50: 0 | AV50: 0 | AW50: 0 | AX50: 0 | AY50: 0 | AZ50: 0 | BA50: 0 | BB50: 0 | BC50: 0 | BD50: 0 | BE50: 0 | BF50: 0 | BG50: 0 | BH50: 0 | BI50: 0 | BJ50: 0 | BK50: 0
B51: 34 | C51: Evento | D51: Evento | E51: =INDEX(Eventos,K51,2) -> Revestimento Asfáltico | F51: R$ | I51: 126323.33 | K51: =INDEX(Eventos,ROW(Nível)-ROW(LForçamento),1) -> 6 | L51: =IF(AND(NumEvento<>"",Nível="Serviço"),INDEX(Eventos,NumEvento,2),"") ->  | N51: 0 | O51: 11775.92897 | P51: 27411.5552 | Q51: 30354.76719 | R51: 31327.49166 | S51: 25453.58697 | T51: 0 | U51: 0 | V51: 0 | W51: 0 | X51: 0 | Y51: 0 | Z51: 0 | AA51: 0 | AB51: 0 | AC51: 0 | AD51: 0 | AE51: 0 | AF51: 0 | AG51: 0 | AH51: 0 | AI51: 0 | AJ51: 0 | AK51: 0 | AL51: 0 | AM51: 0 | AN51: 0 | AO51: 0 | AP51: 0 | AQ51: 0 | AR51: 0 | AS51: 0 | AT51: 0 | AU51: 0 | AV51: 0 | AW51: 0 | AX51: 0 | AY51: 0 | AZ51: 0 | BA51: 0 | BB51: 0 | BC51: 0 | BD51: 0 | BE51: 0 | BF51: 0 | BG51: 0 | BH51: 0 | BI51: 0 | BJ51: 0 | BK51: 0
B52: 35 | C52: Evento | D52: Evento | E52: =INDEX(Eventos,K52,2) -> Meio-fio/Sarjetas | F52: R$ | I52: 27892.2 | K52: =INDEX(Eventos,ROW(Nível)-ROW(LForçamento),1) -> 7 | L52: =IF(AND(NumEvento<>"",Nível="Serviço"),INDEX(Eventos,NumEvento,2),"") ->  | N52: 0 | O52: 2679.3 | P52: 5770.8 | Q52: 6389.1 | R52: 6595.2 | S52: 6457.8 | T52: 0 | U52: 0 | V52: 0 | W52: 0 | X52: 0 | Y52: 0 | Z52: 0 | AA52: 0 | AB52: 0 | AC52: 0 | AD52: 0 | AE52: 0 | AF52: 0 | AG52: 0 | AH52: 0 | AI52: 0 | AJ52: 0 | AK52: 0 | AL52: 0 | AM52: 0 | AN52: 0 | AO52: 0 | AP52: 0 | AQ52: 0 | AR52: 0 | AS52: 0 | AT52: 0 | AU52: 0 | AV52: 0 | AW52: 0 | AX52: 0 | AY52: 0 | AZ52: 0 | BA52: 0 | BB52: 0 | BC52: 0 | BD52: 0 | BE52: 0 | BF52: 0 | BG52: 0 | BH52: 0 | BI52: 0 | BJ52: 0 | BK52: 0
B53: 36 | C53: Evento | D53: Evento | E53: =INDEX(Eventos,K53,2) -> Passeios/Rebaixamentos | F53: R$ | G53: =IF(Nível="Serviço",SUMIF($N$15:$BK$15,"<>"&"",N53:BK53),"") ->  | H53: =IF(AND(ISNUMBER(G53),G53<>0),I53/G53,IF(G53=0,0,"")) ->  | I53: =SUM(N53:BK53) -> 33292.27 | K53: =INDEX(Eventos,ROW(Nível)-ROW(LForçamento),1) -> 8 | L53: =IF(AND(NumEvento<>"",Nível="Serviço"),INDEX(Eventos,NumEvento,2),"") ->  | N53: 0 | O53: 3471.13 | P53: 6636.88 | Q53: 8362.8 | R53: 7481.08 | S53: 7340.38 | T53: 0 | U53: 0 | V53: 0 | W53: 0 | X53: 0 | Y53: 0 | Z53: 0 | AA53: 0 | AB53: 0 | AC53: 0 | AD53: 0 | AE53: 0 | AF53: 0 | AG53: 0 | AH53: 0 | AI53: 0 | AJ53: 0 | AK53: 0 | AL53: 0 | AM53: 0 | AN53: 0 | AO53: 0 | AP53: 0 | AQ53: 0 | AR53: 0 | AS53: 0 | AT53: 0 | AU53: 0 | AV53: 0 | AW53: 0 | AX53: 0 | AY53: 0 | AZ53: 0 | BA53: 0 | BB53: 0 | BC53: 0 | BD53: 0 | BE53: 0 | BF53: 0 | BG53: 0 | BH53: 0 | BI53: 0 | BJ53: 0 | BK53: 0
B54: 37 | C54: Evento | D54: Evento | E54: =INDEX(Eventos,K54,2) -> Sinalização Viária | F54: R$ | G54: =IF(Nível="Serviço",SUMIF($N$15:$BK$15,"<>"&"",N54:BK54),"") ->  | H54: =IF(AND(ISNUMBER(G54),G54<>0),I54/G54,IF(G54=0,0,"")) ->  | I54: =SUM(N54:BK54) -> 6719.5 | K54: =INDEX(Eventos,ROW(Nível)-ROW(LForçamento),1) -> 9 | L54: =IF(AND(NumEvento<>"",Nível="Serviço"),INDEX(Eventos,NumEvento,2),"") ->  | N54: 0 | O54: 1332.610389 | P54: 1361.618417 | Q54: 1361.618417 | R54: 1361.618417 | S54: 1302.034361 | T54: 0 | U54: 0 | V54: 0 | W54: 0 | X54: 0 | Y54: 0 | Z54: 0 | AA54: 0 | AB54: 0 | AC54: 0 | AD54: 0 | AE54: 0 | AF54: 0 | AG54: 0 | AH54: 0 | AI54: 0 | AJ54: 0 | AK54: 0 | AL54: 0 | AM54: 0 | AN54: 0 | AO54: 0 | AP54: 0 | AQ54: 0 | AR54: 0 | AS54: 0 | AT54: 0 | AU54: 0 | AV54: 0 | AW54: 0 | AX54: 0 | AY54: 0 | AZ54: 0 | BA54: 0 | BB54: 0 | BC54: 0 | BD54: 0 | BE54: 0 | BF54: 0 | BG54: 0 | BH54: 0 | BI54: 0 | BJ54: 0 | BK54: 0
C56: =Import.Município&", "&TEXT(hoje,"dd")&" de "&TEXT(hoje,"mmmm")&" de "&TEXT(hoje,"aaaa") -> Veríssimo/MG, 21 de setembro de 2020
C57: Local e Data | O57: Responsável Técnico: | P57: =respPLE -> Luiz Carlos Furtado de Almeida | U57: Responsável Técnico: | V57: =respPLE -> Luiz Carlos Furtado de Almeida | AA57: Responsável Técnico: | AB57: =respPLE -> Luiz Carlos Furtado de Almeida | AG57: Responsável Técnico: | AH57: =respPLE -> Luiz Carlos Furtado de Almeida | AM57: Responsável Técnico: | AN57: =respPLE -> Luiz Carlos Furtado de Almeida | AS57: Responsável Técnico: | AT57: =respPLE -> Luiz Carlos Furtado de Almeida | AY57: Responsável Técnico: | AZ57: =respPLE -> Luiz Carlos Furtado de Almeida | BE57: Responsável Técnico: | BF57: =respPLE -> Luiz Carlos Furtado de Almeida
O58: CREA / CAU: | P58: =creaPLE -> MG 28.492/D | U58: CREA / CAU: | V58: =creaPLE -> MG 28.492/D | AA58: CREA / CAU: | AB58: =creaPLE -> MG 28.492/D | AG58: CREA / CAU: | AH58: =creaPLE -> MG 28.492/D | AM58: CREA / CAU: | AN58: =creaPLE -> MG 28.492/D | AS58: CREA / CAU: | AT58: =creaPLE -> MG 28.492/D | AY58: CREA / CAU: | AZ58: =creaPLE -> MG 28.492/D | BE58: CREA / CAU: | BF58: =creaPLE -> MG 28.492/D

Sheet Detalhamento
A1: =mais_um ->  | B1: =OFFSET(LIorçamento,$A1-1,B$16,1,1) ->  | E1: =OFFSET(LIorçamento,$A1-1,E$16,1,1) ->  | F1: =CHOOSE($B$8,IF(OR(Nível="Serviço",Nível="Evento"),E1*10^4+IF(Nível<>"Evento",A1,0),0),IF(Nível<>"Evento",A1,0)) ->  | G1: =OFFSET(LIorçamento,$A1-1,G$16,1,1) ->  | H1: =OFFSET(LIorçamento,$A1-1,H$16,1,1) ->  | I1: =IF(OR(Nível="Serviço",Nível="evento"),OFFSET(LIorçamento,$A1-1,I$16,1,1),"") ->  | J1: =IF(OR(Nível="Serviço",Nível="evento"),SUM(L1:BI1),"") ->  | L1: =IF(L$13="",0,CHOOSE(Detalhamento.OpçãoServiços,OFFSET(Import.PLQ,$A1-1,L$15-1,1,1),IF($E1<>1,IF(ISNUMBER(INDEX(Import.PLE,Detalhamento!$E1,Detalhamento!L$15)),IF(INDEX(Import.PLE,Detalhamento!$E1,Detalhamento!L$15)<=mediçao,OFFSET(Import.PLQ,$A1-1,L$15-1,1,1),0),0),PLE!$AA$28*OFFSET(Import.PLQ,$A1-1,L$15-1,1,1)),IF($E1<>1,IF(ISNUMBER(INDEX(Import.PLE,Detalhamento!$E1,Detalhamento!L$15)),IF(INDEX(Import.PLE,Detalhamento!$E1,Detalhamento!L$15)<=mediçao,0,OFFSET(Import.PLQ,$A1-1,L$15-1,1,1)),OFFSET(Import.PLQ,$A1-1,L$15-1,1,1)),(1-PLE!$AA$28)*OFFSET(Import.PLQ,$A1-1,L$15-1,1,1)))) ->  | M1: =IF(M$13="",0,CHOOSE(Detalhamento.OpçãoServiços,OFFSET(Import.PLQ,$A1-1,M$15-1,1,1),IF($E1<>1,IF(ISNUMBER(INDEX(Import.PLE,Detalhamento!$E1,Detalhamento!M$15)),IF(INDEX(Import.PLE,Detalhamento!$E1,Detalhamento!M$15)<=mediçao,OFFSET(Import.PLQ,$A1-1,M$15-1,1,1),0),0),PLE!$AA$28*OFFSET(Import.PLQ,$A1-1,M$15-1,1,1)),IF($E1<>1,IF(ISNUMBER(INDEX(Import.PLE,Detalhamento!$E1,Detalhamento!M$15)),IF(INDEX(Import.PLE,Detalhamento!$E1,Detalhamento!M$15)<=mediçao,0,OFFSET(Import.PLQ,$A1-1,M$15-1,1,1)),OFFSET(Import.PLQ,$A1-1,M$15-1,1,1)),(1-PLE!$AA$28)*OFFSET(Import.PLQ,$A1-1,M$15-1,1,1)))) ->  | N1: =IF(N$13="",0,CHOOSE(Detalhamento.OpçãoServiços,OFFSET(Import.PLQ,$A1-1,N$15-1,1,1),IF($E1<>1,IF(ISNUMBER(INDEX(Import.PLE,Detalhamento!$E1,Detalhamento!N$15)),IF(INDEX(Import.PLE,Detalhamento!$E1,Detalhamento!N$15)<=mediçao,OFFSET(Import.PLQ,$A1-1,N$15-1,1,1),0),0),PLE!$AA$28*OFFSET(Import.PLQ,$A1-1,N$15-1,1,1)),IF($E1<>1,IF(ISNUMBER(INDEX(Import.PLE,Detalhamento!$E1,Detalhamento!N$15)),IF(INDEX(Import.PLE,Detalhamento!$E1,Detalhamento!N$15)<=mediçao,0,OFFSET(Import.PLQ,$A1-1,N$15-1,1,1)),OFFSET(Import.PLQ,$A1-1,N$15-1,1,1)),(1-PLE!$AA$28)*OFFSET(Import.PLQ,$A1-1,N$15-1,1,1)))) ->  | O1: =IF(O$13="",0,CHOOSE(Detalhamento.OpçãoServiços,OFFSET(Import.PLQ,$A1-1,O$15-1,1,1),IF($E1<>1,IF(ISNUMBER(INDEX(Import.PLE,Detalhamento!$E1,Detalhamento!O$15)),IF(INDEX(Import.PLE,Detalhamento!$E1,Detalhamento!O$15)<=mediçao,OFFSET(Import.PLQ,$A1-1,O$15-1,1,1),0),0),PLE!$AA$28*OFFSET(Import.PLQ,$A1-1,O$15-1,1,1)),IF($E1<>1,IF(ISNUMBER(INDEX(Import.PLE,Detalhamento!$E1,Detalhamento!O$15)),IF(INDEX(Import.PLE,Detalhamento!$E1,Detalhamento!O$15)<=mediçao,0,OFFSET(Import.PLQ,$A1-1,O$15-1,1,1)),OFFSET(Import.PLQ,$A1-1,O$15-1,1,1)),(1-PLE!$AA$28)*OFFSET(Import.PLQ,$A1-1,O$15-1,1,1)))) ->  | P1: =IF(P$13="",0,CHOOSE(Detalhamento.OpçãoServiços,OFFSET(Import.PLQ,$A1-1,P$15-1,1,1),IF($E1<>1,IF(ISNUMBER(INDEX(Import.PLE,Detalhamento!$E1,Detalhamento!P$15)),IF(INDEX(Import.PLE,Detalhamento!$E1,Detalhamento!P$15)<=mediçao,OFFSET(Import.PLQ,$A1-1,P$15-1,1,1),0),0),PLE!$AA$28*OFFSET(Import.PLQ,$A1-1,P$15-1,1,1)),IF($E1<>1,IF(ISNUMBER(INDEX(Import.PLE,Detalhamento!$E1,Detalhamento!P$15)),IF(INDEX(Import.PLE,Detalhamento!$E1,Detalhamento!P$15)<=mediçao,0,OFFSET(Import.PLQ,$A1-1,P$15-1,1,1)),OFFSET(Import.PLQ,$A1-1,P$15-1,1,1)),(1-PLE!$AA$28)*OFFSET(Import.PLQ,$A1-1,P$15-1,1,1)))) ->  | Q1: =IF(Q$13="",0,CHOOSE(Detalhamento.OpçãoServiços,OFFSET(Import.PLQ,$A1-1,Q$15-1,1,1),IF($E1<>1,IF(ISNUMBER(INDEX(Import.PLE,Detalhamento!$E1,Detalhamento!Q$15)),IF(INDEX(Import.PLE,Detalhamento!$E1,Detalhamento!Q$15)<=mediçao,OFFSET(Import.PLQ,$A1-1,Q$15-1,1,1),0),0),PLE!$AA$28*OFFSET(Import.PLQ,$A1-1,Q$15-1,1,1)),IF($E1<>1,IF(ISNUMBER(INDEX(Import.PLE,Detalhamento!$E1,Detalhamento!Q$15)),IF(INDEX(Import.PLE,Detalhamento!$E1,Detalhamento!Q$15)<=mediçao,0,OFFSET(Import.PLQ,$A1-1,Q$15-1,1,1)),OFFSET(Import.PLQ,$A1-1,Q$15-1,1,1)),(1-PLE!$AA$28)*OFFSET(Import.PLQ,$A1-1,Q$15-1,1,1)))) ->  | R1: =IF(R$13="",0,CHOOSE(Detalhamento.OpçãoServiços,OFFSET(Import.PLQ,$A1-1,R$15-1,1,1),IF($E1<>1,IF(ISNUMBER(INDEX(Import.PLE,Detalhamento!$E1,Detalhamento!R$15)),IF(INDEX(Import.PLE,Detalhamento!$E1,Detalhamento!R$15)<=mediçao,OFFSET(Import.PLQ,$A1-1,R$15-1,1,1),0),0),PLE!$AA$28*OFFSET(Import.PLQ,$A1-1,R$15-1,1,1)),IF($E1<>1,IF(ISNUMBER(INDEX(Import.PLE,Detalhamento!$E1,Detalhamento!R$15)),IF(INDEX(Import.PLE,Detalhamento!$E1,Detalhamento!R$15)<=mediçao,0,OFFSET(Import.PLQ,$A1-1,R$15-1,1,1)),OFFSET(Import.PLQ,$A1-1,R$15-1,1,1)),(1-PLE!$AA$28)*OFFSET(Import.PLQ,$A1-1,R$15-1,1,1)))) -> 0 | S1: =IF(S$13="",0,CHOOSE(Detalhamento.OpçãoServiços,OFFSET(Import.PLQ,$A1-1,S$15-1,1,1),IF($E1<>1,IF(ISNUMBER(INDEX(Import.PLE,Detalhamento!$E1,Detalhamento!S$15)),IF(INDEX(Import.PLE,Detalhamento!$E1,Detalhamento!S$15)<=mediçao,OFFSET(Import.PLQ,$A1-1,S$15-1,1,1),0),0),PLE!$AA$28*OFFSET(Import.PLQ,$A1-1,S$15-1,1,1)),IF($E1<>1,IF(ISNUMBER(INDEX(Import.PLE,Detalhamento!$E1,Detalhamento!S$15)),IF(INDEX(Import.PLE,Detalhamento!$E1,Detalhamento!S$15)<=mediçao,0,OFFSET(Import.PLQ,$A1-1,S$15-1,1,1)),OFFSET(Import.PLQ,$A1-1,S$15-1,1,1)),(1-PLE!$AA$28)*OFFSET(Import.PLQ,$A1-1,S$15-1,1,1)))) -> 0 | T1: =IF(T$13="",0,CHOOSE(Detalhamento.OpçãoServiços,OFFSET(Import.PLQ,$A1-1,T$15-1,1,1),IF($E1<>1,IF(ISNUMBER(INDEX(Import.PLE,Detalhamento!$E1,Detalhamento!T$15)),IF(INDEX(Import.PLE,Detalhamento!$E1,Detalhamento!T$15)<=mediçao,OFFSET(Import.PLQ,$A1-1,T$15-1,1,1),0),0),PLE!$AA$28*OFFSET(Import.PLQ,$A1-1,T$15-1,1,1)),IF($E1<>1,IF(ISNUMBER(INDEX(Import.PLE,Detalhamento!$E1,Detalhamento!T$15)),IF(INDEX(Import.PLE,Detalhamento!$E1,Detalhamento!T$15)<=mediçao,0,OFFSET(Import.PLQ,$A1-1,T$15-1,1,1)),OFFSET(Import.PLQ,$A1-1,T$15-1,1,1)),(1-PLE!$AA$28)*OFFSET(Import.PLQ,$A1-1,T$15-1,1,1)))) -> 0 | U1: =IF(U$13="",0,CHOOSE(Detalhamento.OpçãoServiços,OFFSET(Import.PLQ,$A1-1,U$15-1,1,1),IF($E1<>1,IF(ISNUMBER(INDEX(Import.PLE,Detalhamento!$E1,Detalhamento!U$15)),IF(INDEX(Import.PLE,Detalhamento!$E1,Detalhamento!U$15)<=mediçao,OFFSET(Import.PLQ,$A1-1,U$15-1,1,1),0),0),PLE!$AA$28*OFFSET(Import.PLQ,$A1-1,U$15-1,1,1)),IF($E1<>1,IF(ISNUMBER(INDEX(Import.PLE,Detalhamento!$E1,Detalhamento!U$15)),IF(INDEX(Import.PLE,Detalhamento!$E1,Detalhamento!U$15)<=mediçao,0,OFFSET(Import.PLQ,$A1-1,U$15-1,1,1)),OFFSET(Import.PLQ,$A1-1,U$15-1,1,1)),(1-PLE!$AA$28)*OFFSET(Import.PLQ,$A1-1,U$15-1,1,1)))) -> 0 | V1: =IF(V$13="",0,CHOOSE(Detalhamento.OpçãoServiços,OFFSET(Import.PLQ,$A1-1,V$15-1,1,1),IF($E1<>1,IF(ISNUMBER(INDEX(Import.PLE,Detalhamento!$E1,Detalhamento!V$15)),IF(INDEX(Import.PLE,Detalhamento!$E1,Detalhamento!V$15)<=mediçao,OFFSET(Import.PLQ,$A1-1,V$15-1,1,1),0),0),PLE!$AA$28*OFFSET(Import.PLQ,$A1-1,V$15-1,1,1)),IF($E1<>1,IF(ISNUMBER(INDEX(Import.PLE,Detalhamento!$E1,Detalhamento!V$15)),IF(INDEX(Import.PLE,Detalhamento!$E1,Detalhamento!V$15)<=mediçao,0,OFFSET(Import.PLQ,$A1-1,V$15-1,1,1)),OFFSET(Import.PLQ,$A1-1,V$15-1,1,1)),(1-PLE!$AA$28)*OFFSET(Import.PLQ,$A1-1,V$15-1,1,1)))) -> 0 | W1: =IF(W$13="",0,CHOOSE(Detalhamento.OpçãoServiços,OFFSET(Import.PLQ,$A1-1,W$15-1,1,1),IF($E1<>1,IF(ISNUMBER(INDEX(Import.PLE,Detalhamento!$E1,Detalhamento!W$15)),IF(INDEX(Import.PLE,Detalhamento!$E1,Detalhamento!W$15)<=mediçao,OFFSET(Import.PLQ,$A1-1,W$15-1,1,1),0),0),PLE!$AA$28*OFFSET(Import.PLQ,$A1-1,W$15-1,1,1)),IF($E1<>1,IF(ISNUMBER(INDEX(Import.PLE,Detalhamento!$E1,Detalhamento!W$15)),IF(INDEX(Import.PLE,Detalhamento!$E1,Detalhamento!W$15)<=mediçao,0,OFFSET(Import.PLQ,$A1-1,W$15-1,1,1)),OFFSET(Import.PLQ,$A1-1,W$15-1,1,1)),(1-PLE!$AA$28)*OFFSET(Import.PLQ,$A1-1,W$15-1,1,1)))) -> 0 | X1: =IF(X$13="",0,CHOOSE(Detalhamento.OpçãoServiços,OFFSET(Import.PLQ,$A1-1,X$15-1,1,1),IF($E1<>1,IF(ISNUMBER(INDEX(Import.PLE,Detalhamento!$E1,Detalhamento!X$15)),IF(INDEX(Import.PLE,Detalhamento!$E1,Detalhamento!X$15)<=mediçao,OFFSET(Import.PLQ,$A1-1,X$15-1,1,1),0),0),PLE!$AA$28*OFFSET(Import.PLQ,$A1-1,X$15-1,1,1)),IF($E1<>1,IF(ISNUMBER(INDEX(Import.PLE,Detalhamento!$E1,Detalhamento!X$15)),IF(INDEX(Import.PLE,Detalhamento!$E1,Detalhamento!X$15)<=mediçao,0,OFFSET(Import.PLQ,$A1-1,X$15-1,1,1)),OFFSET(Import.PLQ,$A1-1,X$15-1,1,1)),(1-PLE!$AA$28)*OFFSET(Import.PLQ,$A1-1,X$15-1,1,1)))) -> 0 | Y1: =IF(Y$13="",0,CHOOSE(Detalhamento.OpçãoServiços,OFFSET(Import.PLQ,$A1-1,Y$15-1,1,1),IF($E1<>1,IF(ISNUMBER(INDEX(Import.PLE,Detalhamento!$E1,Detalhamento!Y$15)),IF(INDEX(Import.PLE,Detalhamento!$E1,Detalhamento!Y$15)<=mediçao,OFFSET(Import.PLQ,$A1-1,Y$15-1,1,1),0),0),PLE!$AA$28*OFFSET(Import.PLQ,$A1-1,Y$15-1,1,1)),IF($E1<>1,IF(ISNUMBER(INDEX(Import.PLE,Detalhamento!$E1,Detalhamento!Y$15)),IF(INDEX(Import.PLE,Detalhamento!$E1,Detalhamento!Y$15)<=mediçao,0,OFFSET(Import.PLQ,$A1-1,Y$15-1,1,1)),OFFSET(Import.PLQ,$A1-1,Y$15-1,1,1)),(1-PLE!$AA$28)*OFFSET(Import.PLQ,$A1-1,Y$15-1,1,1)))) -> 0 | Z1: =IF(Z$13="",0,CHOOSE(Detalhamento.OpçãoServiços,OFFSET(Import.PLQ,$A1-1,Z$15-1,1,1),IF($E1<>1,IF(ISNUMBER(INDEX(Import.PLE,Detalhamento!$E1,Detalhamento!Z$15)),IF(INDEX(Import.PLE,Detalhamento!$E1,Detalhamento!Z$15)<=mediçao,OFFSET(Import.PLQ,$A1-1,Z$15-1,1,1),0),0),PLE!$AA$28*OFFSET(Import.PLQ,$A1-1,Z$15-1,1,1)),IF($E1<>1,IF(ISNUMBER(INDEX(Import.PLE,Detalhamento!$E1,Detalhamento!Z$15)),IF(INDEX(Import.PLE,Detalhamento!$E1,Detalhamento!Z$15)<=mediçao,0,OFFSET(Import.PLQ,$A1-1,Z$15-1,1,1)),OFFSET(Import.PLQ,$A1-1,Z$15-1,1,1)),(1-PLE!$AA$28)*OFFSET(Import.PLQ,$A1-1,Z$15-1,1,1)))) -> 0 | AA1: =IF(AA$13="",0,CHOOSE(Detalhamento.OpçãoServiços,OFFSET(Import.PLQ,$A1-1,AA$15-1,1,1),IF($E1<>1,IF(ISNUMBER(INDEX(Import.PLE,Detalhamento!$E1,Detalhamento!AA$15)),IF(INDEX(Import.PLE,Detalhamento!$E1,Detalhamento!AA$15)<=mediçao,OFFSET(Import.PLQ,$A1-1,AA$15-1,1,1),0),0),PLE!$AA$28*OFFSET(Import.PLQ,$A1-1,AA$15-1,1,1)),IF($E1<>1,IF(ISNUMBER(INDEX(Import.PLE,Detalhamento!$E1,Detalhamento!AA$15)),IF(INDEX(Import.PLE,Detalhamento!$E1,Detalhamento!AA$15)<=mediçao,0,OFFSET(Import.PLQ,$A1-1,AA$15-1,1,1)),OFFSET(Import.PLQ,$A1-1,AA$15-1,1,1)),(1-PLE!$AA$28)*OFFSET(Import.PLQ,$A1-1,AA$15-1,1,1)))) -> 0 | AB1: =IF(AB$13="",0,CHOOSE(Detalhamento.OpçãoServiços,OFFSET(Import.PLQ,$A1-1,AB$15-1,1,1),IF($E1<>1,IF(ISNUMBER(INDEX(Import.PLE,Detalhamento!$E1,Detalhamento!AB$15)),IF(INDEX(Import.PLE,Detalhamento!$E1,Detalhamento!AB$15)<=mediçao,OFFSET(Import.PLQ,$A1-1,AB$15-1,1,1),0),0),PLE!$AA$28*OFFSET(Import.PLQ,$A1-1,AB$15-1,1,1)),IF($E1<>1,IF(ISNUMBER(INDEX(Import.PLE,Detalhamento!$E1,Detalhamento!AB$15)),IF(INDEX(Import.PLE,Detalhamento!$E1,Detalhamento!AB$15)<=mediçao,0,OFFSET(Import.PLQ,$A1-1,AB$15-1,1,1)),OFFSET(Import.PLQ,$A1-1,AB$15-1,1,1)),(1-PLE!$AA$28)*OFFSET(Import.PLQ,$A1-1,AB$15-1,1,1)))) -> 0 | AC1: =IF(AC$13="",0,CHOOSE(Detalhamento.OpçãoServiços,OFFSET(Import.PLQ,$A1-1,AC$15-1,1,1),IF($E1<>1,IF(ISNUMBER(INDEX(Import.PLE,Detalhamento!$E1,Detalhamento!AC$15)),IF(INDEX(Import.PLE,Detalhamento!$E1,Detalhamento!AC$15)<=mediçao,OFFSET(Import.PLQ,$A1-1,AC$15-1,1,1),0),0),PLE!$AA$28*OFFSET(Import.PLQ,$A1-1,AC$15-1,1,1)),IF($E1<>1,IF(ISNUMBER(INDEX(Import.PLE,Detalhamento!$E1,Detalhamento!AC$15)),IF(INDEX(Import.PLE,Detalhamento!$E1,Detalhamento!AC$15)<=mediçao,0,OFFSET(Import.PLQ,$A1-1,AC$15-1,1,1)),OFFSET(Import.PLQ,$A1-1,AC$15-1,1,1)),(1-PLE!$AA$28)*OFFSET(Import.PLQ,$A1-1,AC$15-1,1,1)))) -> 0 | AD1: =IF(AD$13="",0,CHOOSE(Detalhamento.OpçãoServiços,OFFSET(Import.PLQ,$A1-1,AD$15-1,1,1),IF($E1<>1,IF(ISNUMBER(INDEX(Import.PLE,Detalhamento!$E1,Detalhamento!AD$15)),IF(INDEX(Import.PLE,Detalhamento!$E1,Detalhamento!AD$15)<=mediçao,OFFSET(Import.PLQ,$A1-1,AD$15-1,1,1),0),0),PLE!$AA$28*OFFSET(Import.PLQ,$A1-1,AD$15-1,1,1)),IF($E1<>1,IF(ISNUMBER(INDEX(Import.PLE,Detalhamento!$E1,Detalhamento!AD$15)),IF(INDEX(Import.PLE,Detalhamento!$E1,Detalhamento!AD$15)<=mediçao,0,OFFSET(Import.PLQ,$A1-1,AD$15-1,1,1)),OFFSET(Import.PLQ,$A1-1,AD$15-1,1,1)),(1-PLE!$AA$28)*OFFSET(Import.PLQ,$A1-1,AD$15-1,1,1)))) -> 0 | AE1: =IF(AE$13="",0,CHOOSE(Detalhamento.OpçãoServiços,OFFSET(Import.PLQ,$A1-1,AE$15-1,1,1),IF($E1<>1,IF(ISNUMBER(INDEX(Import.PLE,Detalhamento!$E1,Detalhamento!AE$15)),IF(INDEX(Import.PLE,Detalhamento!$E1,Detalhamento!AE$15)<=mediçao,OFFSET(Import.PLQ,$A1-1,AE$15-1,1,1),0),0),PLE!$AA$28*OFFSET(Import.PLQ,$A1-1,AE$15-1,1,1)),IF($E1<>1,IF(ISNUMBER(INDEX(Import.PLE,Detalhamento!$E1,Detalhamento!AE$15)),IF(INDEX(Import.PLE,Detalhamento!$E1,Detalhamento!AE$15)<=mediçao,0,OFFSET(Import.PLQ,$A1-1,AE$15-1,1,1)),OFFSET(Import.PLQ,$A1-1,AE$15-1,1,1)),(1-PLE!$AA$28)*OFFSET(Import.PLQ,$A1-1,AE$15-1,1,1)))) -> 0 | AF1: =IF(AF$13="",0,CHOOSE(Detalhamento.OpçãoServiços,OFFSET(Import.PLQ,$A1-1,AF$15-1,1,1),IF($E1<>1,IF(ISNUMBER(INDEX(Import.PLE,Detalhamento!$E1,Detalhamento!AF$15)),IF(INDEX(Import.PLE,Detalhamento!$E1,Detalhamento!AF$15)<=mediçao,OFFSET(Import.PLQ,$A1-1,AF$15-1,1,1),0),0),PLE!$AA$28*OFFSET(Import.PLQ,$A1-1,AF$15-1,1,1)),IF($E1<>1,IF(ISNUMBER(INDEX(Import.PLE,Detalhamento!$E1,Detalhamento!AF$15)),IF(INDEX(Import.PLE,Detalhamento!$E1,Detalhamento!AF$15)<=mediçao,0,OFFSET(Import.PLQ,$A1-1,AF$15-1,1,1)),OFFSET(Import.PLQ,$A1-1,AF$15-1,1,1)),(1-PLE!$AA$28)*OFFSET(Import.PLQ,$A1-1,AF$15-1,1,1)))) -> 0 | AG1: =IF(AG$13="",0,CHOOSE(Detalhamento.OpçãoServiços,OFFSET(Import.PLQ,$A1-1,AG$15-1,1,1),IF($E1<>1,IF(ISNUMBER(INDEX(Import.PLE,Detalhamento!$E1,Detalhamento!AG$15)),IF(INDEX(Import.PLE,Detalhamento!$E1,Detalhamento!AG$15)<=mediçao,OFFSET(Import.PLQ,$A1-1,AG$15-1,1,1),0),0),PLE!$AA$28*OFFSET(Import.PLQ,$A1-1,AG$15-1,1,1)),IF($E1<>1,IF(ISNUMBER(INDEX(Import.PLE,Detalhamento!$E1,Detalhamento!AG$15)),IF(INDEX(Import.PLE,Detalhamento!$E1,Detalhamento!AG$15)<=mediçao,0,OFFSET(Import.PLQ,$A1-1,AG$15-1,1,1)),OFFSET(Import.PLQ,$A1-1,AG$15-1,1,1)),(1-PLE!$AA$28)*OFFSET(Import.PLQ,$A1-1,AG$15-1,1,1)))) -> 0 | AH1: =IF(AH$13="",0,CHOOSE(Detalhamento.OpçãoServiços,OFFSET(Import.PLQ,$A1-1,AH$15-1,1,1),IF($E1<>1,IF(ISNUMBER(INDEX(Import.PLE,Detalhamento!$E1,Detalhamento!AH$15)),IF(INDEX(Import.PLE,Detalhamento!$E1,Detalhamento!AH$15)<=mediçao,OFFSET(Import.PLQ,$A1-1,AH$15-1,1,1),0),0),PLE!$AA$28*OFFSET(Import.PLQ,$A1-1,AH$15-1,1,1)),IF($E1<>1,IF(ISNUMBER(INDEX(Import.PLE,Detalhamento!$E1,Detalhamento!AH$15)),IF(INDEX(Import.PLE,Detalhamento!$E1,Detalhamento!AH$15)<=mediçao,0,OFFSET(Import.PLQ,$A1-1,AH$15-1,1,1)),OFFSET(Import.PLQ,$A1-1,AH$15-1,1,1)),(1-PLE!$AA$28)*OFFSET(Import.PLQ,$A1-1,AH$15-1,1,1)))) -> 0 | AI1: =IF(AI$13="",0,CHOOSE(Detalhamento.OpçãoServiços,OFFSET(Import.PLQ,$A1-1,AI$15-1,1,1),IF($E1<>1,IF(ISNUMBER(INDEX(Import.PLE,Detalhamento!$E1,Detalhamento!AI$15)),IF(INDEX(Import.PLE,Detalhamento!$E1,Detalhamento!AI$15)<=mediçao,OFFSET(Import.PLQ,$A1-1,AI$15-1,1,1),0),0),PLE!$AA$28*OFFSET(Import.PLQ,$A1-1,AI$15-1,1,1)),IF($E1<>1,IF(ISNUMBER(INDEX(Import.PLE,Detalhamento!$E1,Detalhamento!AI$15)),IF(INDEX(Import.PLE,Detalhamento!$E1,Detalhamento!AI$15)<=mediçao,0,OFFSET(Import.PLQ,$A1-1,AI$15-1,1,1)),OFFSET(Import.PLQ,$A1-1,AI$15-1,1,1)),(1-PLE!$AA$28)*OFFSET(Import.PLQ,$A1-1,AI$15-1,1,1)))) -> 0 | AJ1: =IF(AJ$13="",0,CHOOSE(Detalhamento.OpçãoServiços,OFFSET(Import.PLQ,$A1-1,AJ$15-1,1,1),IF($E1<>1,IF(ISNUMBER(INDEX(Import.PLE,Detalhamento!$E1,Detalhamento!AJ$15)),IF(INDEX(Import.PLE,Detalhamento!$E1,Detalhamento!AJ$15)<=mediçao,OFFSET(Import.PLQ,$A1-1,AJ$15-1,1,1),0),0),PLE!$AA$28*OFFSET(Import.PLQ,$A1-1,AJ$15-1,1,1)),IF($E1<>1,IF(ISNUMBER(INDEX(Import.PLE,Detalhamento!$E1,Detalhamento!AJ$15)),IF(INDEX(Import.PLE,Detalhamento!$E1,Detalhamento!AJ$15)<=mediçao,0,OFFSET(Import.PLQ,$A1-1,AJ$15-1,1,1)),OFFSET(Import.PLQ,$A1-1,AJ$15-1,1,1)),(1-PLE!$AA$28)*OFFSET(Import.PLQ,$A1-1,AJ$15-1,1,1)))) -> 0 | AK1: =IF(AK$13="",0,CHOOSE(Detalhamento.OpçãoServiços,OFFSET(Import.PLQ,$A1-1,AK$15-1,1,1),IF($E1<>1,IF(ISNUMBER(INDEX(Import.PLE,Detalhamento!$E1,Detalhamento!AK$15)),IF(INDEX(Import.PLE,Detalhamento!$E1,Detalhamento!AK$15)<=mediçao,OFFSET(Import.PLQ,$A1-1,AK$15-1,1,1),0),0),PLE!$AA$28*OFFSET(Import.PLQ,$A1-1,AK$15-1,1,1)),IF($E1<>1,IF(ISNUMBER(INDEX(Import.PLE,Detalhamento!$E1,Detalhamento!AK$15)),IF(INDEX(Import.PLE,Detalhamento!$E1,Detalhamento!AK$15)<=mediçao,0,OFFSET(Import.PLQ,$A1-1,AK$15-1,1,1)),OFFSET(Import.PLQ,$A1-1,AK$15-1,1,1)),(1-PLE!$AA$28)*OFFSET(Import.PLQ,$A1-1,AK$15-1,1,1)))) -> 0 | AL1: =IF(AL$13="",0,CHOOSE(Detalhamento.OpçãoServiços,OFFSET(Import.PLQ,$A1-1,AL$15-1,1,1),IF($E1<>1,IF(ISNUMBER(INDEX(Import.PLE,Detalhamento!$E1,Detalhamento!AL$15)),IF(INDEX(Import.PLE,Detalhamento!$E1,Detalhamento!AL$15)<=mediçao,OFFSET(Import.PLQ,$A1-1,AL$15-1,1,1),0),0),PLE!$AA$28*OFFSET(Import.PLQ,$A1-1,AL$15-1,1,1)),IF($E1<>1,IF(ISNUMBER(INDEX(Import.PLE,Detalhamento!$E1,Detalhamento!AL$15)),IF(INDEX(Import.PLE,Detalhamento!$E1,Detalhamento!AL$15)<=mediçao,0,OFFSET(Import.PLQ,$A1-1,AL$15-1,1,1)),OFFSET(Import.PLQ,$A1-1,AL$15-1,1,1)),(1-PLE!$AA$28)*OFFSET(Import.PLQ,$A1-1,AL$15-1,1,1)))) -> 0 | AM1: =IF(AM$13="",0,CHOOSE(Detalhamento.OpçãoServiços,OFFSET(Import.PLQ,$A1-1,AM$15-1,1,1),IF($E1<>1,IF(ISNUMBER(INDEX(Import.PLE,Detalhamento!$E1,Detalhamento!AM$15)),IF(INDEX(Import.PLE,Detalhamento!$E1,Detalhamento!AM$15)<=mediçao,OFFSET(Import.PLQ,$A1-1,AM$15-1,1,1),0),0),PLE!$AA$28*OFFSET(Import.PLQ,$A1-1,AM$15-1,1,1)),IF($E1<>1,IF(ISNUMBER(INDEX(Import.PLE,Detalhamento!$E1,Detalhamento!AM$15)),IF(INDEX(Import.PLE,Detalhamento!$E1,Detalhamento!AM$15)<=mediçao,0,OFFSET(Import.PLQ,$A1-1,AM$15-1,1,1)),OFFSET(Import.PLQ,$A1-1,AM$15-1,1,1)),(1-PLE!$AA$28)*OFFSET(Import.PLQ,$A1-1,AM$15-1,1,1)))) -> 0 | AN1: =IF(AN$13="",0,CHOOSE(Detalhamento.OpçãoServiços,OFFSET(Import.PLQ,$A1-1,AN$15-1,1,1),IF($E1<>1,IF(ISNUMBER(INDEX(Import.PLE,Detalhamento!$E1,Detalhamento!AN$15)),IF(INDEX(Import.PLE,Detalhamento!$E1,Detalhamento!AN$15)<=mediçao,OFFSET(Import.PLQ,$A1-1,AN$15-1,1,1),0),0),PLE!$AA$28*OFFSET(Import.PLQ,$A1-1,AN$15-1,1,1)),IF($E1<>1,IF(ISNUMBER(INDEX(Import.PLE,Detalhamento!$E1,Detalhamento!AN$15)),IF(INDEX(Import.PLE,Detalhamento!$E1,Detalhamento!AN$15)<=mediçao,0,OFFSET(Import.PLQ,$A1-1,AN$15-1,1,1)),OFFSET(Import.PLQ,$A1-1,AN$15-1,1,1)),(1-PLE!$AA$28)*OFFSET(Import.PLQ,$A1-1,AN$15-1,1,1)))) -> 0 | AO1: =IF(AO$13="",0,CHOOSE(Detalhamento.OpçãoServiços,OFFSET(Import.PLQ,$A1-1,AO$15-1,1,1),IF($E1<>1,IF(ISNUMBER(INDEX(Import.PLE,Detalhamento!$E1,Detalhamento!AO$15)),IF(INDEX(Import.PLE,Detalhamento!$E1,Detalhamento!AO$15)<=mediçao,OFFSET(Import.PLQ,$A1-1,AO$15-1,1,1),0),0),PLE!$AA$28*OFFSET(Import.PLQ,$A1-1,AO$15-1,1,1)),IF($E1<>1,IF(ISNUMBER(INDEX(Import.PLE,Detalhamento!$E1,Detalhamento!AO$15)),IF(INDEX(Import.PLE,Detalhamento!$E1,Detalhamento!AO$15)<=mediçao,0,OFFSET(Import.PLQ,$A1-1,AO$15-1,1,1)),OFFSET(Import.PLQ,$A1-1,AO$15-1,1,1)),(1-PLE!$AA$28)*OFFSET(Import.PLQ,$A1-1,AO$15-1,1,1)))) -> 0 | AP1: =IF(AP$13="",0,CHOOSE(Detalhamento.OpçãoServiços,OFFSET(Import.PLQ,$A1-1,AP$15-1,1,1),IF($E1<>1,IF(ISNUMBER(INDEX(Import.PLE,Detalhamento!$E1,Detalhamento!AP$15)),IF(INDEX(Import.PLE,Detalhamento!$E1,Detalhamento!AP$15)<=mediçao,OFFSET(Import.PLQ,$A1-1,AP$15-1,1,1),0),0),PLE!$AA$28*OFFSET(Import.PLQ,$A1-1,AP$15-1,1,1)),IF($E1<>1,IF(ISNUMBER(INDEX(Import.PLE,Detalhamento!$E1,Detalhamento!AP$15)),IF(INDEX(Import.PLE,Detalhamento!$E1,Detalhamento!AP$15)<=mediçao,0,OFFSET(Import.PLQ,$A1-1,AP$15-1,1,1)),OFFSET(Import.PLQ,$A1-1,AP$15-1,1,1)),(1-PLE!$AA$28)*OFFSET(Import.PLQ,$A1-1,AP$15-1,1,1)))) -> 0 | AQ1: =IF(AQ$13="",0,CHOOSE(Detalhamento.OpçãoServiços,OFFSET(Import.PLQ,$A1-1,AQ$15-1,1,1),IF($E1<>1,IF(ISNUMBER(INDEX(Import.PLE,Detalhamento!$E1,Detalhamento!AQ$15)),IF(INDEX(Import.PLE,Detalhamento!$E1,Detalhamento!AQ$15)<=mediçao,OFFSET(Import.PLQ,$A1-1,AQ$15-1,1,1),0),0),PLE!$AA$28*OFFSET(Import.PLQ,$A1-1,AQ$15-1,1,1)),IF($E1<>1,IF(ISNUMBER(INDEX(Import.PLE,Detalhamento!$E1,Detalhamento!AQ$15)),IF(INDEX(Import.PLE,Detalhamento!$E1,Detalhamento!AQ$15)<=mediçao,0,OFFSET(Import.PLQ,$A1-1,AQ$15-1,1,1)),OFFSET(Import.PLQ,$A1-1,AQ$15-1,1,1)),(1-PLE!$AA$28)*OFFSET(Import.PLQ,$A1-1,AQ$15-1,1,1)))) -> 0 | AR1: =IF(AR$13="",0,CHOOSE(Detalhamento.OpçãoServiços,OFFSET(Import.PLQ,$A1-1,AR$15-1,1,1),IF($E1<>1,IF(ISNUMBER(INDEX(Import.PLE,Detalhamento!$E1,Detalhamento!AR$15)),IF(INDEX(Import.PLE,Detalhamento!$E1,Detalhamento!AR$15)<=mediçao,OFFSET(Import.PLQ,$A1-1,AR$15-1,1,1),0),0),PLE!$AA$28*OFFSET(Import.PLQ,$A1-1,AR$15-1,1,1)),IF($E1<>1,IF(ISNUMBER(INDEX(Import.PLE,Detalhamento!$E1,Detalhamento!AR$15)),IF(INDEX(Import.PLE,Detalhamento!$E1,Detalhamento!AR$15)<=mediçao,0,OFFSET(Import.PLQ,$A1-1,AR$15-1,1,1)),OFFSET(Import.PLQ,$A1-1,AR$15-1,1,1)),(1-PLE!$AA$28)*OFFSET(Import.PLQ,$A1-1,AR$15-1,1,1)))) -> 0 | AS1: =IF(AS$13="",0,CHOOSE(Detalhamento.OpçãoServiços,OFFSET(Import.PLQ,$A1-1,AS$15-1,1,1),IF($E1<>1,IF(ISNUMBER(INDEX(Import.PLE,Detalhamento!$E1,Detalhamento!AS$15)),IF(INDEX(Import.PLE,Detalhamento!$E1,Detalhamento!AS$15)<=mediçao,OFFSET(Import.PLQ,$A1-1,AS$15-1,1,1),0),0),PLE!$AA$28*OFFSET(Import.PLQ,$A1-1,AS$15-1,1,1)),IF($E1<>1,IF(ISNUMBER(INDEX(Import.PLE,Detalhamento!$E1,Detalhamento!AS$15)),IF(INDEX(Import.PLE,Detalhamento!$E1,Detalhamento!AS$15)<=mediçao,0,OFFSET(Import.PLQ,$A1-1,AS$15-1,1,1)),OFFSET(Import.PLQ,$A1-1,AS$15-1,1,1)),(1-PLE!$AA$28)*OFFSET(Import.PLQ,$A1-1,AS$15-1,1,1)))) -> 0 | AT1: =IF(AT$13="",0,CHOOSE(Detalhamento.OpçãoServiços,OFFSET(Import.PLQ,$A1-1,AT$15-1,1,1),IF($E1<>1,IF(ISNUMBER(INDEX(Import.PLE,Detalhamento!$E1,Detalhamento!AT$15)),IF(INDEX(Import.PLE,Detalhamento!$E1,Detalhamento!AT$15)<=mediçao,OFFSET(Import.PLQ,$A1-1,AT$15-1,1,1),0),0),PLE!$AA$28*OFFSET(Import.PLQ,$A1-1,AT$15-1,1,1)),IF($E1<>1,IF(ISNUMBER(INDEX(Import.PLE,Detalhamento!$E1,Detalhamento!AT$15)),IF(INDEX(Import.PLE,Detalhamento!$E1,Detalhamento!AT$15)<=mediçao,0,OFFSET(Import.PLQ,$A1-1,AT$15-1,1,1)),OFFSET(Import.PLQ,$A1-1,AT$15-1,1,1)),(1-PLE!$AA$28)*OFFSET(Import.PLQ,$A1-1,AT$15-1,1,1)))) -> 0 | AU1: =IF(AU$13="",0,CHOOSE(Detalhamento.OpçãoServiços,OFFSET(Import.PLQ,$A1-1,AU$15-1,1,1),IF($E1<>1,IF(ISNUMBER(INDEX(Import.PLE,Detalhamento!$E1,Detalhamento!AU$15)),IF(INDEX(Import.PLE,Detalhamento!$E1,Detalhamento!AU$15)<=mediçao,OFFSET(Import.PLQ,$A1-1,AU$15-1,1,1),0),0),PLE!$AA$28*OFFSET(Import.PLQ,$A1-1,AU$15-1,1,1)),IF($E1<>1,IF(ISNUMBER(INDEX(Import.PLE,Detalhamento!$E1,Detalhamento!AU$15)),IF(INDEX(Import.PLE,Detalhamento!$E1,Detalhamento!AU$15)<=mediçao,0,OFFSET(Import.PLQ,$A1-1,AU$15-1,1,1)),OFFSET(Import.PLQ,$A1-1,AU$15-1,1,1)),(1-PLE!$AA$28)*OFFSET(Import.PLQ,$A1-1,AU$15-1,1,1)))) -> 0 | AV1: =IF(AV$13="",0,CHOOSE(Detalhamento.OpçãoServiços,OFFSET(Import.PLQ,$A1-1,AV$15-1,1,1),IF($E1<>1,IF(ISNUMBER(INDEX(Import.PLE,Detalhamento!$E1,Detalhamento!AV$15)),IF(INDEX(Import.PLE,Detalhamento!$E1,Detalhamento!AV$15)<=mediçao,OFFSET(Import.PLQ,$A1-1,AV$15-1,1,1),0),0),PLE!$AA$28*OFFSET(Import.PLQ,$A1-1,AV$15-1,1,1)),IF($E1<>1,IF(ISNUMBER(INDEX(Import.PLE,Detalhamento!$E1,Detalhamento!AV$15)),IF(INDEX(Import.PLE,Detalhamento!$E1,Detalhamento!AV$15)<=mediçao,0,OFFSET(Import.PLQ,$A1-1,AV$15-1,1,1)),OFFSET(Import.PLQ,$A1-1,AV$15-1,1,1)),(1-PLE!$AA$28)*OFFSET(Import.PLQ,$A1-1,AV$15-1,1,1)))) -> 0 | AW1: =IF(AW$13="",0,CHOOSE(Detalhamento.OpçãoServiços,OFFSET(Import.PLQ,$A1-1,AW$15-1,1,1),IF($E1<>1,IF(ISNUMBER(INDEX(Import.PLE,Detalhamento!$E1,Detalhamento!AW$15)),IF(INDEX(Import.PLE,Detalhamento!$E1,Detalhamento!AW$15)<=mediçao,OFFSET(Import.PLQ,$A1-1,AW$15-1,1,1),0),0),PLE!$AA$28*OFFSET(Import.PLQ,$A1-1,AW$15-1,1,1)),IF($E1<>1,IF(ISNUMBER(INDEX(Import.PLE,Detalhamento!$E1,Detalhamento!AW$15)),IF(INDEX(Import.PLE,Detalhamento!$E1,Detalhamento!AW$15)<=mediçao,0,OFFSET(Import.PLQ,$A1-1,AW$15-1,1,1)),OFFSET(Import.PLQ,$A1-1,AW$15-1,1,1)),(1-PLE!$AA$28)*OFFSET(Import.PLQ,$A1-1,AW$15-1,1,1)))) -> 0 | AX1: =IF(AX$13="",0,CHOOSE(Detalhamento.OpçãoServiços,OFFSET(Import.PLQ,$A1-1,AX$15-1,1,1),IF($E1<>1,IF(ISNUMBER(INDEX(Import.PLE,Detalhamento!$E1,Detalhamento!AX$15)),IF(INDEX(Import.PLE,Detalhamento!$E1,Detalhamento!AX$15)<=mediçao,OFFSET(Import.PLQ,$A1-1,AX$15-1,1,1),0),0),PLE!$AA$28*OFFSET(Import.PLQ,$A1-1,AX$15-1,1,1)),IF($E1<>1,IF(ISNUMBER(INDEX(Import.PLE,Detalhamento!$E1,Detalhamento!AX$15)),IF(INDEX(Import.PLE,Detalhamento!$E1,Detalhamento!AX$15)<=mediçao,0,OFFSET(Import.PLQ,$A1-1,AX$15-1,1,1)),OFFSET(Import.PLQ,$A1-1,AX$15-1,1,1)),(1-PLE!$AA$28)*OFFSET(Import.PLQ,$A1-1,AX$15-1,1,1)))) -> 0 | AY1: =IF(AY$13="",0,CHOOSE(Detalhamento.OpçãoServiços,OFFSET(Import.PLQ,$A1-1,AY$15-1,1,1),IF($E1<>1,IF(ISNUMBER(INDEX(Import.PLE,Detalhamento!$E1,Detalhamento!AY$15)),IF(INDEX(Import.PLE,Detalhamento!$E1,Detalhamento!AY$15)<=mediçao,OFFSET(Import.PLQ,$A1-1,AY$15-1,1,1),0),0),PLE!$AA$28*OFFSET(Import.PLQ,$A1-1,AY$15-1,1,1)),IF($E1<>1,IF(ISNUMBER(INDEX(Import.PLE,Detalhamento!$E1,Detalhamento!AY$15)),IF(INDEX(Import.PLE,Detalhamento!$E1,Detalhamento!AY$15)<=mediçao,0,OFFSET(Import.PLQ,$A1-1,AY$15-1,1,1)),OFFSET(Import.PLQ,$A1-1,AY$15-1,1,1)),(1-PLE!$AA$28)*OFFSET(Import.PLQ,$A1-1,AY$15-1,1,1)))) -> 0 | AZ1: =IF(AZ$13="",0,CHOOSE(Detalhamento.OpçãoServiços,OFFSET(Import.PLQ,$A1-1,AZ$15-1,1,1),IF($E1<>1,IF(ISNUMBER(INDEX(Import.PLE,Detalhamento!$E1,Detalhamento!AZ$15)),IF(INDEX(Import.PLE,Detalhamento!$E1,Detalhamento!AZ$15)<=mediçao,OFFSET(Import.PLQ,$A1-1,AZ$15-1,1,1),0),0),PLE!$AA$28*OFFSET(Import.PLQ,$A1-1,AZ$15-1,1,1)),IF($E1<>1,IF(ISNUMBER(INDEX(Import.PLE,Detalhamento!$E1,Detalhamento!AZ$15)),IF(INDEX(Import.PLE,Detalhamento!$E1,Detalhamento!AZ$15)<=mediçao,0,OFFSET(Import.PLQ,$A1-1,AZ$15-1,1,1)),OFFSET(Import.PLQ,$A1-1,AZ$15-1,1,1)),(1-PLE!$AA$28)*OFFSET(Import.PLQ,$A1-1,AZ$15-1,1,1)))) -> 0 | BA1: =IF(BA$13="",0,CHOOSE(Detalhamento.OpçãoServiços,OFFSET(Import.PLQ,$A1-1,BA$15-1,1,1),IF($E1<>1,IF(ISNUMBER(INDEX(Import.PLE,Detalhamento!$E1,Detalhamento!BA$15)),IF(INDEX(Import.PLE,Detalhamento!$E1,Detalhamento!BA$15)<=mediçao,OFFSET(Import.PLQ,$A1-1,BA$15-1,1,1),0),0),PLE!$AA$28*OFFSET(Import.PLQ,$A1-1,BA$15-1,1,1)),IF($E1<>1,IF(ISNUMBER(INDEX(Import.PLE,Detalhamento!$E1,Detalhamento!BA$15)),IF(INDEX(Import.PLE,Detalhamento!$E1,Detalhamento!BA$15)<=mediçao,0,OFFSET(Import.PLQ,$A1-1,BA$15-1,1,1)),OFFSET(Import.PLQ,$A1-1,BA$15-1,1,1)),(1-PLE!$AA$28)*OFFSET(Import.PLQ,$A1-1,BA$15-1,1,1)))) -> 0 | BB1: =IF(BB$13="",0,CHOOSE(Detalhamento.OpçãoServiços,OFFSET(Import.PLQ,$A1-1,BB$15-1,1,1),IF($E1<>1,IF(ISNUMBER(INDEX(Import.PLE,Detalhamento!$E1,Detalhamento!BB$15)),IF(INDEX(Import.PLE,Detalhamento!$E1,Detalhamento!BB$15)<=mediçao,OFFSET(Import.PLQ,$A1-1,BB$15-1,1,1),0),0),PLE!$AA$28*OFFSET(Import.PLQ,$A1-1,BB$15-1,1,1)),IF($E1<>1,IF(ISNUMBER(INDEX(Import.PLE,Detalhamento!$E1,Detalhamento!BB$15)),IF(INDEX(Import.PLE,Detalhamento!$E1,Detalhamento!BB$15)<=mediçao,0,OFFSET(Import.PLQ,$A1-1,BB$15-1,1,1)),OFFSET(Import.PLQ,$A1-1,BB$15-1,1,1)),(1-PLE!$AA$28)*OFFSET(Import.PLQ,$A1-1,BB$15-1,1,1)))) -> 0 | BC1: =IF(BC$13="",0,CHOOSE(Detalhamento.OpçãoServiços,OFFSET(Import.PLQ,$A1-1,BC$15-1,1,1),IF($E1<>1,IF(ISNUMBER(INDEX(Import.PLE,Detalhamento!$E1,Detalhamento!BC$15)),IF(INDEX(Import.PLE,Detalhamento!$E1,Detalhamento!BC$15)<=mediçao,OFFSET(Import.PLQ,$A1-1,BC$15-1,1,1),0),0),PLE!$AA$28*OFFSET(Import.PLQ,$A1-1,BC$15-1,1,1)),IF($E1<>1,IF(ISNUMBER(INDEX(Import.PLE,Detalhamento!$E1,Detalhamento!BC$15)),IF(INDEX(Import.PLE,Detalhamento!$E1,Detalhamento!BC$15)<=mediçao,0,OFFSET(Import.PLQ,$A1-1,BC$15-1,1,1)),OFFSET(Import.PLQ,$A1-1,BC$15-1,1,1)),(1-PLE!$AA$28)*OFFSET(Import.PLQ,$A1-1,BC$15-1,1,1)))) -> 0 | BD1: =IF(BD$13="",0,CHOOSE(Detalhamento.OpçãoServiços,OFFSET(Import.PLQ,$A1-1,BD$15-1,1,1),IF($E1<>1,IF(ISNUMBER(INDEX(Import.PLE,Detalhamento!$E1,Detalhamento!BD$15)),IF(INDEX(Import.PLE,Detalhamento!$E1,Detalhamento!BD$15)<=mediçao,OFFSET(Import.PLQ,$A1-1,BD$15-1,1,1),0),0),PLE!$AA$28*OFFSET(Import.PLQ,$A1-1,BD$15-1,1,1)),IF($E1<>1,IF(ISNUMBER(INDEX(Import.PLE,Detalhamento!$E1,Detalhamento!BD$15)),IF(INDEX(Import.PLE,Detalhamento!$E1,Detalhamento!BD$15)<=mediçao,0,OFFSET(Import.PLQ,$A1-1,BD$15-1,1,1)),OFFSET(Import.PLQ,$A1-1,BD$15-1,1,1)),(1-PLE!$AA$28)*OFFSET(Import.PLQ,$A1-1,BD$15-1,1,1)))) -> 0 | BE1: =IF(BE$13="",0,CHOOSE(Detalhamento.OpçãoServiços,OFFSET(Import.PLQ,$A1-1,BE$15-1,1,1),IF($E1<>1,IF(ISNUMBER(INDEX(Import.PLE,Detalhamento!$E1,Detalhamento!BE$15)),IF(INDEX(Import.PLE,Detalhamento!$E1,Detalhamento!BE$15)<=mediçao,OFFSET(Import.PLQ,$A1-1,BE$15-1,1,1),0),0),PLE!$AA$28*OFFSET(Import.PLQ,$A1-1,BE$15-1,1,1)),IF($E1<>1,IF(ISNUMBER(INDEX(Import.PLE,Detalhamento!$E1,Detalhamento!BE$15)),IF(INDEX(Import.PLE,Detalhamento!$E1,Detalhamento!BE$15)<=mediçao,0,OFFSET(Import.PLQ,$A1-1,BE$15-1,1,1)),OFFSET(Import.PLQ,$A1-1,BE$15-1,1,1)),(1-PLE!$AA$28)*OFFSET(Import.PLQ,$A1-1,BE$15-1,1,1)))) -> 0 | BF1: =IF(BF$13="",0,CHOOSE(Detalhamento.OpçãoServiços,OFFSET(Import.PLQ,$A1-1,BF$15-1,1,1),IF($E1<>1,IF(ISNUMBER(INDEX(Import.PLE,Detalhamento!$E1,Detalhamento!BF$15)),IF(INDEX(Import.PLE,Detalhamento!$E1,Detalhamento!BF$15)<=mediçao,OFFSET(Import.PLQ,$A1-1,BF$15-1,1,1),0),0),PLE!$AA$28*OFFSET(Import.PLQ,$A1-1,BF$15-1,1,1)),IF($E1<>1,IF(ISNUMBER(INDEX(Import.PLE,Detalhamento!$E1,Detalhamento!BF$15)),IF(INDEX(Import.PLE,Detalhamento!$E1,Detalhamento!BF$15)<=mediçao,0,OFFSET(Import.PLQ,$A1-1,BF$15-1,1,1)),OFFSET(Import.PLQ,$A1-1,BF$15-1,1,1)),(1-PLE!$AA$28)*OFFSET(Import.PLQ,$A1-1,BF$15-1,1,1)))) -> 0 | BG1: =IF(BG$13="",0,CHOOSE(Detalhamento.OpçãoServiços,OFFSET(Import.PLQ,$A1-1,BG$15-1,1,1),IF($E1<>1,IF(ISNUMBER(INDEX(Import.PLE,Detalhamento!$E1,Detalhamento!BG$15)),IF(INDEX(Import.PLE,Detalhamento!$E1,Detalhamento!BG$15)<=mediçao,OFFSET(Import.PLQ,$A1-1,BG$15-1,1,1),0),0),PLE!$AA$28*OFFSET(Import.PLQ,$A1-1,BG$15-1,1,1)),IF($E1<>1,IF(ISNUMBER(INDEX(Import.PLE,Detalhamento!$E1,Detalhamento!BG$15)),IF(INDEX(Import.PLE,Detalhamento!$E1,Detalhamento!BG$15)<=mediçao,0,OFFSET(Import.PLQ,$A1-1,BG$15-1,1,1)),OFFSET(Import.PLQ,$A1-1,BG$15-1,1,1)),(1-PLE!$AA$28)*OFFSET(Import.PLQ,$A1-1,BG$15-1,1,1)))) -> 0 | BH1: =IF(BH$13="",0,CHOOSE(Detalhamento.OpçãoServiços,OFFSET(Import.PLQ,$A1-1,BH$15-1,1,1),IF($E1<>1,IF(ISNUMBER(INDEX(Import.PLE,Detalhamento!$E1,Detalhamento!BH$15)),IF(INDEX(Import.PLE,Detalhamento!$E1,Detalhamento!BH$15)<=mediçao,OFFSET(Import.PLQ,$A1-1,BH$15-1,1,1),0),0),PLE!$AA$28*OFFSET(Import.PLQ,$A1-1,BH$15-1,1,1)),IF($E1<>1,IF(ISNUMBER(INDEX(Import.PLE,Detalhamento!$E1,Detalhamento!BH$15)),IF(INDEX(Import.PLE,Detalhamento!$E1,Detalhamento!BH$15)<=mediçao,0,OFFSET(Import.PLQ,$A1-1,BH$15-1,1,1)),OFFSET(Import.PLQ,$A1-1,BH$15-1,1,1)),(1-PLE!$AA$28)*OFFSET(Import.PLQ,$A1-1,BH$15-1,1,1)))) -> 0 | BI1: =IF(BI$13="",0,CHOOSE(Detalhamento.OpçãoServiços,OFFSET(Import.PLQ,$A1-1,BI$15-1,1,1),IF($E1<>1,IF(ISNUMBER(INDEX(Import.PLE,Detalhamento!$E1,Detalhamento!BI$15)),IF(INDEX(Import.PLE,Detalhamento!$E1,Detalhamento!BI$15)<=mediçao,OFFSET(Import.PLQ,$A1-1,BI$15-1,1,1),0),0),PLE!$AA$28*OFFSET(Import.PLQ,$A1-1,BI$15-1,1,1)),IF($E1<>1,IF(ISNUMBER(INDEX(Import.PLE,Detalhamento!$E1,Detalhamento!BI$15)),IF(INDEX(Import.PLE,Detalhamento!$E1,Detalhamento!BI$15)<=mediçao,0,OFFSET(Import.PLQ,$A1-1,BI$15-1,1,1)),OFFSET(Import.PLQ,$A1-1,BI$15-1,1,1)),(1-PLE!$AA$28)*OFFSET(Import.PLQ,$A1-1,BI$15-1,1,1)))) -> 0
H2: PLE - Planilha de Levantamento de Eventos Detalhamento de Eventos | Q2: Grau de Sigilo #PUBLICO | W2: Grau de Sigilo #PUBLICO | AC2: Grau de Sigilo #PUBLICO | AI2: Grau de Sigilo #PUBLICO | AO2: Grau de Sigilo #PUBLICO | AU2: Grau de Sigilo #PUBLICO | BA2: Grau de Sigilo #PUBLICO | BG2: Grau de Sigilo #PUBLICO
B6: Eventos
B7: Orçamento
B8: 1
B9: Todos
B10: Executados
B11: A Executar
B12: 1
J13: Frente de Obra: | L13: =IF(Eventograma_e_Quantitativos!N15<>"",Eventograma_e_Quantitativos!N15,"") -> Única | M13: =IF(Eventograma_e_Quantitativos!O15<>"",Eventograma_e_Quantitativos!O15,"") -> R. Alírio Adail França | N13: =IF(Eventograma_e_Quantitativos!P15<>"",Eventograma_e_Quantitativos!P15,"") -> R. 13 de Maio | O13: =IF(Eventograma_e_Quantitativos!Q15<>"",Eventograma_e_Quantitativos!Q15,"") -> R. Melo Franco | P13: =IF(Eventograma_e_Quantitativos!R15<>"",Eventograma_e_Quantitativos!R15,"") -> R. Pe. Davi | Q13: =IF(Eventograma_e_Quantitativos!S15<>"",Eventograma_e_Quantitativos!S15,"") -> R. 15 de Novembro | R13: =IF(Eventograma_e_Quantitativos!T15<>"",Eventograma_e_Quantitativos!T15,"") ->  | S13: =IF(Eventograma_e_Quantitativos!U15<>"",Eventograma_e_Quantitativos!U15,"") ->  | T13: =IF(Eventograma_e_Quantitativos!V15<>"",Eventograma_e_Quantitativos!V15,"") ->  | U13: =IF(Eventograma_e_Quantitativos!W15<>"",Eventograma_e_Quantitativos!W15,"") ->  | V13: =IF(Eventograma_e_Quantitativos!X15<>"",Eventograma_e_Quantitativos!X15,"") ->  | W13: =IF(Eventograma_e_Quantitativos!Y15<>"",Eventograma_e_Quantitativos!Y15,"") ->  | X13: =IF(Eventograma_e_Quantitativos!Z15<>"",Eventograma_e_Quantitativos!Z15,"") ->  | Y13: =IF(Eventograma_e_Quantitativos!AA15<>"",Eventograma_e_Quantitativos!AA15,"") ->  | Z13: =IF(Eventograma_e_Quantitativos!AB15<>"",Eventograma_e_Quantitativos!AB15,"") ->  | AA13: =IF(Eventograma_e_Quantitativos!AC15<>"",Eventograma_e_Quantitativos!AC15,"") ->  | AB13: =IF(Eventograma_e_Quantitativos!AD15<>"",Eventograma_e_Quantitativos!AD15,"") ->  | AC13: =IF(Eventograma_e_Quantitativos!AE15<>"",Eventograma_e_Quantitativos!AE15,"") ->  | AD13: =IF(Eventograma_e_Quantitativos!AF15<>"",Eventograma_e_Quantitativos!AF15,"") ->  | AE13: =IF(Eventograma_e_Quantitativos!AG15<>"",Eventograma_e_Quantitativos!AG15,"") ->  | AF13: =IF(Eventograma_e_Quantitativos!AH15<>"",Eventograma_e_Quantitativos!AH15,"") ->  | AG13: =IF(Eventograma_e_Quantitativos!AI15<>"",Eventograma_e_Quantitativos!AI15,"") ->  | AH13: =IF(Eventograma_e_Quantitativos!AJ15<>"",Eventograma_e_Quantitativos!AJ15,"") ->  | AI13: =IF(Eventograma_e_Quantitativos!AK15<>"",Eventograma_e_Quantitativos!AK15,"") ->  | AJ13: =IF(Eventograma_e_Quantitativos!AL15<>"",Eventograma_e_Quantitativos!AL15,"") ->  | AK13: =IF(Eventograma_e_Quantitativos!AM15<>"",Eventograma_e_Quantitativos!AM15,"") ->  | AL13: =IF(Eventograma_e_Quantitativos!AN15<>"",Eventograma_e_Quantitativos!AN15,"") ->  | AM13: =IF(Eventograma_e_Quantitativos!AO15<>"",Eventograma_e_Quantitativos!AO15,"") ->  | AN13: =IF(Eventograma_e_Quantitativos!AP15<>"",Eventograma_e_Quantitativos!AP15,"") ->  | AO13: =IF(Eventograma_e_Quantitativos!AQ15<>"",Eventograma_e_Quantitativos!AQ15,"") ->  | AP13: =IF(Eventograma_e_Quantitativos!AR15<>"",Eventograma_e_Quantitativos!AR15,"") ->  | AQ13: =IF(Eventograma_e_Quantitativos!AS15<>"",Eventograma_e_Quantitativos!AS15,"") ->  | AR13: =IF(Eventograma_e_Quantitativos!AT15<>"",Eventograma_e_Quantitativos!AT15,"") ->  | AS13: =IF(Eventograma_e_Quantitativos!AU15<>"",Eventograma_e_Quantitativos!AU15,"") ->  | AT13: =IF(Eventograma_e_Quantitativos!AV15<>"",Eventograma_e_Quantitativos!AV15,"") ->  | AU13: =IF(Eventograma_e_Quantitativos!AW15<>"",Eventograma_e_Quantitativos!AW15,"") ->  | AV13: =IF(Eventograma_e_Quantitativos!AX15<>"",Eventograma_e_Quantitativos!AX15,"") ->  | AW13: =IF(Eventograma_e_Quantitativos!AY15<>"",Eventograma_e_Quantitativos!AY15,"") ->  | AX13: =IF(Eventograma_e_Quantitativos!AZ15<>"",Eventograma_e_Quantitativos!AZ15,"") ->  | AY13: =IF(Eventograma_e_Quantitativos!BA15<>"",Eventograma_e_Quantitativos!BA15,"") ->  | AZ13: =IF(Eventograma_e_Quantitativos!BB15<>"",Eventograma_e_Quantitativos!BB15,"") ->  | BA13: =IF(Eventograma_e_Quantitativos!BC15<>"",Eventograma_e_Quantitativos!BC15,"") ->  | BB13: =IF(Eventograma_e_Quantitativos!BD15<>"",Eventograma_e_Quantitativos!BD15,"") ->  | BC13: =IF(Eventograma_e_Quantitativos!BE15<>"",Eventograma_e_Quantitativos!BE15,"") ->  | BD13: =IF(Eventograma_e_Quantitativos!BF15<>"",Eventograma_e_Quantitativos!BF15,"") ->  | BE13: =IF(Eventograma_e_Quantitativos!BG15<>"",Eventograma_e_Quantitativos!BG15,"") ->  | BF13: =IF(Eventograma_e_Quantitativos!BH15<>"",Eventograma_e_Quantitativos!BH15,"") ->  | BG13: =IF(Eventograma_e_Quantitativos!BI15<>"",Eventograma_e_Quantitativos!BI15,"") ->  | BH13: =IF(Eventograma_e_Quantitativos!BJ15<>"",Eventograma_e_Quantitativos!BJ15,"") ->  | BI13: =IF(Eventograma_e_Quantitativos!BK15<>"",Eventograma_e_Quantitativos!BK15,"") -> 
E14: ="Valor "&CHOOSE(Detalhamento.OpçãoServiços,"de Investimento","Executado","A Executar")&": R$ "&TEXT(SUMIF(OFFSET(Detalhamento,0,6),"Evento",OFFSET(Detalhamento,0,9)),"#.#0,00") -> Valor de Investimento: R$ 263.000,00 | J14: Total por Frente (R$): | L14: =CHOOSE(Detalhamento.OpçãoServiços,SUM(OFFSET(PreçoServiçoPorFrente,0,L15-1,,1)),SUM(OFFSET(PreçoServiçosPorFrente.Executados,0,L15-1,,1)),SUM(OFFSET(PreçoServiçoPorFrente,0,L15-1,,1))-SUM(OFFSET(PreçoServiçosPorFrente.Executados,0,L15-1,,1))) -> 10461.6 | M14: 24704.09389 | N14: 53806.58333 | O14: 60446.77208 | P14: 61194.79546 | Q14: 52386.15523 | R14: 0 | S14: 0 | T14: 0 | U14: 0 | V14: 0 | W14: 0 | X14: 0 | Y14: 0 | Z14: 0 | AA14: 0 | AB14: 0 | AC14: 0 | AD14: 0 | AE14: 0 | AF14: 0 | AG14: 0 | AH14: 0 | AI14: 0 | AJ14: 0 | AK14: 0 | AL14: 0 | AM14: 0 | AN14: 0 | AO14: 0 | AP14: 0 | AQ14: 0 | AR14: =CHOOSE(Detalhamento.OpçãoServiços,SUM(OFFSET(PreçoServiçoPorFrente,0,AR15-1,,1)),SUM(OFFSET(PreçoServiçosPorFrente.Executados,0,AR15-1,,1)),SUM(OFFSET(PreçoServiçoPorFrente,0,AR15-1,,1))-SUM(OFFSET(PreçoServiçosPorFrente.Executados,0,AR15-1,,1))) -> 0 | AS14: 0 | AT14: 0 | AU14: 0 | AV14: 0 | AW14: 0 | AX14: 0 | AY14: 0 | AZ14: 0 | BA14: 0 | BB14: 0 | BC14: 0 | BD14: 0 | BE14: 0 | BF14: 0 | BG14: 0 | BH14: 0 | BI14: 0
E15: Evento | F15: Linha Orç | G15: Item Orç | H15: Título dos Eventos / Descrição Serviço | I15: Unid. | J15: Qtde. | L15: 1 | M15: 2 | N15: 3 | O15: 4 | P15: 5 | Q15: 6 | R15: 7 | S15: 8 | T15: 9 | U15: 10 | V15: 11 | W15: 12 | X15: 13 | Y15: 14 | Z15: 15 | AA15: 16 | AB15: 17 | AC15: 18 | AD15: 19 | AE15: 20 | AF15: 21 | AG15: 22 | AH15: 23 | AI15: 24 | AJ15: 25 | AK15: 26 | AL15: 27 | AM15: 28 | AN15: 29 | AO15: 30 | AP15: 31 | AQ15: 32 | AR15: 33 | AS15: 34 | AT15: 35 | AU15: 36 | AV15: 37 | AW15: 38 | AX15: 39 | AY15: 40 | AZ15: 41 | BA15: 42 | BB15: 43 | BC15: 44 | BD15: 45 | BE15: 46 | BF15: 47 | BG15: 48 | BH15: 49 | BI15: 50
B16: 2 | E16: 10 | G16: 3 | H16: 4 | I16: 5 | J16: 8
